Workbook

Sheet LDC Info
Z3: 1 | AA3: Alectra Utilities Corporation
Z4: 2 | AA4: Alectra Utilities Corporation - Brampton service territory
Z5: 3 | AA5: Alectra Utilities Corporation - Horizon Utilities service territory
Z6: 4 | AA6: Alectra Utilities Corporation - Mississauga service territory
Z7: 5 | AA7: Alectra Utilities Corporation - PowerStream service territory
Z8: 6 | AA8: Algoma Power Inc.
Z9: 7 | AA9: Atikokan Hydro Inc.
Z10: 8 | AA10: Attawapiskat Power Corporation
Z11: 9 | AA11: Bluewater Power Distribution Corporation
Z12: 10 | AA12: Brantford Power Inc.
Z13: 11 | AA13: Burlington Hydro Inc.
D14: Utility Name | E14: Chapleau Public Utilities Corporation | Z14: 12 | AA14: Canadian Niagara Power Inc. (Eastern Ontario Power/Fort Erie/Port Colborne)
Z15: 13 | AA15: Centre Wellington Hydro Ltd.
D16: Assigned EB Number | E16: EB-2018-0087 | Z16: 14 | AA16: Chapleau Public Utilities Corporation
Z17: 15 | AA17: COLLUS PowerStream Corp.
D18: Name of Contact and Title | E18: Jennifer Cyr, Manager of Finance | Z18: 16 | AA18: Cooperative Hydro Embrun Inc.
Z19: 17 | AA19: E.L.K. Energy Inc.
D20: Phone Number | E20: 705 864-0111 | Z20: 18 | AA20: Energy + Inc.
Z21: 19 | AA21: Enersource Hydro Mississauga Inc.
D22: Email Address | E22: jcyr.puc@chapleau.ca | Z22: 20 | AA22: Entegrus Powerlines Inc.
Z23: 21 | AA23: ENWIN Utilities Ltd.
D24: Test Year | E24: 2019 | Z24: 22 | AA24: Erie Thames Powerlines Corporation
Z25: 23 | AA25: Espanola Regional Hydro Distribution Corporation
D26: Bridge Year | E26: =IF(ISBLANK(E24), "", E24-1) -> 2018 | Z26: 24 | AA26: Essex Powerlines Corporation
Z27: 25 | AA27: Festival Hydro Inc.
D28: Last Rebasing Year | E28: 2012 | Z28: 26 | AA28: Fort Albany Power Corporation
Z29: 27 | AA29: Fort Frances Power Corporation
A30: Identify the accounting standard used for the test year | Z30: 28 | AA30: Greater Sudbury Hydro Inc.
E31: MIFRS | Z31: 29 | AA31: Grimsby Power Inc.
Z32: 30 | AA32: Guelph Hydro Electric Systems Inc.
A33: Did you update your depreciation and capitalization policies and reflect the changes in policies in a prior rebasing application? | Z33: 31 | AA33: Halton Hills Hydro Inc.
E34: Yes | Z34: 32 | AA34: Hearst Power Distribution Company Limited
Z35: 33 | AA35: Hydro 2000 Inc.
A36: When did you update your actual depreciation and capitalization policies? | Z36: 34 | AA36: Hydro Hawkesbury Inc.
E37: 2001-01-01 | F37: 2013 | Z37: 35 | AA37: Hydro One Networks Inc.
Z38: 36 | AA38: Hydro One Networks Inc. - Norfolk, Haldimand, Woodstock
A39: Identify the year the applicant adopted IFRS for financial reporting purposes | Z39: 37 | AA39: Hydro One Remote Communities Inc.
E40: 2015 | Z40: 38 | AA40: Hydro Ottawa Limited
Z41: 39 | AA41: Innpower Corporation
Z42: 40 | AA42: Kashechewan Power Corporation
A43: Are you applying for cost recovery for the test and/or future year(s) for Green Energy initiatives? | Z43: 41 | AA43: Kenora Hydro Electric Corporation Ltd.
E44: No | Z44: 42 | AA44: Kingston Hydro Corporation
Z45: 43 | AA45: Kitchener-Wilmot Hydro Inc.
A46: ="Is " & E14 & " an embedded distributor?" -> Is Chapleau Public Utilities Corporation an embedded distributor? | E46: Partial | Z46: 44 | AA46: Lakefront Utilities Inc.
Z47: 45 | AA47: Lakeland Power Distribution Ltd.
Z48: 46 | AA48: London Hydro Inc.
B49: Notes | Z49: 47 | AA49: Midland Power Utility Corporation
Z50: 48 | AA50: Milton Hydro Distribution Inc.
C51: Pale green cells represent input cells. | Z51: 49 | AA51: Newmarket-Tay Power Distribution Ltd.
Z52: 50 | AA52: Niagara Peninsula Energy Inc.
C53: Pale blue cells represent drop-down lists. The applicant should select the appropriate item from the drop-down list. | Z53: 51 | AA53: Niagara-on-the-Lake Hydro Inc.
Z54: 52 | AA54: North Bay Hydro Distribution Limited
C55: White cells contain fixed values, automatically generated values or formulae. | N55: =IF(LEN($G55)>1, (SUMPRODUCT(--($C$78:$C$1000=$C55),--($A$78:$A$1000=$D55), --($B$78:$B$1000=$B55&"_TOTAL"), $L$78:$L$1000)), "") ->  | O55: =IF(LEN($G55)>1, (SUMPRODUCT(--($C$78:$C$1000=$C55),--($A$78:$A$1000=$D55), --($B$78:$B$1000=$B55&"_TOTAL"), $M$78:$M$1000)), "") ->  | Z55: 53 | AA55: Northern Ontario Wires Inc.
N56: =IF(LEN($G56)>1, (SUMPRODUCT(--($C$78:$C$1000=$C56),--($A$78:$A$1000=$D56), --($B$78:$B$1000=$B56&"_TOTAL"), $L$78:$L$1000)), "") ->  | O56: =IF(LEN($G56)>1, (SUMPRODUCT(--($C$78:$C$1000=$C56),--($A$78:$A$1000=$D56), --($B$78:$B$1000=$B56&"_TOTAL"), $M$78:$M$1000)), "") ->  | Z56: 54 | AA56: Oakville Hydro Electricity Distribution Inc.
Z57: 55 | AA57: Orangeville Hydro Limited
Z58: 56 | AA58: Orillia Power Distribution Corporation
Z59: 57 | AA59: Oshawa PUC Networks Inc.
Z60: 58 | AA60: Ottawa River Power Corporation
Z61: 59 | AA61: Peterborough Distribution Inc.
Z62: 60 | AA62: PUC Distribution Inc.
Z63: 61 | AA63: Renfrew Hydro Inc.
Z64: 62 | AA64: Rideau St. Lawrence Distribution Inc.
Z65: 63 | AA65: Sioux Lookout Hydro Inc.
Z66: 64 | AA66: St. Thomas Energy Inc.
Z67: 65 | AA67: Thunder Bay Hydro Electricity Distribution Inc.
Z68: 66 | AA68: Tillsonburg Hydro Inc.
Z69: 67 | AA69: Toronto Hydro-Electric System Limited
Z70: 68 | AA70: Veridian Connections Inc.
Z71: 69 | AA71: Wasaga Distribution Inc.
Z72: 70 | AA72: Waterloo North Hydro Inc.
Z73: 71 | AA73: Welland Hydro-Electric System Corp.
Z74: 72 | AA74: Wellington North Power Inc.
Z75: 73 | AA75: West Coast Huron Energy Inc.
Z76: 74 | AA76: Westario Power Inc.
Z77: 75 | AA77: Whitby Hydro Electric Corporation

Sheet Index
A15: 1 | B15: LDC Information Sheet | E15: 20 | F15: App.2-G: Service Reliability Indicators
A16: 2 | B16: Index | E16: 21 | F16: App.2-H: Other Operating Revenue (TO BE UPDATED AT THE DRAFT RATE ORDER STAGE)
A17: 3 | B17: Cost of Service Application Flowchart | E17: 22 | F17: App.2-I: Load Forecast CDM Adjustment Workform
A18: 4 | B18: List of Key References | E18: 23 | F18: App.2-IA: Load Forecast Data Instructions
A19: 5 | B19: App.2-A: List of Requested Approvals | E19: 24 | F19: App.2-IB: Actual and Forecast Load and Customer Data
A20: 6 | B20: App.2-AA: Capital Projects Table | E20: 25 | F20: App.2-JA: OM&A Summary Analysis (TO BE UPDATED AT THE DRAFT RATE ORDER STAGE)
A21: 7 | B21: App.2-AB: Capital Expenditures (TO BE UPDATED AT THE DRAFT RATE ORDER STAGE) | E21: 26 | F21: App.2-JB: Recoverable OM&A Cost Driver Table
A22: 8 | B22: App. 2-AC: Customer Engagement Worksheet | E22: 27 | F22: App.2-JC: OM&A Programs Table
A23: 9 | B23: App.2-B: General Accounting Instructions | E23: 28 | F23: App.2-K: Employee Costs (TO BE UPDATED AT THE DRAFT RATE ORDER STAGE)
A24: 10 | B24: App.2-BA: Fixed Asset Continuity Schedule | E24: 29 | F24: App.2-L: Recoverable OM&A Cost per Customer and per FTE
A25: 11 | B25: Appendix 2-BB: Service Life Comparison | E25: 30 | F25: App.2-M: Regulatory Costs Schedule (TO BE UPDATED AT THE DRAFT RATE ORDER STAGE)
A26: 12 | B26: App.2-C_DepExp: Depreciation and Amortization Expense | E26: 31 | F26: App.2-N: Shared Services and Corporate Cost Allocation
A27: 13 | B27: App.2-D: Overhead Expenses | E27: 32 | F27: App.2-OA: Capital Structure and Cost of Capital
A28: 14 | B28: App.2-EA: Account 1575 PP&E Deferral Account (2015 IFRS Adopters) - CONTACT OEB STAFF IF TAB REQUIRED | E28: 33 | F28: App.2-OB: Debt Instruments
A29: 15 | B29: App.2-EB: Account 1576 - Accounting Changes Under CGAAP (2012 Changes) - CONTACT OEB STAFF IF TAB REQUIRED | E29: 34 | F29: App.2-Q: Cost of Serving Embedded Distributor(s)
A30: 16 | B30: App.2-EC: Account 1576 - Accounting Changes Under CGAAP (2013 Changes) - CONTACT OEB STAFF IF TAB REQUIRED | E30: 35 | F30: App.2-R: Loss Factors
A31: 17 | B31: App.2-FA: Renewable Generation Connection Investment Summary (TO BE UPDATED AT THE DRAFT RATE ORDER STAGE) | E31: 36 | F31: App.2-S: Stranded Meter Treatment
A32: 18 | B32: App.2-FB: Calculation of Renewable Generation Connection Direct Benefits/Provincial Amount: Renewable Enabling Improvement Investments (TO BE UPDATED AT THE DRAFT RATE ORDER STAGE) | E32: 37 | F32: App.2-Y: Transition to MIFRS Summary Impact - CONTACT OEB STAFF IF TAB REQUIRED
A33: 19 | B33: App.2-FC: Calculation of Renewable Generation Connection Direct Benefits/Provincial Amount: Renewable Expansion Investments (TO BE UPDATED AT THE DRAFT RATE ORDER STAGE) | E33: 38 | F33: App.2-YA: One-Time Incremental IFRS Transition Costs - CONTACT OEB STAFF IF TAB REQUIRED
E34: 39 | F34: App.2-Z: Commodity Expense
A42: Note: | B42: Appendices for the Tariff of Rates and Charges at Current and Proposed Rates, and for the Bill Impacts are now in a separate spreadsheet model. These appendices were formerly 2-Z and 2-W.

Sheet COS Flowchart
B4: Cost of Service Rate Application Schematic
B6: The Cost of Service Rate Application Schematic is a flowchart that is included as a guide for the components of an application. The schematic demonstrates how demand and costs interrelate to derive the revenue requirement and how the revenue requirement is allocated between classes and through fixed/variable splits to derive rates that will be compensatory for the annual revenue requirement, based on the the forecasted demand. There is no form to be filled out; therefore, this Schedule is not required to be filed.

Sheet List of Key References
B2: List of Key References
A4: A list of key references for understanding the Filing Requirements has been embedded in the document below. To access the list of references and associated hyperlinks double-click the icon below.

Sheet App.2-A_Requested_Approvals
G1: File Number: | H1: =EBNUMBER -> EB-2018-0087
G2: Exhibit: | H2: 1
G3: Tab:
G4: Schedule:
G5: Page: | H5: Appendices
G7: Date: | H7: 2018-08-31
B9: Appendix 2-A
B10: List of Requested Approvals
B12: The distributor must fill out the following sheet with the complete list of specific approvals requested and relevant section(s) of the legislation must be provided. All approvals, including accounting orders (deferral and variance accounts) new rate classes, revised specific service charges or retail service charges which the applicant is seeking, must be separately identified, as well being clearly documented in the appropriate sections of the application.
B14: Additional requests may be added by copying and pasting blank input rows, as needed.
B16: If additional requests arise, or requested approvals are removed, during the processing of the application, the distributor should update this list.
B18: =CONCATENATE('LDC Info'!E14," is seeking the following approvals in this application:") -> Chapleau Public Utilities Corporation is seeking the following approvals in this application:
B20: 1 | F20: Approval to charge distribution rates effective May 1, 2019 to recover a service revenue requirement of $1,004,820 which includes a revenue deficiency of $221,259 as detailed in Exhibit 6. The schedule of proposed rates is set out in Exhibit 8.
B22: 2 | F22: Approval of the Distribution System Plan as outlined in Exhibit 2 Section 2.5.2
B24: 3
B26: 4 | F26: Approval to adjust the Retail Transmission Rates – Network and Connection as detailed in Exhibit 8.
B28: 5 | F28: Approval of the proposed loss factors as detailed in Exhibit 8.
B30: 6 | F30: Approval to continue to charge Wholesale Market and Rural Rate Protection Charges approved in the Board Decision and Order in the matter of CHEI 2017 Distribution Rates (EB-2016-0062).
B32: 7 | F32: Approval to continue the Specific Service Charges, Retail Service Charges, as approved in the Board Decision and Order in the matter of CPUC’s 2015 Distribution Rates (EB-2014-0063).
B34: 8 | F34: Approval of the rate riders for a one year disposition of the Group 1 and Group 2 and Other Deferral and Variance Accounts as detailed in Exhibit 9.
B36: 9 | F36: Approval to dispose of balances in the LRAMVA (1568) and Conversion form CGAAP to MIFRS (1576) variance account as presented in Exhibit 9.
B38: 10 | F38: Such other approvals that CPUC may request and that the OEB accepts.

Sheet App.2-AA_Capital Projects
G1: File Number: | H1: =EBNUMBER -> EB-2018-0087
G2: Exhibit:
G3: Tab:
G4: Schedule:
G5: Page:
G7: Date:
A9: Appendix 2-AA
A10: Capital Projects Table
A12: Capital projects table
A14: Reporting basis | B14: Reporting basis | E14: Cgaap | F14: Cgaap | G14: Newgaap | H14: Newgaap | I14: Mifrs | J14: Cgaap | K14: Mifrs | L14: Mifrs
A15: Projects | B15: Projects | C15: 2012 test year | D15: Usoa | E15: 2012 | F15: 2013 | G15: 2014 | H15: 2015 | I15: 2016 | J15: 2017 | K15: 2018 | L15: 2019
A17: System access | B17: System access
B18: To transfer computer software capital for 2008,2009,2010,2011& | D18: 1611
B19: 2012 to computer software from smart meter variance acct. | E19: 57476.1
B21: Meters & smart meters | C21: 1500
B23: Watt hour meters | D23: 1860 | E23: 1108
B24: Transfer smart meter acct | E24: 381117
B26: Meter purchase | D26: 1860 | F26: 687
B27: "a" to "s" adapter | F27: 193
B29: Meter rings | D29: 1860 | H29: 520.55
B31: Meter service provider | D31: 1860 | I31: 1000
B33: Meter sampling | D33: 1860 | J33: 19667.94
B35: Meter reverification | D35: 1860 | K35: 8039
B37: Sub-total system access | E37: 439701.1 | F37: 880 | G37: 0 | H37: 520.55 | I37: 1000 | J37: 19667.94 | K37: 8039 | L37: 0
A38: Contributed capital
B43: Contributed capital | F43: 0 | G43: 0 | H43: 0 | I43: 0 | J43: 0 | K43: 0 | L43: 0
A44: Total system access | B44: Total system access | E44: 439701.1 | F44: 880 | G44: 0 | H44: 520.55 | I44: 1000 | J44: 19667.94 | K44: 8039 | L44: 0
A47: System renewal | B47: System renewal | D47: Usoa | E47: 2012 | F47: 2013 | G47: 2014 | H47: 2015 | I47: 2016 | J47: 2017 | K47: 2018 | L47: 2019
B48: Poles ,towers & fixtures with some contract work | D48: 1830 | E48: 2502 | H48: 40267 | J48: 4389 | L48: 0
B49: Contractor truck& labour | L49: 56985
B50: Poles towers fixtures only | C50: 23162
B52: Line transformers | C52: 8863 | D52: 1650 | E52: 4439 | K52: 8780 | L52: 0
B54: Poles (guelph utility poles)highline power supply equipment & | D54: 1830
B55: Labour, material from local store | F55: 8956
B57: Poles, towers, fixtures, engineering work, contractor material &
B58: Labour | D58: 1830 | G58: 13973
B60: Line tx | D60: 1850 | F60: 3691 | G60: 4950 | H60: 5588
B62: Poles, towers, fixtures, contractor work | D62: 1830 | I62: 35193 | K62: 25572
B64: Poles towers fixtures cpuc work&materials | L64: 23682
B65: Sub-total system renewal | E65: 6941 | F65: 12647 | G65: 18923 | H65: 45855 | I65: 35193 | J65: 4389 | K65: 34352 | L65: 80667
A66: Contributed capital
D67: 1995
B71: Contributed capital | E71: 0 | F71: 0 | G71: 0 | H71: 0 | I71: 0 | J71: 0 | K71: 0 | L71: 0
A72: Total system renewal | B72: Total system renewal | E72: 6941 | F72: 12647 | G72: 18923 | H72: 45855 | I72: 35193 | J72: 4389 | K72: 34352 | L72: 80667
A74: System service | B74: System service | D74: Usoa | E74: 2012 | F74: 2013 | G74: 2014 | H74: 2015 | I74: 2016 | J74: 2017 | K74: 2018 | L74: 2019
B75: Tx station equipment, re-furbished regulators x3. Replace oil in
B76: Same, dispose of old oil, new reg, control for one of the refurbished
B77: Reg. | D77: 1815 | E77: 15406
B79: Station tx work | C79: 19765
B81: Usf engineering cost | D81: 1990
B83: Computer software | C83: 5000
B85: Computer software- asset management | D85: 1925 | G85: 25000
B87: Usf standards | D87: 1990 | I87: 100
B89: Distrubution station moisture testing | D89: 1815 | K89: 32500
B91: Sub-total system service | E91: 15406 | F91: 0 | G91: 25000 | H91: 0 | I91: 100 | J91: 0 | K91: 32500 | L91: 0
A92: Contributed capital
D93: 1995
B97: Contributed capital | E97: 0 | F97: 0 | G97: 0 | H97: 0 | I97: 0 | J97: 0 | K97: 0 | L97: 0
A98: Total system service | B98: Total system service | E98: 15406 | F98: 0 | G98: 25000 | H98: 0 | I98: 100 | J98: 0 | K98: 32500 | L98: 0
A101: General plant | B101: General plant | D101: Usoa | E101: 2012 | F101: 2013 | G101: 2014 | H101: 2015 | I101: 2016 | J101: 2017 | K101: 2018 | L101: 2019
B102: Burman energy-asset management plan | D102: 1925 | F102: 40000
B104: Substation tx's re-inhibit and clean oil (stark international) | D104: 1815 | F104: 34700
B106: Burman energy survey & software support | D106: 1925 | H106: 54800
B108: Boom truck | K108: 389010
B110: Computer upgrade and purchase | K110: 12761
B113: Sub-total general plant | E113: 0 | F113: 74700 | G113: 0 | H113: 54800 | I113: 0 | J113: 0 | K113: 401771 | L113: 0
A114: Contributed capital
D115: 1995
B119: Contributed capital | E119: 0 | F119: 0 | G119: 0 | H119: 0 | I119: 0 | J119: 0 | K119: 0 | L119: 0
A120: Total system service | B120: Total system service | E120: 0 | F120: 74700 | G120: 0 | H120: 54800 | I120: 0 | J120: 0 | K120: 401771 | L120: 0
A122: Transfer of assets from affiliate | K122: 476662
A124: Total capital expenditures | E124: 462048.1 | F124: 88227 | G124: 43923 | H124: 101175.55 | I124: 36293 | J124: 24056.94 | K124: 476662 | L124: 80667
A126: Reconciliation to yearly additions | E126: 462048 | F126: 88227 | G126: 43923 | H126: 101176 | I126: 36293.27 | J126: 24057 | K126: 476662 | L126: 80667
A127: Variance to yearly additions | E127: 0.09999999998 | F127: 0 | G127: 0 | H127: -0.45 | I127: -0.27 | J127: -0.06 | K127: 0 | L127: 0
F128: * note: variance over $100 will be highlighted in red

Sheet App.2-AB_Capital Expenditures
AE1: File Number: | AG1: =EBNUMBER -> EB-2018-0087
AE2: Exhibit:
AE3: Tab:
AE4: Schedule:
A5: TO BE UPDATED AT THE DRAFT RATE ORDER STAGE | AE5: Page:
AE7: Date:
A9: Appendix 2-AB
A10: Table 2 - Capital Expenditure Summary from Chapter 5 Consolidated Distribution System Plan Filing Requirements
A11: First year of Forecast Period:
A12: =TestYear -> 2019
A13: CATEGORY | B13: Historical Period (previous plan1 & actual) | AC13: Forecast Period (planned)
B14: =E14-1 -> 2010 | E14: =H14-1 -> 2011 | H14: =K14-1 -> 2012 | K14: =N14-1 -> 2013 | N14: =Q14-1 -> 2014 | Q14: =T14-1 -> 2015 | T14: =W14-1 -> 2016 | W14: =Z14-1 -> 2017 | Z14: =AC14-1 -> 2018 | AC14: =A12 -> 2019 | AD14: =AC14+1 -> 2020 | AE14: =AD14+1 -> 2021 | AF14: =AE14+1 -> 2022 | AG14: =AF14+1 -> 2023
B15: Plan | C15: Actual | D15: Var | E15: Plan | F15: Actual | G15: Var | H15: Plan | I15: Actual | J15: Var | K15: Plan | L15: Actual | M15: Var | N15: Plan | O15: Actual | P15: Var | Q15: Plan | R15: Actual | S15: Var | T15: Plan | U15: Actual | V15: Var | W15: Plan | X15: Actual | Y15: Var | Z15: Plan | AA15: Actual2 | AB15: Var
B16: $ '000 | D16: % | E16: $ '000 | G16: % | H16: $ '000 | J16: % | K16: $ '000 | M16: % | N16: $ '000 | P16: % | Q16: $ '000 | S16: % | T16: $ '000 | V16: % | W16: $ '000 | Y16: % | Z16: $ '000 | AB16: % | AC16: $ '000
A17: System Access | D17: =IF(ISERROR((C17-B17)/B17),"--",(C17-B17)/B17) -> -- | G17: =IF(ISERROR((F17-E17)/E17),"--",(F17-E17)/E17) -> -- | I17: 439701 | J17: =IF(ISERROR((I17-H17)/H17),"--",(I17-H17)/H17) -> -- | L17: 880 | M17: =IF(ISERROR((L17-K17)/K17),"--",(L17-K17)/K17) -> -- | O17: 0 | P17: =IF(ISERROR((O17-N17)/N17),"--",(O17-N17)/N17) -> -- | R17: 1000 | S17: =IF(ISERROR((R17-Q17)/Q17),"--",(R17-Q17)/Q17) -> -- | U17: 1000 | V17: =IF(ISERROR((U17-T17)/T17),"--",(U17-T17)/T17) -> -- | X17: 19668 | Y17: =IF(ISERROR((X17-W17)/W17),"--",(X17-W17)/W17) -> -- | AA17: 8039 | AB17: =IF(ISERROR((AA17-Z17)/Z17),"--",(AA17-Z17)/Z17) -> --
A18: System Renewal | D18: =IF(ISERROR((C18-B18)/B18),"--",(C18-B18)/B18) -> -- | G18: =IF(ISERROR((F18-E18)/E18),"--",(F18-E18)/E18) -> -- | I18: 6941 | J18: =IF(ISERROR((I18-H18)/H18),"--",(I18-H18)/H18) -> -- | L18: 12647 | M18: =IF(ISERROR((L18-K18)/K18),"--",(L18-K18)/K18) -> -- | O18: 18923 | P18: =IF(ISERROR((O18-N18)/N18),"--",(O18-N18)/N18) -> -- | R18: 45855 | S18: =IF(ISERROR((R18-Q18)/Q18),"--",(R18-Q18)/Q18) -> -- | U18: 35193 | V18: =IF(ISERROR((U18-T18)/T18),"--",(U18-T18)/T18) -> -- | X18: 4389 | Y18: =IF(ISERROR((X18-W18)/W18),"--",(X18-W18)/W18) -> -- | AA18: 34532 | AB18: =IF(ISERROR((AA18-Z18)/Z18),"--",(AA18-Z18)/Z18) -> -- | AC18: 80677 | AD18: 80677 | AE18: 80677 | AF18: 80677 | AG18: 80677
A19: System Service | D19: -- | G19: -- | I19: 15406 | J19: -- | L19: 0 | M19: -- | O19: 25000 | P19: -- | S19: -- | U19: 100 | V19: -- | X19: 100 | Y19: -- | AA19: 32500 | AB19: --
A20: General Plant | D20: -- | G20: -- | I20: 0 | J20: -- | L20: 74700 | M20: -- | P20: -- | R20: 54800 | S20: -- | U20: 0 | V20: -- | Y20: -- | AA20: 401771 | AB20: --
A21: TOTAL EXPENDITURE | B21: =SUM(B17:B20) -> 0 | C21: =SUM(C17:C20) -> 0 | D21: -- | E21: =SUM(E17:E20) -> 0 | F21: =SUM(F17:F20) -> 0 | G21: -- | H21: 58290 | I21: =SUM(I17:I20) -> 462048 | J21: 6.926711271 | K21: 58290 | L21: =SUM(L17:L20) -> 88227 | M21: 0.5135872362 | N21: 58290 | O21: =SUM(O17:O20) -> 43923 | P21: -0.2464745239 | Q21: 58290 | R21: 101655 | S21: 0.7439526505 | T21: 58290 | U21: 36293 | V21: -0.3773717619 | W21: 58290 | X21: 24157 | Y21: -0.5855721393 | Z21: 58290 | AA21: 476842 | AB21: 7.180511237 | AC21: 80677 | AD21: 80677 | AE21: 80677 | AF21: 80677 | AG21: =SUM(AG17:AG20) -> 80677
A22: Capital Contributions | D22: -- | G22: -- | I22: 0 | J22: -- | L22: 0 | M22: -- | O22: 0 | P22: -- | R22: 0 | S22: -- | U22: 0 | V22: -- | X22: 0 | Y22: -- | AA22: 0 | AB22: --
A23: Net Capital Expenditures | D23: -- | G23: -- | I23: =I21+I22 -> 462048 | J23: -- | L23: =L21+L22 -> 88227 | M23: -- | O23: =O21+O22 -> 43923 | P23: -- | R23: =R21+R22 -> 101655 | S23: -- | U23: =U21+U22 -> 36293 | V23: -- | X23: =X21+X22 -> 24157 | Y23: -- | AA23: =AA21+AA22 -> 476842 | AB23: -- | AC23: =AC21+AC22 -> 80677 | AD23: =AD21+AD22 -> 80677 | AE23: =AE21+AE22 -> 80677 | AF23: =AF21+AF22 -> 80677 | AG23: =AG21+AG22 -> 80677
A24: System O&M | D24: -- | G24: -- | H24: 205440 | I24: 289711.1 | J24: 0.4101981114 | K24: 205440 | L24: 220412.01 | M24: 0.07287777453 | N24: 205440 | O24: 223211 | P24: 0.08650214174 | Q24: 205440 | R24: 208239 | S24: 0.01362441589 | T24: 205440 | U24: 236332 | V24: 0.1503699377 | W24: 205440 | X24: 237909 | Y24: 0.1580461449 | Z24: 205440 | AA24: 247400 | AB24: 0.2042445483 | AC24: 244370
A26: Notes to the Table:
A27: 1. Historical “previous plan” data is not required unless a plan has previously been filed. However, use the last Board-approved, at least on a Total (Capital) Expenditure basis for the last cost of service rebasing year, and the applicant should include their planned budget in each subsequent historical year up to and including the Bridge Year.
A28: 2. Indicate the number of months of 'actual' data included in the last year of the Historical Period (normally a 'bridge' year):
A30: Explanatory Notes on Variances (complete only if applicable)
A31: Notes on shifts in forecast vs. historical budgets by category
A34: Notes on year over year Plan vs. Actual variances for Total Expenditures
A37: Notes on Plan vs. Actual variance trends for individual expenditure categories

Sheet Hidden_CAPEX (hidden)
A1: Utility Name | B1: EB Number | C1: Test Year | D1: Bridge Year | E1: Last Rebasing Year | F1: Category | G1: Year | H1: Plan | I1: Actual
A2: ='LDC Info'!$E$14 -> Chapleau Public Utilities Corporation | B2: =EBNUMBER -> EB-2018-0087 | C2: =TestYear -> 2019 | D2: =BridgeYear -> 2018 | E2: =RebaseYear -> 2012 | F2: System Access | G2: 2010 | H2: ='App.2-AB_Capital Expenditures'!B17 -> 0 | I2: ='App.2-AB_Capital Expenditures'!C17 -> 0
A3: ='LDC Info'!$E$14 -> Chapleau Public Utilities Corporation | B3: EB-2018-0087 | C3: 2019 | D3: 2018 | E3: 2012 | F3: System Renewal | G3: 2010 | H3: ='App.2-AB_Capital Expenditures'!B18 -> 0 | I3: ='App.2-AB_Capital Expenditures'!C18 -> 0
A4: ='LDC Info'!$E$14 -> Chapleau Public Utilities Corporation | B4: EB-2018-0087 | C4: 2019 | D4: 2018 | E4: 2012 | F4: System Service | G4: 2010 | H4: ='App.2-AB_Capital Expenditures'!B19 -> 0 | I4: ='App.2-AB_Capital Expenditures'!C19 -> 0
A5: ='LDC Info'!$E$14 -> Chapleau Public Utilities Corporation | B5: EB-2018-0087 | C5: 2019 | D5: 2018 | E5: 2012 | F5: General Plant | G5: 2010 | H5: ='App.2-AB_Capital Expenditures'!B20 -> 0 | I5: ='App.2-AB_Capital Expenditures'!C20 -> 0
A6: ='LDC Info'!$E$14 -> Chapleau Public Utilities Corporation | B6: EB-2018-0087 | C6: 2019 | D6: 2018 | E6: 2012 | F6: Total Expenditure | G6: 2010 | H6: ='App.2-AB_Capital Expenditures'!B21 -> 0 | I6: ='App.2-AB_Capital Expenditures'!C21 -> 0
A7: ='LDC Info'!$E$14 -> Chapleau Public Utilities Corporation | B7: EB-2018-0087 | C7: 2019 | D7: 2018 | E7: 2012 | F7: Capital Contributions | G7: 2010 | H7: ='App.2-AB_Capital Expenditures'!B22 -> 0 | I7: ='App.2-AB_Capital Expenditures'!C22 -> 0
A8: ='LDC Info'!$E$14 -> Chapleau Public Utilities Corporation | B8: EB-2018-0087 | C8: 2019 | D8: 2018 | E8: 2012 | F8: Net Capital Expenditures | G8: 2010 | H8: ='App.2-AB_Capital Expenditures'!B23 -> 0 | I8: ='App.2-AB_Capital Expenditures'!C23 -> 0
A9: ='LDC Info'!$E$14 -> Chapleau Public Utilities Corporation | B9: EB-2018-0087 | C9: 2019 | D9: 2018 | E9: 2012 | F9: System O&M | G9: 2010 | H9: ='App.2-AB_Capital Expenditures'!B24 -> 0 | I9: ='App.2-AB_Capital Expenditures'!C24 -> 0
A10: ='LDC Info'!$E$14 -> Chapleau Public Utilities Corporation | B10: EB-2018-0087 | C10: 2019 | D10: 2018 | E10: 2012 | F10: System Access | G10: 2011 | H10: ='App.2-AB_Capital Expenditures'!E17 -> 0 | I10: ='App.2-AB_Capital Expenditures'!F17 -> 0
A11: ='LDC Info'!$E$14 -> Chapleau Public Utilities Corporation | B11: EB-2018-0087 | C11: 2019 | D11: 2018 | E11: 2012 | F11: System Renewal | G11: 2011 | H11: ='App.2-AB_Capital Expenditures'!E18 -> 0 | I11: ='App.2-AB_Capital Expenditures'!F18 -> 0
A12: ='LDC Info'!$E$14 -> Chapleau Public Utilities Corporation | B12: EB-2018-0087 | C12: 2019 | D12: 2018 | E12: 2012 | F12: System Service | G12: 2011 | H12: ='App.2-AB_Capital Expenditures'!E19 -> 0 | I12: ='App.2-AB_Capital Expenditures'!F19 -> 0
A13: ='LDC Info'!$E$14 -> Chapleau Public Utilities Corporation | B13: EB-2018-0087 | C13: 2019 | D13: 2018 | E13: 2012 | F13: General Plant | G13: 2011 | H13: ='App.2-AB_Capital Expenditures'!E20 -> 0 | I13: ='App.2-AB_Capital Expenditures'!F20 -> 0
A14: ='LDC Info'!$E$14 -> Chapleau Public Utilities Corporation | B14: EB-2018-0087 | C14: 2019 | D14: 2018 | E14: 2012 | F14: Total Expenditure | G14: 2011 | H14: ='App.2-AB_Capital Expenditures'!E21 -> 0 | I14: ='App.2-AB_Capital Expenditures'!F21 -> 0
A15: ='LDC Info'!$E$14 -> Chapleau Public Utilities Corporation | B15: EB-2018-0087 | C15: 2019 | D15: 2018 | E15: 2012 | F15: Capital Contributions | G15: 2011 | H15: ='App.2-AB_Capital Expenditures'!E22 -> 0 | I15: ='App.2-AB_Capital Expenditures'!F22 -> 0
A16: ='LDC Info'!$E$14 -> Chapleau Public Utilities Corporation | B16: EB-2018-0087 | C16: 2019 | D16: 2018 | E16: 2012 | F16: Net Capital Expenditures | G16: 2011 | H16: ='App.2-AB_Capital Expenditures'!E23 -> 0 | I16: ='App.2-AB_Capital Expenditures'!F23 -> 0
A17: ='LDC Info'!$E$14 -> Chapleau Public Utilities Corporation | B17: EB-2018-0087 | C17: 2019 | D17: 2018 | E17: 2012 | F17: System O&M | G17: 2011 | H17: ='App.2-AB_Capital Expenditures'!E24 -> 0 | I17: ='App.2-AB_Capital Expenditures'!F24 -> 0
A18: ='LDC Info'!$E$14 -> Chapleau Public Utilities Corporation | B18: EB-2018-0087 | C18: 2019 | D18: 2018 | E18: 2012 | F18: System Access | G18: 2012 | H18: ='App.2-AB_Capital Expenditures'!H17 -> 0 | I18: ='App.2-AB_Capital Expenditures'!I17 -> 439701
A19: ='LDC Info'!$E$14 -> Chapleau Public Utilities Corporation | B19: EB-2018-0087 | C19: 2019 | D19: 2018 | E19: 2012 | F19: System Renewal | G19: 2012 | H19: ='App.2-AB_Capital Expenditures'!H18 -> 0 | I19: ='App.2-AB_Capital Expenditures'!I18 -> 6941
A20: ='LDC Info'!$E$14 -> Chapleau Public Utilities Corporation | B20: EB-2018-0087 | C20: 2019 | D20: 2018 | E20: 2012 | F20: System Service | G20: 2012 | H20: ='App.2-AB_Capital Expenditures'!H19 -> 0 | I20: ='App.2-AB_Capital Expenditures'!I19 -> 15406
A21: ='LDC Info'!$E$14 -> Chapleau Public Utilities Corporation | B21: EB-2018-0087 | C21: 2019 | D21: 2018 | E21: 2012 | F21: General Plant | G21: 2012 | H21: ='App.2-AB_Capital Expenditures'!H20 -> 0 | I21: ='App.2-AB_Capital Expenditures'!I20 -> 0
A22: ='LDC Info'!$E$14 -> Chapleau Public Utilities Corporation | B22: EB-2018-0087 | C22: 2019 | D22: 2018 | E22: 2012 | F22: Total Expenditure | G22: 2012 | H22: ='App.2-AB_Capital Expenditures'!H21 -> 58290 | I22: ='App.2-AB_Capital Expenditures'!I21 -> 462048
A23: ='LDC Info'!$E$14 -> Chapleau Public Utilities Corporation | B23: EB-2018-0087 | C23: 2019 | D23: 2018 | E23: 2012 | F23: Capital Contributions | G23: 2012 | H23: ='App.2-AB_Capital Expenditures'!H22 -> 0 | I23: ='App.2-AB_Capital Expenditures'!I22 -> 0
A24: ='LDC Info'!$E$14 -> Chapleau Public Utilities Corporation | B24: EB-2018-0087 | C24: 2019 | D24: 2018 | E24: 2012 | F24: Net Capital Expenditures | G24: 2012 | H24: ='App.2-AB_Capital Expenditures'!H23 -> 0 | I24: ='App.2-AB_Capital Expenditures'!I23 -> 462048
A25: ='LDC Info'!$E$14 -> Chapleau Public Utilities Corporation | B25: EB-2018-0087 | C25: 2019 | D25: 2018 | E25: 2012 | F25: System O&M | G25: 2012 | H25: ='App.2-AB_Capital Expenditures'!H24 -> 205440 | I25: ='App.2-AB_Capital Expenditures'!I24 -> 289711.1
A26: ='LDC Info'!$E$14 -> Chapleau Public Utilities Corporation | B26: EB-2018-0087 | C26: 2019 | D26: 2018 | E26: 2012 | F26: System Access | G26: 2013 | H26: ='App.2-AB_Capital Expenditures'!K17 -> 0 | I26: ='App.2-AB_Capital Expenditures'!L17 -> 880
A27: ='LDC Info'!$E$14 -> Chapleau Public Utilities Corporation | B27: EB-2018-0087 | C27: 2019 | D27: 2018 | E27: 2012 | F27: System Renewal | G27: 2013 | H27: ='App.2-AB_Capital Expenditures'!K18 -> 0 | I27: ='App.2-AB_Capital Expenditures'!L18 -> 12647
A28: ='LDC Info'!$E$14 -> Chapleau Public Utilities Corporation | B28: EB-2018-0087 | C28: 2019 | D28: 2018 | E28: 2012 | F28: System Service | G28: 2013 | H28: ='App.2-AB_Capital Expenditures'!K19 -> 0 | I28: ='App.2-AB_Capital Expenditures'!L19 -> 0
A29: ='LDC Info'!$E$14 -> Chapleau Public Utilities Corporation | B29: EB-2018-0087 | C29: 2019 | D29: 2018 | E29: 2012 | F29: General Plant | G29: 2013 | H29: ='App.2-AB_Capital Expenditures'!K20 -> 0 | I29: ='App.2-AB_Capital Expenditures'!L20 -> 74700
A30: ='LDC Info'!$E$14 -> Chapleau Public Utilities Corporation | B30: EB-2018-0087 | C30: 2019 | D30: 2018 | E30: 2012 | F30: Total Expenditure | G30: 2013 | H30: ='App.2-AB_Capital Expenditures'!K21 -> 58290 | I30: ='App.2-AB_Capital Expenditures'!L21 -> 88227
A31: ='LDC Info'!$E$14 -> Chapleau Public Utilities Corporation | B31: EB-2018-0087 | C31: 2019 | D31: 2018 | E31: 2012 | F31: Capital Contributions | G31: 2013 | H31: ='App.2-AB_Capital Expenditures'!K22 -> 0 | I31: ='App.2-AB_Capital Expenditures'!L22 -> 0
A32: ='LDC Info'!$E$14 -> Chapleau Public Utilities Corporation | B32: EB-2018-0087 | C32: 2019 | D32: 2018 | E32: 2012 | F32: Net Capital Expenditures | G32: 2013 | H32: ='App.2-AB_Capital Expenditures'!K23 -> 0 | I32: ='App.2-AB_Capital Expenditures'!L23 -> 88227
A33: ='LDC Info'!$E$14 -> Chapleau Public Utilities Corporation | B33: EB-2018-0087 | C33: 2019 | D33: 2018 | E33: 2012 | F33: System O&M | G33: 2013 | H33: ='App.2-AB_Capital Expenditures'!K24 -> 205440 | I33: ='App.2-AB_Capital Expenditures'!L24 -> 220412.01
A34: ='LDC Info'!$E$14 -> Chapleau Public Utilities Corporation | B34: =EBNUMBER -> EB-2018-0087 | C34: =TestYear -> 2019 | D34: =BridgeYear -> 2018 | E34: =RebaseYear -> 2012 | F34: System Access | G34: 2014 | H34: ='App.2-AB_Capital Expenditures'!N17 -> 0 | I34: ='App.2-AB_Capital Expenditures'!O17 -> 0
A35: ='LDC Info'!$E$14 -> Chapleau Public Utilities Corporation | B35: EB-2018-0087 | C35: 2019 | D35: 2018 | E35: 2012 | F35: System Renewal | G35: 2014 | H35: ='App.2-AB_Capital Expenditures'!N18 -> 0 | I35: ='App.2-AB_Capital Expenditures'!O18 -> 18923
A36: ='LDC Info'!$E$14 -> Chapleau Public Utilities Corporation | B36: EB-2018-0087 | C36: 2019 | D36: 2018 | E36: 2012 | F36: System Service | G36: 2014 | H36: ='App.2-AB_Capital Expenditures'!N19 -> 0 | I36: ='App.2-AB_Capital Expenditures'!O19 -> 25000
A37: ='LDC Info'!$E$14 -> Chapleau Public Utilities Corporation | B37: EB-2018-0087 | C37: 2019 | D37: 2018 | E37: 2012 | F37: General Plant | G37: 2014 | H37: ='App.2-AB_Capital Expenditures'!N20 -> 0 | I37: ='App.2-AB_Capital Expenditures'!O20 -> 0
A38: ='LDC Info'!$E$14 -> Chapleau Public Utilities Corporation | B38: EB-2018-0087 | C38: 2019 | D38: 2018 | E38: 2012 | F38: Total Expenditure | G38: 2014 | H38: ='App.2-AB_Capital Expenditures'!N21 -> 58290 | I38: ='App.2-AB_Capital Expenditures'!O21 -> 43923
A39: ='LDC Info'!$E$14 -> Chapleau Public Utilities Corporation | B39: EB-2018-0087 | C39: 2019 | D39: 2018 | E39: 2012 | F39: Capital Contributions | G39: 2014 | H39: ='App.2-AB_Capital Expenditures'!N22 -> 0 | I39: ='App.2-AB_Capital Expenditures'!O22 -> 0
A40: ='LDC Info'!$E$14 -> Chapleau Public Utilities Corporation | B40: EB-2018-0087 | C40: 2019 | D40: 2018 | E40: 2012 | F40: Net Capital Expenditures | G40: 2014 | H40: ='App.2-AB_Capital Expenditures'!N23 -> 0 | I40: ='App.2-AB_Capital Expenditures'!O23 -> 43923
A41: ='LDC Info'!$E$14 -> Chapleau Public Utilities Corporation | B41: EB-2018-0087 | C41: 2019 | D41: 2018 | E41: 2012 | F41: System O&M | G41: 2014 | H41: ='App.2-AB_Capital Expenditures'!N24 -> 205440 | I41: ='App.2-AB_Capital Expenditures'!O24 -> 223211
A42: ='LDC Info'!$E$14 -> Chapleau Public Utilities Corporation | B42: EB-2018-0087 | C42: 2019 | D42: 2018 | E42: 2012 | F42: System Access | G42: 2015 | H42: ='App.2-AB_Capital Expenditures'!Q17 -> 0 | I42: ='App.2-AB_Capital Expenditures'!R17 -> 1000
A43: ='LDC Info'!$E$14 -> Chapleau Public Utilities Corporation | B43: EB-2018-0087 | C43: 2019 | D43: 2018 | E43: 2012 | F43: System Renewal | G43: 2015 | H43: ='App.2-AB_Capital Expenditures'!Q18 -> 0 | I43: ='App.2-AB_Capital Expenditures'!R18 -> 45855
A44: ='LDC Info'!$E$14 -> Chapleau Public Utilities Corporation | B44: EB-2018-0087 | C44: 2019 | D44: 2018 | E44: 2012 | F44: System Service | G44: 2015 | H44: ='App.2-AB_Capital Expenditures'!Q19 -> 0 | I44: ='App.2-AB_Capital Expenditures'!R19 -> 0
A45: ='LDC Info'!$E$14 -> Chapleau Public Utilities Corporation | B45: EB-2018-0087 | C45: 2019 | D45: 2018 | E45: 2012 | F45: General Plant | G45: 2015 | H45: ='App.2-AB_Capital Expenditures'!Q20 -> 0 | I45: ='App.2-AB_Capital Expenditures'!R20 -> 54800
A46: ='LDC Info'!$E$14 -> Chapleau Public Utilities Corporation | B46: EB-2018-0087 | C46: 2019 | D46: 2018 | E46: 2012 | F46: Total Expenditure | G46: 2015 | H46: ='App.2-AB_Capital Expenditures'!Q21 -> 58290 | I46: ='App.2-AB_Capital Expenditures'!R21 -> 101655
A47: ='LDC Info'!$E$14 -> Chapleau Public Utilities Corporation | B47: EB-2018-0087 | C47: 2019 | D47: 2018 | E47: 2012 | F47: Capital Contributions | G47: 2015 | H47: ='App.2-AB_Capital Expenditures'!Q22 -> 0 | I47: ='App.2-AB_Capital Expenditures'!R22 -> 0
A48: ='LDC Info'!$E$14 -> Chapleau Public Utilities Corporation | B48: EB-2018-0087 | C48: 2019 | D48: 2018 | E48: 2012 | F48: Net Capital Expenditures | G48: 2015 | H48: ='App.2-AB_Capital Expenditures'!Q23 -> 0 | I48: ='App.2-AB_Capital Expenditures'!R23 -> 101655
A49: ='LDC Info'!$E$14 -> Chapleau Public Utilities Corporation | B49: EB-2018-0087 | C49: 2019 | D49: 2018 | E49: 2012 | F49: System O&M | G49: 2015 | H49: ='App.2-AB_Capital Expenditures'!Q24 -> 205440 | I49: ='App.2-AB_Capital Expenditures'!R24 -> 208239
A50: ='LDC Info'!$E$14 -> Chapleau Public Utilities Corporation | B50: EB-2018-0087 | C50: 2019 | D50: 2018 | E50: 2012 | F50: System Access | G50: 2016 | H50: ='App.2-AB_Capital Expenditures'!T17 -> 0 | I50: ='App.2-AB_Capital Expenditures'!U17 -> 1000
A51: ='LDC Info'!$E$14 -> Chapleau Public Utilities Corporation | B51: EB-2018-0087 | C51: 2019 | D51: 2018 | E51: 2012 | F51: System Renewal | G51: 2016 | H51: ='App.2-AB_Capital Expenditures'!T18 -> 0 | I51: ='App.2-AB_Capital Expenditures'!U18 -> 35193
A52: ='LDC Info'!$E$14 -> Chapleau Public Utilities Corporation | B52: EB-2018-0087 | C52: 2019 | D52: 2018 | E52: 2012 | F52: System Service | G52: 2016 | H52: ='App.2-AB_Capital Expenditures'!T19 -> 0 | I52: ='App.2-AB_Capital Expenditures'!U19 -> 100
A53: ='LDC Info'!$E$14 -> Chapleau Public Utilities Corporation | B53: EB-2018-0087 | C53: 2019 | D53: 2018 | E53: 2012 | F53: General Plant | G53: 2016 | H53: ='App.2-AB_Capital Expenditures'!T20 -> 0 | I53: ='App.2-AB_Capital Expenditures'!U20 -> 0
A54: ='LDC Info'!$E$14 -> Chapleau Public Utilities Corporation | B54: EB-2018-0087 | C54: 2019 | D54: 2018 | E54: 2012 | F54: Total Expenditure | G54: 2016 | H54: ='App.2-AB_Capital Expenditures'!T21 -> 58290 | I54: ='App.2-AB_Capital Expenditures'!U21 -> 36293
A55: ='LDC Info'!$E$14 -> Chapleau Public Utilities Corporation | B55: EB-2018-0087 | C55: 2019 | D55: 2018 | E55: 2012 | F55: Capital Contributions | G55: 2016 | H55: ='App.2-AB_Capital Expenditures'!T22 -> 0 | I55: ='App.2-AB_Capital Expenditures'!U22 -> 0
A56: ='LDC Info'!$E$14 -> Chapleau Public Utilities Corporation | B56: EB-2018-0087 | C56: 2019 | D56: 2018 | E56: 2012 | F56: Net Capital Expenditures | G56: 2016 | H56: ='App.2-AB_Capital Expenditures'!T23 -> 0 | I56: ='App.2-AB_Capital Expenditures'!U23 -> 36293
A57: ='LDC Info'!$E$14 -> Chapleau Public Utilities Corporation | B57: EB-2018-0087 | C57: 2019 | D57: 2018 | E57: 2012 | F57: System O&M | G57: 2016 | H57: ='App.2-AB_Capital Expenditures'!T24 -> 205440 | I57: ='App.2-AB_Capital Expenditures'!U24 -> 236332
A58: ='LDC Info'!$E$14 -> Chapleau Public Utilities Corporation | B58: EB-2018-0087 | C58: 2019 | D58: 2018 | E58: 2012 | F58: System Access | G58: 2017 | H58: ='App.2-AB_Capital Expenditures'!W17 -> 0 | I58: ='App.2-AB_Capital Expenditures'!X17 -> 19668
A59: ='LDC Info'!$E$14 -> Chapleau Public Utilities Corporation | B59: EB-2018-0087 | C59: 2019 | D59: 2018 | E59: 2012 | F59: System Renewal | G59: 2017 | H59: ='App.2-AB_Capital Expenditures'!W18 -> 0 | I59: ='App.2-AB_Capital Expenditures'!X18 -> 4389
A60: ='LDC Info'!$E$14 -> Chapleau Public Utilities Corporation | B60: EB-2018-0087 | C60: 2019 | D60: 2018 | E60: 2012 | F60: System Service | G60: 2017 | H60: ='App.2-AB_Capital Expenditures'!W19 -> 0 | I60: ='App.2-AB_Capital Expenditures'!X19 -> 100
A61: ='LDC Info'!$E$14 -> Chapleau Public Utilities Corporation | B61: EB-2018-0087 | C61: 2019 | D61: 2018 | E61: 2012 | F61: General Plant | G61: 2017 | H61: ='App.2-AB_Capital Expenditures'!W20 -> 0 | I61: ='App.2-AB_Capital Expenditures'!X20 -> 0
A62: ='LDC Info'!$E$14 -> Chapleau Public Utilities Corporation | B62: EB-2018-0087 | C62: 2019 | D62: 2018 | E62: 2012 | F62: Total Expenditure | G62: 2017 | H62: ='App.2-AB_Capital Expenditures'!W21 -> 58290 | I62: ='App.2-AB_Capital Expenditures'!X21 -> 24157
A63: ='LDC Info'!$E$14 -> Chapleau Public Utilities Corporation | B63: EB-2018-0087 | C63: 2019 | D63: 2018 | E63: 2012 | F63: Capital Contributions | G63: 2017 | H63: ='App.2-AB_Capital Expenditures'!W22 -> 0 | I63: ='App.2-AB_Capital Expenditures'!X22 -> 0
A64: ='LDC Info'!$E$14 -> Chapleau Public Utilities Corporation | B64: EB-2018-0087 | C64: 2019 | D64: 2018 | E64: 2012 | F64: Net Capital Expenditures | G64: 2017 | H64: ='App.2-AB_Capital Expenditures'!W23 -> 0 | I64: ='App.2-AB_Capital Expenditures'!X23 -> 24157
A65: ='LDC Info'!$E$14 -> Chapleau Public Utilities Corporation | B65: EB-2018-0087 | C65: 2019 | D65: 2018 | E65: 2012 | F65: System O&M | G65: 2017 | H65: ='App.2-AB_Capital Expenditures'!W24 -> 205440 | I65: ='App.2-AB_Capital Expenditures'!X24 -> 237909
A66: ='LDC Info'!$E$14 -> Chapleau Public Utilities Corporation | B66: =EBNUMBER -> EB-2018-0087 | C66: =TestYear -> 2019 | D66: =BridgeYear -> 2018 | E66: =RebaseYear -> 2012 | F66: System Access | G66: 2018 | H66: ='App.2-AB_Capital Expenditures'!Z17 -> 0 | I66: ='App.2-AB_Capital Expenditures'!AA17 -> 8039
A67: ='LDC Info'!$E$14 -> Chapleau Public Utilities Corporation | B67: EB-2018-0087 | C67: 2019 | D67: 2018 | E67: 2012 | F67: System Renewal | G67: 2018 | H67: ='App.2-AB_Capital Expenditures'!Z18 -> 0 | I67: ='App.2-AB_Capital Expenditures'!AA18 -> 34532
A68: ='LDC Info'!$E$14 -> Chapleau Public Utilities Corporation | B68: EB-2018-0087 | C68: 2019 | D68: 2018 | E68: 2012 | F68: System Service | G68: 2018 | H68: ='App.2-AB_Capital Expenditures'!Z19 -> 0 | I68: ='App.2-AB_Capital Expenditures'!AA19 -> 32500
A69: ='LDC Info'!$E$14 -> Chapleau Public Utilities Corporation | B69: EB-2018-0087 | C69: 2019 | D69: 2018 | E69: 2012 | F69: General Plant | G69: 2018 | H69: ='App.2-AB_Capital Expenditures'!Z20 -> 0 | I69: ='App.2-AB_Capital Expenditures'!AA20 -> 401771
A70: ='LDC Info'!$E$14 -> Chapleau Public Utilities Corporation | B70: EB-2018-0087 | C70: 2019 | D70: 2018 | E70: 2012 | F70: Total Expenditure | G70: 2018 | H70: ='App.2-AB_Capital Expenditures'!Z21 -> 58290 | I70: ='App.2-AB_Capital Expenditures'!AA21 -> 476842
A71: ='LDC Info'!$E$14 -> Chapleau Public Utilities Corporation | B71: EB-2018-0087 | C71: 2019 | D71: 2018 | E71: 2012 | F71: Capital Contributions | G71: 2018 | H71: ='App.2-AB_Capital Expenditures'!Z22 -> 0 | I71: ='App.2-AB_Capital Expenditures'!AA22 -> 0
A72: ='LDC Info'!$E$14 -> Chapleau Public Utilities Corporation | B72: EB-2018-0087 | C72: 2019 | D72: 2018 | E72: 2012 | F72: Net Capital Expenditures | G72: 2018 | H72: ='App.2-AB_Capital Expenditures'!Z23 -> 0 | I72: ='App.2-AB_Capital Expenditures'!AA23 -> 476842
A73: ='LDC Info'!$E$14 -> Chapleau Public Utilities Corporation | B73: EB-2018-0087 | C73: 2019 | D73: 2018 | E73: 2012 | F73: System O&M | G73: 2018 | H73: ='App.2-AB_Capital Expenditures'!Z24 -> 205440 | I73: ='App.2-AB_Capital Expenditures'!AA24 -> 247400
A74: ='LDC Info'!$E$14 -> Chapleau Public Utilities Corporation | B74: EB-2018-0087 | C74: 2019 | D74: 2018 | E74: 2012 | F74: System Access | G74: 2019 | H74: ='App.2-AB_Capital Expenditures'!AC17 -> 0
A75: ='LDC Info'!$E$14 -> Chapleau Public Utilities Corporation | B75: EB-2018-0087 | C75: 2019 | D75: 2018 | E75: 2012 | F75: System Renewal | G75: 2019 | H75: ='App.2-AB_Capital Expenditures'!AC18 -> 80677
A76: ='LDC Info'!$E$14 -> Chapleau Public Utilities Corporation | B76: EB-2018-0087 | C76: 2019 | D76: 2018 | E76: 2012 | F76: System Service | G76: 2019 | H76: ='App.2-AB_Capital Expenditures'!AC19 -> 0
A77: ='LDC Info'!$E$14 -> Chapleau Public Utilities Corporation | B77: EB-2018-0087 | C77: 2019 | D77: 2018 | E77: 2012 | F77: General Plant | G77: 2019 | H77: ='App.2-AB_Capital Expenditures'!AC20 -> 0
A78: ='LDC Info'!$E$14 -> Chapleau Public Utilities Corporation | B78: EB-2018-0087 | C78: 2019 | D78: 2018 | E78: 2012 | F78: Total Expenditure | G78: 2019 | H78: ='App.2-AB_Capital Expenditures'!AC21 -> 80677
A79: ='LDC Info'!$E$14 -> Chapleau Public Utilities Corporation | B79: EB-2018-0087 | C79: 2019 | D79: 2018 | E79: 2012 | F79: Capital Contributions | G79: 2019 | H79: ='App.2-AB_Capital Expenditures'!AC22 -> 0
A80: ='LDC Info'!$E$14 -> Chapleau Public Utilities Corporation | B80: EB-2018-0087 | C80: 2019 | D80: 2018 | E80: 2012 | F80: Net Capital Expenditures | G80: 2019 | H80: ='App.2-AB_Capital Expenditures'!AC23 -> 80677
A81: ='LDC Info'!$E$14 -> Chapleau Public Utilities Corporation | B81: EB-2018-0087 | C81: 2019 | D81: 2018 | E81: 2012 | F81: System O&M | G81: 2019 | H81: ='App.2-AB_Capital Expenditures'!AC24 -> 244370
A82: ='LDC Info'!$E$14 -> Chapleau Public Utilities Corporation | B82: EB-2018-0087 | C82: 2019 | D82: 2018 | E82: 2012 | F82: System Access | G82: 2020 | H82: ='App.2-AB_Capital Expenditures'!AD17 -> 0
A83: ='LDC Info'!$E$14 -> Chapleau Public Utilities Corporation | B83: EB-2018-0087 | C83: 2019 | D83: 2018 | E83: 2012 | F83: System Renewal | G83: 2020 | H83: ='App.2-AB_Capital Expenditures'!AD18 -> 80677
A84: ='LDC Info'!$E$14 -> Chapleau Public Utilities Corporation | B84: EB-2018-0087 | C84: 2019 | D84: 2018 | E84: 2012 | F84: System Service | G84: 2020 | H84: ='App.2-AB_Capital Expenditures'!AD19 -> 0
A85: ='LDC Info'!$E$14 -> Chapleau Public Utilities Corporation | B85: EB-2018-0087 | C85: 2019 | D85: 2018 | E85: 2012 | F85: General Plant | G85: 2020 | H85: ='App.2-AB_Capital Expenditures'!AD20 -> 0
A86: ='LDC Info'!$E$14 -> Chapleau Public Utilities Corporation | B86: EB-2018-0087 | C86: 2019 | D86: 2018 | E86: 2012 | F86: Total Expenditure | G86: 2020 | H86: ='App.2-AB_Capital Expenditures'!AD21 -> 80677
A87: ='LDC Info'!$E$14 -> Chapleau Public Utilities Corporation | B87: EB-2018-0087 | C87: 2019 | D87: 2018 | E87: 2012 | F87: Capital Contributions | G87: 2020 | H87: ='App.2-AB_Capital Expenditures'!AD22 -> 0
A88: ='LDC Info'!$E$14 -> Chapleau Public Utilities Corporation | B88: EB-2018-0087 | C88: 2019 | D88: 2018 | E88: 2012 | F88: Net Capital Expenditures | G88: 2020 | H88: ='App.2-AB_Capital Expenditures'!AD23 -> 80677
A89: ='LDC Info'!$E$14 -> Chapleau Public Utilities Corporation | B89: EB-2018-0087 | C89: 2019 | D89: 2018 | E89: 2012 | F89: System O&M | G89: 2020 | H89: ='App.2-AB_Capital Expenditures'!AD24 -> 0
A90: ='LDC Info'!$E$14 -> Chapleau Public Utilities Corporation | B90: EB-2018-0087 | C90: 2019 | D90: 2018 | E90: 2012 | F90: System Access | G90: 2021 | H90: ='App.2-AB_Capital Expenditures'!AE17 -> 0
A91: ='LDC Info'!$E$14 -> Chapleau Public Utilities Corporation | B91: EB-2018-0087 | C91: 2019 | D91: 2018 | E91: 2012 | F91: System Renewal | G91: 2021 | H91: ='App.2-AB_Capital Expenditures'!AE18 -> 80677
A92: ='LDC Info'!$E$14 -> Chapleau Public Utilities Corporation | B92: EB-2018-0087 | C92: 2019 | D92: 2018 | E92: 2012 | F92: System Service | G92: 2021 | H92: ='App.2-AB_Capital Expenditures'!AE19 -> 0
A93: ='LDC Info'!$E$14 -> Chapleau Public Utilities Corporation | B93: EB-2018-0087 | C93: 2019 | D93: 2018 | E93: 2012 | F93: General Plant | G93: 2021 | H93: ='App.2-AB_Capital Expenditures'!AE20 -> 0
A94: ='LDC Info'!$E$14 -> Chapleau Public Utilities Corporation | B94: EB-2018-0087 | C94: 2019 | D94: 2018 | E94: 2012 | F94: Total Expenditure | G94: 2021 | H94: ='App.2-AB_Capital Expenditures'!AE21 -> 80677
A95: ='LDC Info'!$E$14 -> Chapleau Public Utilities Corporation | B95: EB-2018-0087 | C95: 2019 | D95: 2018 | E95: 2012 | F95: Capital Contributions | G95: 2021 | H95: ='App.2-AB_Capital Expenditures'!AE22 -> 0
A96: ='LDC Info'!$E$14 -> Chapleau Public Utilities Corporation | B96: EB-2018-0087 | C96: 2019 | D96: 2018 | E96: 2012 | F96: Net Capital Expenditures | G96: 2021 | H96: ='App.2-AB_Capital Expenditures'!AE23 -> 80677
A97: ='LDC Info'!$E$14 -> Chapleau Public Utilities Corporation | B97: EB-2018-0087 | C97: 2019 | D97: 2018 | E97: 2012 | F97: System O&M | G97: 2021 | H97: ='App.2-AB_Capital Expenditures'!AE24 -> 0
A98: ='LDC Info'!$E$14 -> Chapleau Public Utilities Corporation | B98: =EBNUMBER -> EB-2018-0087 | C98: =TestYear -> 2019 | D98: =BridgeYear -> 2018 | E98: =RebaseYear -> 2012 | F98: System Access | G98: 2022 | H98: ='App.2-AB_Capital Expenditures'!AF17 -> 0
A99: ='LDC Info'!$E$14 -> Chapleau Public Utilities Corporation | B99: EB-2018-0087 | C99: 2019 | D99: 2018 | E99: 2012 | F99: System Renewal | G99: 2022 | H99: ='App.2-AB_Capital Expenditures'!AF18 -> 80677
A100: ='LDC Info'!$E$14 -> Chapleau Public Utilities Corporation | B100: EB-2018-0087 | C100: 2019 | D100: 2018 | E100: 2012 | F100: System Service | G100: 2022 | H100: ='App.2-AB_Capital Expenditures'!AF19 -> 0
A101: ='LDC Info'!$E$14 -> Chapleau Public Utilities Corporation | B101: EB-2018-0087 | C101: 2019 | D101: 2018 | E101: 2012 | F101: General Plant | G101: 2022 | H101: ='App.2-AB_Capital Expenditures'!AF20 -> 0
A102: ='LDC Info'!$E$14 -> Chapleau Public Utilities Corporation | B102: EB-2018-0087 | C102: 2019 | D102: 2018 | E102: 2012 | F102: Total Expenditure | G102: 2022 | H102: ='App.2-AB_Capital Expenditures'!AF21 -> 80677
A103: ='LDC Info'!$E$14 -> Chapleau Public Utilities Corporation | B103: EB-2018-0087 | C103: 2019 | D103: 2018 | E103: 2012 | F103: Capital Contributions | G103: 2022 | H103: ='App.2-AB_Capital Expenditures'!AF22 -> 0
A104: ='LDC Info'!$E$14 -> Chapleau Public Utilities Corporation | B104: EB-2018-0087 | C104: 2019 | D104: 2018 | E104: 2012 | F104: Net Capital Expenditures | G104: 2022 | H104: ='App.2-AB_Capital Expenditures'!AF23 -> 80677
A105: ='LDC Info'!$E$14 -> Chapleau Public Utilities Corporation | B105: EB-2018-0087 | C105: 2019 | D105: 2018 | E105: 2012 | F105: System O&M | G105: 2022 | H105: ='App.2-AB_Capital Expenditures'!AF24 -> 0
A106: ='LDC Info'!$E$14 -> Chapleau Public Utilities Corporation | B106: EB-2018-0087 | C106: 2019 | D106: 2018 | E106: 2012 | F106: System Access | G106: 2023 | H106: ='App.2-AB_Capital Expenditures'!AG17 -> 0
A107: ='LDC Info'!$E$14 -> Chapleau Public Utilities Corporation | B107: EB-2018-0087 | C107: 2019 | D107: 2018 | E107: 2012 | F107: System Renewal | G107: 2023 | H107: ='App.2-AB_Capital Expenditures'!AG18 -> 80677
A108: ='LDC Info'!$E$14 -> Chapleau Public Utilities Corporation | B108: EB-2018-0087 | C108: 2019 | D108: 2018 | E108: 2012 | F108: System Service | G108: 2023 | H108: ='App.2-AB_Capital Expenditures'!AG19 -> 0
A109: ='LDC Info'!$E$14 -> Chapleau Public Utilities Corporation | B109: EB-2018-0087 | C109: 2019 | D109: 2018 | E109: 2012 | F109: General Plant | G109: 2023 | H109: ='App.2-AB_Capital Expenditures'!AG20 -> 0
A110: ='LDC Info'!$E$14 -> Chapleau Public Utilities Corporation | B110: EB-2018-0087 | C110: 2019 | D110: 2018 | E110: 2012 | F110: Total Expenditure | G110: 2023 | H110: ='App.2-AB_Capital Expenditures'!AG21 -> 80677
A111: ='LDC Info'!$E$14 -> Chapleau Public Utilities Corporation | B111: EB-2018-0087 | C111: 2019 | D111: 2018 | E111: 2012 | F111: Capital Contributions | G111: 2023 | H111: ='App.2-AB_Capital Expenditures'!AG22 -> 0
A112: ='LDC Info'!$E$14 -> Chapleau Public Utilities Corporation | B112: EB-2018-0087 | C112: 2019 | D112: 2018 | E112: 2012 | F112: Net Capital Expenditures | G112: 2023 | H112: ='App.2-AB_Capital Expenditures'!AG23 -> 80677
A113: ='LDC Info'!$E$14 -> Chapleau Public Utilities Corporation | B113: EB-2018-0087 | C113: 2019 | D113: 2018 | E113: 2012 | F113: System O&M | G113: 2023 | H113: ='App.2-AB_Capital Expenditures'!AG24 -> 0

Sheet App.2-AC_Customer Engagement
B1: File Number: | C1: =EBNUMBER -> EB-2018-0087
B2: Exhibit:
B3: Tab:
B4: Schedule:
B5: Page:
B7: Date:
A9: Appendix 2-AC
A10: Customer Engagement Activities Summary
A12: Provide a list of customer engagement activities | B12: Provide a list of customer needs and preferences identified through each engagement activity | C12: Actions taken to respond to identified needs and preferences. If no action was taken, explain why.
A13: Newsletter | B13: Comments received via Facebook | C13: CPUC responded (see appendix)
A14: Information posted on the Website | B14: No comments on proposed capital budget. | C14: No action required
A15: Customer Satisfaction Survey | B15: List of comments is presented at Appendix E of this Exhibits | C15: No action taken
A16: Adoption of a Customer Outreach and Communication Plan | B16: For internal purposes | C16: No action required
A45: Note: Use "ALT-ENTER" to go to the next line within a cell

Sheet App.2-B_Acctg Instructions
A1: General Instructions to MIFRS Appendices
A2: Types of Schedules to File
A4: The purpose of this tab is to provide general instructions. The specific instructions to each appendix are listed in footnotes of each appendix.
A6: The typical applicant is expected to have made capitalization and depreciation policy changes under CGAAP as permitted by the Board on January 1, 2012 or mandated by the Board by January 1, 2013, and adopted IFRS for reporting purposes on January 1, 2015 (transition date January 1, 2014). Some distributors filing for 2018 rates have rebased with these accounting changes reflected in a prior rebasing application. If that is the case, information relating to pre-accounting policy changes is not generally required. The information to be provided by applicants will depend on when the accounting policy changes were made and when they last rebased. In general, applicants should provide the following information in the appendices:
E9: Reflecting Accounting Policy Changes in Current Application | G9: Reflected Accounting Policy Changes in Prior Application3
E10: Accounting Policy Changes in 2012 and Adopted IFRS in 2015 | F10: Accounting Policy Changes in 2013 and Adopted IFRS in 2015 | G10: Adopted IFRS in 2015
A11: Information to be filed in 2019 CoS Application | B11: 2019 | C11: Test | E11: MIFRS | F11: MIFRS | G11: MIFRS
B12: 2018 | C12: Bridge | E12: MIFRS | F12: MIFRS | G12: MIFRS
B13: 2017 | C13: Historical | E13: MIFRS | F13: MIFRS | G13: MIFRS
B14: 2016 | C14: Historical | E14: MIFRS | F14: MIFRS | G14: MIFRS
B15: 2015 | C15: Historical | E15: MIFRS and Revised CGAAP1 | F15: MIFRS and Revised CGAAP1 | G15: MIFRS and Revised CGAAP1
B16: 2014 | C16: Historical | E16: Revised CGAAP | F16: CGAAP and Revised CGAAP2 | G16: N/A
B17: 2013 | C17: Historical | E17: CGAAP and Revised CGAAP2 | F17: N/A | G17: N/A
A19: 1) For the transition year (2014), the applicant may file two appendices, one under Revised CGAAP and one under MIFRS, depending on the materiality of impacts. See the specific instructions under each appendix below for further details.
A20: 2) For applicants that are reflecting accounting policy changes for the first time in a rebasing application, the applicant must file two appendices in the year that the applicant implemented changes to its capitalization and depreciation policies (2012 or 2013), one before and one after the policy changes.
A21: 3) Applicants should provide CGAAP and Revised CGAAP schedules (i.e. as indicated in the first two columns of the above table) to support balances in Account 1576 if the account has yet to be disposed of.
A24: Appendix 2-BA - Fixed Asset Schedule
A26: Applicants are to provide Appendix 2-BA in accordance with the years and corresponding accounting standards noted in the above table to provide a year over year continuity in fixed assets.
A27: For the transition year (2014), the applicant should file two appendices, one under Revised CGAAP and one under MIFRS if the change between Revised CGAAP and MIFRS is material. If the change from the accounting standards is not material, the applicant may choose to only provide one appendix under MIFRS. However, the applicant must also indicate the fixed asset net book value balance under Revised CGAAP, the total dollar value of the change and explain why it is not material.
A31: The applicant must establish the continuity of historic cost for gross assets and accumulated depreciation by asset class by ensuring that the opening balance in the year agrees to the closing balance in the prior year.
A34: Appendix 2-Cx - Depreciation and Amortization
A36: Applicants are to provide Appendix 2-C in accordance with the years and corresponding accounting standards listed in the above table.
A37: Appendix 2-C is to be used under all three of the scenarios presented in the table above. In the appendix, the applicant will need to indicate which scenario applies. The appendix is to be duplicated for each year and accounting standard required under the scenario.
A38: Depreciation accounting policy changes were mandated by the Board by January 1, 2013. In general, no further changes to an applicant's depreciation policy (i.e. assets' service lives) are expected after the Board mandated changes by January 1, 2013. If the applicant has made any changes to its depreciation policy subsequent to the Board mandated changes, for the year of the change, applicants must complete Appendix 2-C before and after the change. Applicants must also explain the nature of the change, the reason for the change, quantify the impact of the change, and quantify the depreciation expense before and after the change.
A40: Appendix 2-E - Account 1575, IFRS-CGAAP Transitional PP&E Amounts (2-EA), Account 1576, Accounting Changes Under CGAAP (2-EB, 2-EC) CONTACT OEB STAFF IF TAB REQUIRED
A42: 1) For an applicant that has a balance in Account 1576 to dispose:
A43: · | B43: If an applicant changed capitalization and depreciation policies effective January 1, 2012, the applicant must complete Appendix 2-EB
A44: · | B44: If an applicant changed capitalization and depreciation policies effective January 1, 2013, the applicant must complete Appendix 2-EC
A46: 2) For an applicant that has a balance in Account 1575 to dispose:
A47: · | B47: The applicant must complete 2-EA
A48: If the applicant did not make any further PP&E accounting policy changes beyond the capitalization and depreciation policy changes as mandated by the Board by January 1, 2013 (i.e. no further changes made on transition to IFRS), the applicant must indicate this and does not need to complete Appendix 2-EA.
A52: Appendix 2-Y - Summary of Impacts to Revenue Requirement from Transition to MIFRS CONTACT OEB STAFF IF TAB REQUIRED
A54: An applicant must provide a summary of the dollar impacts of MIFRS to each component of the revenue requirement (e.g. rate base, operating costs, etc.), including the overall impact on the proposed revenue requirement. Accordingly, the applicant must identify financial differences and resulting revenue requirement impacts arising from the adoption of MIFRS as compared to CGAAP. If the applicant is reflecting the changes in capitalization and depreciation policies for the first time in a rebasing application, then a comparison between MIFRS and CGAAP before the change in accounting policies should be completed. If the applicant changed capitalization and depreciation policies and reflected these changes in a prior rebasing application, then a comparison between MIFRS and CGAAP after the change in accounting policies should be completed.

Sheet App.2-BA_Fixed Asset Cont
B1: This workseet is presented in a separate Workbook | L1: File Number: | M1: =EBNUMBER -> EB-2018-0087
L2: Exhibit:
L3: Tab:
L4: Schedule:
L5: Page:
L7: Date:
A9: Appendix 2-BA
A10: Fixed Asset Continuity Schedule 1
E12: Accounting Standard | F12: MIFRS
E13: Year
D15: Cost | J15: Accumulated Depreciation
A16: CCA Class 2 | B16: OEB Account 3 | C16: Description 3 | D16: Opening Balance | E16: Additions 4 | F16: Disposals 6 | G16: Closing Balance | I16: Opening Balance | J16: Additions | K16: Disposals 6 | L16: Closing Balance | M16: Net Book Value
B17: 1609 | C17: Capital Contributions Paid | G17: =D17+E17+F17 -> 0 | L17: =I17+J17+K17 -> 0 | M17: =G17+L17 -> 0
A18: 12 | B18: 1611 | C18: Computer Software (Formally known as Account 1925) | G18: =D18+E18+F18 -> 0 | L18: =I18+J18+K18 -> 0 | M18: =G18+L18 -> 0
A19: CEC | B19: 1612 | C19: Land Rights (Formally known as Account 1906) | G19: =D19+E19+F19 -> 0 | L19: =I19+J19+K19 -> 0 | M19: =G19+L19 -> 0
A20: N/A | B20: 1805 | C20: Land | G20: =D20+E20+F20 -> 0 | L20: =I20+J20+K20 -> 0 | M20: =G20+L20 -> 0
A21: 47 | B21: 1808 | C21: Buildings | G21: =D21+E21+F21 -> 0 | L21: =I21+J21+K21 -> 0 | M21: =G21+L21 -> 0
A22: 13 | B22: 1810 | C22: Leasehold Improvements | G22: 0 | L22: 0 | M22: 0
A23: 47 | B23: 1815 | C23: Transformer Station Equipment >50 kV | G23: 0 | L23: 0 | M23: 0
A24: 47 | B24: 1820 | C24: Distribution Station Equipment <50 kV | G24: 0 | L24: 0 | M24: 0
A25: 47 | B25: 1825 | C25: Storage Battery Equipment | G25: 0 | L25: 0 | M25: 0
A26: 47 | B26: 1830 | C26: Poles, Towers & Fixtures | G26: 0 | L26: 0 | M26: 0
A27: 47 | B27: 1835 | C27: Overhead Conductors & Devices | G27: 0 | L27: 0 | M27: 0
A28: 47 | B28: 1840 | C28: Underground Conduit | G28: 0 | L28: 0 | M28: 0
A29: 47 | B29: 1845 | C29: Underground Conductors & Devices | G29: 0 | L29: 0 | M29: 0
A30: 47 | B30: 1850 | C30: Line Transformers | G30: 0 | L30: 0 | M30: 0
A31: 47 | B31: 1855 | C31: Services (Overhead & Underground) | G31: 0 | L31: 0 | M31: 0
A32: 47 | B32: 1860 | C32: Meters | G32: 0 | L32: 0 | M32: 0
A33: 47 | B33: 1860 | C33: Meters (Smart Meters) | G33: 0 | L33: 0 | M33: 0
A34: N/A | B34: 1905 | C34: Land | G34: 0 | L34: 0 | M34: 0
A35: 47 | B35: 1908 | C35: Buildings & Fixtures | G35: 0 | L35: 0 | M35: 0
A36: 13 | B36: 1910 | C36: Leasehold Improvements | G36: 0 | L36: 0 | M36: 0
A37: 8 | B37: 1915 | C37: Office Furniture & Equipment (10 years) | G37: 0 | L37: 0 | M37: 0
A38: 8 | B38: 1915 | C38: Office Furniture & Equipment (5 years) | G38: 0 | L38: 0 | M38: 0
A39: 10 | B39: 1920 | C39: Computer Equipment - Hardware | G39: 0 | L39: 0 | M39: 0
A40: 45 | B40: 1920 | C40: Computer Equip.-Hardware(Post Mar. 22/04) | G40: 0 | L40: 0 | M40: 0
A41: 45.1 | B41: 1920 | C41: Computer Equip.-Hardware(Post Mar. 19/07) | G41: 0 | L41: 0 | M41: 0
A42: 10 | B42: 1930 | C42: Transportation Equipment | G42: 0 | L42: 0 | M42: 0
A43: 8 | B43: 1935 | C43: Stores Equipment | G43: 0 | L43: 0 | M43: 0
A44: 8 | B44: 1940 | C44: Tools, Shop & Garage Equipment | G44: 0 | L44: 0 | M44: 0
A45: 8 | B45: 1945 | C45: Measurement & Testing Equipment | G45: 0 | L45: 0 | M45: 0
A46: 8 | B46: 1950 | C46: Power Operated Equipment | G46: 0 | L46: 0 | M46: 0
A47: 8 | B47: 1955 | C47: Communications Equipment | G47: 0 | L47: 0 | M47: 0
A48: 8 | B48: 1955 | C48: Communication Equipment (Smart Meters) | G48: 0 | L48: 0 | M48: 0
A49: 8 | B49: 1960 | C49: Miscellaneous Equipment | G49: 0 | L49: 0 | M49: 0
A50: 47 | B50: 1970 | C50: Load Management Controls Customer Premises | G50: 0 | L50: 0 | M50: 0
A51: 47 | B51: 1975 | C51: Load Management Controls Utility Premises | G51: 0 | L51: 0 | M51: 0
A52: 47 | B52: 1980 | C52: System Supervisor Equipment | G52: 0 | L52: 0 | M52: 0
A53: 47 | B53: 1985 | C53: Miscellaneous Fixed Assets | G53: 0 | L53: 0 | M53: 0
A54: 47 | B54: 1990 | C54: Other Tangible Property | G54: 0 | L54: 0 | M54: 0
A55: 47 | B55: 1995 | C55: Contributions & Grants | G55: 0 | L55: 0 | M55: 0
A56: 47 | B56: 2440 | C56: Deferred Revenue5
G57: 0 | L57: 0 | M57: 0
C58: Sub-Total | D58: =SUM(D17:D57) -> 0 | E58: =SUM(E17:E57) -> 0 | F58: =SUM(F17:F57) -> 0 | G58: =SUM(G17:G57) -> 0 | I58: =SUM(I17:I57) -> 0 | J58: =SUM(J17:J57) -> 0 | K58: =SUM(K17:K57) -> 0 | L58: =SUM(L17:L57) -> 0 | M58: =SUM(M17:M57) -> 0
C59: Less Socialized Renewable Energy Generation Investments (input as negative) | G59: =D59+E59+F59 -> 0 | L59: =I59+J59+K59 -> 0 | M59: =G59+L59 -> 0
C60: Less Other Non Rate-Regulated Utility Assets (input as negative) | G60: 0 | L60: =I60+J60+K60 -> 0 | M60: 0
C61: Total PP&E | D61: =SUM(D58:D60) -> 0 | E61: =SUM(E58:E60) -> 0 | F61: =SUM(F58:F60) -> 0 | G61: =SUM(G58:G60) -> 0 | I61: =SUM(I58:I60) -> 0 | J61: =SUM(J58:J60) -> 0 | K61: =SUM(K58:K60) -> 0 | L61: =SUM(L58:L60) -> 0 | M61: =SUM(M58:M60) -> 0
C62: Depreciation Expense adj. from gain or loss on the retirement of assets (pool of like assets), if applicable6
C63: Total | J63: =J61+J62 -> 0
I65: Less: Fully Allocated Depreciation
A66: 10 | C66: Transportation | I66: Transportation
A67: 8 | C67: Stores Equipment | I67: Stores Equipment
I68: Net Depreciation | K68: =J63-K66-K67 -> 0
A70: Notes:
A72: 1 | B72: Tables in the format outlined above covering all fixed asset accounts should be submitted for the Test Year, Bridge Year and all relevant historical years. At a minimum , the applicant must provide data for the earlier of: 1) all historical years back to its last rebasing; or 2) at least three years of historical actuals, in addition to Bridge Year and Test Year forecasts.
A75: 2 | B75: The "CCA Class" for fixed assets should agree with the CCA Class used for tax purposes in Tax Returns. Fixed Assets sub-components may be used where the underlying asset components are classified under multiple CCA Classes for tax purposes. If an applicant uses any different classes from those shown in the table, an explanation should be provided. (also see note 3).
A78: 3 | B78: The table may need to be customized for a utility's asset categories or for any new asset accounts announced or authorized by the Board.
A80: 4 | B80: The additions in column (E) must not include construction work in progress (CWIP).
A82: 5 | B82: Effective on the date of IFRS adoption, customer contributions will no longer be recorded in Account 1995 Contributions & Grants, but will be recorded in Account 2440, Deferred Revenues.
A84: 6 | B84: The applicant must ensure that all asset disposals have been clearly identified in the Chapter 2 Appendices for all historic, bridge and test years. Where a distributor for general financial reporting purposes under IFRS has accounted for the amount of gain or loss on the retirement of assets in a pool of like assets as a charge or credit to income, for reporting and rate application filings, the distributor shall reclassify such gains and losses as depreciation expense, and disclose the amount separately.

Sheet Appendix 2-BB Service Life
N1: File Number: | P1: ='LDC Info'!E16 -> EB-2018-0087
N2: Exhibit:
N3: Tab:
N4: Schedule:
N5: Page:
N7: Date:
A9: Appendix 2-BB
A10: Service Life Comparison
A11: Table F-1 from Kinetrics Report1
C15: Asset Details | F15: Useful Life | J15: USoA Account Number | K15: USoA Account Description | L15: Current | N15: Proposed | P15: Outside Range of Min, Max TUL?
A16: Parent* | B16: # | C16: Category| Component | Type | F16: MIN UL | G16: TUL | H16: MAX UL | L16: Years | M16: Rate | N16: Years | O16: Rate | P16: Below Min TUL | Q16: Above Max TUL
A17: OH | B17: 1 | C17: Fully Dressed Wood Poles | D17: Overall | F17: 35 | G17: 45 | H17: 75 | J17: 1830 | K17: Poles, Towers and Fixtures | L17: 25 | M17: 0.04 | N17: 50 | O17: 0.02 | P17: No | Q17: No
D18: Cross Arm | E18: Wood | F18: 20 | G18: 40 | H18: 55 | J18: 1830 | K18: Poles, Towers and Fixtures | L18: 25 | M18: 0.04 | N18: 50 | O18: 0.02 | P18: No | Q18: No
E19: Steel | F19: 30 | G19: 70 | H19: 95 | J19: 1830 | K19: Poles, Towers and Fixtures | L19: 25 | M19: 0.04 | N19: 50 | O19: 0.02 | P19: No | Q19: No
B20: 2 | C20: Fully Dressed Concrete Poles | D20: Overall | F20: 50 | G20: 60 | H20: 80 | M20: =IF(ISERROR(1/L20), "", 1/L20) ->  | O20: =IF(ISERROR(1/N20), "", 1/N20) ->  | P20: =IF(ISBLANK(N20),"",IF(N20<F20,"Yes","No")) ->  | Q20: =IF(ISBLANK(N20),"",IF(N20>H20,"Yes","No")) -> 
D21: Cross Arm | E21: Wood | F21: 20 | G21: 40 | H21: 55
E22: Steel | F22: 30 | G22: 70 | H22: 95
B23: 3 | C23: Fully Dressed Steel Poles | D23: Overall | F23: 60 | G23: 60 | H23: 80
D24: Cross Arm | E24: Wood | F24: 20 | G24: 40 | H24: 55
E25: Steel | F25: 30 | G25: 70 | H25: 95
B26: 4 | C26: OH Line Switch | F26: 30 | G26: 45 | H26: 55
B27: 5 | C27: OH Line Switch Motor | F27: 15 | G27: 25 | H27: 25
B28: 6 | C28: OH Line Switch RTU | F28: 15 | G28: 20 | H28: 20
B29: 7 | C29: OH Integral Switches | F29: 35 | G29: 45 | H29: 60
B30: 8 | C30: OH Conductors | F30: 50 | G30: 60 | H30: 75
B31: 9 | C31: OH Transformers & Voltage Regulators | F31: 30 | G31: 40 | H31: 60
B32: 10 | C32: OH Shunt Capacitor Banks | F32: 25 | G32: 30 | H32: 40
B33: 11 | C33: Reclosers | F33: 25 | G33: 40 | H33: 55
A34: TS & MS | B34: 12 | C34: Power Transformers | D34: Overall | F34: 30 | G34: 45 | H34: 60 | J34: 1850 | K34: Line Transformers | L34: 25 | M34: 0.04 | N34: 40 | O34: 0.025 | P34: No | Q34: No
D35: Bushing | F35: 10 | G35: 20 | H35: 30
D36: Tap Changer | F36: 20 | G36: 30 | H36: 60
B37: 13 | C37: Station Service Transformer | F37: 30 | G37: 45 | H37: 55
B38: 14 | C38: Station Grounding Transformer | F38: 30 | G38: 40 | H38: 40
B39: 15 | C39: Station DC System | D39: Overall | F39: 10 | G39: 20 | H39: 30
D40: Battery Bank | F40: 10 | G40: 15 | H40: 15
D41: Charger | F41: 20 | G41: 20 | H41: 30
B42: 16 | C42: Station Metal Clad Switchgear | D42: Overall | F42: 30 | G42: 40 | H42: 60
D43: Removable Breaker | F43: 25 | G43: 40 | H43: 60
B44: 17 | C44: Station Independent Breakers | F44: 35 | G44: 45 | H44: 65
B45: 18 | C45: Station Switch | F45: 30 | G45: 50 | H45: 60
B46: 19 | C46: Electromechanical Relays | F46: 25 | G46: 35 | H46: 50
B47: 20 | C47: Solid State Relays | F47: 10 | G47: 30 | H47: 45
B48: 21 | C48: Digital & Numeric Relays | F48: 15 | G48: 20 | H48: 20
B49: 22 | C49: Rigid Busbars | F49: 30 | G49: 55 | H49: 60
B50: 23 | C50: Steel Structure | F50: 35 | G50: 50 | H50: 90
A51: UG | B51: 24 | C51: Primary Paper Insulated Lead Covered (PILC) Cables | F51: 60 | G51: 65 | H51: 75 | J51: 1840 | L51: 25 | M51: 0.04 | N51: 50 | O51: 0.02 | P51: Yes | Q51: No
B52: 25 | C52: Primary Ethylene-Propylene Rubber (EPR) Cables | F52: 20 | G52: 25 | H52: 25
B53: 26 | C53: Primary Non-Tree Retardant (TR) Cross Linked Polyethylene (XLPE) Cables Direct Buried | F53: 20 | G53: 25 | H53: 30
B54: 27 | C54: Primary Non-TR XLPE Cables in Duct | F54: 20 | G54: 25 | H54: 30
B55: 30 | C55: Secondary PILC Cables | F55: 70 | G55: 75 | H55: 80 | J55: 1840 | L55: 25 | M55: 0.04 | N55: 50 | O55: 0.02 | P55: Yes | Q55: No
B56: 31 | C56: Secondary Cables Direct Buried | F56: 25 | G56: 35 | H56: 40
B57: 32 | C57: Secondary Cables in Duct | F57: 35 | G57: 40 | H57: 60
B58: 33 | C58: Network Tranformers | D58: Overall | F58: 20 | G58: 35 | H58: 50 | J58: 1815 | L58: 25 | M58: 0.04 | N58: 50 | O58: 0.02 | P58: No | Q58: No
D59: Protector | F59: 20 | G59: 35 | H59: 40
B60: 34 | C60: Pad-Mounted Transformers | F60: 25 | G60: 40 | H60: 45
B61: 35 | C61: Submersible/Vault Transformers | F61: 25 | G61: 35 | H61: 45
B62: 36 | C62: UG Foundation | F62: 35 | G62: 55 | H62: 70
B63: 37 | C63: UG Vaults | D63: Overall | F63: 40 | G63: 60 | H63: 80
D64: Roof | F64: 20 | G64: 30 | H64: 45
B65: 38 | C65: UG Vault Switches | F65: 20 | G65: 35 | H65: 50
B66: 39 | C66: Pad-Mounted Switchgear | F66: 20 | G66: 30 | H66: 45
B67: 40 | C67: Ducts | F67: 30 | G67: 50 | H67: 85
B68: 41 | C68: Concrete Encased Duct Banks | F68: 35 | G68: 55 | H68: 80
B69: 42 | C69: Cable Chambers | F69: 50 | G69: 60 | H69: 80
A70: S | B70: 43 | C70: Remote SCADA | F70: 15 | G70: 20 | H70: 30
A73: Table F-2 from Kinetrics Report1
C75: Asset Details | F75: Useful Life Range | J75: USoA Account Number | K75: USoA Account Description | L75: Current | N75: Proposed | P75: Outside Range of Min, Max TUL?
B76: # | C76: Category| Component | Type | L76: Years | M76: Rate | N76: Years | O76: Rate | P76: Below Min Range | Q76: Above Max Range
B77: 1 | C77: Office Equipment | F77: 5 | G77: 15 | J77: 1915 | K77: Offce Furniture & Equipment | L77: 15 | M77: 0.06666666667 | N77: 15 | O77: 0.06666666667 | P77: No | Q77: No
B78: 2 | C78: Vehicles | D78: Trucks & Buckets | F78: 5 | G78: 15 | J78: 1930 | K78: Transportation Equipment | L78: 15 | M78: 0.06666666667 | N78: 15 | O78: 0.06666666667 | P78: No | Q78: No
D79: Trailers | F79: 5 | G79: 20
D80: Vans | F80: 5 | G80: 10
B81: 3 | C81: Administrative Buildings | F81: 50 | G81: 75
B82: 4 | C82: Leasehold Improvements | F82: Lease dependent
B83: 5 | C83: Station Buildings | D83: Station Buildings | F83: 50 | G83: 75 | J83: 1808 | K83: Buildings | L83: 25 | M83: 0.04 | N83: 25 | O83: 0.04 | P83: Yes | Q83: No
D84: Parking | F84: 25 | G84: 30 | J84: 1808 | K84: Buildings | L84: 25 | M84: 0.04 | N84: 25 | O84: 0.04 | P84: No | Q84: No
D85: Fence | F85: 25 | G85: 60 | J85: 1808 | K85: Buildings | L85: 25 | M85: 0.04 | N85: 25 | O85: 0.04 | P85: No | Q85: No
D86: Roof | F86: 20 | G86: 30 | J86: 1808 | K86: Buildings | L86: 25 | M86: 0.04 | N86: 25 | O86: 0.04 | P86: No | Q86: No
B87: 6 | C87: Computer Equipment | D87: Hardware | F87: 3 | G87: 5 | J87: 1920 | K87: Computer Equipment | L87: 2 | M87: 0.5 | N87: 2 | O87: 0.5 | P87: Yes | Q87: No
D88: Software | F88: 2 | G88: 5 | J88: 1611 | K88: Computer Software | L88: 2 | M88: 0.5 | N88: 2 | O88: 0.5 | P88: No | Q88: No
B89: 7 | C89: Equipment | D89: Power Operated | F89: 5 | G89: 10
D90: Stores | F90: 5 | G90: 10
D91: Tools, Shop, Garage Equipment | F91: 5 | G91: 10
D92: Measurement & Testing Equipment | F92: 5 | G92: 10
B93: 8 | C93: Communication | D93: Towers | F93: 60 | G93: 70
D94: Wireless | F94: 2 | G94: 10
B95: 9 | C95: Residential Energy Meters | F95: 25 | G95: 35
B96: 10 | C96: Industrial/Commercial Energy Meters | F96: 25 | G96: 35
B97: 11 | C97: Wholesale Energy Meters | F97: 15 | G97: 30
B98: 12 | C98: Current & Potential Transformer (CT & PT) | F98: 35 | G98: 50
B99: 13 | C99: Smart Meters | F99: 5 | G99: 15 | J99: 1860 | K99: Meters (Smart Meters) | L99: 20 | M99: 0.05 | N99: 20 | O99: 0.05 | P99: No | Q99: Yes
B100: 14 | C100: Repeaters - Smart Metering | F100: 10 | G100: 15 | M100: =IF(ISERROR(1/L100), "", 1/L100) ->  | O100: =IF(ISERROR(1/N100), "", 1/N100) ->  | P100: =IF(ISBLANK(N100),"",IF(N100<F100,"Yes","No")) ->  | Q100: =IF(ISBLANK(N100),"",IF(N100>G100,"Yes","No")) -> 
B101: 15 | C101: Data Collectors - Smart Metering | F101: 15 | G101: 20
A104: * TS & MS = Transformer and Municipal Stations UG = Underground Systems S = Monitoring and Control Systems
A106: Note 1: | B106: Tables F-1 and F-2 above are to be used as a reference in order to complete columns J, K, L and N.
B107: See pages 17-19 of Kinetrics Report

Sheet App.2-C_DepExp
A1: This workseet is presented in a separate Workbook
A9: Appendix 2-C | Y9: CGAAP
A10: Depreciation and Amortization Expense | Y10: Revised CGAAP
Y11: MIFRS
A12: This appendix is to be completed in conjunction with the accounting instructions in Appendix 2-B
A14: Scenario that applies | C14: Applicable Years and Accounting Standard | R14: Year Reflected in Schedule Below | S14: Accounting Standard Reflected in Schedule Below | Y14: 2012
A15: Rebasing for the first time with depreciation policy changes made in 2012. | C15: This appendix must be duplicated and completed for the years 2012 to 2018. The appendix for 2012 is to be completed under CGAAP (prior to changes in depreciation policies). The appendix for 2012 to 2014 must be completed under Revised CGAAP (after changes in depreciation policies). The appendix for 2014 to 2018 is to be completed under MIFRS (2014 if changes to MIFRS are material). | Y15: 2013
A16: Rebasing for the first time with depreciation policy changes made in 2013. | C16: This appendix must be duplicated and completed for the years 2013 to 2018. The appendix for 2013 is to be completed under CGAAP (prior to changes in depreciation policies). The appendix for 2013 to 2014 must be completed under Revised CGAAP (after changes in depreciation policies). The appendix for 2014 to 2018 is to be completed under MIFRS (2014 if changes to MIFRS are material). | Y16: 2014
A17: Already rebased with depreciation policy changes in a prior rate application | C17: This appendix must be completed for 2014 to 2018. The appendix for 2014 is to be completed under Revised CGAAP (after changes in depreciation policies). The appendix for 2014 to 2018 is to be completed under MIFRS (2014 if changes to MIFRS are material). | Y17: 2015
Y18: 2016
Y19: 2017
C20: Book Values | J20: Service Lives | N20: Depreciation Expense | Y20: 2018
A21: Account | B21: Description | C21: Opening Net Book Value of Existing Assets as at Date of Policy Change (Jan. 1) 1 | D21: Less Fully Depreciated 7 | E21: Net Amount of Existing Assets Before Policy Change to be Depreciated | F21: Opening Gross Book Value of Assets Acquired After Policy Change 2 | G21: Less Fully Depreciated 8 | H21: Net Amount of Assets Acquired After Policy Change to be Depreciated | I21: Current Year Additions | J21: Average Remaining Life of Assets Existing Before Policy Change 3 | K21: Depreciation Rate Assets Acquired After Policy Change | L21: Life of Assets Acquired After Policy Change 4 | M21: Depreciation Rate on New Additions | N21: Depreciation Expense on Assets Existing Before Policy Change | O21: Depreciation Expense on Assets Acquired After Policy Change | P21: Depreciation Expense on Current Year Additions 5 | Q21: Total Current Year Depreciation Expense | R21: Depreciation Expense per Appendix 2-BA Fixed Assets, Column J | S21: Variance 6
C22: a | D22: b | E22: c = a-b | F22: d | G22: e | H22: f = d- e | I22: g | J22: h | K22: i = 1/h | L22: j | M22: k = 1/j | N22: l = c/h | O22: m = f/j | P22: n = g*0.5/j | Q22: o = l+m+n | R22: p | S22: q = p-o
A23: 1611 | B23: Computer Software (Formally known as Account 1925) | E23: =C23-D23 -> 0 | H23: =F23-G23 -> 0 | K23: =IF(J23=0,0,1/J23) -> 0 | M23: =IF(L23=0,0,1/L23) -> 0 | N23: =IF(J23=0,0,+E23/J23) -> 0 | O23: =IF(L23=0,0,+H23/L23) -> 0 | P23: =IF(L23=0,0,+(I23*0.5)/L23) -> 0 | Q23: =IF(ISERROR(+N23+O23+P23), 0, +N23+O23+P23) -> 0 | S23: =IF(ISERROR(+R23-122), 0, +R23-Q23) -> 0
A24: 1612 | B24: Land Rights (Formally known as Account 1906) | E24: =C24-D24 -> 0 | H24: =F24-G24 -> 0 | K24: =IF(J24=0,0,1/J24) -> 0 | M24: =IF(L24=0,0,1/L24) -> 0 | N24: =IF(J24=0,0,+E24/J24) -> 0 | O24: =IF(L24=0,0,+H24/L24) -> 0 | P24: =IF(L24=0,0,+(I24*0.5)/L24) -> 0 | Q24: =IF(ISERROR(+N24+O24+P24), 0, +N24+O24+P24) -> 0 | S24: =IF(ISERROR(+R24-122), 0, +R24-Q24) -> 0
A25: 1805 | B25: Land | E25: 0 | H25: 0 | K25: 0 | M25: 0 | N25: 0 | O25: =IF(L25=0,0,+H25/L25) -> 0 | P25: 0 | Q25: 0 | S25: 0
A26: 1808 | B26: Buildings | E26: 0 | H26: 0 | K26: 0 | M26: 0 | N26: 0 | O26: 0 | P26: 0 | Q26: 0 | S26: 0
A27: 1810 | B27: Leasehold Improvements | E27: 0 | H27: 0 | K27: 0 | M27: 0 | N27: 0 | O27: 0 | P27: 0 | Q27: 0 | S27: 0
A28: 1815 | B28: Transformer Station Equipment >50 kV | E28: 0 | H28: 0 | K28: 0 | M28: 0 | N28: 0 | O28: 0 | P28: 0 | Q28: 0 | S28: 0
A29: 1820 | B29: Distribution Station Equipment <50 kV | E29: 0 | H29: 0 | K29: 0 | M29: 0 | N29: 0 | O29: 0 | P29: 0 | Q29: 0 | S29: 0
A30: 1825 | B30: Storage Battery Equipment | E30: 0 | H30: 0 | K30: 0 | M30: 0 | N30: 0 | O30: 0 | P30: 0 | Q30: 0 | S30: 0
A31: 1830 | B31: Poles, Towers & Fixtures | E31: 0 | H31: 0 | K31: 0 | M31: 0 | N31: 0 | O31: 0 | P31: 0 | Q31: 0 | S31: 0
A32: 1835 | B32: Overhead Conductors & Devices | E32: 0 | H32: 0 | K32: 0 | M32: 0 | N32: 0 | O32: 0 | P32: 0 | Q32: 0 | S32: 0
A33: 1840 | B33: Underground Conduit | E33: 0 | H33: 0 | K33: 0 | M33: 0 | N33: 0 | O33: 0 | P33: 0 | Q33: 0 | S33: 0
A34: 1845 | B34: Underground Conductors & Devices | E34: 0 | H34: 0 | K34: 0 | M34: 0 | N34: 0 | O34: 0 | P34: 0 | Q34: 0 | S34: 0
A35: 1850 | B35: Line Transformers | E35: 0 | H35: 0 | K35: 0 | M35: 0 | N35: 0 | O35: 0 | P35: 0 | Q35: 0 | S35: 0
A36: 1855 | B36: Services (Overhead & Underground) | E36: 0 | H36: 0 | K36: 0 | M36: 0 | N36: 0 | O36: 0 | P36: 0 | Q36: 0 | S36: 0
A37: 1860 | B37: Meters | E37: 0 | H37: 0 | K37: 0 | M37: 0 | N37: 0 | O37: 0 | P37: 0 | Q37: 0 | S37: 0
A38: 1860 | B38: Meters (Smart Meters) | E38: 0 | H38: 0 | K38: 0 | M38: 0 | N38: 0 | O38: 0 | P38: 0 | Q38: 0 | S38: 0
A39: 1905 | B39: Land | E39: 0 | H39: 0 | K39: 0 | M39: 0 | N39: 0 | O39: 0 | P39: 0 | Q39: 0 | S39: 0
A40: 1908 | B40: Buildings & Fixtures | E40: 0 | H40: 0 | K40: 0 | M40: 0 | N40: 0 | O40: 0 | P40: 0 | Q40: 0 | S40: 0
A41: 1910 | B41: Leasehold Improvements | E41: 0 | H41: 0 | K41: 0 | M41: 0 | N41: 0 | O41: 0 | P41: 0 | Q41: 0 | S41: 0
A42: 1915 | B42: Office Furniture & Equipment (10 years) | E42: 0 | H42: 0 | K42: 0 | M42: 0 | N42: 0 | O42: 0 | P42: 0 | Q42: 0 | S42: 0
A43: 1915 | B43: Office Furniture & Equipment (5 years) | E43: 0 | H43: 0 | K43: 0 | M43: 0 | N43: 0 | O43: 0 | P43: 0 | Q43: 0 | S43: 0
A44: 1920 | B44: Computer Equipment - Hardware | E44: 0 | H44: 0 | K44: 0 | M44: 0 | N44: 0 | O44: 0 | P44: 0 | Q44: 0 | S44: 0
A45: 1920 | B45: Computer Equip.-Hardware(Post Mar. 22/04) | E45: 0 | H45: 0 | K45: 0 | M45: 0 | N45: 0 | O45: 0 | P45: 0 | Q45: 0 | S45: 0
A46: 1920 | B46: Computer Equip.-Hardware(Post Mar. 19/07) | E46: 0 | H46: 0 | K46: 0 | M46: 0 | N46: 0 | O46: 0 | P46: 0 | Q46: 0 | S46: 0
A47: 1930 | B47: Transportation Equipment | E47: 0 | H47: 0 | K47: 0 | M47: 0 | N47: 0 | O47: 0 | P47: 0 | Q47: 0 | S47: 0
A48: 1935 | B48: Stores Equipment | E48: 0 | H48: 0 | K48: 0 | M48: 0 | N48: 0 | O48: 0 | P48: 0 | Q48: 0 | S48: 0
A49: 1940 | B49: Tools, Shop & Garage Equipment | E49: 0 | H49: 0 | K49: 0 | M49: 0 | N49: 0 | O49: 0 | P49: 0 | Q49: 0 | S49: 0
A50: 1945 | B50: Measurement & Testing Equipment | E50: 0 | H50: 0 | K50: 0 | M50: 0 | N50: 0 | O50: 0 | P50: 0 | Q50: 0 | S50: 0
A51: 1950 | B51: Power Operated Equipment | E51: 0 | H51: 0 | K51: 0 | M51: 0 | N51: 0 | O51: 0 | P51: 0 | Q51: 0 | S51: 0
A52: 1955 | B52: Communications Equipment | E52: 0 | H52: 0 | K52: 0 | M52: 0 | N52: 0 | O52: 0 | P52: 0 | Q52: 0 | S52: 0
A53: 1955 | B53: Communication Equipment (Smart Meters) | E53: 0 | H53: 0 | K53: 0 | M53: 0 | N53: 0 | O53: 0 | P53: 0 | Q53: 0 | S53: 0
A54: 1960 | B54: Miscellaneous Equipment | E54: 0 | H54: 0 | K54: 0 | M54: 0 | N54: 0 | O54: 0 | P54: 0 | Q54: 0 | S54: 0
A55: 1970 | B55: Load Management Controls Customer Premises | E55: 0 | H55: 0 | K55: 0 | M55: 0 | N55: 0 | O55: 0 | P55: 0 | Q55: 0 | S55: 0
A56: 1975 | B56: Load Management Controls Utility Premises | E56: 0 | H56: 0 | K56: 0 | M56: 0 | N56: 0 | O56: 0 | P56: 0 | Q56: 0 | S56: 0
A57: 1980 | B57: System Supervisor Equipment | E57: 0 | H57: 0 | K57: 0 | M57: 0 | N57: 0 | O57: 0 | P57: 0 | Q57: 0 | S57: 0
A58: 1985 | B58: Miscellaneous Fixed Assets | E58: 0 | H58: 0 | K58: 0 | M58: 0 | N58: 0 | O58: 0 | P58: 0 | Q58: 0 | S58: 0
A59: 1990 | B59: Other Tangible Property | E59: 0 | H59: 0 | K59: 0 | M59: 0 | N59: 0 | O59: 0 | P59: 0 | Q59: 0 | S59: 0
A60: 1995 | B60: Contributions & Grants | E60: 0 | H60: 0 | K60: 0 | M60: 0 | N60: 0 | O60: 0 | P60: 0 | Q60: 0 | S60: 0
B61: Total | C61: =SUM(C23:C60) -> 0 | D61: 0 | E61: 0 | F61: 0 | G61: 0 | H61: 0 | I61: 0 | N61: =SUM(N23:N60) -> 0 | O61: 0 | P61: 0 | Q61: 0 | R61: 0 | S61: 0
A64: General: | B64: Applicants are to complete this appendix to show the reasonability of the depreciation expense that is included in rate base via. Accumulated depreciation and the revenue requirement.
B65: Applicants must provide a breakdown of depreciation and amortization expense in the above format for all relevant accounts. Balances presented in the table should exclude asset retirement obligations (AROs) and the related depreciation and accretion expense. These should be disclosed separately consistent with the Notes of historical Audited Financial Statements.
A68: Notes:
A69: 1 | B69: This is the net book value of assets that existed as at the date of the utility's change in depreciation policies (i.e. as at Jan. 1, 2012 or Jan. 1, 2013). These assets are to be depreciated at the average remaining service life. This amount will not change in years subsequent to the date of the utility's change in depreciation policies. This column is expected to be used until the assets that existed as at the date of the utility's change in depreciation policies are fully depreciated.
A70: 2 | B70: This is the opening gross book value of assets that have been acquired after the date of the utilities change in depreciation policies (i.e. additions starting in 2012/2013 for those who changed policies Jan. 1, 2012/2013). These assets are to be depreciated at the revised service life. The amount is expected to be equal to the gross book value of the prior year plus the prior year's additions.
A71: 3 | B71: A recalculation should be performed to determine the average remaining life of opening balance of assets (i.e. excluding current year's additions) under the change in policies under CGAAP. For example, Asset A had a useful life of 20 years under CGAAP without the change in policies. On January 1 of the year of policy changes, Asset A was 3 years depreciated. As a result, Asset A would have a remaining service life of 17 years (20 years less 3 years) as at January 1 of the year of policy changes. Due to making the change in policies under CGAAP, management re-assessed the asset useful lives and concluded that the revised useful life of Asset A is now 30 years. Therefore, the average remaining useful life of the opening balance of Asset A is determined to be 27 years (30 years less 3 years) under the revised CGAAP as at January 1 of the year of policy changes.
A72: 4 | B72: The useful life used should be consistent with the OEB's regulatory accounting policies as set out in the Accounting Procedures Handbook for Electricity Distributors, effective Jan. 1, 2012 and also with the Report of the Board, Transition to International Financial Reporting Standards, EB-2008-0408, and the Kinectrics Report.
A73: 5 | B73: Board policy of the "half-year" rule - the applicant must ensure that additions in the year attract a half-year depreciation expense in the first year. Deviations from this standard practice must be supported in the application.
A74: 6 | B74: The applicant must provide an explanation of material variances in evidence.
A75: 7 | B75: This should include assets in column a (excel column C) that become fully depreciated since the date of the policy change. The amount input in b (excel column D) should equal the net book value of the asset as at the date of depreciation policy change
A76: 8 | B76: This should include assets in column d (excel column f) that have become fully depreciated. The amount input in e (excel column G) should equal the gross book value of the asset

Sheet App.2-D_Overhead
F1: File Number: | G1: =EBNUMBER -> EB-2018-0087
F2: Exhibit:
F3: Tab:
F4: Schedule:
F5: Page:
F7: Date:
A9: Appendix 2-D
A10: Overhead Expense
A12: Applicants are to provide a breakdown of OM&A before capitalization in the below table. OM&A before capitalization may be broken down by cost center, program, drivers or another format best suited to focus on capitalized vs. uncapitalized OM&A.
A14: OM&A Before Capitalization
B15: =F15-4 -> 2015 | C15: =F15-3 -> 2016 | D15: =F15-2 -> 2017 | E15: =F15-1 -> 2018 | F15: =TestYear -> 2019
B16: Historical Year | C16: Historical Year | D16: Historical Year | E16: Bridge Year | F16: Test Year
A27: Total OM&A Before Capitalization (B) | B27: =SUM(B17:B26) -> 0 | C27: =SUM(C17:C26) -> 0 | D27: =SUM(D17:D26) -> 0 | E27: =SUM(E17:E26) -> 0 | F27: =SUM(F17:F26) -> 0
A29: Applicants are to provide a breakdown of capitalized OM&A in the below table. Capitalized OM&A may be broken down using the categories listed in the table below if possible. Otherwise, applicants are to provide its own break down of capitalized OM&A.
A31: Capitalized OM&A | G31: Directly | H31: Explanation for Change in Overhead Capitalized
B32: =F32-4 -> 2015 | C32: =F32-3 -> 2016 | D32: =F32-2 -> 2017 | E32: =F32-1 -> 2018 | F32: =TestYear -> 2019 | G32: Attributable?
B33: Historical Year | C33: Historical Year | D33: Historical Year | E33: Bridge Year | F33: Test Year | G33: (Yes/No)
A34: employee benefits
A35: costs of site preparation
A36: initial delivery and handling costs
A37: costs of testing whether the asset is functioning properly
A38: professional fees
A40: costs of opening a new facility
A41: costs of introducing a new product or service (including costs of advertising and promotional activities)
A42: costs of conducting business in a new location or with a new class of customer (including costs of staff training)
A43: administration and other general overhead costs
A45: Insert description of additional item(s) and new rows if needed
A47: Total Capitalized OM&A (A) | B47: =SUM(B34:B46) -> 0 | C47: =SUM(C34:C46) -> 0 | D47: =SUM(D34:D46) -> 0 | E47: =SUM(E34:E46) -> 0 | F47: =SUM(F34:F46) -> 0
A49: % of Capitalized OM&A (=A/B) | B49: =IF(ISERROR(B47/B27),"0%",B47/B27) -> 0% | C49: =IF(ISERROR(C47/C27),"0%",C47/C27) -> 0% | D49: =IF(ISERROR(D47/D27),"0%",D47/D27) -> 0% | E49: =IF(ISERROR(E47/E27),"0%",E47/E27) -> 0% | F49: =IF(ISERROR(F47/F27),"0%",F47/F27) -> 0%

Sheet App.2-EA_Account 1575 (2015) (hidden)
H1: File Number: | I1: =EBNUMBER -> EB-2018-0087
H2: Exhibit:
H3: Tab:
H4: Schedule:
H5: Page:
H7: Date:
A9: Appendix 2-EA
A10: Account 1575 - IFRS-CGAAP Transitional PP&E Amounts
A11: 2015 Adopters of IFRS for Financial Reporting Purposes
A13: For applicants that adopted IFRS on January 1, 2015 for financial reporting purposes
B17: 2014 | C17: =TestYear-3 -> 2016 | D17: =TestYear-2 -> 2017 | E17: =CONCATENATE(TestYear-1," Bridge Year") -> 2018 Bridge Year | F17: =CONCATENATE(TestYear," Rebasing Year") -> 2019 Rebasing Year
A18: Reporting Basis | B18: CGAAP | C18: CGAAP | D18: CGAAP | E18: MIFRS | F18: MIFRS
B19: Actual | C19: Actual | D19: Actual | E19: Forecast | F19: Forecast
D20: $ | E20: $
A21: PP&E Values under CGAAP
A22: Opening net PP&E - Note 1 | C22: =+B25 -> 0 | D22: =+C25 -> 0 | E22: =+D25 -> 0
A23: Net Additions - Note 4
A24: Net Depreciation (amounts should be negative) - Note 4
A25: Closing net PP&E (1) | B25: =SUM(B22:B24) -> 0 | C25: =SUM(C22:C24) -> 0 | D25: =SUM(D22:D24) -> 0 | E25: =SUM(E22:E24) -> 0
A27: PP&E Values under MIFRS (Starts from 2014, the transition year)
A28: Opening net PP&E - Note 1 | C28: =+B31 -> 0 | D28: =+C31 -> 0 | E28: =+D31 -> 0
A29: Net Additions - Note 4
A30: Net Depreciation (amounts should be negative) - Note 4
A31: Closing net PP&E (2) | B31: =SUM(B28:B30) -> 0 | C31: =SUM(C28:C30) -> 0 | D31: =SUM(D28:D30) -> 0 | E31: =SUM(E28:E30) -> 0
A33: Difference in Closing net PP&E, former CGAAP vs. revised CGAAP | B33: =B25-B31 -> 0 | C33: =C25-C31 -> 0 | D33: =D25-D31 -> 0 | E33: =E25-E31 -> 0
A36: Effect on Deferral and Variance Account Rate Riders
A37: Closing balance in Account 1575 | F37: =IF(ISERROR(E33), 0, E33) -> 0 | H37: WACC
A38: Return on Rate Base Associated with Account 1575 balance at WACC - Note 2 | F38: =E33*I37*I38 -> 0 | G38: # of years of rate rider disposition period
A39: Amount included in Deferral and Variance Account Rate Rider Calculation | F39: =F37+F38 -> 0
A41: Notes:
A42: 1 For an applicant that adopted IFRS on January 1, 2015, the PP&E values as of January 1, 2014 under both CGAAP and MIFRS should be the same.
A43: 2 Return on rate base associated with deferred balance is calculated as:
A44: the deferral account closing balance as of 2017 x WACC X # of years of rate rider disposition period
A45: * Please note that the calculation should be adjusted once WACC is updated and finalized in the rate application.
A46: 3 The PP&E deferral account is cleared by including the total balance in the deferral and variance account rate rider calculation.
A47: 4 Net additions are additions net of disposals; Net depreciation is additions to depreciation net of disposals.

Sheet App.2-EB_Account 1576 (2012) (hidden)
K1: File Number: | L1: =EBNUMBER -> EB-2018-0087
K2: Exhibit:
K3: Tab:
K4: Schedule:
K5: Page:
K7: Date:
A9: Appendix 2-EB
A10: Account 1576 - Accounting Changes under CGAAP
A11: 2012 Changes in Accounting Policies under CGAAP
A13: For applicants with a balance in Account 1576 and made capitalization and depreciation expense accounting policy changes under CGAAP effective January 1, 2012. This is the first time the applicant is rebasing with changes in these accounting policies.
B17: Prior Years Rebasing | C17: 2012 | D17: 2013 | E17: 2014 | F17: 2015 | G17: 2016 | H17: 2017 | I17: 2018 Rebasing Year
A18: Reporting Basis | B18: CGAAP | C18: CGAAP | D18: CGAAP | E18: CGAAP | F18: MIFRS - Note 5 | G18: MIFRS | H18: MIFRS | I18: MIFRS
B19: Forecast | C19: Actual | D19: Actual | E19: Actual | F19: Actual | G19: Actual | H19: Forecast | I19: Forecast
C20: $ | D20: $ | E20: $ | F20: $ | G20: $ | H20: $
A21: PP&E Values under former CGAAP
A22: Opening net PP&E - Note 1 | D22: =+C25 -> 0 | E22: =+D25 -> 0 | F22: =+E25 -> 0 | G22: =+F25 -> 0 | H22: =+G25 -> 0
A23: Net Additions - Note 4
A24: Net Depreciation (amounts should be negative) - Note 4
A25: Closing net PP&E (1) | C25: =C22+C23+C24 -> 0 | D25: 0 | E25: 0 | F25: 0 | G25: 0 | H25: 0
A27: PP&E Values under revised CGAAP (Starts from 2012)
A28: Opening net PP&E - Note 1 | D28: =+C31 -> 0 | E28: =+D31 -> 0 | F28: =+E31 -> 0 | G28: =+F31 -> 0 | H28: =+G31 -> 0
A29: Net Additions - Note 4
A30: Net Depreciation (amounts should be negative) - Note 4
A31: Closing net PP&E (2) | C31: =SUM(C28:C30) -> 0 | D31: 0 | E31: 0 | F31: 0 | G31: 0 | H31: 0
A33: Difference in Closing net PP&E, former CGAAP vs. revised CGAAP | C33: =C25-C31 -> 0 | D33: 0 | E33: 0 | F33: 0 | G33: 0 | H33: 0
A36: Effect on Deferral and Variance Account Rate Riders
A37: Closing balance in Account 1576 | I37: =IF(ISERROR(H33), 0, H33) -> 0 | K37: WACC
A38: Return on Rate Base Associated with Account 1576 balance at WACC - Note 2 | I38: =H33*L37*L38 -> 0 | J38: # of years of rate rider disposition period
A39: Amount included in Deferral and Variance Account Rate Rider Calculation | I39: =I37+I38 -> 0
A41: Notes:
A42: 1 For an applicant that made the capitalization and depreciation expense accounting policy changes on January 1, 2012, the PP&E values as of January 1, 2012 under both former CGAAP and revised CGAAP should be the same.
A43: 2 Return on rate base associated with Account 1576 balance is calculated as:
A44: the variance account ending balance as of 2017 x WACC X # of years of rate rider disposition period
A45: * Please note that the calculation should be adjusted once WACC is updated and finalized in the rate application.
A46: 3 Account 1576 is cleared by including the total balance in the deferral and variance account rate rider calculation.
A47: 4 Net additions are additions net of disposals; Net depreciation is additions to depreciation net of disposals.
A48: 5 Differences due to the adoption of MIFRS are to be shown separately in Account 1575 in Appendix 2-EA as Accounts 1575 and 1576 cannot be used interchangably.

Sheet App.2-EC_Account 1576 (2013) (hidden)
J1: File Number: | K1: =EBNUMBER -> EB-2018-0087
J2: Exhibit:
J3: Tab:
J4: Schedule:
J5: Page:
J7: Date:
A9: Appendix 2-EC
A10: Account 1576 - Accounting Changes under CGAAP
A11: 2013 Changes in Accounting Policies under CGAAP
A13: For applicants with a balance in Account 1576 and made capitalization and depreciation expense accounting policy changes under CGAAP effective January 1, 2013. This is the first time the applicant is rebasing with changes in these accounting policies.
B17: Prior Years Rebasing | C17: 2013 | D17: 2014 | E17: 2015 | F17: 2016 | G17: 2017 | H17: 2018 Rebasing Year
A18: Reporting Basis | B18: CGAAP | C18: CGAAP | D18: CGAAP | E18: MIFRS - Note 5 | F18: MIFRS | G18: MIFRS | H18: MIFRS
B19: Actual | C19: Actual | D19: Actual | E19: Actual | F19: Actual | G19: Forecast | H19: Forecast
C20: $ | D20: $ | F20: $
A21: PP&E Values under former CGAAP
A22: Opening net PP&E - Note 1 | D22: =+C25 -> 0 | E22: =+D25 -> 0 | F22: =+E25 -> 0 | G22: =+F25 -> 0
A23: Net Additions - Note 4
A24: Net Depreciation (amounts should be negative) - Note 4
A25: Closing net PP&E (1) | C25: =C22+C23+C24 -> 0 | D25: =D22+D23+D24 -> 0 | E25: =E22+E23+E24 -> 0 | F25: =F22+F23+F24 -> 0 | G25: =G22+G23+G24 -> 0
A27: PP&E Values under revised CGAAP (Starts from 2012)
A28: Opening net PP&E - Note 1 | D28: =+C31 -> 0 | E28: =+D31 -> 0 | F28: =+E31 -> 0 | G28: =+F31 -> 0
A29: Net Additions - Note 4
A30: Net Depreciation (amounts should be negative) - Note 4
A31: Closing net PP&E (2) | C31: =SUM(C28:C30) -> 0 | D31: =SUM(D28:D30) -> 0 | E31: =SUM(E28:E30) -> 0 | F31: =SUM(F28:F30) -> 0 | G31: =SUM(G28:G30) -> 0
A33: Difference in Closing net PP&E, former CGAAP vs. revised CGAAP | C33: =C25-C31 -> 0 | D33: =D25-D31 -> 0 | E33: =E25-E31 -> 0 | F33: =F25-F31 -> 0 | G33: =G25-G31 -> 0
A36: Effect on Deferral and Variance Account Rate Riders
A37: Closing balance in Account 1576 | H37: =IF(ISERROR(G33), 0, G33) -> 0 | J37: WACC
A38: Return on Rate Base Associated with Account 1576 balance at WACC - Note 2 | H38: =G33*K37*K38 -> 0 | I38: # of years of rate rider disposition period
A39: Amount included in Deferral and Variance Account Rate Rider Calculation | H39: =H37+H38 -> 0
A41: Notes:
A42: 1 For an applicant that made the capitalization and depreciation expense accounting policy changes on January 1, 2013, the PP&E values as of January 1, 2013 under both former CGAAP and revised CGAAP should be the same.
A43: 2 Return on rate base associated with Account 1576 balance is calculated as:
A44: the variance account ending balance as of 2017 x WACC X # of years of rate rider disposition period
A45: * Please note that the calculation should be adjusted once WACC is updated and finalized in the rate application.
A46: 3 Account 1576 is cleared by including the total balance in the deferral and variance account rate rider calculation.
A47: 4 Net additions are additions net of disposals; Net depreciation is additions to depreciation net of disposals.
A48: 5 Differences due to the adoption of MIFRS are to be shown separately in Account 1575 in Appendix 2-EA as Accounts 1575 and 1576 cannot be used interchangably.

Sheet App.2-FA Proposed REG Invest.
K1: File Number: | L1: =EBNUMBER -> EB-2018-0087
K2: Exhibit:
K3: Tab:
A4: TO BE UPDATED AT DRAFT RATE ORDER STAGE | K4: Schedule:
K5: Page:
K7: Date:
A9: Appendix 2-FA
A10: Renewable Generation Connection Investment Summary (past investments or over the future rate setting period)
A12: Enter the details of the Renewable Generation Connection projects as described in the appropriate section of the Filing Requirements.
A13: All costs entered on this page will be transferred to the appropriate cells in the appendices that follow.
A14: For Part A, Renewable Enabling Improvements (REI), these amounts will be transferred to Appendix 2 - FB
A15: For Part B, Expansions, these amounts will be transferred to Appendix 2 - FC
A17: If there are more than five projects proposed to be in-service in a certain year, please amend the tables below and ensure that the formulae for the Total Amounts in any given rate year are updated.
A18: Based on the current methodology and allocation, amounts allocated represent 6% for REI Connection Investments and 17% for Expansion Investments. (EB-2009-0349, 6-10-2010, p. 15, note 9)
A20: There are two scenarios described below. Separate sets of spreadsheets (2-FA, 2-FB, 2-FC) should be submited for each scenario as required.
A21: Scenario 1: Past Investments with No Recovery. The distributor has made investments in the past (during the IRM Years), but has not received approval for these projects and therefore did not receive
A22: revenue from the IESO under Regulation 330/09 and did not receive ratepayer revenue for the direct benefit portion of the investment.
A23: The WCA percentage, debt percentages, interest rates, kWh, tax rates, amortization period, CCA Class and percentage should correspond to the distributor's last Cost of Service approval.
A24: The Direct Benefit portion of the calculated Revenue Requirement for each year should be summed and can be applied for recovery from the distributor's ratepayers through a rate rider.
A25: The Provincial Recovery portion of the calculated Revenue Requirement for each year should be summed and can be applied for recovery from the IESO through a separate order.
A27: Scenario 2: Investments in the Test Year and Beyond. Distributor plans to make investments in 2017 and/or beyond. These investments should be added to 2-FA in the appropriate year.
A28: The WCA percentage, debt percentages, interest rates, kWh, tax rates, amortization period, CCA Class and percentage should correspond to the distributor's current application.
A30: Part A | H30: Test Year
A31: REI Investments (Direct Benefit at 6%) | C31: =D31-1 -> 2014 | D31: =E31-1 -> 2015 | E31: =F31-1 -> 2016 | F31: =G31-1 -> 2017 | G31: =H31-1 -> 2018 | H31: =TestYear -> 2019 | I31: =H31+1 -> 2020 | J31: =I31+1 -> 2021 | K31: =J31+1 -> 2022 | L31: =K31+1 -> 2023
A32: Project 1
A33: Name: REI Connection Project
A34: Capital Costs | C34: 0 | D34: 0 | E34: 0 | F34: 0 | G34: 0 | H34: 0 | I34: 0 | J34: 0 | K34: 0 | L34: 0
A35: OM&A (Start-Up) | C35: 0 | D35: 0 | E35: 0 | F35: 0 | G35: 0 | H35: 0 | I35: 0 | J35: 0 | K35: 0 | L35: 0
A36: OM&A (Ongoing) | C36: 0 | D36: 0 | E36: 0 | F36: 0 | G36: 0 | H36: 0 | I36: 0 | J36: 0 | K36: 0 | L36: 0
A38: Project 2
A39: Name: REI Connection Project
A40: Capital Costs | C40: 0 | D40: 0 | E40: 0 | F40: 0 | G40: 0 | H40: 0 | I40: 0 | J40: 0 | K40: 0 | L40: 0
A41: OM&A (Start-Up) | C41: 0 | D41: 0 | E41: 0 | F41: 0 | G41: 0 | H41: 0 | I41: 0 | J41: 0 | K41: 0 | L41: 0
A42: OM&A (Ongoing) | C42: 0 | D42: 0 | E42: 0 | F42: 0 | G42: 0 | H42: 0 | I42: 0 | J42: 0 | K42: 0 | L42: 0
A44: Project 3
A45: Name: REI Connection Project
A46: Capital Costs | C46: 0 | D46: 0 | E46: 0 | F46: 0 | G46: 0 | H46: 0 | I46: 0 | J46: 0 | K46: 0 | L46: 0
A47: OM&A (Start-Up) | C47: 0 | D47: 0 | E47: 0 | F47: 0 | G47: 0 | H47: 0 | I47: 0 | J47: 0 | K47: 0 | L47: 0
A48: OM&A (Ongoing) | C48: 0 | D48: 0 | E48: 0 | F48: 0 | G48: 0 | H48: 0 | I48: 0 | J48: 0 | K48: 0 | L48: 0
A50: Project 4
A51: Name: REI Connection Project
A52: Capital Costs | C52: 0 | D52: 0 | E52: 0 | F52: 0 | G52: 0 | H52: 0 | I52: 0 | J52: 0 | K52: 0 | L52: 0
A53: OM&A (Start-Up) | C53: 0 | D53: 0 | E53: 0 | F53: 0 | G53: 0 | H53: 0 | I53: 0 | J53: 0 | K53: 0 | L53: 0
A54: OM&A (Ongoing) | C54: 0 | D54: 0 | E54: 0 | F54: 0 | G54: 0 | H54: 0 | I54: 0 | J54: 0 | K54: 0 | L54: 0
A56: Project 5
A57: Name: REI Connection Project
A58: Capital Costs | C58: 0 | D58: 0 | E58: 0 | F58: 0 | G58: 0 | H58: 0 | I58: 0 | J58: 0 | K58: 0 | L58: 0
A59: OM&A (Start-Up) | C59: 0 | D59: 0 | E59: 0 | F59: 0 | G59: 0 | H59: 0 | I59: 0 | J59: 0 | K59: 0 | L59: 0
A60: OM&A (Ongoing) | C60: 0 | D60: 0 | E60: 0 | F60: 0 | G60: 0 | H60: 0 | I60: 0 | J60: 0 | K60: 0 | L60: 0
A62: Total Capital Costs | C62: =SUM(C58,C52,C46,C40,C34) -> 0 | D62: =SUM(D58,D52,D46,D40,D34) -> 0 | E62: 0 | F62: 0 | G62: 0 | H62: =SUM(H58,H52,H46,H40,H34) -> 0 | I62: =SUM(I58,I52,I46,I40,I34) -> 0 | J62: 0 | K62: 0 | L62: 0
A63: Total OM&A (Start-Up) | C63: =SUM(C59,C53,C47,C41,C35) -> 0 | D63: 0 | E63: 0 | F63: 0 | G63: 0 | H63: =SUM(H59,H53,H47,H41,H35) -> 0 | I63: 0 | J63: 0 | K63: 0 | L63: 0
A64: Total OM&A (Ongoing) | C64: =SUM(C60,C54,C48,C42,C36) -> 0 | D64: 0 | E64: 0 | F64: 0 | G64: 0 | H64: =SUM(H60,H54,H48,H42,H36) -> 0 | I64: 0 | J64: 0 | K64: 0 | L64: 0
A67: Part B | H67: Test Year
A68: Expansion Investments (Direct Benefit at 17%) | C68: =D68-1 -> 2014 | D68: =E68-1 -> 2015 | E68: =F68-1 -> 2016 | F68: =G68-1 -> 2017 | G68: =H68-1 -> 2018 | H68: =TestYear -> 2019 | I68: =H68+1 -> 2020 | J68: =I68+1 -> 2021 | K68: =J68+1 -> 2022 | L68: =K68+1 -> 2023
A69: Project 1
A70: Name: Expansion Connection Project
A71: Capital Costs | C71: 0 | D71: 0 | E71: 0 | F71: 0 | G71: 0 | H71: 0 | I71: 0 | J71: 0 | K71: 0 | L71: 0
A72: OM&A (Start-Up) | C72: 0 | D72: 0 | E72: 0 | F72: 0 | G72: 0 | H72: 0 | I72: 0 | J72: 0 | K72: 0 | L72: 0
A73: OM&A (Ongoing) | C73: 0 | D73: 0 | E73: 0 | F73: 0 | G73: 0 | H73: 0 | I73: 0 | J73: 0 | K73: 0 | L73: 0
A75: Project 2
A76: Name: Expansion Connection Project
A77: Capital Costs | C77: 0 | D77: 0 | E77: 0 | F77: 0 | G77: 0 | H77: 0 | I77: 0 | J77: 0 | K77: 0 | L77: 0
A78: OM&A (Start-Up) | C78: 0 | D78: 0 | E78: 0 | F78: 0 | G78: 0 | H78: 0 | I78: 0 | J78: 0 | K78: 0 | L78: 0
A79: OM&A (Ongoing) | C79: 0 | D79: 0 | E79: 0 | F79: 0 | G79: 0 | H79: 0 | I79: 0 | J79: 0 | K79: 0 | L79: 0
A81: Project 3
A82: Name: Expansion Connection Project
A83: Capital Costs | C83: 0 | D83: 0 | E83: 0 | F83: 0 | G83: 0 | H83: 0 | I83: 0 | J83: 0 | K83: 0 | L83: 0
A84: OM&A (Start-Up) | C84: 0 | D84: 0 | E84: 0 | F84: 0 | G84: 0 | H84: 0 | I84: 0 | J84: 0 | K84: 0 | L84: 0
A85: OM&A (Ongoing) | C85: 0 | D85: 0 | E85: 0 | F85: 0 | G85: 0 | H85: 0 | I85: 0 | J85: 0 | K85: 0 | L85: 0
A87: Project 4
A88: Name: Expansion Connection Project
A89: Capital Costs | C89: 0 | D89: 0 | E89: 0 | F89: 0 | G89: 0 | H89: 0 | I89: 0 | J89: 0 | K89: 0 | L89: 0
A90: OM&A (Start-Up) | C90: 0 | D90: 0 | E90: 0 | F90: 0 | G90: 0 | H90: 0 | I90: 0 | J90: 0 | K90: 0 | L90: 0
A91: OM&A (Ongoing) | C91: 0 | D91: 0 | E91: 0 | F91: 0 | G91: 0 | H91: 0 | I91: 0 | J91: 0 | K91: 0 | L91: 0
A93: Project 5
A94: Name: Expansion Connection Project
A95: Capital Costs | C95: 0 | D95: 0 | E95: 0 | F95: 0 | G95: 0 | H95: 0 | I95: 0 | J95: 0 | K95: 0 | L95: 0
A96: OM&A (Start-Up) | C96: 0 | D96: 0 | E96: 0 | F96: 0 | G96: 0 | H96: 0 | I96: 0 | J96: 0 | K96: 0 | L96: 0
A97: OM&A (Ongoing) | C97: 0 | D97: 0 | E97: 0 | F97: 0 | G97: 0 | H97: 0 | I97: 0 | J97: 0 | K97: 0 | L97: 0
A99: Total Capital Costs | C99: =SUM(C95,C89,C83,C77,C71) -> 0 | D99: =SUM(D95,D89,D83,D77,D71) -> 0 | E99: 0 | F99: 0 | G99: 0 | H99: =SUM(H95,H89,H83,H77,H71) -> 0 | I99: =SUM(I95,I89,I83,I77,I71) -> 0 | J99: 0 | K99: 0 | L99: 0
A100: Total OM&A (Start-Up) | C100: =SUM(C96,C90,C84,C78,C72) -> 0 | D100: 0 | E100: 0 | F100: 0 | G100: 0 | H100: =SUM(H96,H90,H84,H78,H72) -> 0 | I100: 0 | J100: 0 | K100: 0 | L100: 0
A101: Total OM&A (Ongoing) | C101: =SUM(C97,C91,C85,C79,C73) -> 0 | D101: 0 | E101: 0 | F101: 0 | G101: 0 | H101: =SUM(H97,H91,H85,H79,H73) -> 0 | I101: 0 | J101: 0 | K101: 0 | L101: 0

Sheet Hidden_REG Invest. (hidden)
A1: Utility Name | B1: EB Number | C1: Test Year | D1: Bridge Year | E1: Last Rebasing Year | F1: Renewable Generation Connection Investment Summary | G1: Year | H1: Amount
A2: ='LDC Info'!$E$14 -> Chapleau Public Utilities Corporation | B2: =EBNUMBER -> EB-2018-0087 | C2: =TestYear -> 2019 | D2: =BridgeYear -> 2018 | E2: =RebaseYear -> 2012 | F2: REI Investments_A_Total Capital Costs | G2: 2014 | H2: ='App.2-FA Proposed REG Invest.'!C62 -> 0
A3: ='LDC Info'!$E$14 -> Chapleau Public Utilities Corporation | B3: EB-2018-0087 | C3: 2019 | D3: 2018 | E3: 2012 | F3: REI Investments_A_Total OM&A Start-Up | G3: 2014 | H3: ='App.2-FA Proposed REG Invest.'!C63 -> 0
A4: ='LDC Info'!$E$14 -> Chapleau Public Utilities Corporation | B4: EB-2018-0087 | C4: 2019 | D4: 2018 | E4: 2012 | F4: REI Investments_A_Total OM&A Ongoing | G4: 2014 | H4: ='App.2-FA Proposed REG Invest.'!C64 -> 0
A5: ='LDC Info'!$E$14 -> Chapleau Public Utilities Corporation | B5: EB-2018-0087 | C5: 2019 | D5: 2018 | E5: 2012 | F5: REI Investments_A_Total Capital Costs | G5: 2015 | H5: ='App.2-FA Proposed REG Invest.'!D62 -> 0
A6: ='LDC Info'!$E$14 -> Chapleau Public Utilities Corporation | B6: EB-2018-0087 | C6: 2019 | D6: 2018 | E6: 2012 | F6: REI Investments_A_Total OM&A Start-Up | G6: 2015 | H6: ='App.2-FA Proposed REG Invest.'!D63 -> 0
A7: ='LDC Info'!$E$14 -> Chapleau Public Utilities Corporation | B7: EB-2018-0087 | C7: 2019 | D7: 2018 | E7: 2012 | F7: REI Investments_A_Total OM&A Ongoing | G7: 2015 | H7: ='App.2-FA Proposed REG Invest.'!D64 -> 0
A8: ='LDC Info'!$E$14 -> Chapleau Public Utilities Corporation | B8: EB-2018-0087 | C8: 2019 | D8: 2018 | E8: 2012 | F8: REI Investments_A_Total Capital Costs | G8: 2016 | H8: ='App.2-FA Proposed REG Invest.'!E62 -> 0
A9: ='LDC Info'!$E$14 -> Chapleau Public Utilities Corporation | B9: EB-2018-0087 | C9: 2019 | D9: 2018 | E9: 2012 | F9: REI Investments_A_Total OM&A Start-Up | G9: 2016 | H9: ='App.2-FA Proposed REG Invest.'!E63 -> 0
A10: ='LDC Info'!$E$14 -> Chapleau Public Utilities Corporation | B10: EB-2018-0087 | C10: 2019 | D10: 2018 | E10: 2012 | F10: REI Investments_A_Total OM&A Ongoing | G10: 2016 | H10: ='App.2-FA Proposed REG Invest.'!E64 -> 0
A11: ='LDC Info'!$E$14 -> Chapleau Public Utilities Corporation | B11: EB-2018-0087 | C11: 2019 | D11: 2018 | E11: 2012 | F11: REI Investments_A_Total Capital Costs | G11: 2017 | H11: ='App.2-FA Proposed REG Invest.'!F62 -> 0
A12: ='LDC Info'!$E$14 -> Chapleau Public Utilities Corporation | B12: EB-2018-0087 | C12: 2019 | D12: 2018 | E12: 2012 | F12: REI Investments_A_Total OM&A Start-Up | G12: 2017 | H12: ='App.2-FA Proposed REG Invest.'!F63 -> 0
A13: ='LDC Info'!$E$14 -> Chapleau Public Utilities Corporation | B13: EB-2018-0087 | C13: 2019 | D13: 2018 | E13: 2012 | F13: REI Investments_A_Total OM&A Ongoing | G13: 2017 | H13: ='App.2-FA Proposed REG Invest.'!F64 -> 0
A14: ='LDC Info'!$E$14 -> Chapleau Public Utilities Corporation | B14: EB-2018-0087 | C14: 2019 | D14: 2018 | E14: 2012 | F14: REI Investments_A_Total Capital Costs | G14: 2018 | H14: ='App.2-FA Proposed REG Invest.'!G62 -> 0
A15: ='LDC Info'!$E$14 -> Chapleau Public Utilities Corporation | B15: EB-2018-0087 | C15: 2019 | D15: 2018 | E15: 2012 | F15: REI Investments_A_Total OM&A Start-Up | G15: 2018 | H15: ='App.2-FA Proposed REG Invest.'!G63 -> 0
A16: ='LDC Info'!$E$14 -> Chapleau Public Utilities Corporation | B16: EB-2018-0087 | C16: 2019 | D16: 2018 | E16: 2012 | F16: REI Investments_A_Total OM&A Ongoing | G16: 2018 | H16: ='App.2-FA Proposed REG Invest.'!G64 -> 0
A17: ='LDC Info'!$E$14 -> Chapleau Public Utilities Corporation | B17: EB-2018-0087 | C17: 2019 | D17: 2018 | E17: 2012 | F17: REI Investments_A_Total Capital Costs | G17: 2019 | H17: ='App.2-FA Proposed REG Invest.'!H62 -> 0
A18: ='LDC Info'!$E$14 -> Chapleau Public Utilities Corporation | B18: EB-2018-0087 | C18: 2019 | D18: 2018 | E18: 2012 | F18: REI Investments_A_Total OM&A Start-Up | G18: 2019 | H18: ='App.2-FA Proposed REG Invest.'!H63 -> 0
A19: ='LDC Info'!$E$14 -> Chapleau Public Utilities Corporation | B19: EB-2018-0087 | C19: 2019 | D19: 2018 | E19: 2012 | F19: REI Investments_A_Total OM&A Ongoing | G19: 2019 | H19: ='App.2-FA Proposed REG Invest.'!H64 -> 0
A20: ='LDC Info'!$E$14 -> Chapleau Public Utilities Corporation | B20: EB-2018-0087 | C20: 2019 | D20: 2018 | E20: 2012 | F20: REI Investments_A_Total Capital Costs | G20: 2020 | H20: ='App.2-FA Proposed REG Invest.'!I62 -> 0
A21: ='LDC Info'!$E$14 -> Chapleau Public Utilities Corporation | B21: EB-2018-0087 | C21: 2019 | D21: 2018 | E21: 2012 | F21: REI Investments_A_Total OM&A Start-Up | G21: 2020 | H21: ='App.2-FA Proposed REG Invest.'!I63 -> 0
A22: ='LDC Info'!$E$14 -> Chapleau Public Utilities Corporation | B22: EB-2018-0087 | C22: 2019 | D22: 2018 | E22: 2012 | F22: REI Investments_A_Total OM&A Ongoing | G22: 2020 | H22: ='App.2-FA Proposed REG Invest.'!I64 -> 0
A23: ='LDC Info'!$E$14 -> Chapleau Public Utilities Corporation | B23: EB-2018-0087 | C23: 2019 | D23: 2018 | E23: 2012 | F23: REI Investments_A_Total Capital Costs | G23: 2021 | H23: ='App.2-FA Proposed REG Invest.'!J62 -> 0
A24: ='LDC Info'!$E$14 -> Chapleau Public Utilities Corporation | B24: EB-2018-0087 | C24: 2019 | D24: 2018 | E24: 2012 | F24: REI Investments_A_Total OM&A Start-Up | G24: 2021 | H24: ='App.2-FA Proposed REG Invest.'!J63 -> 0
A25: ='LDC Info'!$E$14 -> Chapleau Public Utilities Corporation | B25: EB-2018-0087 | C25: 2019 | D25: 2018 | E25: 2012 | F25: REI Investments_A_Total OM&A Ongoing | G25: 2021 | H25: ='App.2-FA Proposed REG Invest.'!J64 -> 0
A26: ='LDC Info'!$E$14 -> Chapleau Public Utilities Corporation | B26: EB-2018-0087 | C26: 2019 | D26: 2018 | E26: 2012 | F26: REI Investments_A_Total Capital Costs | G26: 2022 | H26: ='App.2-FA Proposed REG Invest.'!K62 -> 0
A27: ='LDC Info'!$E$14 -> Chapleau Public Utilities Corporation | B27: EB-2018-0087 | C27: 2019 | D27: 2018 | E27: 2012 | F27: REI Investments_A_Total OM&A Start-Up | G27: 2022 | H27: ='App.2-FA Proposed REG Invest.'!K63 -> 0
A28: ='LDC Info'!$E$14 -> Chapleau Public Utilities Corporation | B28: EB-2018-0087 | C28: 2019 | D28: 2018 | E28: 2012 | F28: REI Investments_A_Total OM&A Ongoing | G28: 2022 | H28: ='App.2-FA Proposed REG Invest.'!K64 -> 0
A29: ='LDC Info'!$E$14 -> Chapleau Public Utilities Corporation | B29: EB-2018-0087 | C29: 2019 | D29: 2018 | E29: 2012 | F29: REI Investments_A_Total Capital Costs | G29: 2023 | H29: ='App.2-FA Proposed REG Invest.'!L62 -> 0
A30: ='LDC Info'!$E$14 -> Chapleau Public Utilities Corporation | B30: EB-2018-0087 | C30: 2019 | D30: 2018 | E30: 2012 | F30: REI Investments_A_Total OM&A Start-Up | G30: 2023 | H30: ='App.2-FA Proposed REG Invest.'!L63 -> 0
A31: ='LDC Info'!$E$14 -> Chapleau Public Utilities Corporation | B31: EB-2018-0087 | C31: 2019 | D31: 2018 | E31: 2012 | F31: REI Investments_A_Total OM&A Ongoing | G31: 2023 | H31: ='App.2-FA Proposed REG Invest.'!L64 -> 0
A32: ='LDC Info'!$E$14 -> Chapleau Public Utilities Corporation | B32: EB-2018-0087 | C32: 2019 | D32: 2018 | E32: 2012 | F32: Expansion Investments_B_Total Capital Costs | G32: 2014 | H32: ='App.2-FA Proposed REG Invest.'!C99 -> 0
A33: ='LDC Info'!$E$14 -> Chapleau Public Utilities Corporation | B33: EB-2018-0087 | C33: 2019 | D33: 2018 | E33: 2012 | F33: Expansion Investments_B_Total OM&A Start-Up | G33: 2014 | H33: ='App.2-FA Proposed REG Invest.'!C100 -> 0
A34: ='LDC Info'!$E$14 -> Chapleau Public Utilities Corporation | B34: EB-2018-0087 | C34: 2019 | D34: 2018 | E34: 2012 | F34: Expansion Investments_B_Total OM&A Ongoing | G34: 2014 | H34: ='App.2-FA Proposed REG Invest.'!C101 -> 0
A35: ='LDC Info'!$E$14 -> Chapleau Public Utilities Corporation | B35: EB-2018-0087 | C35: 2019 | D35: 2018 | E35: 2012 | F35: Expansion Investments_B_Total Capital Costs | G35: 2015 | H35: ='App.2-FA Proposed REG Invest.'!D99 -> 0
A36: ='LDC Info'!$E$14 -> Chapleau Public Utilities Corporation | B36: EB-2018-0087 | C36: 2019 | D36: 2018 | E36: 2012 | F36: Expansion Investments_B_Total OM&A Start-Up | G36: 2015 | H36: ='App.2-FA Proposed REG Invest.'!D100 -> 0
A37: ='LDC Info'!$E$14 -> Chapleau Public Utilities Corporation | B37: EB-2018-0087 | C37: 2019 | D37: 2018 | E37: 2012 | F37: Expansion Investments_B_Total OM&A Ongoing | G37: 2015 | H37: ='App.2-FA Proposed REG Invest.'!D101 -> 0
A38: ='LDC Info'!$E$14 -> Chapleau Public Utilities Corporation | B38: EB-2018-0087 | C38: 2019 | D38: 2018 | E38: 2012 | F38: Expansion Investments_B_Total Capital Costs | G38: 2016 | H38: ='App.2-FA Proposed REG Invest.'!E99 -> 0
A39: ='LDC Info'!$E$14 -> Chapleau Public Utilities Corporation | B39: EB-2018-0087 | C39: 2019 | D39: 2018 | E39: 2012 | F39: Expansion Investments_B_Total OM&A Start-Up | G39: 2016 | H39: ='App.2-FA Proposed REG Invest.'!E100 -> 0
A40: ='LDC Info'!$E$14 -> Chapleau Public Utilities Corporation | B40: EB-2018-0087 | C40: 2019 | D40: 2018 | E40: 2012 | F40: Expansion Investments_B_Total OM&A Ongoing | G40: 2016 | H40: ='App.2-FA Proposed REG Invest.'!E101 -> 0
A41: ='LDC Info'!$E$14 -> Chapleau Public Utilities Corporation | B41: EB-2018-0087 | C41: 2019 | D41: 2018 | E41: 2012 | F41: Expansion Investments_B_Total Capital Costs | G41: 2017 | H41: ='App.2-FA Proposed REG Invest.'!F99 -> 0
A42: ='LDC Info'!$E$14 -> Chapleau Public Utilities Corporation | B42: EB-2018-0087 | C42: 2019 | D42: 2018 | E42: 2012 | F42: Expansion Investments_B_Total OM&A Start-Up | G42: 2017 | H42: ='App.2-FA Proposed REG Invest.'!F100 -> 0
A43: ='LDC Info'!$E$14 -> Chapleau Public Utilities Corporation | B43: EB-2018-0087 | C43: 2019 | D43: 2018 | E43: 2012 | F43: Expansion Investments_B_Total OM&A Ongoing | G43: 2017 | H43: ='App.2-FA Proposed REG Invest.'!F101 -> 0
A44: ='LDC Info'!$E$14 -> Chapleau Public Utilities Corporation | B44: EB-2018-0087 | C44: 2019 | D44: 2018 | E44: 2012 | F44: Expansion Investments_B_Total Capital Costs | G44: 2018 | H44: ='App.2-FA Proposed REG Invest.'!G99 -> 0
A45: ='LDC Info'!$E$14 -> Chapleau Public Utilities Corporation | B45: EB-2018-0087 | C45: 2019 | D45: 2018 | E45: 2012 | F45: Expansion Investments_B_Total OM&A Start-Up | G45: 2018 | H45: ='App.2-FA Proposed REG Invest.'!G100 -> 0
A46: ='LDC Info'!$E$14 -> Chapleau Public Utilities Corporation | B46: EB-2018-0087 | C46: 2019 | D46: 2018 | E46: 2012 | F46: Expansion Investments_B_Total OM&A Ongoing | G46: 2018 | H46: ='App.2-FA Proposed REG Invest.'!G101 -> 0
A47: ='LDC Info'!$E$14 -> Chapleau Public Utilities Corporation | B47: EB-2018-0087 | C47: 2019 | D47: 2018 | E47: 2012 | F47: Expansion Investments_B_Total Capital Costs | G47: 2019 | H47: ='App.2-FA Proposed REG Invest.'!H99 -> 0
A48: ='LDC Info'!$E$14 -> Chapleau Public Utilities Corporation | B48: EB-2018-0087 | C48: 2019 | D48: 2018 | E48: 2012 | F48: Expansion Investments_B_Total OM&A Start-Up | G48: 2019 | H48: ='App.2-FA Proposed REG Invest.'!H100 -> 0
A49: ='LDC Info'!$E$14 -> Chapleau Public Utilities Corporation | B49: EB-2018-0087 | C49: 2019 | D49: 2018 | E49: 2012 | F49: Expansion Investments_B_Total OM&A Ongoing | G49: 2019 | H49: ='App.2-FA Proposed REG Invest.'!H101 -> 0
A50: ='LDC Info'!$E$14 -> Chapleau Public Utilities Corporation | B50: EB-2018-0087 | C50: 2019 | D50: 2018 | E50: 2012 | F50: Expansion Investments_B_Total Capital Costs | G50: 2020 | H50: ='App.2-FA Proposed REG Invest.'!I99 -> 0
A51: ='LDC Info'!$E$14 -> Chapleau Public Utilities Corporation | B51: EB-2018-0087 | C51: 2019 | D51: 2018 | E51: 2012 | F51: Expansion Investments_B_Total OM&A Start-Up | G51: 2020 | H51: ='App.2-FA Proposed REG Invest.'!I100 -> 0
A52: ='LDC Info'!$E$14 -> Chapleau Public Utilities Corporation | B52: EB-2018-0087 | C52: 2019 | D52: 2018 | E52: 2012 | F52: Expansion Investments_B_Total OM&A Ongoing | G52: 2020 | H52: ='App.2-FA Proposed REG Invest.'!I101 -> 0
A53: ='LDC Info'!$E$14 -> Chapleau Public Utilities Corporation | B53: EB-2018-0087 | C53: 2019 | D53: 2018 | E53: 2012 | F53: Expansion Investments_B_Total Capital Costs | G53: 2021 | H53: ='App.2-FA Proposed REG Invest.'!J99 -> 0
A54: ='LDC Info'!$E$14 -> Chapleau Public Utilities Corporation | B54: EB-2018-0087 | C54: 2019 | D54: 2018 | E54: 2012 | F54: Expansion Investments_B_Total OM&A Start-Up | G54: 2021 | H54: ='App.2-FA Proposed REG Invest.'!J100 -> 0
A55: ='LDC Info'!$E$14 -> Chapleau Public Utilities Corporation | B55: EB-2018-0087 | C55: 2019 | D55: 2018 | E55: 2012 | F55: Expansion Investments_B_Total OM&A Ongoing | G55: 2021 | H55: ='App.2-FA Proposed REG Invest.'!J101 -> 0
A56: ='LDC Info'!$E$14 -> Chapleau Public Utilities Corporation | B56: EB-2018-0087 | C56: 2019 | D56: 2018 | E56: 2012 | F56: Expansion Investments_B_Total Capital Costs | G56: 2022 | H56: ='App.2-FA Proposed REG Invest.'!K99 -> 0
A57: ='LDC Info'!$E$14 -> Chapleau Public Utilities Corporation | B57: EB-2018-0087 | C57: 2019 | D57: 2018 | E57: 2012 | F57: Expansion Investments_B_Total OM&A Start-Up | G57: 2022 | H57: ='App.2-FA Proposed REG Invest.'!K100 -> 0
A58: ='LDC Info'!$E$14 -> Chapleau Public Utilities Corporation | B58: EB-2018-0087 | C58: 2019 | D58: 2018 | E58: 2012 | F58: Expansion Investments_B_Total OM&A Ongoing | G58: 2022 | H58: ='App.2-FA Proposed REG Invest.'!K101 -> 0
A59: ='LDC Info'!$E$14 -> Chapleau Public Utilities Corporation | B59: EB-2018-0087 | C59: 2019 | D59: 2018 | E59: 2012 | F59: Expansion Investments_B_Total Capital Costs | G59: 2023 | H59: ='App.2-FA Proposed REG Invest.'!L99 -> 0
A60: ='LDC Info'!$E$14 -> Chapleau Public Utilities Corporation | B60: EB-2018-0087 | C60: 2019 | D60: 2018 | E60: 2012 | F60: Expansion Investments_B_Total OM&A Start-Up | G60: 2023 | H60: ='App.2-FA Proposed REG Invest.'!L100 -> 0
A61: ='LDC Info'!$E$14 -> Chapleau Public Utilities Corporation | B61: EB-2018-0087 | C61: 2019 | D61: 2018 | E61: 2012 | F61: Expansion Investments_B_Total OM&A Ongoing | G61: 2023 | H61: ='App.2-FA Proposed REG Invest.'!L101 -> 0

Sheet App.2-FB Calc of REG Improvemnt
Q1: File Number: | R1: =EBNUMBER -> EB-2018-0087
Q2: Exhibit:
Q3: Tab:
A4: TO BE UPDATED AT DRAFT RATE ORDER STAGE | Q4: Schedule:
Q5: Page:
Q7: Date:
A9: Appendix 2-FB
A10: Calculation of Renewable Generation Connection Direct Benefits/Provincial Amount: Renewable Enabling Improvement Investments
A12: This table will calculate the distributor/provincial shares of the investments entered in Part A of Appendix 2-FA.
A13: Enter values in green shaded cells: WCA percentage, debt percentages, interest rates, kWh, tax rates, amortization period, CCA Class and percentage.
A14: For historical investments, enter these variables for your last cost of service test year. For 2017 and beyond, enter variables as in the application.
A15: Rate Riders are not calculated for the Test Year as these assets and costs are already in the distributor's rate base/revenue requirement.
C17: =F17-1 -> 2014 | F17: =I17-1 -> 2015 | I17: =L17-1 -> 2016 | L17: =O17-1 -> 2017 | O17: =BridgeYear -> 2018 | R17: =CONCATENATE(TestYear," Test Year") -> 2019 Test Year | U17: =TestYear+1 -> 2020 | X17: =U17+1 -> 2021 | Y17: 2016 | AA17: =X17+1 -> 2022 | AD17: =AA17+1 -> 2023
D18: Direct Benefit | E18: Provincial | G18: Direct Benefit | H18: Provincial | J18: Direct Benefit | K18: Provincial | M18: Direct Benefit | N18: Provincial | P18: Direct Benefit | Q18: Provincial | S18: Direct Benefit | T18: Provincial | V18: Direct Benefit | W18: Provincial | Y18: Direct Benefit | Z18: Provincial | AB18: Direct Benefit | AC18: Provincial | AE18: Direct Benefit | AF18: Provincial
C19: Total | D19: 0.06 | E19: 0.94 | F19: Total | G19: 0.06 | H19: 0.94 | I19: Total | J19: 0.06 | K19: 0.94 | L19: Total | M19: 0.06 | N19: 0.94 | O19: Total | P19: 0.06 | Q19: 0.94 | R19: Total | S19: 0.06 | T19: 0.94 | U19: Total | V19: 0.06 | W19: 0.94 | X19: Total | Y19: 0.06 | Z19: 0.94 | AA19: Total | AB19: 0.06 | AC19: 0.94 | AD19: Total | AE19: 0.06 | AF19: 0.94
A20: Net Fixed Assets (average) | C20: =F82 -> 0 | D20: =C20*D19 -> 0 | E20: =C20*E19 -> 0 | F20: =G82 -> 0 | G20: =F20*G19 -> 0 | H20: =F20*H19 -> 0 | I20: =H82 -> 0 | J20: =I20*J19 -> 0 | K20: =I20*K19 -> 0 | L20: =I82 -> 0 | M20: =L20*M19 -> 0 | N20: =L20*N19 -> 0 | O20: =J82 -> 0 | P20: =O20*P19 -> 0 | Q20: =O20*Q19 -> 0 | R20: =K82 -> 0 | S20: =R20*S19 -> 0 | T20: =R20*T19 -> 0 | U20: =L82 -> 0 | V20: =U20*V19 -> 0 | W20: =U20*W19 -> 0 | X20: =M82 -> 0 | Y20: =X20*Y19 -> 0 | Z20: =X20*Z19 -> 0 | AA20: =N82 -> 0 | AB20: =AA20*AB19 -> 0 | AC20: =AA20*AC19 -> 0 | AD20: =O82 -> 0 | AE20: =AD20*AE19 -> 0 | AF20: =AD20*AF19 -> 0
A21: Incremental OM&A (on-going, N/A for Provincial Recovery) | C21: ='App.2-FA Proposed REG Invest.'!C64 -> 0 | D21: =C21 -> 0 | F21: ='App.2-FA Proposed REG Invest.'!D64 -> 0 | G21: =F21 -> 0 | I21: ='App.2-FA Proposed REG Invest.'!E64 -> 0 | J21: =I21 -> 0 | L21: ='App.2-FA Proposed REG Invest.'!F64 -> 0 | M21: =L21 -> 0 | O21: ='App.2-FA Proposed REG Invest.'!G64 -> 0 | P21: =O21 -> 0 | R21: ='App.2-FA Proposed REG Invest.'!H64 -> 0 | S21: =R21 -> 0 | U21: ='App.2-FA Proposed REG Invest.'!I64 -> 0 | V21: =U21 -> 0 | X21: ='App.2-FA Proposed REG Invest.'!J64 -> 0 | Y21: =X21 -> 0 | AA21: ='App.2-FA Proposed REG Invest.'!K64 -> 0 | AB21: =AA21 -> 0 | AD21: ='App.2-FA Proposed REG Invest.'!L64 -> 0 | AE21: =AD21 -> 0
A22: Incremental OM&A (start-up, applicable for Provincial Recovery) | C22: ='App.2-FA Proposed REG Invest.'!C63 -> 0 | D22: =C22*D19 -> 0 | E22: =C22*E19 -> 0 | F22: ='App.2-FA Proposed REG Invest.'!D63 -> 0 | G22: =F22*G19 -> 0 | H22: =F22*H19 -> 0 | I22: ='App.2-FA Proposed REG Invest.'!E63 -> 0 | J22: =I22*J19 -> 0 | K22: =I22*K19 -> 0 | L22: ='App.2-FA Proposed REG Invest.'!F63 -> 0 | M22: =L22*M19 -> 0 | N22: =L22*N19 -> 0 | O22: ='App.2-FA Proposed REG Invest.'!G63 -> 0 | P22: =O22*P19 -> 0 | Q22: =O22*Q19 -> 0 | R22: ='App.2-FA Proposed REG Invest.'!H63 -> 0 | S22: =R22*S19 -> 0 | T22: =R22*T19 -> 0 | U22: ='App.2-FA Proposed REG Invest.'!I63 -> 0 | V22: =U22*V19 -> 0 | W22: =U22*W19 -> 0 | X22: ='App.2-FA Proposed REG Invest.'!J63 -> 0 | Y22: =X22*Y19 -> 0 | Z22: =X22*Z19 -> 0 | AA22: ='App.2-FA Proposed REG Invest.'!K63 -> 0 | AB22: =AA22*AB19 -> 0 | AC22: =AA22*AC19 -> 0 | AD22: ='App.2-FA Proposed REG Invest.'!L63 -> 0 | AE22: =AD22*AE19 -> 0 | AF22: =AD22*AF19 -> 0
A23: WCA | D23: =(D21+D22)*$B$23 -> 0 | E23: =E22*$B$23 -> 0 | G23: =(G21+G22)*$B$23 -> 0 | H23: =H22*$B$23 -> 0 | J23: =(J21+J22)*$B$23 -> 0 | K23: =K22*$B$23 -> 0 | M23: =(M21+M22)*$B$23 -> 0 | N23: =N22*$B$23 -> 0 | P23: =(P21+P22)*$B$23 -> 0 | Q23: =Q22*$B$23 -> 0 | S23: =(S21+S22)*$B$23 -> 0 | T23: =T22*$B$23 -> 0 | V23: =(V21+V22)*$B$23 -> 0 | W23: =W22*$B$23 -> 0 | Y23: =(Y21+Y22)*$B$23 -> 0 | Z23: =Z22*$B$23 -> 0 | AB23: =(AB21+AB22)*$B$23 -> 0 | AC23: =AC22*$B$23 -> 0 | AE23: =(AE21+AE22)*$B$23 -> 0 | AF23: =AF22*$B$23 -> 0
A24: Rate Base | D24: =SUM(D20+D23) -> 0 | E24: =SUM(E20+E23) -> 0 | G24: =SUM(G20+G23) -> 0 | H24: =SUM(H20+H23) -> 0 | J24: =SUM(J20+J23) -> 0 | K24: =SUM(K20+K23) -> 0 | M24: =SUM(M20+M23) -> 0 | N24: =SUM(N20+N23) -> 0 | P24: =SUM(P20+P23) -> 0 | Q24: =SUM(Q20+Q23) -> 0 | S24: =SUM(S20+S23) -> 0 | T24: =SUM(T20+T23) -> 0 | V24: =SUM(V20+V23) -> 0 | W24: =SUM(W20+W23) -> 0 | Y24: =SUM(Y20+Y23) -> 0 | Z24: =SUM(Z20+Z23) -> 0 | AB24: =SUM(AB20+AB23) -> 0 | AC24: =SUM(AC20+AC23) -> 0 | AE24: =SUM(AE20+AE23) -> 0 | AF24: =SUM(AF20+AF23) -> 0
A27: Deemed ST Debt | D27: =D24*$B$27 -> 0 | E27: =E24*$B$27 -> 0 | G27: =G24*$B$27 -> 0 | H27: =H24*$B$27 -> 0 | J27: =J24*$B$27 -> 0 | K27: =K24*$B$27 -> 0 | M27: =M24*$B$27 -> 0 | N27: =N24*$B$27 -> 0 | P27: =P24*$B$27 -> 0 | Q27: =Q24*$B$27 -> 0 | S27: =S24*$B$27 -> 0 | T27: =T24*$B$27 -> 0 | V27: =V24*$B$27 -> 0 | W27: =W24*$B$27 -> 0 | Y27: =Y24*$B$27 -> 0 | Z27: =Z24*$B$27 -> 0 | AB27: =AB24*$B$27 -> 0 | AC27: =AC24*$B$27 -> 0 | AE27: =AE24*$B$27 -> 0 | AF27: =AF24*$B$27 -> 0
A28: Deemed LT Debt | D28: =D24*$B$28 -> 0 | E28: =E24*$B$28 -> 0 | G28: =G24*$B$28 -> 0 | H28: =H24*$B$28 -> 0 | J28: =J24*$B$28 -> 0 | K28: =K24*$B$28 -> 0 | M28: =M24*$B$28 -> 0 | N28: =N24*$B$28 -> 0 | P28: =P24*$B$28 -> 0 | Q28: =Q24*$B$28 -> 0 | S28: =S24*$B$28 -> 0 | T28: =T24*$B$28 -> 0 | V28: =V24*$B$28 -> 0 | W28: =W24*$B$28 -> 0 | Y28: =Y24*$B$28 -> 0 | Z28: =Z24*$B$28 -> 0 | AB28: =AB24*$B$28 -> 0 | AC28: =AC24*$B$28 -> 0 | AE28: =AE24*$B$28 -> 0 | AF28: =AF24*$B$28 -> 0
A29: Deemed Equity | D29: =D24*$B$29 -> 0 | E29: =E24*$B$29 -> 0 | G29: =G24*$B$29 -> 0 | H29: =H24*$B$29 -> 0 | J29: =J24*$B$29 -> 0 | K29: =K24*$B$29 -> 0 | M29: =M24*$B$29 -> 0 | N29: =N24*$B$29 -> 0 | P29: =P24*$B$29 -> 0 | Q29: =Q24*$B$29 -> 0 | S29: =S24*$B$29 -> 0 | T29: =T24*$B$29 -> 0 | V29: =V24*$B$29 -> 0 | W29: =W24*$B$29 -> 0 | Y29: =Y24*$B$29 -> 0 | Z29: =Z24*$B$29 -> 0 | AB29: =AB24*$B$29 -> 0 | AC29: =AC24*$B$29 -> 0 | AE29: =AE24*$B$29 -> 0 | AF29: =AF24*$B$29 -> 0
A31: ST Interest | D31: =D27*$B31 -> 0 | E31: 0 | G31: =G27*$B31 -> 0 | H31: 0 | J31: =J27*$B31 -> 0 | K31: 0 | M31: =M27*$B31 -> 0 | N31: 0 | P31: =P27*$B31 -> 0 | Q31: 0 | S31: =S27*$B31 -> 0 | T31: 0 | V31: =V27*$B31 -> 0 | W31: 0 | Y31: =Y27*$B31 -> 0 | Z31: 0 | AB31: =AB27*$B31 -> 0 | AC31: 0 | AE31: =AE27*$B31 -> 0 | AF31: 0
A32: LT Interest | D32: =D28*$B32 -> 0 | E32: 0 | G32: 0 | H32: 0 | J32: 0 | K32: 0 | M32: 0 | N32: 0 | P32: 0 | Q32: 0 | S32: 0 | T32: 0 | V32: 0 | W32: 0 | Y32: 0 | Z32: 0 | AB32: 0 | AC32: 0 | AE32: 0 | AF32: 0
A33: ROE | D33: =D29*$B33 -> 0 | E33: 0 | G33: 0 | H33: 0 | J33: 0 | K33: 0 | M33: 0 | N33: 0 | P33: 0 | Q33: 0 | S33: 0 | T33: 0 | V33: 0 | W33: 0 | Y33: 0 | Z33: 0 | AB33: 0 | AC33: 0 | AE33: 0 | AF33: 0
A34: Cost of Capital Total | D34: =SUM(D31:D33) -> 0 | E34: =SUM(E31:E33) -> 0 | G34: =SUM(G31:G33) -> 0 | H34: =SUM(H31:H33) -> 0 | J34: =SUM(J31:J33) -> 0 | K34: =SUM(K31:K33) -> 0 | M34: =SUM(M31:M33) -> 0 | N34: =SUM(N31:N33) -> 0 | P34: =SUM(P31:P33) -> 0 | Q34: =SUM(Q31:Q33) -> 0 | S34: =SUM(S31:S33) -> 0 | T34: =SUM(T31:T33) -> 0 | V34: =SUM(V31:V33) -> 0 | W34: =SUM(W31:W33) -> 0 | Y34: =SUM(Y31:Y33) -> 0 | Z34: =SUM(Z31:Z33) -> 0 | AB34: =SUM(AB31:AB33) -> 0 | AC34: =SUM(AC31:AC33) -> 0 | AE34: =SUM(AE31:AE33) -> 0 | AF34: =SUM(AF31:AF33) -> 0
A36: OM&A | D36: =D21+D22 -> 0 | E36: =E22 -> 0 | G36: =G21+G22 -> 0 | H36: =H22 -> 0 | J36: =J21+J22 -> 0 | K36: =K22 -> 0 | M36: =M21+M22 -> 0 | N36: =N22 -> 0 | P36: =P21+P22 -> 0 | Q36: =Q22 -> 0 | S36: =S21+S22 -> 0 | T36: =T22 -> 0 | V36: =V21+V22 -> 0 | W36: =W22 -> 0 | Y36: =Y21+Y22 -> 0 | Z36: =Z22 -> 0 | AB36: =AB21+AB22 -> 0 | AC36: =AC22 -> 0 | AE36: =AE21+AE22 -> 0 | AF36: =AF22 -> 0
A37: Amortization | C37: =D77 -> 0 | D37: =C37*D$19 -> 0 | E37: =C37*E$19 -> 0 | F37: =G77 -> 0 | G37: =F37*G$19 -> 0 | H37: =F37*H$19 -> 0 | I37: =H77 -> 0 | J37: =I37*J$19 -> 0 | K37: =I37*K$19 -> 0 | L37: =I77 -> 0 | M37: =L37*M$19 -> 0 | N37: =L37*N$19 -> 0 | O37: =J77 -> 0 | P37: =O37*P$19 -> 0 | Q37: =O37*Q$19 -> 0 | R37: =K77 -> 0 | S37: =R37*S$19 -> 0 | T37: =R37*T$19 -> 0 | U37: =L76+L77 -> 0 | V37: =U37*V$19 -> 0 | W37: =U37*W$19 -> 0 | X37: =M76+M77 -> 0 | Y37: =X37*Y$19 -> 0 | Z37: =X37*Z$19 -> 0 | AA37: =N76+N77 -> 0 | AB37: =AA37*AB$19 -> 0 | AC37: =AA37*AC$19 -> 0 | AD37: =O76+O77 -> 0 | AE37: =AD37*AE$19 -> 0 | AF37: =AD37*AF$19 -> 0
A38: Grossed-up PILs | D38: =D65 -> 0 | E38: =E65 -> 0 | G38: =G65 -> 0 | H38: =H65 -> 0 | J38: =J65 -> 0 | K38: =K65 -> 0 | M38: =M65 -> 0 | N38: =N65 -> 0 | P38: =P65 -> 0 | Q38: =Q65 -> 0 | S38: =S65 -> 0 | T38: =T65 -> 0 | V38: =V65 -> 0 | W38: =W65 -> 0 | Y38: =Y65 -> 0 | Z38: =Z65 -> 0 | AB38: =AB65 -> 0 | AC38: =AC65 -> 0 | AE38: =AE65 -> 0 | AF38: =AF65 -> 0
A40: Revenue Requirement | D40: =SUM(D34:D38) -> 0 | E40: =SUM(E34:E38) -> 0 | G40: =SUM(G34:G38) -> 0 | H40: =SUM(H34:H38) -> 0 | J40: =SUM(J34:J38) -> 0 | K40: =SUM(K34:K38) -> 0 | M40: =SUM(M34:M38) -> 0 | N40: =SUM(N34:N38) -> 0 | P40: =SUM(P34:P38) -> 0 | Q40: =SUM(Q34:Q38) -> 0 | S40: =SUM(S34:S38) -> 0 | T40: =SUM(T34:T38) -> 0 | V40: =SUM(V34:V38) -> 0 | W40: =SUM(W34:W38) -> 0 | Y40: =SUM(Y34:Y38) -> 0 | Z40: =SUM(Z34:Z38) -> 0 | AB40: =SUM(AB34:AB38) -> 0 | AC40: =SUM(AC34:AC38) -> 0 | AE40: =SUM(AE34:AE38) -> 0 | AF40: =SUM(AF34:AF38) -> 0
A43: Provincial Rate Protection | E43: =E40 -> 0 | H43: =H40 -> 0 | K43: =K40 -> 0 | N43: =N40 -> 0 | Q43: =Q40 -> 0 | T43: =T40 -> 0 | W43: =W40 -> 0 | Z43: =Z40 -> 0 | AC43: =AC40 -> 0 | AF43: =AF40 -> 0
A45: Monthly Amount Paid by IESO | E45: =E43/12 -> 0 | H45: =H43/12 -> 0 | K45: =K43/12 -> 0 | N45: =N43/12 -> 0 | Q45: =Q43/12 -> 0 | T45: =T43/12 -> 0 | W45: =W43/12 -> 0 | Z45: =Z43/12 -> 0 | AC45: =AC43/12 -> 0 | AF45: =AF43/12 -> 0
A47: Note 1: The difference between the actual costs of approved eligible investments and revenue received from the IESO should be recorded in a variance account. The Board may provide
A48: regulatory accounting guidance regarding a variance account either in an individual proceeding or on a generic basis.
A49: Note 2: For the 2016 Test Year, Costs and Revenues of the Direct Benefit are to be included in the test year applicant Rate Base and Revenues.
A51: PILs Calculation
D52: =F17-1 -> 2014 | G52: =F17 -> 2015 | J52: =I17 -> 2016 | M52: =L17 -> 2017 | P52: =O17 -> 2018 | S52: =R17 -> 2019 Test Year | V52: =U17 -> 2020 | Y52: =X17 -> 2021 | AB52: =AA17 -> 2022 | AE52: =AD17 -> 2023
A53: Income Tax | D53: Direct Benefit | E53: Provincial | G53: Direct Benefit | H53: Provincial | J53: Direct Benefit | K53: Provincial | M53: Direct Benefit | N53: Provincial | P53: Direct Benefit | Q53: Provincial | S53: Direct Benefit | T53: Provincial | V53: Direct Benefit | W53: Provincial | Y53: Direct Benefit | Z53: Provincial | AB53: Direct Benefit | AC53: Provincial | AE53: Direct Benefit | AF53: Provincial
AA54: Total | AD54: Total
A55: Net Income - ROE on Rate Base | D55: =D33 -> 0 | E55: =E33 -> 0 | G55: =G33 -> 0 | H55: =H33 -> 0 | J55: =J33 -> 0 | K55: =K33 -> 0 | M55: =M33 -> 0 | N55: =N33 -> 0 | P55: =P33 -> 0 | Q55: =Q33 -> 0 | S55: =S33 -> 0 | T55: =T33 -> 0 | V55: =V33 -> 0 | W55: =W33 -> 0 | Y55: =Y33 -> 0 | Z55: =Z33 -> 0 | AB55: =AB33 -> 0 | AC55: =AC33 -> 0 | AE55: =AE33 -> 0 | AF55: =AF33 -> 0
A56: Amortization (6% DB and 94% P) | D56: =D37 -> 0 | E56: =E37 -> 0 | G56: =G37 -> 0 | H56: =H37 -> 0 | J56: =J37 -> 0 | K56: =K37 -> 0 | M56: =M37 -> 0 | N56: =N37 -> 0 | P56: =P37 -> 0 | Q56: =Q37 -> 0 | S56: =S37 -> 0 | T56: =T37 -> 0 | V56: =V37 -> 0 | W56: =W37 -> 0 | Y56: =Y37 -> 0 | Z56: =Z37 -> 0 | AB56: =AB37 -> 0 | AC56: =AC37 -> 0 | AE56: =AE37 -> 0 | AF56: =AF37 -> 0
A57: CCA (6% DB and 94% P) | D57: =-D94*D$19 -> 0 | E57: =-D94*E$19 -> 0 | G57: =-G94*G$19 -> 0 | H57: =-G94*H$19 -> 0 | J57: =-H94*J19 -> 0 | K57: =-H94*K$19 -> 0 | M57: =-I94*M$19 -> 0 | N57: =-I94*N$19 -> 0 | P57: =-J94*P$19 -> 0 | Q57: =-J94*Q$19 -> 0 | S57: =-K94*S$19 -> 0 | T57: =-K94*T$19 -> 0 | V57: =-L94*V$19 -> 0 | W57: =-L94*W$19 -> 0 | Y57: =-M94*Y$19 -> 0 | Z57: =-M94*Z$19 -> 0 | AB57: =-N94*AB$19 -> 0 | AC57: =-N94*AC$19 -> 0 | AE57: =-O94*AE$19 -> 0 | AF57: =-O94*AF$19 -> 0
A58: Taxable income | D58: =SUM(D55:D57) -> 0 | E58: =SUM(E55:E57) -> 0 | G58: =SUM(G55:G57) -> 0 | H58: =SUM(H55:H57) -> 0 | J58: =SUM(J55:J57) -> 0 | K58: =SUM(K55:K57) -> 0 | M58: =SUM(M55:M57) -> 0 | N58: =SUM(N55:N57) -> 0 | P58: =SUM(P55:P57) -> 0 | Q58: =SUM(Q55:Q57) -> 0 | S58: =SUM(S55:S57) -> 0 | T58: =SUM(T55:T57) -> 0 | V58: =SUM(V55:V57) -> 0 | W58: =SUM(W55:W57) -> 0 | Y58: =SUM(Y55:Y57) -> 0 | Z58: =SUM(Z55:Z57) -> 0 | AB58: =SUM(AB55:AB57) -> 0 | AC58: =SUM(AC55:AC57) -> 0 | AE58: =SUM(AE55:AE57) -> 0 | AF58: =SUM(AF55:AF57) -> 0
A60: Tax Rate (to be entered)
A62: Income Taxes Payable | D62: =D58*D60 -> 0 | E62: =E58*E60 -> 0 | G62: =G58*G60 -> 0 | H62: =H58*H60 -> 0 | J62: =J58*J60 -> 0 | K62: =K58*K60 -> 0 | M62: =M58*M60 -> 0 | N62: =N58*N60 -> 0 | P62: =P58*P60 -> 0 | Q62: =Q58*Q60 -> 0 | S62: =S58*S60 -> 0 | T62: =T58*T60 -> 0 | V62: =V58*V60 -> 0 | W62: =W58*W60 -> 0 | Y62: =Y58*Y60 -> 0 | Z62: =Z58*Z60 -> 0 | AB62: =AB58*AB60 -> 0 | AC62: =AC58*AC60 -> 0 | AE62: =AE58*AE60 -> 0 | AF62: =AF58*AF60 -> 0
A63: Gross Up
A64: Income Taxes Payable | D64: =D62/(1-D60) -> 0 | E64: =E62/(1-E60) -> 0 | G64: =G62/(1-G60) -> 0 | H64: =H62/(1-H60) -> 0 | J64: =J62/(1-J60) -> 0 | K64: =K62/(1-K60) -> 0 | M64: =M62/(1-M60) -> 0 | N64: =N62/(1-N60) -> 0 | P64: =P62/(1-P60) -> 0 | Q64: =Q62/(1-Q60) -> 0 | S64: =S62/(1-S60) -> 0 | T64: =T62/(1-T60) -> 0 | V64: =V62/(1-V60) -> 0 | W64: =W62/(1-W60) -> 0 | Y64: =Y62/(1-Y60) -> 0 | Z64: =Z62/(1-Z60) -> 0 | AB64: =AB62/(1-AB60) -> 0 | AC64: =AC62/(1-AC60) -> 0 | AE64: =AE62/(1-AE60) -> 0 | AF64: =AF62/(1-AF60) -> 0
A65: Grossed Up PILs | D65: =SUM(D64:D64) -> 0 | E65: =SUM(E64:E64) -> 0 | G65: =SUM(G64:G64) -> 0 | H65: =SUM(H64:H64) -> 0 | J65: =SUM(J64:J64) -> 0 | K65: =SUM(K64:K64) -> 0 | M65: =SUM(M64:M64) -> 0 | N65: =SUM(N64:N64) -> 0 | P65: =SUM(P64:P64) -> 0 | Q65: =SUM(Q64:Q64) -> 0 | S65: =SUM(S64:S64) -> 0 | T65: =SUM(T64:T64) -> 0 | V65: =SUM(V64:V64) -> 0 | W65: =SUM(W64:W64) -> 0 | Y65: =SUM(Y64:Y64) -> 0 | Z65: =SUM(Z64:Z64) -> 0 | AB65: =SUM(AB64:AB64) -> 0 | AC65: =SUM(AC64:AC64) -> 0 | AE65: =SUM(AE64:AE64) -> 0 | AF65: =SUM(AF64:AF64) -> 0
F68: =G68-1 -> 2014 | G68: =H68-1 -> 2015 | H68: =I68-1 -> 2016 | I68: =J68-1 -> 2017 | J68: =K68-1 -> 2018 | K68: =TestYear -> 2019 | L68: =K68+1 -> 2020 | M68: =L68+1 -> 2021 | N68: =M68+1 -> 2022 | O68: =N68+1 -> 2023
A69: Net Fixed Assets
B70: Enter applicable amortization in years: | C70: 25
A71: Opening Gross Fixed Assets | G71: =F73 -> 0 | H71: =G73 -> 0 | I71: 0 | J71: 0 | K71: 0 | L71: 0 | M71: 0 | N71: 0 | O71: 0
A72: Gross Capital Additions | F72: ='App.2-FA Proposed REG Invest.'!C62 -> 0 | G72: ='App.2-FA Proposed REG Invest.'!D62 -> 0 | H72: ='App.2-FA Proposed REG Invest.'!E62 -> 0 | I72: ='App.2-FA Proposed REG Invest.'!F62 -> 0 | J72: ='App.2-FA Proposed REG Invest.'!G62 -> 0 | K72: ='App.2-FA Proposed REG Invest.'!H62 -> 0 | L72: ='App.2-FA Proposed REG Invest.'!I62 -> 0 | M72: ='App.2-FA Proposed REG Invest.'!J62 -> 0 | N72: ='App.2-FA Proposed REG Invest.'!K62 -> 0 | O72: ='App.2-FA Proposed REG Invest.'!L62 -> 0
A73: Closing Gross Fixed Assets | F73: =SUM(F71:F72) -> 0 | G73: =SUM(G71:G72) -> 0 | H73: 0 | I73: 0 | J73: 0 | K73: 0 | L73: 0 | M73: 0 | N73: 0 | O73: 0
A75: Opening Accumulated Amortization | H75: =+G78 -> 0 | I75: =H78 -> 0 | J75: 0 | K75: 0 | L75: 0 | M75: 0 | N75: 0 | O75: 0
A76: Current Year Amortization (before additions) | F76: =IF(ISERROR(F71/$C$70), 0, F71/$C$70) -> 0 | G76: 0 | H76: 0 | I76: 0 | J76: 0 | K76: 0 | L76: 0 | M76: 0 | N76: 0 | O76: 0
A77: Additions (half year) | F77: =F72/$C$70/2 -> 0 | G77: 0 | H77: 0 | I77: 0 | J77: 0 | K77: 0 | L77: =L72/C70/2 -> 0 | M77: =M72/C70/2 -> 0 | N77: =N72/C70/2 -> 0 | O77: =O72/C70/2 -> 0
A78: Closing Accumulated Amortization | F78: =SUM(F75+F76+F77) -> 0 | G78: 0 | H78: 0 | I78: 0 | J78: 0 | K78: 0 | L78: =SUM(L75:L77) -> 0 | M78: =SUM(M75:M77) -> 0 | N78: =SUM(N75:N77) -> 0 | O78: =SUM(O75:O77) -> 0
A80: Opening Net Fixed Assets | F80: =F71-F75 -> 0 | G80: 0 | H80: 0 | I80: 0 | J80: 0 | K80: 0 | L80: =K81 -> 0 | M80: =L81 -> 0 | N80: =M81 -> 0 | O80: =N81 -> 0
A81: Closing Net Fixed Assets | F81: =F73-F78 -> 0 | G81: =G73-G78 -> 0 | H81: 0 | I81: 0 | J81: 0 | K81: 0 | L81: 0 | M81: 0 | N81: 0 | O81: 0
A82: Average Net Fixed Assets | F82: =SUM(F80:F81)/2 -> 0 | G82: =SUM(G80:G81)/2 -> 0 | H82: 0 | I82: 0 | J82: 0 | K82: 0 | L82: 0 | M82: 0 | N82: 0 | O82: 0
A84: UCC for PILs Calculation
F85: =F68 -> 2014 | G85: =G68 -> 2015 | H85: =H68 -> 2016 | I85: 2017 | J85: 2018 | K85: 2019 | L85: 2020 | M85: 2021 | N85: 2022 | O85: 2023
A87: Opening UCC | G87: =F95 -> 0 | H87: =G95 -> 0 | I87: 0 | J87: 0 | K87: 0 | L87: 0 | M87: 0 | N87: 0 | O87: 0
A88: Capital Additions (from Appendix 2-FA) | F88: =F72 -> 0 | G88: =G72 -> 0 | H88: 0 | I88: 0 | J88: 0 | K88: 0 | L88: 0 | M88: 0 | N88: 0 | O88: 0
A89: UCC Before Half Year Rule | F89: =SUM(F87:F88) -> 0 | G89: =SUM(G87:G88) -> 0 | H89: 0 | I89: 0 | J89: 0 | K89: 0 | L89: 0 | M89: 0 | N89: 0 | O89: 0
A90: Half Year Rule (1/2 Additions - Disposals) | F90: =F88/2 -> 0 | G90: =G88/2 -> 0 | H90: 0 | I90: 0 | J90: 0 | K90: 0 | L90: 0 | M90: 0 | N90: 0 | O90: 0
A91: Reduced UCC | F91: =F89-F90 -> 0 | G91: =G89-G90 -> 0 | H91: 0 | I91: 0 | J91: 0 | K91: 0 | L91: 0 | M91: 0 | N91: 0 | O91: 0
A92: CCA Rate Class (to be entered) | C92: 47 | F92: =C92 -> 47 | G92: =C92 -> 47 | H92: =G92 -> 47 | I92: 47 | J92: 47 | K92: 47 | L92: 47 | M92: 47 | N92: 47 | O92: 47
A93: CCA Rate (to be entered) | C93: 0.08 | F93: =C93 -> 0.08 | G93: =C93 -> 0.08 | H93: 0.08 | I93: 0.08 | J93: 0.08 | K93: 0.08 | L93: 0.08 | M93: 0.08 | N93: 0.08 | O93: 0.08
A94: CCA | F94: =F91*F93 -> 0 | G94: =G91*G93 -> 0 | H94: 0 | I94: 0 | J94: 0 | K94: 0 | L94: 0 | M94: 0 | N94: 0 | O94: 0
A95: Closing UCC | F95: =F89-F94 -> 0 | G95: =G89-G94 -> 0 | H95: 0 | I95: 0 | J95: 0 | K95: 0 | L95: 0 | M95: 0 | N95: 0 | O95: 0

Sheet Hidden_REG Improvement (hidden)
A1: Utility Name | B1: EB Number | C1: Test Year | D1: Bridge Year | E1: Last Rebasing Year | F1: Renewable Generation Connection Direct Benefits/Provincial Amount Renewable Enabling Improvement Investments | G1: Year | H1: Amount
A2: ='LDC Info'!$E$14 -> Chapleau Public Utilities Corporation | B2: =EBNUMBER -> EB-2018-0087 | C2: =TestYear -> 2019 | D2: =BridgeYear -> 2018 | E2: =RebaseYear -> 2012 | F2: Provincial Rate Protection | G2: 2014 | H2: ='App.2-FB Calc of REG Improvemnt'!E43 -> 0
A3: ='LDC Info'!$E$14 -> Chapleau Public Utilities Corporation | B3: EB-2018-0087 | C3: 2019 | D3: 2018 | E3: 2012 | F3: Provincial Rate Protection | G3: 2015 | H3: ='App.2-FB Calc of REG Improvemnt'!H43 -> 0
A4: ='LDC Info'!$E$14 -> Chapleau Public Utilities Corporation | B4: EB-2018-0087 | C4: 2019 | D4: 2018 | E4: 2012 | F4: Provincial Rate Protection | G4: 2016 | H4: ='App.2-FB Calc of REG Improvemnt'!K43 -> 0
A5: ='LDC Info'!$E$14 -> Chapleau Public Utilities Corporation | B5: EB-2018-0087 | C5: 2019 | D5: 2018 | E5: 2012 | F5: Provincial Rate Protection | G5: 2017 | H5: ='App.2-FB Calc of REG Improvemnt'!N43 -> 0
A6: ='LDC Info'!$E$14 -> Chapleau Public Utilities Corporation | B6: EB-2018-0087 | C6: 2019 | D6: 2018 | E6: 2012 | F6: Provincial Rate Protection | G6: 2018 | H6: ='App.2-FB Calc of REG Improvemnt'!Q43 -> 0
A7: ='LDC Info'!$E$14 -> Chapleau Public Utilities Corporation | B7: EB-2018-0087 | C7: 2019 | D7: 2018 | E7: 2012 | F7: Provincial Rate Protection | G7: 2019 | H7: ='App.2-FB Calc of REG Improvemnt'!T43 -> 0
A8: ='LDC Info'!$E$14 -> Chapleau Public Utilities Corporation | B8: EB-2018-0087 | C8: 2019 | D8: 2018 | E8: 2012 | F8: Provincial Rate Protection | G8: 2020 | H8: ='App.2-FB Calc of REG Improvemnt'!W43 -> 0
A9: ='LDC Info'!$E$14 -> Chapleau Public Utilities Corporation | B9: EB-2018-0087 | C9: 2019 | D9: 2018 | E9: 2012 | F9: Provincial Rate Protection | G9: 2021 | H9: ='App.2-FB Calc of REG Improvemnt'!Z43 -> 0
A10: ='LDC Info'!$E$14 -> Chapleau Public Utilities Corporation | B10: EB-2018-0087 | C10: 2019 | D10: 2018 | E10: 2012 | F10: Provincial Rate Protection | G10: 2022 | H10: ='App.2-FB Calc of REG Improvemnt'!AC43 -> 0
A11: ='LDC Info'!$E$14 -> Chapleau Public Utilities Corporation | B11: EB-2018-0087 | C11: 2019 | D11: 2018 | E11: 2012 | F11: Provincial Rate Protection | G11: 2023 | H11: ='App.2-FB Calc of REG Improvemnt'!AF43 -> 0

Sheet App.2-FC Calc of REG Expansion
Q1: File Number: | R1: =EBNUMBER -> EB-2018-0087
Q2: Exhibit:
Q3: Tab:
A4: TO BE UPDATED AT THE DRAFT RATE ORDER STAGE | Q4: Schedule:
Q5: Page:
Q7: Date:
A9: Appendix 2-FC
A10: Calculation of Renewable Generation Connection Direct Benefits/Provincial Amount: Renewable Expansion Investments
A12: This table will calculate the distributor/provincial shares of the investments entered in Part B of Appendix 2-FA.
A13: Enter values in green shaded cells: WCA percentage, debt percentages, interest rates, kWh, tax rates, amortization period, CCA Class and percentage.
A14: For historical investments, enter these variables for your last cost of service test year. For 2016 and beyond, enter variables as in the application.
A15: Rate Riders are not calculated for the Test Year as these assets and costs are already in the distributor's rate base.
D18: =G18-1 -> 2014 | G18: =J18-1 -> 2015 | J18: =M18-1 -> 2016 | M18: =P18-1 -> 2017 | P18: =BridgeYear -> 2018 | S18: =CONCATENATE(TestYear," Test Year") -> 2019 Test Year | V18: =TestYear+1 -> 2020 | W18: 2016 | Y18: =V18+1 -> 2021 | AB18: =Y18+1 -> 2022 | AE18: =AB18+1 -> 2023
E19: Direct Benefit | F19: Provincial | H19: Direct Benefit | I19: Provincial | K19: Direct Benefit | L19: Provincial | N19: Direct Benefit | O19: Provincial | Q19: Direct Benefit | R19: Provincial | T19: Direct Benefit | U19: Provincial | W19: Direct Benefit | X19: Provincial | Z19: Direct Benefit | AA19: Provincial | AC19: Direct Benefit | AD19: Provincial | AF19: Direct Benefit | AG19: Provincial
D20: Total | E20: 0.17 | F20: 0.83 | G20: Total | H20: 0.17 | I20: 0.83 | J20: Total | K20: 0.17 | L20: 0.83 | M20: Total | N20: 0.17 | O20: 0.83 | P20: Total | Q20: 0.17 | R20: 0.83 | S20: Total | T20: 0.17 | U20: 0.83 | V20: Total | W20: 0.17 | X20: 0.83 | Y20: Total | Z20: 0.17 | AA20: 0.83 | AB20: Total | AC20: 0.17 | AD20: 0.83 | AE20: Total | AF20: 0.17 | AG20: 0.83
A21: Net Fixed Assets (average) | D21: =J82 -> 0 | E21: =D21*E20 -> 0 | F21: =D21*F20 -> 0 | G21: =G82 -> 0 | H21: =G21*H20 -> 0 | I21: =G21*I20 -> 0 | J21: =H82 -> 0 | K21: =J21*K20 -> 0 | L21: =J21*L20 -> 0 | M21: =I82 -> 0 | N21: =M21*N20 -> 0 | O21: =M21*O20 -> 0 | P21: =J82 -> 0 | Q21: =P21*Q20 -> 0 | R21: =P21*R20 -> 0 | S21: =K82 -> 0 | T21: =S21*T20 -> 0 | U21: =S21*U20 -> 0 | V21: =L82 -> 0 | W21: =V21*W20 -> 0 | X21: =V21*X20 -> 0 | Y21: =M82 -> 0 | Z21: =Y21*Z20 -> 0 | AA21: =Y21*AA20 -> 0 | AB21: =N82 -> 0 | AC21: =AB21*AC20 -> 0 | AD21: =AB21*AD20 -> 0 | AE21: =O82 -> 0 | AF21: =AE21*AF20 -> 0 | AG21: =AE21*AG20 -> 0
A22: Incremental OM&A (on-going, N/A for Provincial Recovery) | D22: ='App.2-FA Proposed REG Invest.'!C$101 -> 0 | E22: =D22 -> 0 | G22: ='App.2-FA Proposed REG Invest.'!D$101 -> 0 | H22: =G22 -> 0 | J22: ='App.2-FA Proposed REG Invest.'!E$101 -> 0 | K22: =J22 -> 0 | M22: ='App.2-FA Proposed REG Invest.'!F$101 -> 0 | N22: =M22 -> 0 | P22: ='App.2-FA Proposed REG Invest.'!G$101 -> 0 | Q22: =P22 -> 0 | S22: ='App.2-FA Proposed REG Invest.'!H$101 -> 0 | T22: =S22 -> 0 | V22: ='App.2-FA Proposed REG Invest.'!I$101 -> 0 | W22: =V22 -> 0 | Y22: ='App.2-FA Proposed REG Invest.'!J$101 -> 0 | Z22: =Y22 -> 0 | AB22: ='App.2-FA Proposed REG Invest.'!K$101 -> 0 | AC22: =AB22 -> 0 | AE22: ='App.2-FA Proposed REG Invest.'!L$101 -> 0 | AF22: =AE22 -> 0
A23: Incremental OM&A (start-up, applicable for Provincial Recovery) | D23: ='App.2-FA Proposed REG Invest.'!C$100 -> 0 | E23: =D23*E20 -> 0 | F23: =D23*F20 -> 0 | G23: ='App.2-FA Proposed REG Invest.'!D$100 -> 0 | H23: =G23*H20 -> 0 | I23: =G23*I20 -> 0 | J23: ='App.2-FA Proposed REG Invest.'!E$100 -> 0 | K23: =J23*K20 -> 0 | L23: =J23*L20 -> 0 | M23: ='App.2-FA Proposed REG Invest.'!F$100 -> 0 | N23: =M23*N20 -> 0 | O23: =M23*O20 -> 0 | P23: ='App.2-FA Proposed REG Invest.'!G$100 -> 0 | Q23: =P23*Q20 -> 0 | R23: =P23*R20 -> 0 | S23: ='App.2-FA Proposed REG Invest.'!H$100 -> 0 | T23: =S23*T20 -> 0 | U23: =S23*U20 -> 0 | V23: ='App.2-FA Proposed REG Invest.'!I$100 -> 0 | W23: =V23*W20 -> 0 | X23: =V23*X20 -> 0 | Y23: ='App.2-FA Proposed REG Invest.'!J$100 -> 0 | Z23: =Y23*Z20 -> 0 | AA23: =Y23*AA20 -> 0 | AB23: ='App.2-FA Proposed REG Invest.'!K$100 -> 0 | AC23: =AB23*AC20 -> 0 | AD23: =AB23*AD20 -> 0 | AE23: ='App.2-FA Proposed REG Invest.'!L$100 -> 0 | AF23: =AE23*AF20 -> 0 | AG23: =AE23*AG20 -> 0
A24: WCA | E24: =(E22+E23)*$B$24 -> 0 | F24: =F23*$B$24 -> 0 | H24: =(H22+H23)*$B$24 -> 0 | I24: =I23*$B$24 -> 0 | K24: =(K22+K23)*$B$24 -> 0 | L24: =L23*$B$24 -> 0 | N24: =(N22+N23)*$B$24 -> 0 | O24: =O23*$B$24 -> 0 | Q24: =(Q22+Q23)*$B$24 -> 0 | R24: =R23*$B$24 -> 0 | T24: =(T22+T23)*$B$24 -> 0 | U24: =U23*$B$24 -> 0 | W24: =(W22+W23)*$B$24 -> 0 | X24: =X23*$B$24 -> 0 | Z24: =(Z22+Z23)*$B$24 -> 0 | AA24: =AA23*$B$24 -> 0 | AC24: =(AC22+AC23)*$B$24 -> 0 | AD24: =AD23*$B$24 -> 0 | AF24: =(AF22+AF23)*$B$24 -> 0 | AG24: =AG23*$B$24 -> 0
A25: Rate Base | E25: =SUM(E21+E24) -> 0 | F25: =SUM(F21+F24) -> 0 | H25: =SUM(H21+H24) -> 0 | I25: =SUM(I21+I24) -> 0 | K25: =SUM(K21+K24) -> 0 | L25: =SUM(L21+L24) -> 0 | N25: =SUM(N21+N24) -> 0 | O25: =SUM(O21+O24) -> 0 | Q25: =SUM(Q21+Q24) -> 0 | R25: =SUM(R21+R24) -> 0 | T25: =SUM(T21+T24) -> 0 | U25: =SUM(U21+U24) -> 0 | W25: =SUM(W21+W24) -> 0 | X25: =SUM(X21+X24) -> 0 | Z25: =SUM(Z21+Z24) -> 0 | AA25: =SUM(AA21+AA24) -> 0 | AC25: =SUM(AC21+AC24) -> 0 | AD25: =SUM(AD21+AD24) -> 0 | AF25: =SUM(AF21+AF24) -> 0 | AG25: =SUM(AG21+AG24) -> 0
A28: Deemed ST Debt | E28: =E25*$B$28 -> 0 | F28: =F25*$B$28 -> 0 | H28: =H25*$B$28 -> 0 | I28: =I25*$B$28 -> 0 | K28: =K25*$B$28 -> 0 | L28: =L25*$B$28 -> 0 | N28: =N25*$B$28 -> 0 | O28: =O25*$B$28 -> 0 | Q28: =Q25*$B$28 -> 0 | R28: =R25*$B$28 -> 0 | T28: =T25*$B$28 -> 0 | U28: =U25*$B$28 -> 0 | W28: =W25*$B$28 -> 0 | X28: =X25*$B$28 -> 0 | Z28: =Z25*$B$28 -> 0 | AA28: =AA25*$B$28 -> 0 | AC28: =AC25*$B$28 -> 0 | AD28: =AD25*$B$28 -> 0 | AF28: =AF25*$B$28 -> 0 | AG28: =AG25*$B$28 -> 0
A29: Deemed LT Debt | E29: =E25*$B$29 -> 0 | F29: =F25*$B$29 -> 0 | H29: =H25*$B$29 -> 0 | I29: =I25*$B$29 -> 0 | K29: =K25*$B$29 -> 0 | L29: =L25*$B$29 -> 0 | N29: =N25*$B$29 -> 0 | O29: =O25*$B$29 -> 0 | Q29: =Q25*$B$29 -> 0 | R29: =R25*$B$29 -> 0 | T29: =T25*$B$29 -> 0 | U29: =U25*$B$29 -> 0 | W29: =W25*$B$29 -> 0 | X29: =X25*$B$29 -> 0 | Z29: =Z25*$B$29 -> 0 | AA29: =AA25*$B$29 -> 0 | AC29: =AC25*$B$29 -> 0 | AD29: =AD25*$B$29 -> 0 | AF29: =AF25*$B$29 -> 0 | AG29: =AG25*$B$29 -> 0
A30: Deemed Equity | E30: =E25*$B$30 -> 0 | F30: =F25*$B$30 -> 0 | H30: =H25*$B$30 -> 0 | I30: =I25*$B$30 -> 0 | K30: =K25*$B$30 -> 0 | L30: =L25*$B$30 -> 0 | N30: =N25*$B$30 -> 0 | O30: =O25*$B$30 -> 0 | Q30: =Q25*$B$30 -> 0 | R30: =R25*$B$30 -> 0 | T30: =T25*$B$30 -> 0 | U30: =U25*$B$30 -> 0 | W30: =W25*$B$30 -> 0 | X30: =X25*$B$30 -> 0 | Z30: =Z25*$B$30 -> 0 | AA30: =AA25*$B$30 -> 0 | AC30: =AC25*$B$30 -> 0 | AD30: =AD25*$B$30 -> 0 | AF30: =AF25*$B$30 -> 0 | AG30: =AG25*$B$30 -> 0
A32: ST Interest | E32: =E28*$B$32 -> 0 | F32: =F28*$B$32 -> 0 | H32: =H28*$B$32 -> 0 | I32: =I28*$B$32 -> 0 | K32: =K28*$B$32 -> 0 | L32: =L28*$B$32 -> 0 | N32: =N28*$B$32 -> 0 | O32: =O28*$B$32 -> 0 | Q32: =Q28*$B$32 -> 0 | R32: =R28*$B$32 -> 0 | T32: =T28*$B$32 -> 0 | U32: =U28*$B$32 -> 0 | W32: =W28*$B$32 -> 0 | X32: =X28*$B$32 -> 0 | Z32: =Z28*$B$32 -> 0 | AA32: =AA28*$B$32 -> 0 | AC32: =AC28*$B$32 -> 0 | AD32: =AD28*$B$32 -> 0 | AF32: =AF28*$B$32 -> 0 | AG32: =AG28*$B$32 -> 0
A33: LT Interest | E33: =E29*$B$33 -> 0 | F33: =F29*$B$33 -> 0 | H33: =H29*$B$33 -> 0 | I33: =I29*$B$33 -> 0 | K33: =K29*$B$33 -> 0 | L33: =L29*$B$33 -> 0 | N33: =N29*$B$33 -> 0 | O33: =O29*$B$33 -> 0 | Q33: =Q29*$B$33 -> 0 | R33: =R29*$B$33 -> 0 | T33: =T29*$B$33 -> 0 | U33: =U29*$B$33 -> 0 | W33: =W29*$B$33 -> 0 | X33: =X29*$B$33 -> 0 | Z33: =Z29*$B$33 -> 0 | AA33: =AA29*$B$33 -> 0 | AC33: =AC29*$B$33 -> 0 | AD33: =AD29*$B$33 -> 0 | AF33: =AF29*$B$33 -> 0 | AG33: =AG29*$B$33 -> 0
A34: ROE | E34: =E30*$B$34 -> 0 | F34: =F30*$B$34 -> 0 | H34: =H30*$B$34 -> 0 | I34: =I30*$B$34 -> 0 | K34: =K30*$B$34 -> 0 | L34: =L30*$B$34 -> 0 | N34: =N30*$B$34 -> 0 | O34: =O30*$B$34 -> 0 | Q34: =Q30*$B$34 -> 0 | R34: =R30*$B$34 -> 0 | T34: =T30*$B$34 -> 0 | U34: =U30*$B$34 -> 0 | W34: =W30*$B$34 -> 0 | X34: =X30*$B$34 -> 0 | Z34: =Z30*$B$34 -> 0 | AA34: =AA30*$B$34 -> 0 | AC34: =AC30*$B$34 -> 0 | AD34: =AD30*$B$34 -> 0 | AF34: =AF30*$B$34 -> 0 | AG34: =AG30*$B$34 -> 0
A35: Cost of Capital Total | E35: =SUM(E32:E34) -> 0 | F35: =SUM(F32:F34) -> 0 | H35: =SUM(H32:H34) -> 0 | I35: =SUM(I32:I34) -> 0 | K35: =SUM(K32:K34) -> 0 | L35: =SUM(L32:L34) -> 0 | N35: =SUM(N32:N34) -> 0 | O35: =SUM(O32:O34) -> 0 | Q35: =SUM(Q32:Q34) -> 0 | R35: =SUM(R32:R34) -> 0 | T35: =SUM(T32:T34) -> 0 | U35: =SUM(U32:U34) -> 0 | W35: =SUM(W32:W34) -> 0 | X35: =SUM(X32:X34) -> 0 | Z35: =SUM(Z32:Z34) -> 0 | AA35: =SUM(AA32:AA34) -> 0 | AC35: =SUM(AC32:AC34) -> 0 | AD35: =SUM(AD32:AD34) -> 0 | AF35: =SUM(AF32:AF34) -> 0 | AG35: =SUM(AG32:AG34) -> 0
A37: OM&A | E37: =E22+E23 -> 0 | F37: =F23 -> 0 | H37: =H22+H23 -> 0 | I37: =I23 -> 0 | K37: =K22+K23 -> 0 | L37: =L23 -> 0 | N37: =N22+N23 -> 0 | O37: =O23 -> 0 | Q37: =Q22+Q23 -> 0 | R37: =R23 -> 0 | T37: =T22+T23 -> 0 | U37: =U23 -> 0 | W37: =W22+W23 -> 0 | X37: =X23 -> 0 | Z37: =Z22+Z23 -> 0 | AA37: =AA23 -> 0 | AC37: =AC22+AC23 -> 0 | AD37: =AD23 -> 0 | AF37: =AF22+AF23 -> 0 | AG37: =AG23 -> 0
A38: Amortization | D38: =D78 -> 0 | E38: =D38*E$20 -> 0 | F38: =D38*F$20 -> 0 | G38: =G78 -> 0 | H38: =G38*H$20 -> 0 | I38: =G38*I$20 -> 0 | J38: =H78 -> 0 | K38: =J38*K$20 -> 0 | L38: =J38*L$20 -> 0 | M38: =I78 -> 0 | N38: =M38*N$20 -> 0 | O38: =M38*O$20 -> 0 | P38: =J78 -> 0 | Q38: =P38*Q$20 -> 0 | R38: =P38*R$20 -> 0 | S38: =K76+K77 -> 0 | T38: =S38*T$20 -> 0 | U38: =S38*U$20 -> 0 | V38: =L76+L77 -> 0 | W38: =V38*W$20 -> 0 | X38: =V38*X$20 -> 0 | Y38: =M76+M77 -> 0 | Z38: =Y38*Z$20 -> 0 | AA38: =Y38*AA$20 -> 0 | AB38: =N76+N77 -> 0 | AC38: =AB38*AC$20 -> 0 | AD38: =AB38*AD$20 -> 0 | AE38: =O76+O77 -> 0 | AF38: =AE38*AF$20 -> 0 | AG38: =AE38*AG$20 -> 0
A39: Grossed-up PILs | E39: =E66 -> 0 | F39: =F66 -> 0 | H39: =H66 -> 0 | I39: =I66 -> 0 | K39: =K66 -> 0 | L39: =L66 -> 0 | N39: =N66 -> 0 | O39: =O66 -> 0 | Q39: =Q66 -> 0 | R39: =R66 -> 0 | T39: =T66 -> 0 | U39: =U66 -> 0 | W39: =W66 -> 0 | X39: =X66 -> 0 | Z39: =Z66 -> 0 | AA39: =AA66 -> 0 | AC39: =AC66 -> 0 | AD39: =AD66 -> 0 | AF39: =AF66 -> 0 | AG39: =AG66 -> 0
A41: Revenue Requirement | E41: =SUM(E35:E39) -> 0 | F41: =SUM(F35:F39) -> 0 | H41: =SUM(H35:H39) -> 0 | I41: =SUM(I35:I39) -> 0 | K41: =SUM(K35:K39) -> 0 | L41: =SUM(L35:L39) -> 0 | N41: =SUM(N35:N39) -> 0 | O41: =SUM(O35:O39) -> 0 | Q41: =SUM(Q35:Q39) -> 0 | R41: =SUM(R35:R39) -> 0 | T41: =SUM(T35:T39) -> 0 | U41: =SUM(U35:U39) -> 0 | W41: =SUM(W35:W39) -> 0 | X41: =SUM(X35:X39) -> 0 | Z41: =SUM(Z35:Z39) -> 0 | AA41: =SUM(AA35:AA39) -> 0 | AC41: =SUM(AC35:AC39) -> 0 | AD41: =SUM(AD35:AD39) -> 0 | AF41: =SUM(AF35:AF39) -> 0 | AG41: =SUM(AG35:AG39) -> 0
A44: Provincial Rate Protection | F44: =F41 -> 0 | I44: =I41 -> 0 | L44: =L41 -> 0 | O44: =O41 -> 0 | R44: =R41 -> 0 | U44: =U41 -> 0 | X44: =X41 -> 0 | AA44: =AA41 -> 0 | AD44: =AD41 -> 0 | AG44: =AG41 -> 0
A46: Monthly Amount Paid by IESO | F46: =F44/12 -> 0 | I46: =I44/12 -> 0 | L46: =L44/12 -> 0 | O46: =O44/12 -> 0 | R46: =R44/12 -> 0 | U46: =U44/12 -> 0 | X46: =X44/12 -> 0 | AA46: =AA44/12 -> 0 | AD46: =AD44/12 -> 0 | AG46: =AG44/12 -> 0
A48: Note 1: The difference between the actual costs of approved eligible investments and revenue received from the IESO should be recorded in a variance account. The Board may provide
A49: regulatory accounting guidance regarding a variance account either in an individual proceeding or on a generic basis.
A50: Note 2: For the 2016 Test Year, Costs and Revenues of the Direct Benefit are to be included in the test year applicant Rate Base and Revenues.
A52: PILs Calculation
E53: 2014 | H53: =G18 -> 2015 | K53: =J18 -> 2016 | N53: =M18 -> 2017 | Q53: =P18 -> 2018 | T53: =S18 -> 2019 Test Year | W53: =V18 -> 2020 | Z53: =Y18 -> 2021 | AC53: =AB18 -> 2022 | AF53: =AE18 -> 2023
A54: Income Tax | E54: Direct Benefit | F54: Provincial | H54: Direct Benefit | I54: Provincial | K54: Direct Benefit | L54: Provincial | N54: Direct Benefit | O54: Provincial | Q54: Direct Benefit | R54: Provincial | T54: Direct Benefit | U54: Provincial | W54: Direct Benefit | X54: Provincial | Z54: Direct Benefit | AA54: Provincial | AC54: Direct Benefit | AD54: Provincial | AF54: Direct Benefit | AG54: Provincial
Y55: Total | AB55: Total | AE55: Total
A56: Net Income - ROE on Rate Base | E56: =E34 -> 0 | F56: =F34 -> 0 | H56: =H34 -> 0 | I56: =I34 -> 0 | K56: =K34 -> 0 | L56: =L34 -> 0 | N56: =N34 -> 0 | O56: =O34 -> 0 | Q56: =Q34 -> 0 | R56: =R34 -> 0 | T56: =T34 -> 0 | U56: =U34 -> 0 | W56: =W34 -> 0 | X56: =X34 -> 0 | Z56: =Z34 -> 0 | AA56: =AA34 -> 0 | AC56: =AC34 -> 0 | AD56: =AD34 -> 0 | AF56: =AF34 -> 0 | AG56: =AG34 -> 0
A57: Amortization (17% DB and 83% P) | E57: =E38 -> 0 | F57: =F38 -> 0 | H57: =H38 -> 0 | I57: =I38 -> 0 | K57: =K38 -> 0 | L57: =L38 -> 0 | N57: =N38 -> 0 | O57: =O38 -> 0 | Q57: =Q38 -> 0 | R57: =R38 -> 0 | T57: =T38 -> 0 | U57: =U38 -> 0 | W57: =W38 -> 0 | X57: =X38 -> 0 | Z57: =Z38 -> 0 | AA57: =AA38 -> 0 | AC57: =AC38 -> 0 | AD57: =AD38 -> 0 | AF57: =AF38 -> 0 | AG57: =AG38 -> 0
A58: CCA (17% DB and 83% P) | E58: =-D94*E$20 -> 0 | F58: =-D94*F$20 -> 0 | H58: =-G94*H$20 -> 0 | I58: =-G94*I$20 -> 0 | K58: =-H94*K$20 -> 0 | L58: =-H94*L$20 -> 0 | N58: =-I94*N$20 -> 0 | O58: =-I94*O$20 -> 0 | Q58: =-J94*Q$20 -> 0 | R58: =-J94*R$20 -> 0 | T58: =-K94*T$20 -> 0 | U58: =-K94*U$20 -> 0 | W58: =-L94*W$20 -> 0 | X58: =-L94*X$20 -> 0 | Z58: =-M94*Z$20 -> 0 | AA58: =-M94*AA$20 -> 0 | AC58: =-N94*AC$20 -> 0 | AD58: =-N94*AD$20 -> 0 | AF58: =-O94*AF$20 -> 0 | AG58: =-O94*AG$20 -> 0
A59: Taxable income | E59: =SUM(E56:E58) -> 0 | F59: =SUM(F56:F58) -> 0 | H59: =SUM(H56:H58) -> 0 | I59: =SUM(I56:I58) -> 0 | K59: =SUM(K56:K58) -> 0 | L59: =SUM(L56:L58) -> 0 | N59: =SUM(N56:N58) -> 0 | O59: =SUM(O56:O58) -> 0 | Q59: =SUM(Q56:Q58) -> 0 | R59: =SUM(R56:R58) -> 0 | T59: =SUM(T56:T58) -> 0 | U59: =SUM(U56:U58) -> 0 | W59: =SUM(W56:W58) -> 0 | X59: =SUM(X56:X58) -> 0 | Z59: =SUM(Z56:Z58) -> 0 | AA59: =SUM(AA56:AA58) -> 0 | AC59: =SUM(AC56:AC58) -> 0 | AD59: =SUM(AD56:AD58) -> 0 | AF59: =SUM(AF56:AF58) -> 0 | AG59: =SUM(AG56:AG58) -> 0
A61: Tax Rate (to be entered)
A63: Income Taxes Payable | E63: =E59*E61 -> 0 | F63: =F59*F61 -> 0 | H63: =H59*H61 -> 0 | I63: =I59*I61 -> 0 | K63: =K59*K61 -> 0 | L63: =L59*L61 -> 0 | N63: =N59*N61 -> 0 | O63: =O59*O61 -> 0 | Q63: =Q59*Q61 -> 0 | R63: =R59*R61 -> 0 | T63: =T59*T61 -> 0 | U63: =U59*U61 -> 0 | W63: =W59*W61 -> 0 | X63: =X59*X61 -> 0 | Z63: =Z59*Z61 -> 0 | AA63: =AA59*AA61 -> 0 | AC63: =AC59*AC61 -> 0 | AD63: =AD59*AD61 -> 0 | AF63: =AF59*AF61 -> 0 | AG63: =AG59*AG61 -> 0
A64: Gross Up
A65: Income Taxes Payable | E65: =E63/(1-E61) -> 0 | F65: =F63/(1-F61) -> 0 | H65: =H63/(1-H61) -> 0 | I65: =I63/(1-I61) -> 0 | K65: =K63/(1-K61) -> 0 | L65: =L63/(1-L61) -> 0 | N65: =N63/(1-N61) -> 0 | O65: =O63/(1-O61) -> 0 | Q65: =Q63/(1-Q61) -> 0 | R65: =R63/(1-R61) -> 0 | T65: =T63/(1-T61) -> 0 | U65: =U63/(1-U61) -> 0 | W65: =W63/(1-W61) -> 0 | X65: =X63/(1-X61) -> 0 | Z65: =Z63/(1-Z61) -> 0 | AA65: =AA63/(1-AA61) -> 0 | AC65: =AC63/(1-AC61) -> 0 | AD65: =AD63/(1-AD61) -> 0 | AF65: =AF63/(1-AF61) -> 0 | AG65: =AG63/(1-AG61) -> 0
A66: Grossed Up PILs | E66: =SUM(E65:E65) -> 0 | F66: =SUM(F65:F65) -> 0 | H66: =SUM(H65:H65) -> 0 | I66: =SUM(I65:I65) -> 0 | K66: =SUM(K65:K65) -> 0 | L66: =SUM(L65:L65) -> 0 | N66: =SUM(N65:N65) -> 0 | O66: =SUM(O65:O65) -> 0 | Q66: =SUM(Q65:Q65) -> 0 | R66: =SUM(R65:R65) -> 0 | T66: =SUM(T65:T65) -> 0 | U66: =SUM(U65:U65) -> 0 | W66: =SUM(W65:W65) -> 0 | X66: =SUM(X65:X65) -> 0 | Z66: =SUM(Z65:Z65) -> 0 | AA66: =SUM(AA65:AA65) -> 0 | AC66: =SUM(AC65:AC65) -> 0 | AD66: =SUM(AD65:AD65) -> 0 | AF66: =SUM(AF65:AF65) -> 0 | AG66: =SUM(AG65:AG65) -> 0
A69: Net Fixed Assets | F69: 2014 | G69: 2015 | H69: 2016 | I69: 2017 | J69: 2018 | K69: 2019 | L69: 2020 | M69: 2021 | N69: 2022 | O69: 2023
A70: Enter applicable amortization in years: | B70: 25
A71: Opening Gross Fixed Assets | G71: =F73 -> 0 | H71: =G73 -> 0 | I71: =H73 -> 0 | J71: =I73 -> 0 | K71: 0 | L71: 0 | M71: =L73 -> 0 | N71: 0 | O71: 0
A72: Gross Capital Additions | F72: ='App.2-FA Proposed REG Invest.'!C99 -> 0 | G72: ='App.2-FA Proposed REG Invest.'!D99 -> 0 | H72: ='App.2-FA Proposed REG Invest.'!E99 -> 0 | I72: ='App.2-FA Proposed REG Invest.'!F99 -> 0 | J72: ='App.2-FA Proposed REG Invest.'!G99 -> 0 | K72: ='App.2-FA Proposed REG Invest.'!H99 -> 0 | L72: ='App.2-FA Proposed REG Invest.'!I99 -> 0 | M72: ='App.2-FA Proposed REG Invest.'!J99 -> 0 | N72: ='App.2-FA Proposed REG Invest.'!K99 -> 0 | O72: ='App.2-FA Proposed REG Invest.'!L99 -> 0
A73: Closing Gross Fixed Assets | F73: =SUM(F71:F72) -> 0 | G73: =SUM(G71:G72) -> 0 | H73: 0 | I73: 0 | J73: 0 | K73: 0 | L73: 0 | M73: 0 | N73: 0 | O73: 0
A75: Opening Accumulated Amortization | G75: =+F78 -> 0 | H75: =+G78 -> 0 | I75: =H78 -> 0 | J75: =I78 -> 0 | K75: 0 | L75: 0 | M75: 0 | N75: 0 | O75: 0
A76: Current Year Amortization (before additions) | F76: =IF(ISERROR(F71/$B$70), 0, F71/$B$70) -> 0 | G76: =IF(ISERROR(G71/$B$70), 0, G71/$B$70) -> 0 | H76: =IF(ISERROR(H71/$B$70), 0, H71/$B$70) -> 0 | I76: =IF(ISERROR(I71/$B$70), 0, I71/$B$70) -> 0 | J76: =IF(ISERROR(J71/$B$70), 0, J71/$B$70) -> 0 | K76: =K71/$B$70 -> 0 | L76: =L71/$B$70 -> 0 | M76: =M71/$B$70 -> 0 | N76: =N71/$B$70 -> 0 | O76: =O71/$B$70 -> 0
A77: Additions (half year) | F77: =F72/B70/2 -> 0 | G77: =G72/B70/2 -> 0 | H77: =H72/B70/2 -> 0 | I77: =I72/B70/2 -> 0 | J77: =J72/B70/2 -> 0 | K77: =K72/B70/2 -> 0 | L77: =L72/B70/2 -> 0 | M77: =M72/B70/2 -> 0 | N77: =N72/B70/2 -> 0 | O77: =O72/B70/2 -> 0
A78: Closing Accumulated Amortization | F78: =SUM(F75+F77) -> 0 | G78: =SUM(G75+G77) -> 0 | H78: =SUM(H75:H77) -> 0 | I78: 0 | J78: 0 | K78: 0 | L78: 0 | M78: 0 | N78: 0 | O78: 0
A80: Opening Net Fixed Assets | F80: =F71-F75 -> 0 | G80: =G71-G75 -> 0 | H80: =H71-H75 -> 0 | I80: =I71-I75 -> 0 | J80: =J71-J75 -> 0 | K80: =J81 -> 0 | L80: =K81 -> 0 | M80: =L81 -> 0 | N80: =M81 -> 0 | O80: =N81 -> 0
A81: Closing Net Fixed Assets | F81: =F73-F78 -> 0 | G81: =G73-G78 -> 0 | H81: 0 | I81: 0 | J81: 0 | K81: 0 | L81: 0 | M81: 0 | N81: 0 | O81: 0
A82: Average Net Fixed Assets | F82: =SUM(F80:F81)/2 -> 0 | G82: =SUM(G80:G81)/2 -> 0 | H82: 0 | I82: 0 | J82: 0 | K82: 0 | L82: 0 | M82: 0 | N82: 0 | O82: 0
A84: UCC for PILs Calculation
F85: 2014 | G85: 2015 | H85: 2016 | I85: 2017 | J85: 2018 | K85: 2019 | L85: 2020 | M85: 2021 | N85: 2022 | O85: 2023
A87: Opening UCC | G87: =F95 -> 0 | H87: 0 | I87: 0 | J87: =I95 -> 0 | K87: 0 | L87: 0 | M87: 0 | N87: 0 | O87: 0
A88: Capital Additions (from Appendix 2-FA) | F88: =F72 -> 0 | G88: =G72 -> 0 | H88: =H72 -> 0 | I88: 0 | J88: 0 | K88: 0 | L88: 0 | M88: 0 | N88: 0 | O88: 0
A89: UCC Before Half Year Rule | F89: =SUM(F87:F88) -> 0 | G89: =SUM(G87:G88) -> 0 | H89: =SUM(H87:H88) -> 0 | I89: 0 | J89: 0 | K89: 0 | L89: 0 | M89: 0 | N89: 0 | O89: 0
A90: Half Year Rule (1/2 Additions - Disposals) | F90: =F88/2 -> 0 | G90: =G88/2 -> 0 | H90: 0 | I90: 0 | J90: 0 | K90: 0 | L90: 0 | M90: 0 | N90: 0 | O90: 0
A91: Reduced UCC | F91: =F89-F90 -> 0 | G91: =G89-G90 -> 0 | H91: 0 | I91: 0 | J91: 0 | K91: 0 | L91: 0 | M91: 0 | N91: 0 | O91: 0
A92: CCA Rate Class (to be entered) | B92: 47 | F92: =$B$92 -> 47 | G92: 47 | H92: 47 | I92: 47 | J92: 47 | K92: 47 | L92: 47 | M92: 47 | N92: 47 | O92: 47
A93: CCA Rate (to be entered) | B93: 0.08 | F93: =$B$93 -> 0.08 | G93: 0.08 | H93: 0.08 | I93: 0.08 | J93: 0.08 | K93: 0.08 | L93: 0.08 | M93: 0.08 | N93: 0.08 | O93: 0.08
A94: CCA | F94: =F91*F$93 -> 0 | G94: =G91*G$93 -> 0 | H94: 0 | I94: 0 | J94: 0 | K94: 0 | L94: 0 | M94: 0 | N94: 0 | O94: 0
A95: Closing UCC | F95: =F89-F94 -> 0 | G95: =G89-G94 -> 0 | H95: =H89-H94 -> 0 | I95: 0 | J95: 0 | K95: 0 | L95: 0 | M95: 0 | N95: 0 | O95: 0

Sheet Hidden_REG Expansion (hidden)
A1: Utility Name | B1: EB Number | C1: Test Year | D1: Bridge Year | E1: Last Rebasing Year | F1: Calculation of Renewable Generation Connection Direct Benefits/Provincial Amount Renewable Expansion Investments | G1: Year | H1: Amount
A2: ='LDC Info'!$E$14 -> Chapleau Public Utilities Corporation | B2: =EBNUMBER -> EB-2018-0087 | C2: =TestYear -> 2019 | D2: =BridgeYear -> 2018 | E2: =RebaseYear -> 2012 | F2: Provincial Rate Protection | G2: 2014 | H2: ='App.2-FC Calc of REG Expansion'!F44 -> 0
A3: ='LDC Info'!$E$14 -> Chapleau Public Utilities Corporation | B3: EB-2018-0087 | C3: 2019 | D3: 2018 | E3: 2012 | F3: Provincial Rate Protection | G3: 2015 | H3: ='App.2-FC Calc of REG Expansion'!I44 -> 0
A4: ='LDC Info'!$E$14 -> Chapleau Public Utilities Corporation | B4: EB-2018-0087 | C4: 2019 | D4: 2018 | E4: 2012 | F4: Provincial Rate Protection | G4: 2016 | H4: ='App.2-FC Calc of REG Expansion'!L44 -> 0
A5: ='LDC Info'!$E$14 -> Chapleau Public Utilities Corporation | B5: EB-2018-0087 | C5: 2019 | D5: 2018 | E5: 2012 | F5: Provincial Rate Protection | G5: 2017 | H5: ='App.2-FC Calc of REG Expansion'!O44 -> 0
A6: ='LDC Info'!$E$14 -> Chapleau Public Utilities Corporation | B6: EB-2018-0087 | C6: 2019 | D6: 2018 | E6: 2012 | F6: Provincial Rate Protection | G6: 2018 | H6: ='App.2-FC Calc of REG Expansion'!R44 -> 0
A7: ='LDC Info'!$E$14 -> Chapleau Public Utilities Corporation | B7: EB-2018-0087 | C7: 2019 | D7: 2018 | E7: 2012 | F7: Provincial Rate Protection | G7: 2019 | H7: ='App.2-FC Calc of REG Expansion'!U44 -> 0
A8: ='LDC Info'!$E$14 -> Chapleau Public Utilities Corporation | B8: EB-2018-0087 | C8: 2019 | D8: 2018 | E8: 2012 | F8: Provincial Rate Protection | G8: 2020 | H8: ='App.2-FC Calc of REG Expansion'!X44 -> 0
A9: ='LDC Info'!$E$14 -> Chapleau Public Utilities Corporation | B9: EB-2018-0087 | C9: 2019 | D9: 2018 | E9: 2012 | F9: Provincial Rate Protection | G9: 2021 | H9: ='App.2-FC Calc of REG Expansion'!AA44 -> 0
A10: ='LDC Info'!$E$14 -> Chapleau Public Utilities Corporation | B10: EB-2018-0087 | C10: 2019 | D10: 2018 | E10: 2012 | F10: Provincial Rate Protection | G10: 2022 | H10: ='App.2-FC Calc of REG Expansion'!AD44 -> 0
A11: ='LDC Info'!$E$14 -> Chapleau Public Utilities Corporation | B11: EB-2018-0087 | C11: 2019 | D11: 2018 | E11: 2012 | F11: Provincial Rate Protection | G11: 2023 | H11: ='App.2-FC Calc of REG Expansion'!AG44 -> 0

Sheet App.2-G SQI
M1: File Number: | O1: =EBNUMBER -> EB-2018-0087
M2: Exhibit:
M3: Tab:
M4: Schedule:
M5: Page:
M7: Date:
A9: Appendix 2-G
A10: Service Reliability and Quality Indicators
A11: 2011 - 2015
A13: Service Reliability
A15: Index | B15: Including outages caused by loss of supply | G15: Excluding outages caused by loss of supply | L15: Excluding Major Event Days
B16: =TestYear-6 -> 2013 | C16: =TestYear-5 -> 2014 | D16: =TestYear-4 -> 2015 | E16: =TestYear-3 -> 2016 | F16: =TestYear-2 -> 2017 | G16: =B16 -> 2013 | H16: 2014 | I16: 2015 | J16: 2016 | K16: 2017 | L16: 2013 | M16: 2014 | N16: 2015 | O16: 2016 | P16: 2017
A17: SAIDI | B17: 2.32 | C17: 5.09 | D17: 14.72 | E17: 16.48 | F17: 16.74 | G17: 2.18 | H17: 0.28 | I17: 4.75 | J17: 1.82 | K17: 0.94 | L17: 2.32 | M17: 5.09 | N17: 14.72 | O17: 16.48 | P17: 16.74
A18: SAIFI | B18: 2.85 | C18: 2.46 | D18: 3.96 | E18: 2.88 | F18: 3.21 | G18: 2.58 | H18: 0.38 | I18: 1.07 | J18: 0.63 | K18: 0.69 | L18: 2.85 | M18: 2.46 | N18: 3.98 | O18: 2.88 | P18: 3.21
A20: 5 Year Historical Average
A21: SAIDI | F21: =IF(ISERROR(AVERAGE(B17:F17)), "", AVERAGE(B17:F17)) -> 11.07 | K21: =IF(ISERROR(AVERAGE(G17:K17)), "", AVERAGE(G17:K17)) -> 1.994 | P21: =IF(ISERROR(AVERAGE(L17:P17)), "", AVERAGE(L17:P17)) -> 11.07
A22: SAIFI | F22: =IF(ISERROR(AVERAGE(B18:F18)), "", AVERAGE(B18:F18)) -> 3.072 | K22: =IF(ISERROR(AVERAGE(G18:K18)), "", AVERAGE(G18:K18)) -> 1.07 | P22: =IF(ISERROR(AVERAGE(L18:P18)), "", AVERAGE(L18:P18)) -> 3.076
A24: SAIDI = System Average Interruption Duration Index
A25: SAIFI = System Average Interruption Frequency Index
A27: Service Quality
A29: Indicator | E29: OEB Minimum Standard | G29: =B16 -> 2013 | H29: =C16 -> 2014 | I29: =D16 -> 2015 | J29: =E16 -> 2016 | K29: =F16 -> 2017
A30: Low Voltage Connections | E30: 0.9 | G30: 1 | H30: 1 | I30: 1 | J30: 1 | K30: 1
A31: High Voltage Connections | E31: 0.9 | G31: n/a | H31: n/a | I31: n/a | J31: n/a | K31: n/a
A32: Telephone Accessibility | E32: 0.65 | G32: 1 | H32: 1 | I32: 1 | J32: 1 | K32: 1
A33: Appointments Met | E33: 0.9 | G33: 1 | H33: 1 | I33: 1 | J33: 1 | K33: 1
A34: Written Response to Enquires | E34: 0.8 | G34: 1 | H34: 1 | I34: 1 | J34: 1 | K34: 1
A35: Emergency Urban Response | E35: 0.8 | G35: n/a | H35: n/a | I35: n/a | J35: n/a | K35: n/a
A36: Emergency Rural Response | E36: 0.8 | G36: n/a | H36: n/a | I36: n/a | J36: n/a | K36: n/a
A37: Telephone Call Abandon Rate | E37: 0.1 | G37: n/a | H37: n/a | I37: n/a | J37: n/a | K37: n/a
A38: Appointment Scheduling | E38: 0.9 | G38: 1 | H38: 1 | I38: 1 | J38: 1 | K38: 1
A39: Rescheduling a Missed Appointment | E39: 1 | G39: n/a | H39: n/a | I39: n/a | J39: n/a | K39: n/a
A40: Micro Embedded generation facilites | E40: 0.9 | G40: n/a | H40: n/a | I40: n/a | J40: n/a | K40: n/a
A41: Reconnection Performance Standard | E41: 0.85 | G41: 1 | H41: 1 | I41: 1 | J41: 1 | K41: 1

Sheet App.2-H_Other_Oper_Rev
K1: File Number: | L1: =EBNUMBER -> EB-2018-0087
K2: Exhibit:
K3: Tab:
A4: TO BE UPDATED AT THE DRAFT RATE ORDER STAGE | K4: Schedule:
K5: Page:
K7: Date:
A9: Appendix 2-H
A10: Other Operating Revenue
B12: Reporting Basis | C12: CGAAP | D12: CGAAP | E12: CGAAP | F12: CGAAP | G12: CGAAP | H12: CGAAP | I12: CGAAP | J12: CGAAP | K12: CBAAP | L12: CGAAP | M12: CGAAP | O12: =B12 -> Reporting Basis
C13: ='[6]0.1 LDC Info'!$E$27 -> 2012 | D13: ='[6]0.1 LDC Info'!$E$27 -> 2012 | E13: ='[6]0.1 LDC Info'!$E$27 -> 2012 | F13: ='[6]0.1 LDC Info'!$E$27+1 -> 2013 | G13: ='[6]0.1 LDC Info'!$E$27+1 -> 2013 | H13: ='[6]0.1 LDC Info'!$E$27+2 -> 2014 | I13: ='[6]0.1 LDC Info'!$E$27+3 -> 2015 | J13: ='[6]0.1 LDC Info'!$E$27+4 -> 2016 | K13: ='[6]0.1 LDC Info'!$E$27+5 -> 2017 | L13: =Bridge_Year -> 2017 | M13: =Test_Year -> 2018
B14: USoA Description | C14: Board Approved
A15: 4235 | B15: 4235-Miscellaneous Service Revenues | C15: =-SUMIF('[6]1.2 TB Historical Balances'!$B$14:$B$567,B15,'[6]1.2 TB Historical Balances'!$H$14:$H$567) -> 0 | D15: =SUMIF('[6]1.2 TB Historical Balances'!$B$14:$B$567,B15,'[6]1.2 TB Historical Balances'!$J$14:$J$567) -> -8156 | E15: =D15 -> -8156 | F15: =SUMIF('[6]1.2 TB Historical Balances'!$B$14:$B$567,B15,'[6]1.2 TB Historical Balances'!$M$14:$M$567) -> -6985 | G15: =F15 -> -6985 | H15: =SUMIF('[6]1.2 TB Historical Balances'!$B$14:$B$567,B15,'[6]1.2 TB Historical Balances'!$P$14:$P$567) -> -9142.17 | I15: =SUMIF('[6]1.2 TB Historical Balances'!$B$14:$B$567,B15,'[6]1.2 TB Historical Balances'!$S$14:$S$567) -> -7995 | J15: =SUMIF('[6]1.2 TB Historical Balances'!$B$14:$B$567,B15,'[6]1.2 TB Historical Balances'!$V$14:$V$567) -> -5580 | K15: =SUMIF('[6]1.2 TB Historical Balances'!$B$14:$B$567,B15,'[6]1.2 TB Historical Balances'!$Y$14:$Y$567) -> -9731 | L15: =SUMIF('[6]1.3 TB Projected Balances'!$B$14:$B$567,B15,'[6]1.3 TB Projected Balances'!$G$14:$G$567) -> -6085 | M15: =SUMIF('[6]1.3 TB Projected Balances'!$B$14:$B$567,B15,'[6]1.3 TB Projected Balances'!$H$14:$H$567) -> -6206.7
A16: 4225 | B16: 4225-Late Payment Charges | C16: =-SUMIF('[6]1.2 TB Historical Balances'!$B$14:$B$567,B16,'[6]1.2 TB Historical Balances'!$H$14:$H$567) -> 0 | D16: =SUMIF('[6]1.2 TB Historical Balances'!$B$14:$B$567,B16,'[6]1.2 TB Historical Balances'!$J$14:$J$567) -> -5624.02 | E16: -5624.02 | F16: =SUMIF('[6]1.2 TB Historical Balances'!$B$14:$B$567,B16,'[6]1.2 TB Historical Balances'!$M$14:$M$567) -> -7192.46 | G16: -7192.46 | H16: =SUMIF('[6]1.2 TB Historical Balances'!$B$14:$B$567,B16,'[6]1.2 TB Historical Balances'!$P$14:$P$567) -> -7545.52 | I16: =SUMIF('[6]1.2 TB Historical Balances'!$B$14:$B$567,B16,'[6]1.2 TB Historical Balances'!$S$14:$S$567) -> -6479.74 | J16: =SUMIF('[6]1.2 TB Historical Balances'!$B$14:$B$567,B16,'[6]1.2 TB Historical Balances'!$V$14:$V$567) -> -5781.98 | K16: =SUMIF('[6]1.2 TB Historical Balances'!$B$14:$B$567,B16,'[6]1.2 TB Historical Balances'!$Y$14:$Y$567) -> -5682.43 | L16: =SUMIF('[6]1.3 TB Projected Balances'!$B$14:$B$567,B16,'[6]1.3 TB Projected Balances'!$G$14:$G$567) -> -5250 | M16: =SUMIF('[6]1.3 TB Projected Balances'!$B$14:$B$567,B16,'[6]1.3 TB Projected Balances'!$H$14:$H$567) -> -5355
A17: =LEFT(B17,4) -> 4082 | B17: ='[6]1.2 TB Historical Balances'!B318 -> 4082-Retail Services Revenues | C17: =-SUMIF('[6]1.2 TB Historical Balances'!$B$14:$B$567,B17,'[6]1.2 TB Historical Balances'!$H$14:$H$567) -> 0 | D17: =SUMIF('[6]1.2 TB Historical Balances'!$B$14:$B$567,B17,'[6]1.2 TB Historical Balances'!$J$14:$J$567) -> -3060.8 | E17: -3060.8 | F17: =SUMIF('[6]1.2 TB Historical Balances'!$B$14:$B$567,B17,'[6]1.2 TB Historical Balances'!$M$14:$M$567) -> -3009 | G17: -3009 | H17: =SUMIF('[6]1.2 TB Historical Balances'!$B$14:$B$567,B17,'[6]1.2 TB Historical Balances'!$P$14:$P$567) -> -2762.7 | I17: =SUMIF('[6]1.2 TB Historical Balances'!$B$14:$B$567,B17,'[6]1.2 TB Historical Balances'!$S$14:$S$567) -> -2705.6 | J17: =SUMIF('[6]1.2 TB Historical Balances'!$B$14:$B$567,B17,'[6]1.2 TB Historical Balances'!$V$14:$V$567) -> -3089.58 | K17: =SUMIF('[6]1.2 TB Historical Balances'!$B$14:$B$567,B17,'[6]1.2 TB Historical Balances'!$Y$14:$Y$567) -> -2748.98 | L17: =SUMIF('[6]1.3 TB Projected Balances'!$B$14:$B$567,B17,'[6]1.3 TB Projected Balances'!$G$14:$G$567) -> -2580 | M17: =SUMIF('[6]1.3 TB Projected Balances'!$B$14:$B$567,B17,'[6]1.3 TB Projected Balances'!$H$14:$H$567) -> -2632
A18: 4084 | B18: ='[6]1.2 TB Historical Balances'!B319 -> 4084-Service Transaction Requests (STR) Revenues | C18: =SUMIF('[6]1.2 TB Historical Balances'!$B$14:$B$567,B18,'[6]1.2 TB Historical Balances'!$H$14:$H$567) -> 0 | D18: =SUMIF('[6]1.2 TB Historical Balances'!$B$14:$B$567,B18,'[6]1.2 TB Historical Balances'!$J$14:$J$567) -> 0 | E18: 0 | F18: =SUMIF('[6]1.2 TB Historical Balances'!$B$14:$B$567,B18,'[6]1.2 TB Historical Balances'!$M$14:$M$567) -> 0 | G18: 0 | H18: =SUMIF('[6]1.2 TB Historical Balances'!$B$14:$B$567,B18,'[6]1.2 TB Historical Balances'!$P$14:$P$567) -> 0 | I18: =SUMIF('[6]1.2 TB Historical Balances'!$B$14:$B$567,B18,'[6]1.2 TB Historical Balances'!$S$14:$S$567) -> 0 | J18: =SUMIF('[6]1.2 TB Historical Balances'!$B$14:$B$567,B18,'[6]1.2 TB Historical Balances'!$V$14:$V$567) -> 0 | K18: =SUMIF('[6]1.2 TB Historical Balances'!$B$14:$B$567,B18,'[6]1.2 TB Historical Balances'!$Y$14:$Y$567) -> 0 | L18: =SUMIF('[6]1.3 TB Projected Balances'!$B$14:$B$567,B18,'[6]1.3 TB Projected Balances'!$G$14:$G$567) -> 0 | M18: =SUMIF('[6]1.3 TB Projected Balances'!$B$14:$B$567,B18,'[6]1.3 TB Projected Balances'!$H$14:$H$567) -> 0
A19: 4086 | B19: ='[6]1.2 TB Historical Balances'!B320 -> 4086-SSS Administration Revenue | C19: =SUMIF('[6]1.2 TB Historical Balances'!$B$14:$B$567,B19,'[6]1.2 TB Historical Balances'!$H$14:$H$567) -> 0 | D19: =SUMIF('[6]1.2 TB Historical Balances'!$B$14:$B$567,B19,'[6]1.2 TB Historical Balances'!$J$14:$J$567) -> -4712.61 | E19: -4712.61 | F19: =SUMIF('[6]1.2 TB Historical Balances'!$B$14:$B$567,B19,'[6]1.2 TB Historical Balances'!$M$14:$M$567) -> -4694.57 | G19: -4694.57 | H19: =SUMIF('[6]1.2 TB Historical Balances'!$B$14:$B$567,B19,'[6]1.2 TB Historical Balances'!$P$14:$P$567) -> -4934.64 | I19: =SUMIF('[6]1.2 TB Historical Balances'!$B$14:$B$567,B19,'[6]1.2 TB Historical Balances'!$S$14:$S$567) -> 0 | J19: =SUMIF('[6]1.2 TB Historical Balances'!$B$14:$B$567,B19,'[6]1.2 TB Historical Balances'!$V$14:$V$567) -> 0 | K19: =SUMIF('[6]1.2 TB Historical Balances'!$B$14:$B$567,B19,'[6]1.2 TB Historical Balances'!$Y$14:$Y$567) -> 0 | L19: =SUMIF('[6]1.3 TB Projected Balances'!$B$14:$B$567,B19,'[6]1.3 TB Projected Balances'!$G$14:$G$567) -> 0 | M19: =SUMIF('[6]1.3 TB Projected Balances'!$B$14:$B$567,B19,'[6]1.3 TB Projected Balances'!$H$14:$H$567) -> 0
A20: 4205 | B20: ='[6]1.2 TB Historical Balances'!B326 -> 4205-Interdepartmental Rents | C20: =SUMIF('[6]1.2 TB Historical Balances'!$B$14:$B$567,B20,'[6]1.2 TB Historical Balances'!$H$14:$H$567) -> 0 | D20: =SUMIF('[6]1.2 TB Historical Balances'!$B$14:$B$567,B20,'[6]1.2 TB Historical Balances'!$J$14:$J$567) -> 0 | E20: 0 | F20: =SUMIF('[6]1.2 TB Historical Balances'!$B$14:$B$567,B20,'[6]1.2 TB Historical Balances'!$M$14:$M$567) -> 0 | G20: 0 | H20: =SUMIF('[6]1.2 TB Historical Balances'!$B$14:$B$567,B20,'[6]1.2 TB Historical Balances'!$P$14:$P$567) -> 0 | I20: =SUMIF('[6]1.2 TB Historical Balances'!$B$14:$B$567,B20,'[6]1.2 TB Historical Balances'!$S$14:$S$567) -> 0 | J20: =SUMIF('[6]1.2 TB Historical Balances'!$B$14:$B$567,B20,'[6]1.2 TB Historical Balances'!$V$14:$V$567) -> 0 | K20: =SUMIF('[6]1.2 TB Historical Balances'!$B$14:$B$567,B20,'[6]1.2 TB Historical Balances'!$Y$14:$Y$567) -> 0 | L20: =SUMIF('[6]1.3 TB Projected Balances'!$B$14:$B$567,B20,'[6]1.3 TB Projected Balances'!$G$14:$G$567) -> 0 | M20: =SUMIF('[6]1.3 TB Projected Balances'!$B$14:$B$567,B20,'[6]1.3 TB Projected Balances'!$H$14:$H$567) -> 0
A21: 4210 | B21: ='[6]1.2 TB Historical Balances'!B327 -> 4210-Rent from Electric Property | C21: =SUMIF('[6]1.2 TB Historical Balances'!$B$14:$B$567,B21,'[6]1.2 TB Historical Balances'!$H$14:$H$567) -> 0 | D21: =SUMIF('[6]1.2 TB Historical Balances'!$B$14:$B$567,B21,'[6]1.2 TB Historical Balances'!$J$14:$J$567) -> -9149.69 | E21: -9149.69 | F21: =SUMIF('[6]1.2 TB Historical Balances'!$B$14:$B$567,B21,'[6]1.2 TB Historical Balances'!$M$14:$M$567) -> -12233.99 | G21: -12233.99 | H21: =SUMIF('[6]1.2 TB Historical Balances'!$B$14:$B$567,B21,'[6]1.2 TB Historical Balances'!$P$14:$P$567) -> -13519.11 | I21: =SUMIF('[6]1.2 TB Historical Balances'!$B$14:$B$567,B21,'[6]1.2 TB Historical Balances'!$S$14:$S$567) -> -13519.11 | J21: =SUMIF('[6]1.2 TB Historical Balances'!$B$14:$B$567,B21,'[6]1.2 TB Historical Balances'!$V$14:$V$567) -> -13519.11 | K21: =SUMIF('[6]1.2 TB Historical Balances'!$B$14:$B$567,B21,'[6]1.2 TB Historical Balances'!$Y$14:$Y$567) -> -13608.51 | L21: =SUMIF('[6]1.3 TB Projected Balances'!$B$14:$B$567,B21,'[6]1.3 TB Projected Balances'!$G$14:$G$567) -> -13450 | M21: =SUMIF('[6]1.3 TB Projected Balances'!$B$14:$B$567,B21,'[6]1.3 TB Projected Balances'!$H$14:$H$567) -> -13719
A22: 4215 | B22: ='[6]1.2 TB Historical Balances'!B328 -> 4215-Other Utility Operating Income | C22: =SUMIF('[6]1.2 TB Historical Balances'!$B$14:$B$567,B22,'[6]1.2 TB Historical Balances'!$H$14:$H$567) -> 0 | D22: =SUMIF('[6]1.2 TB Historical Balances'!$B$14:$B$567,B22,'[6]1.2 TB Historical Balances'!$J$14:$J$567) -> 0 | E22: 0 | F22: =SUMIF('[6]1.2 TB Historical Balances'!$B$14:$B$567,B22,'[6]1.2 TB Historical Balances'!$M$14:$M$567) -> 0 | G22: 0 | H22: =SUMIF('[6]1.2 TB Historical Balances'!$B$14:$B$567,B22,'[6]1.2 TB Historical Balances'!$P$14:$P$567) -> 0 | I22: =SUMIF('[6]1.2 TB Historical Balances'!$B$14:$B$567,B22,'[6]1.2 TB Historical Balances'!$S$14:$S$567) -> 0 | J22: =SUMIF('[6]1.2 TB Historical Balances'!$B$14:$B$567,B22,'[6]1.2 TB Historical Balances'!$V$14:$V$567) -> 0 | K22: =SUMIF('[6]1.2 TB Historical Balances'!$B$14:$B$567,B22,'[6]1.2 TB Historical Balances'!$Y$14:$Y$567) -> 0 | L22: =SUMIF('[6]1.3 TB Projected Balances'!$B$14:$B$567,B22,'[6]1.3 TB Projected Balances'!$G$14:$G$567) -> 0 | M22: =SUMIF('[6]1.3 TB Projected Balances'!$B$14:$B$567,B22,'[6]1.3 TB Projected Balances'!$H$14:$H$567) -> 0
A23: 4220 | B23: ='[6]1.2 TB Historical Balances'!B329 -> 4220-Other Electric Revenues | C23: =SUMIF('[6]1.2 TB Historical Balances'!$B$14:$B$567,B23,'[6]1.2 TB Historical Balances'!$H$14:$H$567) -> 0 | D23: =SUMIF('[6]1.2 TB Historical Balances'!$B$14:$B$567,B23,'[6]1.2 TB Historical Balances'!$J$14:$J$567) -> 0 | E23: 0 | F23: =SUMIF('[6]1.2 TB Historical Balances'!$B$14:$B$567,B23,'[6]1.2 TB Historical Balances'!$M$14:$M$567) -> 0 | G23: 0 | H23: =SUMIF('[6]1.2 TB Historical Balances'!$B$14:$B$567,B23,'[6]1.2 TB Historical Balances'!$P$14:$P$567) -> 0 | I23: =SUMIF('[6]1.2 TB Historical Balances'!$B$14:$B$567,B23,'[6]1.2 TB Historical Balances'!$S$14:$S$567) -> 0 | J23: =SUMIF('[6]1.2 TB Historical Balances'!$B$14:$B$567,B23,'[6]1.2 TB Historical Balances'!$V$14:$V$567) -> 0 | K23: =SUMIF('[6]1.2 TB Historical Balances'!$B$14:$B$567,B23,'[6]1.2 TB Historical Balances'!$Y$14:$Y$567) -> 0 | L23: =SUMIF('[6]1.3 TB Projected Balances'!$B$14:$B$567,B23,'[6]1.3 TB Projected Balances'!$G$14:$G$567) -> 0 | M23: =SUMIF('[6]1.3 TB Projected Balances'!$B$14:$B$567,B23,'[6]1.3 TB Projected Balances'!$H$14:$H$567) -> 0
A24: 4240 | B24: ='[6]1.2 TB Historical Balances'!B333 -> 4240-Provision for Rate Refunds | C24: =SUMIF('[6]1.2 TB Historical Balances'!$B$14:$B$567,B24,'[6]1.2 TB Historical Balances'!$H$14:$H$567) -> 0 | D24: =SUMIF('[6]1.2 TB Historical Balances'!$B$14:$B$567,B24,'[6]1.2 TB Historical Balances'!$J$14:$J$567) -> 0 | E24: 0 | F24: =SUMIF('[6]1.2 TB Historical Balances'!$B$14:$B$567,B24,'[6]1.2 TB Historical Balances'!$M$14:$M$567) -> 0 | G24: 0 | H24: =SUMIF('[6]1.2 TB Historical Balances'!$B$14:$B$567,B24,'[6]1.2 TB Historical Balances'!$P$14:$P$567) -> 0 | I24: =SUMIF('[6]1.2 TB Historical Balances'!$B$14:$B$567,B24,'[6]1.2 TB Historical Balances'!$S$14:$S$567) -> 0 | J24: =SUMIF('[6]1.2 TB Historical Balances'!$B$14:$B$567,B24,'[6]1.2 TB Historical Balances'!$V$14:$V$567) -> 0 | K24: =SUMIF('[6]1.2 TB Historical Balances'!$B$14:$B$567,B24,'[6]1.2 TB Historical Balances'!$Y$14:$Y$567) -> 0 | L24: =SUMIF('[6]1.3 TB Projected Balances'!$B$14:$B$567,B24,'[6]1.3 TB Projected Balances'!$G$14:$G$567) -> 0 | M24: =SUMIF('[6]1.3 TB Projected Balances'!$B$14:$B$567,B24,'[6]1.3 TB Projected Balances'!$H$14:$H$567) -> 0
A25: 4245 | B25: ='[6]1.2 TB Historical Balances'!B334 -> 4245-Government Assistance Directly Credited to Income | C25: =SUMIF('[6]1.2 TB Historical Balances'!$B$14:$B$567,B25,'[6]1.2 TB Historical Balances'!$H$14:$H$567) -> 0 | D25: =SUMIF('[6]1.2 TB Historical Balances'!$B$14:$B$567,B25,'[6]1.2 TB Historical Balances'!$J$14:$J$567) -> 0 | E25: 0 | F25: =SUMIF('[6]1.2 TB Historical Balances'!$B$14:$B$567,B25,'[6]1.2 TB Historical Balances'!$M$14:$M$567) -> 0 | G25: 0 | H25: =SUMIF('[6]1.2 TB Historical Balances'!$B$14:$B$567,B25,'[6]1.2 TB Historical Balances'!$P$14:$P$567) -> 0 | I25: =SUMIF('[6]1.2 TB Historical Balances'!$B$14:$B$567,B25,'[6]1.2 TB Historical Balances'!$S$14:$S$567) -> 0 | J25: =SUMIF('[6]1.2 TB Historical Balances'!$B$14:$B$567,B25,'[6]1.2 TB Historical Balances'!$V$14:$V$567) -> 0 | K25: =SUMIF('[6]1.2 TB Historical Balances'!$B$14:$B$567,B25,'[6]1.2 TB Historical Balances'!$Y$14:$Y$567) -> 0 | L25: =SUMIF('[6]1.3 TB Projected Balances'!$B$14:$B$567,B25,'[6]1.3 TB Projected Balances'!$G$14:$G$567) -> 0 | M25: =SUMIF('[6]1.3 TB Projected Balances'!$B$14:$B$567,B25,'[6]1.3 TB Projected Balances'!$H$14:$H$567) -> 0
C26: -6000 | D26: =SUMIF('[6]1.2 TB Historical Balances'!$B$14:$B$567,B26,'[6]1.2 TB Historical Balances'!$J$14:$J$567) -> 0 | E26: 0 | F26: =SUMIF('[6]1.2 TB Historical Balances'!$B$14:$B$567,B26,'[6]1.2 TB Historical Balances'!$M$14:$M$567) -> 0 | G26: 0 | H26: =SUMIF('[6]1.2 TB Historical Balances'!$B$14:$B$567,B26,'[6]1.2 TB Historical Balances'!$P$14:$P$567) -> 0 | I26: =SUMIF('[6]1.2 TB Historical Balances'!$B$14:$B$567,B26,'[6]1.2 TB Historical Balances'!$S$14:$S$567) -> 0 | J26: =SUMIF('[6]1.2 TB Historical Balances'!$B$14:$B$567,B26,'[6]1.2 TB Historical Balances'!$V$14:$V$567) -> 0 | K26: =SUMIF('[6]1.2 TB Historical Balances'!$B$14:$B$567,B26,'[6]1.2 TB Historical Balances'!$Y$14:$Y$567) -> 0 | L26: =SUMIF('[6]1.3 TB Projected Balances'!$B$14:$B$567,B26,'[6]1.3 TB Projected Balances'!$G$14:$G$567) -> 0 | M26: =SUMIF('[6]1.3 TB Projected Balances'!$B$14:$B$567,B26,'[6]1.3 TB Projected Balances'!$H$14:$H$567) -> 0
A27: 4305 | B27: ='[6]1.2 TB Historical Balances'!B337 -> 4305-Regulatory Debits | C27: =SUMIF('[6]1.2 TB Historical Balances'!$B$14:$B$567,B27,'[6]1.2 TB Historical Balances'!$H$14:$H$567) -> 0 | D27: =SUMIF('[6]1.2 TB Historical Balances'!$B$14:$B$567,B27,'[6]1.2 TB Historical Balances'!$J$14:$J$567) -> 0 | E27: 0 | F27: =SUMIF('[6]1.2 TB Historical Balances'!$B$14:$B$567,B27,'[6]1.2 TB Historical Balances'!$M$14:$M$567) -> 24413.39 | G27: 24413.39 | H27: =SUMIF('[6]1.2 TB Historical Balances'!$B$14:$B$567,B27,'[6]1.2 TB Historical Balances'!$P$14:$P$567) -> 20042 | I27: =SUMIF('[6]1.2 TB Historical Balances'!$B$14:$B$567,B27,'[6]1.2 TB Historical Balances'!$S$14:$S$567) -> 45468 | J27: =SUMIF('[6]1.2 TB Historical Balances'!$B$14:$B$567,B27,'[6]1.2 TB Historical Balances'!$V$14:$V$567) -> 0 | K27: =SUMIF('[6]1.2 TB Historical Balances'!$B$14:$B$567,B27,'[6]1.2 TB Historical Balances'!$Y$14:$Y$567) -> 0 | L27: =SUMIF('[6]1.3 TB Projected Balances'!$B$14:$B$567,B27,'[6]1.3 TB Projected Balances'!$G$14:$G$567) -> 0 | M27: =SUMIF('[6]1.3 TB Projected Balances'!$B$14:$B$567,B27,'[6]1.3 TB Projected Balances'!$H$14:$H$567) -> 0
A28: 4310 | B28: ='[6]1.2 TB Historical Balances'!B338 -> 4310-Regulatory Credits | C28: =SUMIF('[6]1.2 TB Historical Balances'!$B$14:$B$567,B28,'[6]1.2 TB Historical Balances'!$H$14:$H$567) -> 0 | D28: =SUMIF('[6]1.2 TB Historical Balances'!$B$14:$B$567,B28,'[6]1.2 TB Historical Balances'!$J$14:$J$567) -> 0 | E28: 0 | F28: =SUMIF('[6]1.2 TB Historical Balances'!$B$14:$B$567,B28,'[6]1.2 TB Historical Balances'!$M$14:$M$567) -> 0 | G28: 0 | H28: =SUMIF('[6]1.2 TB Historical Balances'!$B$14:$B$567,B28,'[6]1.2 TB Historical Balances'!$P$14:$P$567) -> 0 | I28: =SUMIF('[6]1.2 TB Historical Balances'!$B$14:$B$567,B28,'[6]1.2 TB Historical Balances'!$S$14:$S$567) -> 0 | J28: =SUMIF('[6]1.2 TB Historical Balances'!$B$14:$B$567,B28,'[6]1.2 TB Historical Balances'!$V$14:$V$567) -> 0 | K28: =SUMIF('[6]1.2 TB Historical Balances'!$B$14:$B$567,B28,'[6]1.2 TB Historical Balances'!$Y$14:$Y$567) -> 0 | L28: =SUMIF('[6]1.3 TB Projected Balances'!$B$14:$B$567,B28,'[6]1.3 TB Projected Balances'!$G$14:$G$567) -> 0 | M28: =SUMIF('[6]1.3 TB Projected Balances'!$B$14:$B$567,B28,'[6]1.3 TB Projected Balances'!$H$14:$H$567) -> 0
A29: 4315 | B29: ='[6]1.2 TB Historical Balances'!B339 -> 4315-Revenues from Electric Plant Leased to Others | C29: =SUMIF('[6]1.2 TB Historical Balances'!$B$14:$B$567,B29,'[6]1.2 TB Historical Balances'!$H$14:$H$567) -> 0 | D29: =SUMIF('[6]1.2 TB Historical Balances'!$B$14:$B$567,B29,'[6]1.2 TB Historical Balances'!$J$14:$J$567) -> 0 | E29: 0 | F29: =SUMIF('[6]1.2 TB Historical Balances'!$B$14:$B$567,B29,'[6]1.2 TB Historical Balances'!$M$14:$M$567) -> 0 | G29: 0 | H29: =SUMIF('[6]1.2 TB Historical Balances'!$B$14:$B$567,B29,'[6]1.2 TB Historical Balances'!$P$14:$P$567) -> 0 | I29: =SUMIF('[6]1.2 TB Historical Balances'!$B$14:$B$567,B29,'[6]1.2 TB Historical Balances'!$S$14:$S$567) -> 0 | J29: =SUMIF('[6]1.2 TB Historical Balances'!$B$14:$B$567,B29,'[6]1.2 TB Historical Balances'!$V$14:$V$567) -> 0 | K29: =SUMIF('[6]1.2 TB Historical Balances'!$B$14:$B$567,B29,'[6]1.2 TB Historical Balances'!$Y$14:$Y$567) -> 0 | L29: =SUMIF('[6]1.3 TB Projected Balances'!$B$14:$B$567,B29,'[6]1.3 TB Projected Balances'!$G$14:$G$567) -> 0 | M29: =SUMIF('[6]1.3 TB Projected Balances'!$B$14:$B$567,B29,'[6]1.3 TB Projected Balances'!$H$14:$H$567) -> 0
A30: 4320 | B30: ='[6]1.2 TB Historical Balances'!B340 -> 4320-Expenses of Electric Plant Leased to Others | C30: =SUMIF('[6]1.2 TB Historical Balances'!$B$14:$B$567,B30,'[6]1.2 TB Historical Balances'!$H$14:$H$567) -> 0 | D30: =SUMIF('[6]1.2 TB Historical Balances'!$B$14:$B$567,B30,'[6]1.2 TB Historical Balances'!$J$14:$J$567) -> 0 | E30: 0 | F30: =SUMIF('[6]1.2 TB Historical Balances'!$B$14:$B$567,B30,'[6]1.2 TB Historical Balances'!$M$14:$M$567) -> 0 | G30: 0 | H30: =SUMIF('[6]1.2 TB Historical Balances'!$B$14:$B$567,B30,'[6]1.2 TB Historical Balances'!$P$14:$P$567) -> 0 | I30: =SUMIF('[6]1.2 TB Historical Balances'!$B$14:$B$567,B30,'[6]1.2 TB Historical Balances'!$S$14:$S$567) -> 0 | J30: =SUMIF('[6]1.2 TB Historical Balances'!$B$14:$B$567,B30,'[6]1.2 TB Historical Balances'!$V$14:$V$567) -> 0 | K30: =SUMIF('[6]1.2 TB Historical Balances'!$B$14:$B$567,B30,'[6]1.2 TB Historical Balances'!$Y$14:$Y$567) -> 0 | L30: =SUMIF('[6]1.3 TB Projected Balances'!$B$14:$B$567,B30,'[6]1.3 TB Projected Balances'!$G$14:$G$567) -> 0 | M30: =SUMIF('[6]1.3 TB Projected Balances'!$B$14:$B$567,B30,'[6]1.3 TB Projected Balances'!$H$14:$H$567) -> 0
A31: 4324 | B31: ='[6]1.2 TB Historical Balances'!B341 -> 4324-Special Purpose Charge Recovery | C31: =SUMIF('[6]1.2 TB Historical Balances'!$B$14:$B$567,B31,'[6]1.2 TB Historical Balances'!$H$14:$H$567) -> 0 | D31: =SUMIF('[6]1.2 TB Historical Balances'!$B$14:$B$567,B31,'[6]1.2 TB Historical Balances'!$J$14:$J$567) -> 0 | E31: 0 | F31: =SUMIF('[6]1.2 TB Historical Balances'!$B$14:$B$567,B31,'[6]1.2 TB Historical Balances'!$M$14:$M$567) -> 0 | G31: 0 | H31: =SUMIF('[6]1.2 TB Historical Balances'!$B$14:$B$567,B31,'[6]1.2 TB Historical Balances'!$P$14:$P$567) -> 0 | I31: =SUMIF('[6]1.2 TB Historical Balances'!$B$14:$B$567,B31,'[6]1.2 TB Historical Balances'!$S$14:$S$567) -> 0 | J31: =SUMIF('[6]1.2 TB Historical Balances'!$B$14:$B$567,B31,'[6]1.2 TB Historical Balances'!$V$14:$V$567) -> 0 | K31: =SUMIF('[6]1.2 TB Historical Balances'!$B$14:$B$567,B31,'[6]1.2 TB Historical Balances'!$Y$14:$Y$567) -> 0 | L31: =SUMIF('[6]1.3 TB Projected Balances'!$B$14:$B$567,B31,'[6]1.3 TB Projected Balances'!$G$14:$G$567) -> 0 | M31: =SUMIF('[6]1.3 TB Projected Balances'!$B$14:$B$567,B31,'[6]1.3 TB Projected Balances'!$H$14:$H$567) -> 0
A32: 4325 | B32: ='[6]1.2 TB Historical Balances'!B342 -> 4325-Revenues from Merchandise Jobbing, Etc. | C32: =SUMIF('[6]1.2 TB Historical Balances'!$B$14:$B$567,B32,'[6]1.2 TB Historical Balances'!$H$14:$H$567) -> 0 | D32: =SUMIF('[6]1.2 TB Historical Balances'!$B$14:$B$567,B32,'[6]1.2 TB Historical Balances'!$J$14:$J$567) -> 652.38 | E32: 652.38 | F32: =SUMIF('[6]1.2 TB Historical Balances'!$B$14:$B$567,B32,'[6]1.2 TB Historical Balances'!$M$14:$M$567) -> 2378.94 | G32: 2378.94 | H32: =SUMIF('[6]1.2 TB Historical Balances'!$B$14:$B$567,B32,'[6]1.2 TB Historical Balances'!$P$14:$P$567) -> -6121.48 | I32: =SUMIF('[6]1.2 TB Historical Balances'!$B$14:$B$567,B32,'[6]1.2 TB Historical Balances'!$S$14:$S$567) -> -825.39 | J32: =SUMIF('[6]1.2 TB Historical Balances'!$B$14:$B$567,B32,'[6]1.2 TB Historical Balances'!$V$14:$V$567) -> -18558.78 | K32: =SUMIF('[6]1.2 TB Historical Balances'!$B$14:$B$567,B32,'[6]1.2 TB Historical Balances'!$Y$14:$Y$567) -> -14.98 | L32: =SUMIF('[6]1.3 TB Projected Balances'!$B$14:$B$567,B32,'[6]1.3 TB Projected Balances'!$G$14:$G$567) -> 0 | M32: =SUMIF('[6]1.3 TB Projected Balances'!$B$14:$B$567,B32,'[6]1.3 TB Projected Balances'!$H$14:$H$567) -> 0
A33: 4330 | B33: ='[6]1.2 TB Historical Balances'!B343 -> 4330-Costs and Expenses of Merchandising Jobbing, Etc. | C33: =SUMIF('[6]1.2 TB Historical Balances'!$B$14:$B$567,B33,'[6]1.2 TB Historical Balances'!$H$14:$H$567) -> 0 | D33: =SUMIF('[6]1.2 TB Historical Balances'!$B$14:$B$567,B33,'[6]1.2 TB Historical Balances'!$J$14:$J$567) -> 0 | E33: 0 | F33: =SUMIF('[6]1.2 TB Historical Balances'!$B$14:$B$567,B33,'[6]1.2 TB Historical Balances'!$M$14:$M$567) -> -1487.1 | G33: -1487.1 | H33: =SUMIF('[6]1.2 TB Historical Balances'!$B$14:$B$567,B33,'[6]1.2 TB Historical Balances'!$P$14:$P$567) -> 0 | I33: =SUMIF('[6]1.2 TB Historical Balances'!$B$14:$B$567,B33,'[6]1.2 TB Historical Balances'!$S$14:$S$567) -> -1320.07 | J33: =SUMIF('[6]1.2 TB Historical Balances'!$B$14:$B$567,B33,'[6]1.2 TB Historical Balances'!$V$14:$V$567) -> -1496.24 | K33: =SUMIF('[6]1.2 TB Historical Balances'!$B$14:$B$567,B33,'[6]1.2 TB Historical Balances'!$Y$14:$Y$567) -> 0 | L33: =SUMIF('[6]1.3 TB Projected Balances'!$B$14:$B$567,B33,'[6]1.3 TB Projected Balances'!$G$14:$G$567) -> 0 | M33: =SUMIF('[6]1.3 TB Projected Balances'!$B$14:$B$567,B33,'[6]1.3 TB Projected Balances'!$H$14:$H$567) -> 0
A34: 4335 | B34: ='[6]1.2 TB Historical Balances'!B344 -> 4335-Profits and Losses from Financial Instrument Hedges | C34: =SUMIF('[6]1.2 TB Historical Balances'!$B$14:$B$567,B34,'[6]1.2 TB Historical Balances'!$H$14:$H$567) -> 0 | D34: =SUMIF('[6]1.2 TB Historical Balances'!$B$14:$B$567,B34,'[6]1.2 TB Historical Balances'!$J$14:$J$567) -> 0 | E34: 0 | F34: =SUMIF('[6]1.2 TB Historical Balances'!$B$14:$B$567,B34,'[6]1.2 TB Historical Balances'!$M$14:$M$567) -> 0 | G34: 0 | H34: =SUMIF('[6]1.2 TB Historical Balances'!$B$14:$B$567,B34,'[6]1.2 TB Historical Balances'!$P$14:$P$567) -> 0 | I34: =SUMIF('[6]1.2 TB Historical Balances'!$B$14:$B$567,B34,'[6]1.2 TB Historical Balances'!$S$14:$S$567) -> 0 | J34: =SUMIF('[6]1.2 TB Historical Balances'!$B$14:$B$567,B34,'[6]1.2 TB Historical Balances'!$V$14:$V$567) -> 0 | K34: =SUMIF('[6]1.2 TB Historical Balances'!$B$14:$B$567,B34,'[6]1.2 TB Historical Balances'!$Y$14:$Y$567) -> 0 | L34: =SUMIF('[6]1.3 TB Projected Balances'!$B$14:$B$567,B34,'[6]1.3 TB Projected Balances'!$G$14:$G$567) -> 0 | M34: =SUMIF('[6]1.3 TB Projected Balances'!$B$14:$B$567,B34,'[6]1.3 TB Projected Balances'!$H$14:$H$567) -> 0
A35: 4340 | B35: ='[6]1.2 TB Historical Balances'!B345 -> 4340-Profits and Losses from Financial Instrument Investments | C35: =SUMIF('[6]1.2 TB Historical Balances'!$B$14:$B$567,B35,'[6]1.2 TB Historical Balances'!$H$14:$H$567) -> 0 | D35: =SUMIF('[6]1.2 TB Historical Balances'!$B$14:$B$567,B35,'[6]1.2 TB Historical Balances'!$J$14:$J$567) -> 0 | E35: 0 | F35: =SUMIF('[6]1.2 TB Historical Balances'!$B$14:$B$567,B35,'[6]1.2 TB Historical Balances'!$M$14:$M$567) -> 0 | G35: 0 | H35: =SUMIF('[6]1.2 TB Historical Balances'!$B$14:$B$567,B35,'[6]1.2 TB Historical Balances'!$P$14:$P$567) -> 0 | I35: =SUMIF('[6]1.2 TB Historical Balances'!$B$14:$B$567,B35,'[6]1.2 TB Historical Balances'!$S$14:$S$567) -> 0 | J35: =SUMIF('[6]1.2 TB Historical Balances'!$B$14:$B$567,B35,'[6]1.2 TB Historical Balances'!$V$14:$V$567) -> 0 | K35: =SUMIF('[6]1.2 TB Historical Balances'!$B$14:$B$567,B35,'[6]1.2 TB Historical Balances'!$Y$14:$Y$567) -> 0 | L35: =SUMIF('[6]1.3 TB Projected Balances'!$B$14:$B$567,B35,'[6]1.3 TB Projected Balances'!$G$14:$G$567) -> 0 | M35: =SUMIF('[6]1.3 TB Projected Balances'!$B$14:$B$567,B35,'[6]1.3 TB Projected Balances'!$H$14:$H$567) -> 0
A36: 4345 | B36: ='[6]1.2 TB Historical Balances'!B346 -> 4345-Gains from Disposition of Future Use Utility Plant | C36: =SUMIF('[6]1.2 TB Historical Balances'!$B$14:$B$567,B36,'[6]1.2 TB Historical Balances'!$H$14:$H$567) -> 0 | D36: =SUMIF('[6]1.2 TB Historical Balances'!$B$14:$B$567,B36,'[6]1.2 TB Historical Balances'!$J$14:$J$567) -> 0 | E36: 0 | F36: =SUMIF('[6]1.2 TB Historical Balances'!$B$14:$B$567,B36,'[6]1.2 TB Historical Balances'!$M$14:$M$567) -> 0 | G36: 0 | H36: =SUMIF('[6]1.2 TB Historical Balances'!$B$14:$B$567,B36,'[6]1.2 TB Historical Balances'!$P$14:$P$567) -> 0 | I36: =SUMIF('[6]1.2 TB Historical Balances'!$B$14:$B$567,B36,'[6]1.2 TB Historical Balances'!$S$14:$S$567) -> 0 | J36: =SUMIF('[6]1.2 TB Historical Balances'!$B$14:$B$567,B36,'[6]1.2 TB Historical Balances'!$V$14:$V$567) -> 0 | K36: =SUMIF('[6]1.2 TB Historical Balances'!$B$14:$B$567,B36,'[6]1.2 TB Historical Balances'!$Y$14:$Y$567) -> 0 | L36: =SUMIF('[6]1.3 TB Projected Balances'!$B$14:$B$567,B36,'[6]1.3 TB Projected Balances'!$G$14:$G$567) -> 0 | M36: =SUMIF('[6]1.3 TB Projected Balances'!$B$14:$B$567,B36,'[6]1.3 TB Projected Balances'!$H$14:$H$567) -> 0
A37: 4350 | B37: ='[6]1.2 TB Historical Balances'!B347 -> 4350-Losses from Disposition of Future Use Utility Plant | C37: =SUMIF('[6]1.2 TB Historical Balances'!$B$14:$B$567,B37,'[6]1.2 TB Historical Balances'!$H$14:$H$567) -> 0 | D37: =SUMIF('[6]1.2 TB Historical Balances'!$B$14:$B$567,B37,'[6]1.2 TB Historical Balances'!$J$14:$J$567) -> 0 | E37: 0 | F37: =SUMIF('[6]1.2 TB Historical Balances'!$B$14:$B$567,B37,'[6]1.2 TB Historical Balances'!$M$14:$M$567) -> 0 | G37: 0 | H37: =SUMIF('[6]1.2 TB Historical Balances'!$B$14:$B$567,B37,'[6]1.2 TB Historical Balances'!$P$14:$P$567) -> 0 | I37: =SUMIF('[6]1.2 TB Historical Balances'!$B$14:$B$567,B37,'[6]1.2 TB Historical Balances'!$S$14:$S$567) -> 0 | J37: =SUMIF('[6]1.2 TB Historical Balances'!$B$14:$B$567,B37,'[6]1.2 TB Historical Balances'!$V$14:$V$567) -> 0 | K37: =SUMIF('[6]1.2 TB Historical Balances'!$B$14:$B$567,B37,'[6]1.2 TB Historical Balances'!$Y$14:$Y$567) -> 0 | L37: =SUMIF('[6]1.3 TB Projected Balances'!$B$14:$B$567,B37,'[6]1.3 TB Projected Balances'!$G$14:$G$567) -> 0 | M37: =SUMIF('[6]1.3 TB Projected Balances'!$B$14:$B$567,B37,'[6]1.3 TB Projected Balances'!$H$14:$H$567) -> 0
A38: 4355 | B38: ='[6]1.2 TB Historical Balances'!B348 -> 4355-Gain on Disposition of Utility and Other Property | C38: =SUMIF('[6]1.2 TB Historical Balances'!$B$14:$B$567,B38,'[6]1.2 TB Historical Balances'!$H$14:$H$567) -> 0 | D38: =SUMIF('[6]1.2 TB Historical Balances'!$B$14:$B$567,B38,'[6]1.2 TB Historical Balances'!$J$14:$J$567) -> 0 | E38: 0 | F38: =SUMIF('[6]1.2 TB Historical Balances'!$B$14:$B$567,B38,'[6]1.2 TB Historical Balances'!$M$14:$M$567) -> 0 | G38: 0 | H38: =SUMIF('[6]1.2 TB Historical Balances'!$B$14:$B$567,B38,'[6]1.2 TB Historical Balances'!$P$14:$P$567) -> 0 | I38: =SUMIF('[6]1.2 TB Historical Balances'!$B$14:$B$567,B38,'[6]1.2 TB Historical Balances'!$S$14:$S$567) -> 0 | J38: =SUMIF('[6]1.2 TB Historical Balances'!$B$14:$B$567,B38,'[6]1.2 TB Historical Balances'!$V$14:$V$567) -> 0 | K38: =SUMIF('[6]1.2 TB Historical Balances'!$B$14:$B$567,B38,'[6]1.2 TB Historical Balances'!$Y$14:$Y$567) -> 0 | L38: =SUMIF('[6]1.3 TB Projected Balances'!$B$14:$B$567,B38,'[6]1.3 TB Projected Balances'!$G$14:$G$567) -> -50000 | M38: =SUMIF('[6]1.3 TB Projected Balances'!$B$14:$B$567,B38,'[6]1.3 TB Projected Balances'!$H$14:$H$567) -> 0
A39: 4360 | B39: ='[6]1.2 TB Historical Balances'!B349 -> 4360-Loss on Disposition of Utility and Other Property | C39: =SUMIF('[6]1.2 TB Historical Balances'!$B$14:$B$567,B39,'[6]1.2 TB Historical Balances'!$H$14:$H$567) -> 0 | D39: =SUMIF('[6]1.2 TB Historical Balances'!$B$14:$B$567,B39,'[6]1.2 TB Historical Balances'!$J$14:$J$567) -> 0 | E39: 0 | F39: =SUMIF('[6]1.2 TB Historical Balances'!$B$14:$B$567,B39,'[6]1.2 TB Historical Balances'!$M$14:$M$567) -> 0 | G39: 0 | H39: =SUMIF('[6]1.2 TB Historical Balances'!$B$14:$B$567,B39,'[6]1.2 TB Historical Balances'!$P$14:$P$567) -> 0 | I39: =SUMIF('[6]1.2 TB Historical Balances'!$B$14:$B$567,B39,'[6]1.2 TB Historical Balances'!$S$14:$S$567) -> 0 | J39: =SUMIF('[6]1.2 TB Historical Balances'!$B$14:$B$567,B39,'[6]1.2 TB Historical Balances'!$V$14:$V$567) -> 0 | K39: =SUMIF('[6]1.2 TB Historical Balances'!$B$14:$B$567,B39,'[6]1.2 TB Historical Balances'!$Y$14:$Y$567) -> 0 | L39: =SUMIF('[6]1.3 TB Projected Balances'!$B$14:$B$567,B39,'[6]1.3 TB Projected Balances'!$G$14:$G$567) -> 0 | M39: =SUMIF('[6]1.3 TB Projected Balances'!$B$14:$B$567,B39,'[6]1.3 TB Projected Balances'!$H$14:$H$567) -> 0
A40: 4365 | B40: ='[6]1.2 TB Historical Balances'!B350 -> 4365-Gains from Disposition of Allowances for Emission | C40: =SUMIF('[6]1.2 TB Historical Balances'!$B$14:$B$567,B40,'[6]1.2 TB Historical Balances'!$H$14:$H$567) -> 0 | D40: =SUMIF('[6]1.2 TB Historical Balances'!$B$14:$B$567,B40,'[6]1.2 TB Historical Balances'!$J$14:$J$567) -> 0 | E40: 0 | F40: =SUMIF('[6]1.2 TB Historical Balances'!$B$14:$B$567,B40,'[6]1.2 TB Historical Balances'!$M$14:$M$567) -> 0 | G40: 0 | H40: =SUMIF('[6]1.2 TB Historical Balances'!$B$14:$B$567,B40,'[6]1.2 TB Historical Balances'!$P$14:$P$567) -> 0 | I40: =SUMIF('[6]1.2 TB Historical Balances'!$B$14:$B$567,B40,'[6]1.2 TB Historical Balances'!$S$14:$S$567) -> 0 | J40: =SUMIF('[6]1.2 TB Historical Balances'!$B$14:$B$567,B40,'[6]1.2 TB Historical Balances'!$V$14:$V$567) -> 0 | K40: =SUMIF('[6]1.2 TB Historical Balances'!$B$14:$B$567,B40,'[6]1.2 TB Historical Balances'!$Y$14:$Y$567) -> 0 | L40: =SUMIF('[6]1.3 TB Projected Balances'!$B$14:$B$567,B40,'[6]1.3 TB Projected Balances'!$G$14:$G$567) -> 0 | M40: =SUMIF('[6]1.3 TB Projected Balances'!$B$14:$B$567,B40,'[6]1.3 TB Projected Balances'!$H$14:$H$567) -> 0
A41: 4370 | B41: ='[6]1.2 TB Historical Balances'!B351 -> 4370-Losses from Disposition of Allowances for Emission | C41: =SUMIF('[6]1.2 TB Historical Balances'!$B$14:$B$567,B41,'[6]1.2 TB Historical Balances'!$H$14:$H$567) -> 0 | D41: =SUMIF('[6]1.2 TB Historical Balances'!$B$14:$B$567,B41,'[6]1.2 TB Historical Balances'!$J$14:$J$567) -> 0 | E41: 0 | F41: =SUMIF('[6]1.2 TB Historical Balances'!$B$14:$B$567,B41,'[6]1.2 TB Historical Balances'!$M$14:$M$567) -> 0 | G41: 0 | H41: =SUMIF('[6]1.2 TB Historical Balances'!$B$14:$B$567,B41,'[6]1.2 TB Historical Balances'!$P$14:$P$567) -> 0 | I41: =SUMIF('[6]1.2 TB Historical Balances'!$B$14:$B$567,B41,'[6]1.2 TB Historical Balances'!$S$14:$S$567) -> 0 | J41: =SUMIF('[6]1.2 TB Historical Balances'!$B$14:$B$567,B41,'[6]1.2 TB Historical Balances'!$V$14:$V$567) -> 0 | K41: =SUMIF('[6]1.2 TB Historical Balances'!$B$14:$B$567,B41,'[6]1.2 TB Historical Balances'!$Y$14:$Y$567) -> 0 | L41: =SUMIF('[6]1.3 TB Projected Balances'!$B$14:$B$567,B41,'[6]1.3 TB Projected Balances'!$G$14:$G$567) -> 0 | M41: =SUMIF('[6]1.3 TB Projected Balances'!$B$14:$B$567,B41,'[6]1.3 TB Projected Balances'!$H$14:$H$567) -> 0
A42: 4375 | B42: ='[6]1.2 TB Historical Balances'!B352 -> 4375-Revenues from Non-Utility Operations | C42: =SUMIF('[6]1.2 TB Historical Balances'!$B$14:$B$567,B42,'[6]1.2 TB Historical Balances'!$H$14:$H$567) -> 0 | D42: =SUMIF('[6]1.2 TB Historical Balances'!$B$14:$B$567,B42,'[6]1.2 TB Historical Balances'!$J$14:$J$567) -> 0 | E42: 0 | F42: =SUMIF('[6]1.2 TB Historical Balances'!$B$14:$B$567,B42,'[6]1.2 TB Historical Balances'!$M$14:$M$567) -> 0 | G42: 0 | H42: =SUMIF('[6]1.2 TB Historical Balances'!$B$14:$B$567,B42,'[6]1.2 TB Historical Balances'!$P$14:$P$567) -> 0 | I42: =SUMIF('[6]1.2 TB Historical Balances'!$B$14:$B$567,B42,'[6]1.2 TB Historical Balances'!$S$14:$S$567) -> 0 | J42: =SUMIF('[6]1.2 TB Historical Balances'!$B$14:$B$567,B42,'[6]1.2 TB Historical Balances'!$V$14:$V$567) -> 0 | K42: =SUMIF('[6]1.2 TB Historical Balances'!$B$14:$B$567,B42,'[6]1.2 TB Historical Balances'!$Y$14:$Y$567) -> 0 | L42: =SUMIF('[6]1.3 TB Projected Balances'!$B$14:$B$567,B42,'[6]1.3 TB Projected Balances'!$G$14:$G$567) -> 0 | M42: =SUMIF('[6]1.3 TB Projected Balances'!$B$14:$B$567,B42,'[6]1.3 TB Projected Balances'!$H$14:$H$567) -> 0
A43: 4375 | B43: ='[6]1.2 TB Historical Balances'!B353 -> 4375-Sub-account Generation Facility Revenues | C43: =SUMIF('[6]1.2 TB Historical Balances'!$B$14:$B$567,B43,'[6]1.2 TB Historical Balances'!$H$14:$H$567) -> 0 | D43: =SUMIF('[6]1.2 TB Historical Balances'!$B$14:$B$567,B43,'[6]1.2 TB Historical Balances'!$J$14:$J$567) -> 0 | E43: 0 | F43: =SUMIF('[6]1.2 TB Historical Balances'!$B$14:$B$567,B43,'[6]1.2 TB Historical Balances'!$M$14:$M$567) -> 0 | G43: 0 | H43: =SUMIF('[6]1.2 TB Historical Balances'!$B$14:$B$567,B43,'[6]1.2 TB Historical Balances'!$P$14:$P$567) -> 0 | I43: =SUMIF('[6]1.2 TB Historical Balances'!$B$14:$B$567,B43,'[6]1.2 TB Historical Balances'!$S$14:$S$567) -> 0 | J43: =SUMIF('[6]1.2 TB Historical Balances'!$B$14:$B$567,B43,'[6]1.2 TB Historical Balances'!$V$14:$V$567) -> 0 | K43: =SUMIF('[6]1.2 TB Historical Balances'!$B$14:$B$567,B43,'[6]1.2 TB Historical Balances'!$Y$14:$Y$567) -> -16951.9 | L43: =SUMIF('[6]1.3 TB Projected Balances'!$B$14:$B$567,B43,'[6]1.3 TB Projected Balances'!$G$14:$G$567) -> -38700 | M43: =SUMIF('[6]1.3 TB Projected Balances'!$B$14:$B$567,B43,'[6]1.3 TB Projected Balances'!$H$14:$H$567) -> -39474
A44: 4380 | B44: ='[6]1.2 TB Historical Balances'!B354 -> 4380-Expenses of Non-Utility Operations | C44: =SUMIF('[6]1.2 TB Historical Balances'!$B$14:$B$567,B44,'[6]1.2 TB Historical Balances'!$H$14:$H$567) -> 0 | D44: =SUMIF('[6]1.2 TB Historical Balances'!$B$14:$B$567,B44,'[6]1.2 TB Historical Balances'!$J$14:$J$567) -> 0 | E44: 0 | F44: =SUMIF('[6]1.2 TB Historical Balances'!$B$14:$B$567,B44,'[6]1.2 TB Historical Balances'!$M$14:$M$567) -> 0 | G44: 0 | H44: =SUMIF('[6]1.2 TB Historical Balances'!$B$14:$B$567,B44,'[6]1.2 TB Historical Balances'!$P$14:$P$567) -> 0 | I44: =SUMIF('[6]1.2 TB Historical Balances'!$B$14:$B$567,B44,'[6]1.2 TB Historical Balances'!$S$14:$S$567) -> 0 | J44: =SUMIF('[6]1.2 TB Historical Balances'!$B$14:$B$567,B44,'[6]1.2 TB Historical Balances'!$V$14:$V$567) -> 0 | K44: =SUMIF('[6]1.2 TB Historical Balances'!$B$14:$B$567,B44,'[6]1.2 TB Historical Balances'!$Y$14:$Y$567) -> 18360.12 | L44: =SUMIF('[6]1.3 TB Projected Balances'!$B$14:$B$567,B44,'[6]1.3 TB Projected Balances'!$G$14:$G$567) -> 25155 | M44: =SUMIF('[6]1.3 TB Projected Balances'!$B$14:$B$567,B44,'[6]1.3 TB Projected Balances'!$H$14:$H$567) -> 25658.1
A45: 4380 | B45: ='[6]1.2 TB Historical Balances'!B355 -> 4380-Sub-account Generation Facility Expenses | C45: =SUMIF('[6]1.2 TB Historical Balances'!$B$14:$B$567,B45,'[6]1.2 TB Historical Balances'!$H$14:$H$567) -> 0 | D45: =SUMIF('[6]1.2 TB Historical Balances'!$B$14:$B$567,B45,'[6]1.2 TB Historical Balances'!$J$14:$J$567) -> 0 | E45: 0 | F45: =SUMIF('[6]1.2 TB Historical Balances'!$B$14:$B$567,B45,'[6]1.2 TB Historical Balances'!$M$14:$M$567) -> 0 | G45: 0 | H45: =SUMIF('[6]1.2 TB Historical Balances'!$B$14:$B$567,B45,'[6]1.2 TB Historical Balances'!$P$14:$P$567) -> 0 | I45: =SUMIF('[6]1.2 TB Historical Balances'!$B$14:$B$567,B45,'[6]1.2 TB Historical Balances'!$S$14:$S$567) -> 0 | J45: =SUMIF('[6]1.2 TB Historical Balances'!$B$14:$B$567,B45,'[6]1.2 TB Historical Balances'!$V$14:$V$567) -> 1152.36 | K45: =SUMIF('[6]1.2 TB Historical Balances'!$B$14:$B$567,B45,'[6]1.2 TB Historical Balances'!$Y$14:$Y$567) -> 0 | L45: =SUMIF('[6]1.3 TB Projected Balances'!$B$14:$B$567,B45,'[6]1.3 TB Projected Balances'!$G$14:$G$567) -> 0 | M45: =SUMIF('[6]1.3 TB Projected Balances'!$B$14:$B$567,B45,'[6]1.3 TB Projected Balances'!$H$14:$H$567) -> 0
A46: 4385 | B46: ='[6]1.2 TB Historical Balances'!B356 -> 4385-Non-Utility Rental Income | C46: =SUMIF('[6]1.2 TB Historical Balances'!$B$14:$B$567,B46,'[6]1.2 TB Historical Balances'!$H$14:$H$567) -> 0 | D46: =SUMIF('[6]1.2 TB Historical Balances'!$B$14:$B$567,B46,'[6]1.2 TB Historical Balances'!$J$14:$J$567) -> 0 | E46: 0 | F46: =SUMIF('[6]1.2 TB Historical Balances'!$B$14:$B$567,B46,'[6]1.2 TB Historical Balances'!$M$14:$M$567) -> 0 | G46: 0 | H46: =SUMIF('[6]1.2 TB Historical Balances'!$B$14:$B$567,B46,'[6]1.2 TB Historical Balances'!$P$14:$P$567) -> 0 | I46: =SUMIF('[6]1.2 TB Historical Balances'!$B$14:$B$567,B46,'[6]1.2 TB Historical Balances'!$S$14:$S$567) -> 0 | J46: =SUMIF('[6]1.2 TB Historical Balances'!$B$14:$B$567,B46,'[6]1.2 TB Historical Balances'!$V$14:$V$567) -> 0 | K46: =SUMIF('[6]1.2 TB Historical Balances'!$B$14:$B$567,B46,'[6]1.2 TB Historical Balances'!$Y$14:$Y$567) -> 0 | L46: =SUMIF('[6]1.3 TB Projected Balances'!$B$14:$B$567,B46,'[6]1.3 TB Projected Balances'!$G$14:$G$567) -> 0 | M46: =SUMIF('[6]1.3 TB Projected Balances'!$B$14:$B$567,B46,'[6]1.3 TB Projected Balances'!$H$14:$H$567) -> 0
A47: 4390 | B47: ='[6]1.2 TB Historical Balances'!B357 -> 4390-Miscellaneous Non-Operating Income | C47: =SUMIF('[6]1.2 TB Historical Balances'!$B$14:$B$567,B47,'[6]1.2 TB Historical Balances'!$H$14:$H$567) -> 0 | D47: =SUMIF('[6]1.2 TB Historical Balances'!$B$14:$B$567,B47,'[6]1.2 TB Historical Balances'!$J$14:$J$567) -> 0 | E47: 0 | F47: =SUMIF('[6]1.2 TB Historical Balances'!$B$14:$B$567,B47,'[6]1.2 TB Historical Balances'!$M$14:$M$567) -> 0 | G47: 0 | H47: =SUMIF('[6]1.2 TB Historical Balances'!$B$14:$B$567,B47,'[6]1.2 TB Historical Balances'!$P$14:$P$567) -> 0 | I47: =SUMIF('[6]1.2 TB Historical Balances'!$B$14:$B$567,B47,'[6]1.2 TB Historical Balances'!$S$14:$S$567) -> 0 | J47: =SUMIF('[6]1.2 TB Historical Balances'!$B$14:$B$567,B47,'[6]1.2 TB Historical Balances'!$V$14:$V$567) -> 0 | K47: =SUMIF('[6]1.2 TB Historical Balances'!$B$14:$B$567,B47,'[6]1.2 TB Historical Balances'!$Y$14:$Y$567) -> 0 | L47: =SUMIF('[6]1.3 TB Projected Balances'!$B$14:$B$567,B47,'[6]1.3 TB Projected Balances'!$G$14:$G$567) -> 0 | M47: =SUMIF('[6]1.3 TB Projected Balances'!$B$14:$B$567,B47,'[6]1.3 TB Projected Balances'!$H$14:$H$567) -> 0
A48: 4395 | B48: ='[6]1.2 TB Historical Balances'!B358 -> 4395-Rate-Payer Benefit Including Interest | C48: =SUMIF('[6]1.2 TB Historical Balances'!$B$14:$B$567,B48,'[6]1.2 TB Historical Balances'!$H$14:$H$567) -> 0 | D48: =SUMIF('[6]1.2 TB Historical Balances'!$B$14:$B$567,B48,'[6]1.2 TB Historical Balances'!$J$14:$J$567) -> 0 | E48: 0 | F48: =SUMIF('[6]1.2 TB Historical Balances'!$B$14:$B$567,B48,'[6]1.2 TB Historical Balances'!$M$14:$M$567) -> 0 | G48: 0 | H48: =SUMIF('[6]1.2 TB Historical Balances'!$B$14:$B$567,B48,'[6]1.2 TB Historical Balances'!$P$14:$P$567) -> 0 | I48: =SUMIF('[6]1.2 TB Historical Balances'!$B$14:$B$567,B48,'[6]1.2 TB Historical Balances'!$S$14:$S$567) -> 0 | J48: =SUMIF('[6]1.2 TB Historical Balances'!$B$14:$B$567,B48,'[6]1.2 TB Historical Balances'!$V$14:$V$567) -> 0 | K48: =SUMIF('[6]1.2 TB Historical Balances'!$B$14:$B$567,B48,'[6]1.2 TB Historical Balances'!$Y$14:$Y$567) -> 0 | L48: =SUMIF('[6]1.3 TB Projected Balances'!$B$14:$B$567,B48,'[6]1.3 TB Projected Balances'!$G$14:$G$567) -> 0 | M48: =SUMIF('[6]1.3 TB Projected Balances'!$B$14:$B$567,B48,'[6]1.3 TB Projected Balances'!$H$14:$H$567) -> 0
A49: 4398 | B49: ='[6]1.2 TB Historical Balances'!B359 -> 4398-Foreign Exchange Gains and Losses, Including Amortization | C49: =SUMIF('[6]1.2 TB Historical Balances'!$B$14:$B$567,B49,'[6]1.2 TB Historical Balances'!$H$14:$H$567) -> 0 | D49: =SUMIF('[6]1.2 TB Historical Balances'!$B$14:$B$567,B49,'[6]1.2 TB Historical Balances'!$J$14:$J$567) -> 0 | E49: 0 | F49: =SUMIF('[6]1.2 TB Historical Balances'!$B$14:$B$567,B49,'[6]1.2 TB Historical Balances'!$M$14:$M$567) -> 0 | G49: 0 | H49: =SUMIF('[6]1.2 TB Historical Balances'!$B$14:$B$567,B49,'[6]1.2 TB Historical Balances'!$P$14:$P$567) -> 0 | I49: =SUMIF('[6]1.2 TB Historical Balances'!$B$14:$B$567,B49,'[6]1.2 TB Historical Balances'!$S$14:$S$567) -> 0 | J49: =SUMIF('[6]1.2 TB Historical Balances'!$B$14:$B$567,B49,'[6]1.2 TB Historical Balances'!$V$14:$V$567) -> 0 | K49: =SUMIF('[6]1.2 TB Historical Balances'!$B$14:$B$567,B49,'[6]1.2 TB Historical Balances'!$Y$14:$Y$567) -> 0 | L49: =SUMIF('[6]1.3 TB Projected Balances'!$B$14:$B$567,B49,'[6]1.3 TB Projected Balances'!$G$14:$G$567) -> 0 | M49: =SUMIF('[6]1.3 TB Projected Balances'!$B$14:$B$567,B49,'[6]1.3 TB Projected Balances'!$H$14:$H$567) -> 0
A50: 4405 | B50: ='[6]1.2 TB Historical Balances'!B362 -> 4405-Interest and Dividend Income | C50: =SUMIF('[6]1.2 TB Historical Balances'!$B$14:$B$567,B50,'[6]1.2 TB Historical Balances'!$H$14:$H$567) -> 0 | D50: =SUMIF('[6]1.2 TB Historical Balances'!$B$14:$B$567,B50,'[6]1.2 TB Historical Balances'!$J$14:$J$567) -> -14508.89 | E50: -14508.89 | F50: =SUMIF('[6]1.2 TB Historical Balances'!$B$14:$B$567,B50,'[6]1.2 TB Historical Balances'!$M$14:$M$567) -> -8952.23 | G50: -8952.23 | H50: =SUMIF('[6]1.2 TB Historical Balances'!$B$14:$B$567,B50,'[6]1.2 TB Historical Balances'!$P$14:$P$567) -> -14074.48 | I50: =SUMIF('[6]1.2 TB Historical Balances'!$B$14:$B$567,B50,'[6]1.2 TB Historical Balances'!$S$14:$S$567) -> -13641.27 | J50: =SUMIF('[6]1.2 TB Historical Balances'!$B$14:$B$567,B50,'[6]1.2 TB Historical Balances'!$V$14:$V$567) -> -3649.56 | K50: =SUMIF('[6]1.2 TB Historical Balances'!$B$14:$B$567,B50,'[6]1.2 TB Historical Balances'!$Y$14:$Y$567) -> -9313.3 | L50: =SUMIF('[6]1.3 TB Projected Balances'!$B$14:$B$567,B50,'[6]1.3 TB Projected Balances'!$G$14:$G$567) -> -3000 | M50: =SUMIF('[6]1.3 TB Projected Balances'!$B$14:$B$567,B50,'[6]1.3 TB Projected Balances'!$H$14:$H$567) -> -9000
A51: 4415 | B51: ='[6]1.2 TB Historical Balances'!B363 -> 4415-Equity in Earnings of Subsidiary Companies | C51: =SUMIF('[6]1.2 TB Historical Balances'!$B$14:$B$567,B51,'[6]1.2 TB Historical Balances'!$H$14:$H$567) -> 0 | D51: =SUMIF('[6]1.2 TB Historical Balances'!$B$14:$B$567,B51,'[6]1.2 TB Historical Balances'!$J$14:$J$567) -> 0 | E51: 0 | F51: =SUMIF('[6]1.2 TB Historical Balances'!$B$14:$B$567,B51,'[6]1.2 TB Historical Balances'!$M$14:$M$567) -> 0 | G51: 0 | H51: =SUMIF('[6]1.2 TB Historical Balances'!$B$14:$B$567,B51,'[6]1.2 TB Historical Balances'!$P$14:$P$567) -> 0 | I51: =SUMIF('[6]1.2 TB Historical Balances'!$B$14:$B$567,B51,'[6]1.2 TB Historical Balances'!$S$14:$S$567) -> 0 | J51: =SUMIF('[6]1.2 TB Historical Balances'!$B$14:$B$567,B51,'[6]1.2 TB Historical Balances'!$V$14:$V$567) -> 0 | K51: =SUMIF('[6]1.2 TB Historical Balances'!$B$14:$B$567,B51,'[6]1.2 TB Historical Balances'!$Y$14:$Y$567) -> 0 | L51: =SUMIF('[6]1.3 TB Projected Balances'!$B$14:$B$567,B51,'[6]1.3 TB Projected Balances'!$G$14:$G$567) -> 0 | M51: =SUMIF('[6]1.3 TB Projected Balances'!$B$14:$B$567,B51,'[6]1.3 TB Projected Balances'!$H$14:$H$567) -> 0
A52: othe | B52: other | C52: =SUMIF('[6]1.2 TB Historical Balances'!$B$14:$B$567,B52,'[6]1.2 TB Historical Balances'!$H$14:$H$567) -> 0 | D52: =SUMIF('[6]1.2 TB Historical Balances'!$B$14:$B$567,B52,'[6]1.2 TB Historical Balances'!$J$14:$J$567) -> 0 | E52: 0 | F52: =SUMIF('[6]1.2 TB Historical Balances'!$B$14:$B$567,B52,'[6]1.2 TB Historical Balances'!$M$14:$M$567) -> 0 | G52: 0 | H52: =SUMIF('[6]1.2 TB Historical Balances'!$B$14:$B$567,B52,'[6]1.2 TB Historical Balances'!$P$14:$P$567) -> 0 | I52: =SUMIF('[6]1.2 TB Historical Balances'!$B$14:$B$567,B52,'[6]1.2 TB Historical Balances'!$S$14:$S$567) -> 0 | J52: =SUMIF('[6]1.2 TB Historical Balances'!$B$14:$B$567,B52,'[6]1.2 TB Historical Balances'!$V$14:$V$567) -> 0 | K52: =SUMIF('[6]1.2 TB Historical Balances'!$B$14:$B$567,B52,'[6]1.2 TB Historical Balances'!$Y$14:$Y$567) -> 0 | L52: =SUMIF('[6]1.3 TB Projected Balances'!$B$14:$B$567,B52,'[6]1.3 TB Projected Balances'!$G$14:$G$567) -> 0 | M52: =SUMIF('[6]1.3 TB Projected Balances'!$B$14:$B$567,B52,'[6]1.3 TB Projected Balances'!$H$14:$H$567) -> 0
A53: othe | B53: other | C53: =SUMIF('[6]1.2 TB Historical Balances'!$B$14:$B$567,B53,'[6]1.2 TB Historical Balances'!$H$14:$H$567) -> 0 | D53: =SUMIF('[6]1.2 TB Historical Balances'!$B$14:$B$567,B53,'[6]1.2 TB Historical Balances'!$J$14:$J$567) -> 0 | E53: 0 | F53: =SUMIF('[6]1.2 TB Historical Balances'!$B$14:$B$567,B53,'[6]1.2 TB Historical Balances'!$M$14:$M$567) -> 0 | G53: 0 | H53: =SUMIF('[6]1.2 TB Historical Balances'!$B$14:$B$567,B53,'[6]1.2 TB Historical Balances'!$P$14:$P$567) -> 0 | I53: =SUMIF('[6]1.2 TB Historical Balances'!$B$14:$B$567,B53,'[6]1.2 TB Historical Balances'!$S$14:$S$567) -> 0 | J53: =SUMIF('[6]1.2 TB Historical Balances'!$B$14:$B$567,B53,'[6]1.2 TB Historical Balances'!$V$14:$V$567) -> 0 | K53: =SUMIF('[6]1.2 TB Historical Balances'!$B$14:$B$567,B53,'[6]1.2 TB Historical Balances'!$Y$14:$Y$567) -> 0 | L53: =SUMIF('[6]1.3 TB Projected Balances'!$B$14:$B$567,B53,'[6]1.3 TB Projected Balances'!$G$14:$G$567) -> 0 | M53: =SUMIF('[6]1.3 TB Projected Balances'!$B$14:$B$567,B53,'[6]1.3 TB Projected Balances'!$H$14:$H$567) -> 0
B54: Total | C54: =SUM(C15:C37)+SUM(C38:C53) -> -6000 | D54: -44559.63 | E54: -44559.63 | F54: -17762.02 | G54: -17762.02 | H54: -38058.1 | I54: =SUM(H15:H37)+SUM(H38:H53) -> -38058.1 | J54: =SUM(H15:H37)+SUM(H38:H53) -> -38058.1 | K54: =SUM(I15:I37)+SUM(I38:I53) -> -1018.18 | L54: =SUM(J15:J37)+SUM(J38:J53) -> -50522.89 | M54: =SUM(M15:M37)+SUM(M38:M53) -> -50728.6
B56: Specific Service Charges | C56: =C15 -> 0 | D56: -8156 | E56: -8156 | F56: -6985 | G56: -6985 | H56: -9142.17 | I56: -7995 | J56: -5580 | K56: -9731 | L56: -6085 | M56: -6206.7
B57: Late Payment Charges | C57: 0 | D57: -5624.02 | E57: -5624.02 | F57: -7192.46 | G57: -7192.46 | H57: -7545.52 | I57: -6479.74 | J57: -5781.98 | K57: -5682.43 | L57: -5250 | M57: -5355
B58: Other Distribution/Operating Revenues | C58: =SUM(C17:C25) -> 0 | D58: -16923.1 | E58: -16923.1 | F58: -19937.56 | G58: -19937.56 | H58: -21216.45 | I58: -16224.71 | J58: -16608.69 | K58: -16357.49 | L58: -16030 | M58: -16351
B59: Other Income or Deductions | C59: =SUM(C27:C53) -> 0 | D59: -13856.51 | E59: -13856.51 | F59: 16353 | G59: 16353 | H59: -153.96 | I59: 29681.27 | J59: -22552.22 | K59: -7920.06 | L59: -66545 | M59: -22815.9
B60: Total | C60: =SUM(C56:C59) -> 0 | D60: -44559.63 | E60: -44559.63 | F60: -17762.02 | G60: -17762.02 | H60: -38058.1 | I60: -1018.18 | J60: -50522.89 | K60: -39690.98 | L60: -93910 | M60: -50728.6 | O60: =SUM(O15:O59) -> 0
A61: Late Payment Charges: 4225
A62: Other Distribution Revenues: 4082, 4084, 4090, 4205, 4210, 4215, 4220, 4230, 4240, 4245
A63: Other Income and Expenses: 4305, 4310, 4315, 4320, 4325, 4330, 4335, 4340, 4345, 4350, 4355, 4357, 4360, 4362, 4365, 4370, 4375, 4380, 4385, 4390, 4395, 4398, 4405, 4410, 4415, 4420
A66: Note: Add all applicable accounts listed above to the table and include all relevant information.
A68: Account Breakdown Details
A70: For each "Other Operating Revenue" and "Other Income or Deductions" Account, a detailed breakdown of the account components is required. See the example below for Account 4405, Interest and Dividend Income.
A73: Account 4405 - Interest and Dividend Income
B75: Account 4405 - Interest and Dividend Income
C76: 2012 Actual | D76: 2013 Actual | E76: 2014 Actual | F76: 2015 Actual | G76: 2016 Actual² | H76: 2017 Actual | I76: 2018 Bridge Year² | J76: 2019 Test Year
B78: Reporting Basis | C78: Accrual | D78: Accrual | E78: Accrual | F78: Accrual | G78: Accrual | H78: Accrual | I78: Accrual | J78: Accrual
B79: Interest and Dividend Income | C79: -5494.15 | D79: -4839.91 | E79: -10262.04 | F79: -10,.839.07 | G79: -2180.32 | H79: -5884.81 | I79: -1830 | J79: -5490
B80: Interest and Dividend Income - Carrying Charges | C80: -9014.74 | D80: -4112.32 | E80: -3812.44 | F80: -2802.2 | G80: -1469.24 | H80: -3428.49 | I80: -1170 | J80: -3510
B82: Total | C82: -14509.89 | D82: -8952.23 | E82: -14074.48 | F82: -13641.27 | G82: -3649.56 | H82: -9313.3 | I82: $- 3,000 | J82: $- 9,000

Sheet Hidden_Other Revenue (hidden)
A1: Utility Name | B1: EB Number | C1: Test Year | D1: Bridge Year | E1: Last Rebasing Year | F1: Heading | G1: Year | H1: Amount
A2: ='LDC Info'!$E$14 -> Chapleau Public Utilities Corporation | B2: =EBNUMBER -> EB-2018-0087 | C2: =TestYear -> 2019 | D2: =BridgeYear -> 2018 | E2: =RebaseYear -> 2012 | F2: Specific Service Charges | G2: 2010 | H2: ='App.2-H_Other_Oper_Rev'!#REF! -> 
A3: ='LDC Info'!$E$14 -> Chapleau Public Utilities Corporation | B3: EB-2018-0087 | C3: 2019 | D3: 2018 | E3: 2012 | F3: Late Payment Charges | G3: 2010 | H3: ='App.2-H_Other_Oper_Rev'!#REF! -> 
A4: ='LDC Info'!$E$14 -> Chapleau Public Utilities Corporation | B4: EB-2018-0087 | C4: 2019 | D4: 2018 | E4: 2012 | F4: Other Operating Revenues | G4: 2010 | H4: ='App.2-H_Other_Oper_Rev'!#REF! -> 
A5: ='LDC Info'!$E$14 -> Chapleau Public Utilities Corporation | B5: EB-2018-0087 | C5: 2019 | D5: 2018 | E5: 2012 | F5: Other Income or Deductions | G5: 2010 | H5: ='App.2-H_Other_Oper_Rev'!#REF! -> 
A6: ='LDC Info'!$E$14 -> Chapleau Public Utilities Corporation | B6: EB-2018-0087 | C6: 2019 | D6: 2018 | E6: 2012 | F6: Specific Service Charges | G6: 2011 | H6: ='App.2-H_Other_Oper_Rev'!#REF! -> 
A7: ='LDC Info'!$E$14 -> Chapleau Public Utilities Corporation | B7: EB-2018-0087 | C7: 2019 | D7: 2018 | E7: 2012 | F7: Late Payment Charges | G7: 2011 | H7: ='App.2-H_Other_Oper_Rev'!#REF! -> 
A8: ='LDC Info'!$E$14 -> Chapleau Public Utilities Corporation | B8: EB-2018-0087 | C8: 2019 | D8: 2018 | E8: 2012 | F8: Other Operating Revenues | G8: 2011 | H8: ='App.2-H_Other_Oper_Rev'!#REF! -> 
A9: ='LDC Info'!$E$14 -> Chapleau Public Utilities Corporation | B9: EB-2018-0087 | C9: 2019 | D9: 2018 | E9: 2012 | F9: Other Income or Deductions | G9: 2011 | H9: ='App.2-H_Other_Oper_Rev'!#REF! -> 
A10: ='LDC Info'!$E$14 -> Chapleau Public Utilities Corporation | B10: EB-2018-0087 | C10: 2019 | D10: 2018 | E10: 2012 | F10: Specific Service Charges | G10: 2012 | H10: ='App.2-H_Other_Oper_Rev'!#REF! -> 
A11: ='LDC Info'!$E$14 -> Chapleau Public Utilities Corporation | B11: EB-2018-0087 | C11: 2019 | D11: 2018 | E11: 2012 | F11: Late Payment Charges | G11: 2012 | H11: ='App.2-H_Other_Oper_Rev'!#REF! -> 
A12: ='LDC Info'!$E$14 -> Chapleau Public Utilities Corporation | B12: EB-2018-0087 | C12: 2019 | D12: 2018 | E12: 2012 | F12: Other Operating Revenues | G12: 2012 | H12: ='App.2-H_Other_Oper_Rev'!#REF! -> 
A13: ='LDC Info'!$E$14 -> Chapleau Public Utilities Corporation | B13: EB-2018-0087 | C13: 2019 | D13: 2018 | E13: 2012 | F13: Other Income or Deductions | G13: 2012 | H13: ='App.2-H_Other_Oper_Rev'!#REF! -> 
A14: ='LDC Info'!$E$14 -> Chapleau Public Utilities Corporation | B14: EB-2018-0087 | C14: 2019 | D14: 2018 | E14: 2012 | F14: Specific Service Charges | G14: 2013 | H14: ='App.2-H_Other_Oper_Rev'!#REF! -> 
A15: ='LDC Info'!$E$14 -> Chapleau Public Utilities Corporation | B15: EB-2018-0087 | C15: 2019 | D15: 2018 | E15: 2012 | F15: Late Payment Charges | G15: 2013 | H15: ='App.2-H_Other_Oper_Rev'!#REF! -> 
A16: ='LDC Info'!$E$14 -> Chapleau Public Utilities Corporation | B16: EB-2018-0087 | C16: 2019 | D16: 2018 | E16: 2012 | F16: Other Operating Revenues | G16: 2013 | H16: ='App.2-H_Other_Oper_Rev'!#REF! -> 
A17: ='LDC Info'!$E$14 -> Chapleau Public Utilities Corporation | B17: EB-2018-0087 | C17: 2019 | D17: 2018 | E17: 2012 | F17: Other Income or Deductions | G17: 2013 | H17: ='App.2-H_Other_Oper_Rev'!#REF! -> 
A18: ='LDC Info'!$E$14 -> Chapleau Public Utilities Corporation | B18: EB-2018-0087 | C18: 2019 | D18: 2018 | E18: 2012 | F18: Specific Service Charges | G18: 2014 | H18: ='App.2-H_Other_Oper_Rev'!#REF! -> 
A19: ='LDC Info'!$E$14 -> Chapleau Public Utilities Corporation | B19: EB-2018-0087 | C19: 2019 | D19: 2018 | E19: 2012 | F19: Late Payment Charges | G19: 2014 | H19: ='App.2-H_Other_Oper_Rev'!#REF! -> 
A20: ='LDC Info'!$E$14 -> Chapleau Public Utilities Corporation | B20: EB-2018-0087 | C20: 2019 | D20: 2018 | E20: 2012 | F20: Other Operating Revenues | G20: 2014 | H20: ='App.2-H_Other_Oper_Rev'!#REF! -> 
A21: ='LDC Info'!$E$14 -> Chapleau Public Utilities Corporation | B21: EB-2018-0087 | C21: 2019 | D21: 2018 | E21: 2012 | F21: Other Income or Deductions | G21: 2014 | H21: ='App.2-H_Other_Oper_Rev'!#REF! -> 
A22: ='LDC Info'!$E$14 -> Chapleau Public Utilities Corporation | B22: EB-2018-0087 | C22: 2019 | D22: 2018 | E22: 2012 | F22: Specific Service Charges | G22: 2015 | H22: ='App.2-H_Other_Oper_Rev'!#REF! -> 
A23: ='LDC Info'!$E$14 -> Chapleau Public Utilities Corporation | B23: EB-2018-0087 | C23: 2019 | D23: 2018 | E23: 2012 | F23: Late Payment Charges | G23: 2015 | H23: ='App.2-H_Other_Oper_Rev'!#REF! -> 
A24: ='LDC Info'!$E$14 -> Chapleau Public Utilities Corporation | B24: EB-2018-0087 | C24: 2019 | D24: 2018 | E24: 2012 | F24: Other Operating Revenues | G24: 2015 | H24: ='App.2-H_Other_Oper_Rev'!#REF! -> 
A25: ='LDC Info'!$E$14 -> Chapleau Public Utilities Corporation | B25: EB-2018-0087 | C25: 2019 | D25: 2018 | E25: 2012 | F25: Other Income or Deductions | G25: 2015 | H25: ='App.2-H_Other_Oper_Rev'!#REF! -> 
A26: ='LDC Info'!$E$14 -> Chapleau Public Utilities Corporation | B26: EB-2018-0087 | C26: 2019 | D26: 2018 | E26: 2012 | F26: Specific Service Charges | G26: 2016 | H26: ='App.2-H_Other_Oper_Rev'!#REF! -> 
A27: ='LDC Info'!$E$14 -> Chapleau Public Utilities Corporation | B27: EB-2018-0087 | C27: 2019 | D27: 2018 | E27: 2012 | F27: Late Payment Charges | G27: 2016 | H27: ='App.2-H_Other_Oper_Rev'!#REF! -> 
A28: ='LDC Info'!$E$14 -> Chapleau Public Utilities Corporation | B28: EB-2018-0087 | C28: 2019 | D28: 2018 | E28: 2012 | F28: Other Operating Revenues | G28: 2016 | H28: ='App.2-H_Other_Oper_Rev'!#REF! -> 
A29: ='LDC Info'!$E$14 -> Chapleau Public Utilities Corporation | B29: EB-2018-0087 | C29: 2019 | D29: 2018 | E29: 2012 | F29: Other Income or Deductions | G29: 2016 | H29: ='App.2-H_Other_Oper_Rev'!#REF! -> 
A30: ='LDC Info'!$E$14 -> Chapleau Public Utilities Corporation | B30: EB-2018-0087 | C30: 2019 | D30: 2018 | E30: 2012 | F30: Specific Service Charges | G30: 2017 | H30: ='App.2-H_Other_Oper_Rev'!#REF! -> 
A31: ='LDC Info'!$E$14 -> Chapleau Public Utilities Corporation | B31: EB-2018-0087 | C31: 2019 | D31: 2018 | E31: 2012 | F31: Late Payment Charges | G31: 2017 | H31: ='App.2-H_Other_Oper_Rev'!#REF! -> 
A32: ='LDC Info'!$E$14 -> Chapleau Public Utilities Corporation | B32: EB-2018-0087 | C32: 2019 | D32: 2018 | E32: 2012 | F32: Other Operating Revenues | G32: 2017 | H32: ='App.2-H_Other_Oper_Rev'!#REF! -> 
A33: ='LDC Info'!$E$14 -> Chapleau Public Utilities Corporation | B33: EB-2018-0087 | C33: 2019 | D33: 2018 | E33: 2012 | F33: Other Income or Deductions | G33: 2017 | H33: ='App.2-H_Other_Oper_Rev'!#REF! -> 
A34: ='LDC Info'!$E$14 -> Chapleau Public Utilities Corporation | B34: EB-2018-0087 | C34: 2019 | D34: 2018 | E34: 2012 | F34: Specific Service Charges | G34: 2018 | H34: ='App.2-H_Other_Oper_Rev'!#REF! -> 
A35: ='LDC Info'!$E$14 -> Chapleau Public Utilities Corporation | B35: EB-2018-0087 | C35: 2019 | D35: 2018 | E35: 2012 | F35: Late Payment Charges | G35: 2018 | H35: ='App.2-H_Other_Oper_Rev'!#REF! -> 
A36: ='LDC Info'!$E$14 -> Chapleau Public Utilities Corporation | B36: EB-2018-0087 | C36: 2019 | D36: 2018 | E36: 2012 | F36: Other Operating Revenues | G36: 2018 | H36: ='App.2-H_Other_Oper_Rev'!#REF! -> 
A37: ='LDC Info'!$E$14 -> Chapleau Public Utilities Corporation | B37: EB-2018-0087 | C37: 2019 | D37: 2018 | E37: 2012 | F37: Other Income or Deductions | G37: 2018 | H37: ='App.2-H_Other_Oper_Rev'!#REF! -> 
A38: ='LDC Info'!$E$14 -> Chapleau Public Utilities Corporation | B38: EB-2018-0087 | C38: 2019 | D38: 2018 | E38: 2012 | F38: Specific Service Charges | G38: 2019 | H38: ='App.2-H_Other_Oper_Rev'!#REF! -> 
A39: ='LDC Info'!$E$14 -> Chapleau Public Utilities Corporation | B39: EB-2018-0087 | C39: 2019 | D39: 2018 | E39: 2012 | F39: Late Payment Charges | G39: 2019 | H39: ='App.2-H_Other_Oper_Rev'!#REF! -> 
A40: ='LDC Info'!$E$14 -> Chapleau Public Utilities Corporation | B40: EB-2018-0087 | C40: 2019 | D40: 2018 | E40: 2012 | F40: Other Operating Revenues | G40: 2019 | H40: ='App.2-H_Other_Oper_Rev'!#REF! -> 
A41: ='LDC Info'!$E$14 -> Chapleau Public Utilities Corporation | B41: EB-2018-0087 | C41: 2019 | D41: 2018 | E41: 2012 | F41: Other Income or Deductions | G41: 2019 | H41: ='App.2-H_Other_Oper_Rev'!#REF! -> 

Sheet App_2-I LF_CDM
A1: =+G71+1 -> 2021 | G1: File Number: | H1: =EBNUMBER -> EB-2018-0087
G2: Exhibit:
G3: Tab:
G4: Schedule:
G5: Page:
G7: Date:
A9: Appendix 2-I
A10: Load Forecast CDM Adjustment Work Form (2018)
A12: Appendix 2-I was initially developed to help determine what would be the amount of CDM savings needed in each year to cumulatively achieve the four year 2011-2014 CDM target. This then determined the amount of kWh (and with translation, kW of demand) savings that were converted into dollar balances for the LRAMVA, and also to determine the related adjustment to the load forecast to account for OPA-reported savings. Beginning in the 2015 year, it has been adjusted because the persistence of 2011-2014 CDM programs will be an adjustment to the load forecast in addition to the estimated savings for the first year (2015) for the new 2015-2020 CDM plan.
A14: 2018 is the fourth year of the six-year (2015-2020) Conservation First program. Final results for the 2011-14 program were issued in the fall of 2015, and the program is completed, although in some instances disposition of the amounts has been deferred. For the purposes of the 2015-2020 LRAMVA, and the impact of CDM on the load forecast, CDM programs in 2014 and earlier are implicit in the historical data on which the base load forecast is developed. Only actual and forecasted impacts of 2015 to 2018 CDM programs need to be reflected in the manual load forecast adjustment and for the LRAMVA threshold amount in 2018 and carrying forward, although the full year impact of 2015 CDM programs and half-year impact of 2016 CDM programs on 2016 historical data is also assumed to be reflected in the base load forecast.
A16: The new six year (2015-2020) CDM program works in a slightly different manner to the previous 2011-2014 CDM program. Distributors will offer programs each year that, over the six years (from January 1, 2015 to December 31, 2020) will strive to achieve savings equal to the new six year CDM target with the full target in place (i.e., persisting) on December 31, 2020. In other words, distributors will be able to offer and execute programs on a basis so that, as long as savings equal to the full target are in place at the end the period, the distributor's 2015-2020 CDM target will have been met.
A18: 2015-2020 CDM Program - 2018 fourth year of the current CDM plan
A20: For the first year of the new 2015-2020 CDM plan, it is assumed that each year's program will achieve an equal amount of new CDM savings. This results in each year's program being about 1/6 (16.67%) of the cumulative 2015-2020 CDM target for kWh savings. A distributor may propose an alternative approach but would be expected to document in its application why it believes that its proposal is more reasonable. In its proposal, the distributor should ensure that the sum of the results for each year's CDM program from 2015 to 2020 add up to its 2015-2020 CDM target as established by the IESO. | Q20: CPUC LF adjustments completed as per Hawkesbury, Embrun, Centre Wellington and Westario application and settlement
A22: 6 Year (2015-2020) kWh Target: | Q22: 2015-2020 CDM Program - 2015, first year of the current CDM plan
A23: 1050000 | Q23: 6 Year (2015-2020) kWh Target:
B24: 2015 | C24: 2016 | D24: 2017 | E24: 2018 | F24: 2019 | G24: 2020 | H24: Total | Q24: 1050000
A25: % | R25: 2015 | S25: 2016 | T25: 2017 | U25: 2018 | V25: 2019 | W25: 2020 | X25: Total
A26: 2015 CDM Programs | B26: 0.05799737993 | C26: 0.05782212872 | D26: 0.05782212872 | E26: 0.05786418072 | F26: 0.05786418072 | G26: 0.05777986956 | H26: =H34/H40 -> 1.596015238 | Q26: %
A27: 2016 CDM Programs | C27: 0.04388820713 | D27: 0.04388820713 | E27: 0.04388820713 | F27: 0.04388820713 | G27: 0.04388820713 | H27: =H35/H40 -> 1.00887619 | Q27: 2015 CDM Programs | R27: =R35/$X$41 -> 0.05799737993 | S27: =S35/$X$41 -> 0.05782212872 | T27: 0.05782212872 | U27: 0.05786418072 | V27: 0.05786418072 | W27: 0.05777986956 | X27: =SUM(R27:W27) -> 0.3471498684
A28: 2017 CDM Programs | D28: 0.05559917271 | E28: 0.04311697749 | F28: 0.04311697749 | G28: 0.04311697749 | H28: =H36/H40 -> 0.8503047619 | Q28: 2016 CDM Programs | S28: 0.04388820713 | T28: 0.04388820713 | U28: 0.04388820713 | V28: 0.04388820713 | W28: =W36/$X$41 -> 0.04388820713 | X28: =SUM(R28:W28) -> 0.2194410356
A29: 2018 CDM Programs | E29: 0.0414098318 | F29: 0.0414098318 | G29: 0.0414098318 | H29: =H37/H40 -> 0.5711428571 | Q29: 2017 CDM Programs | T29: 0.05559917271 | U29: 0.04311697749 | V29: 0.04311697749 | W29: =W37/$X$41 -> 0.04311697749 | X29: 0.1849501052
A30: 2019 CDM Programs | F30: 0.0414098318 | G30: 0.0414098318 | H30: =H38/H40 -> 0.3807619048 | Q30: 2018 CDM Programs | U30: 0.0414098318 | V30: 0.0414098318 | W30: =W38/$X$41 -> 0.0414098318 | X30: 0.1242294954
A31: 2020 CDM Programs | G31: 0.0414098318 | H31: =H39/H40 -> 0.1903809524 | Q31: 2019 CDM Programs | V31: 0.0414098318 | W31: =W39/$X$41 -> 0.0414098318 | X31: 0.0828196636
A32: Total in Year | B32: =SUM(B26:B31) -> 0.05799737993 | C32: =SUM(C26:C31) -> 0.1017103358 | D32: =SUM(D26:D31) -> 0.1573095086 | E32: =SUM(E26:E29) -> 0.1862791971 | F32: =SUM(F26:F30) -> 0.2276890289 | G32: =SUM(G26:G31) -> 0.2690145496 | H32: =SUM(H26:H31) -> 4.597481905 | Q32: 2020 CDM Programs | W32: =W40/$X$41 -> 0.0414098318 | X32: =SUM(R32:W32) -> 0.0414098318
A33: kWh | Q33: Total in Year | R33: =SUM(R27:R32) -> 0.05799737993 | S33: =SUM(S27:S32) -> 0.1017103358 | T33: 0.1573095086 | U33: 0.1862791971 | V33: 0.2276890289 | W33: 0.2690145496 | X33: =SUM(R33:W33) -> 1
A34: =A26 -> 2015 CDM Programs | B34: 279974 | C34: 279128 | D34: 279128 | E34: 279331 | F34: 279331 | G34: 278924 | H34: =SUM(B34:G34) -> 1675816 | Q34: kWh
A35: 2016 CDM Programs | C35: 211864 | D35: 211864 | E35: 211864 | F35: 211864 | G35: 211864 | H35: =SUM(C35:G35) -> 1059320 | K35: 2011 | L35: 2012 | M35: 2013 | N35: 2014 | Q35: =Q27 -> 2015 CDM Programs | R35: 279974 | S35: 279128 | T35: 279128 | U35: 279331 | V35: 279331 | W35: 278924 | X35: =SUM(R35:W35) -> 1675816
A36: 2017 CDM Programs | D36: 268397 | E36: 208141 | F36: 208141 | G36: 208141 | H36: =SUM(D36:G36) -> 892820 | J36: 2011 CDM Programs | K36: =50% -> 0.5 | L36: 1 | M36: 1 | N36: 1 | Q36: 2016 CDM Programs | S36: 211864 | T36: 211864 | U36: 211864 | V36: 211864 | W36: 211864 | X36: =SUM(S36:W36) -> 1059320
A37: 2018 CDM Programs | E37: 199900 | F37: 199900 | G37: 199900 | H37: =SUM(E37:G37) -> 599700 | J37: 2012 CDM Programs | L37: 0.5 | M37: 1 | N37: 1 | Q37: 2017 CDM Programs | T37: 268397 | U37: 208141 | V37: 208141 | W37: 208141 | X37: =SUM(T37:W37) -> 892820
A38: 2019 CDM Programs | F38: 199900 | G38: 199900 | H38: =SUM(F38:G38) -> 399800 | J38: 2013 CDM Programs | M38: 0.5 | N38: 1 | Q38: 2018 CDM Programs | U38: 199900 | V38: 199900 | W38: 199900 | X38: =SUM(U38:W38) -> 599700
A39: 2020 CDM Programs | G39: 199900 | H39: =SUM(G39) -> 199900 | J39: 2014 CDM Programs | N39: 0.5 | Q39: 2019 CDM Programs | V39: 199900 | W39: 199900 | X39: =SUM(V39:W39) -> 399800
A40: Total in Year | B40: =SUM(B34:B39) -> 279974 | C40: =SUM(C34:C39) -> 490992 | D40: =SUM(D34:D39) -> 759389 | E40: =SUM(E34:E37) -> 899236 | F40: =SUM(F34:F38) -> 1099136 | G40: =SUM(G34:G39) -> 1298629 | H40: =A23 -> 1050000 | Q40: 2020 CDM Programs | W40: 199900 | X40: =SUM(W40) -> 199900
G41: =IF(G40-H40<>0,"Inputs do no match 2015-20 CDM target","") -> Inputs do no match 2015-20 CDM target | Q41: Total in Year | R41: =SUM(R35:R40) -> 279974 | S41: =SUM(S35:S40) -> 490992 | T41: =SUM(T35:T40) -> 759389 | U41: =SUM(U35:U38) -> 899236 | V41: =SUM(V35:V39) -> 1099136 | W41: =SUM(W35:W40) -> 1298629 | X41: =SUM(X35:X40) -> 4827356
A43: Note: The default formulae in the above table assume that the 2015-2020 kWh CDM target is achieved through persistence of CDM savings to the end of 2020. The distributor should enter measured CDM savings for 2015, and persistence of 2015 programs for 2016-2020 in row 34. When available, (preliminary/final) CDM savings for 2016 can be entered into row 35. The distributor can also input estimates or forecasts of the 2017 CDM programs if it believes that these are more realistic and can be supported; such information would typically be derived from the CDM plans that the distributor has filed with the IESO. Similarly, CDM savings and persistence into future years can be estimated for 2018, 2019 and 2020 CDM programs. However, the distributor will have to support its proposals for estimated or forecasted savings, particularly beyond the 2017 bridge year. The sum of persistent savings to the end of 2020, should equal the target entered into cell A23.
Q44: Weight Factor for Inclusion in CDM Adjustment to 2014 Load Forecast
A45: Determination of 2018 Load Forecast Adjustment | R45: 2011 | S45: 2012 | T45: 2013 | U45: 2014 | V45: 2015 | W45: 2016 | X45: 2017 | Y45: 2018 | Z45: 2019
Q46: Weight Factor for each year's CDM program impact on 2014 load forecast | R46: 0 | S46: 0 | T46: 0 | U46: 0 | V46: 0 | W46: 0 | X46: 0 | Y46: 1 | Z46: 0.5 | AA46: Distributor can select "0", "0.5", or "1" from drop-down list
A47: The Board determined that the "net" number should be used in its Decision and Order with respect to Centre Wellington Hydro Ltd.'s 2013 Cost of Service rates (EB-2012-0113). This approach has also been used in Settlement Agreements accepted by the Board in other 2013 and 2014 applications. The distributor should select whether the adjustment is done on a "net" or "gross" basis, but must support a proposal for the adjustment being done on a "gross" basis. Sheet 2-I defaults to the adjustment being done on a "net" basis consistent with Board policy and practice. | Q47: Default Value selection rationale.
A49: From each of the 2006-2010 CDM Final Report, and the 2011 to 2016 CDM Final Reports, issued by the OPA/IESO for the distributor, the distributor should input the "gross" and "net" results of the cumulative CDM savings for 2018 into cells C57 to C63 and D57 to D63. The model will calculate the cumulative savings for all programs from 2006 to 2016 and determine the "net" to "gross" factor "g".
Q50: 2011-2014 and 2015-2020 LRAMVA and 2015 CDM adjustment to Load Forecast
A51: Net-to-Gross Conversion | R51: =R45 -> 2011 | S51: 2012 | T51: 2013 | U51: 2014 | V51: 2015 | W51: 2016 | X51: 2017 | Y51: 2018 | Z51: 2019 | AA51: Total for 2019
R52: kWh | S52: kWh | T52: kWh | U52: kWh | V52: kWh | W52: kWh | X52: kWh | Y52: kWh | Z52: kWh | AA52: kWh
A53: Is CDM adjustment being done on a "net" or "gross" basis? | F53: net | Q53: Amount used for CDM threshold for LRAMVA (2012) | S53: 458221 | T53: 89257 | U53: 173818 | V53: 279331 | W53: 211864
C55: "Gross" | D55: "Net" | E55: Difference | F55: "Net-to-Gross" Conversion Factor | Q55: Amount used for CDM threshold for LRAMVA (2019) | X55: =V37 -> 208141 | Y55: =V38 -> 199900 | Z55: =V39 -> 199900 | AA55: =SUM(Y55:Z55) -> 399800
A56: Persistence of Historical CDM programs to 2015 | C56: kWh | D56: kWh | E56: kWh | F56: ('g')
A57: 2006-2010 CDM programs | E57: =IF(ISBLANK(D57),"",C57-D57) ->  | Q57: Manual Adjustment for 2019 Load Forecast (billed basis) | R57: 0 | S57: 0 | W57: =W55*W46 -> 0 | X57: =X55*X46 -> 0 | Y57: =Y55*Y46 -> 199900 | Z57: =Z55*Z46 -> 99950 | AA57: =SUM(Y57:Z57) -> 299850
A58: 2011 CDM program | E58: =IF(ISBLANK(D58),"",C58-D58) -> 
A59: 2012 CDM program
A60: 2013 CDM program
A61: 2014 CDM program
A62: 2015 CDM program
A63: 2016 CDM program
A64: 2006 to 2016 OPA CDM programs: Persistence to 2018. | C64: =SUM(C57:C63) -> 0 | D64: =SUM(D57:D63) -> 0 | E64: =C64-D64 -> 0 | F64: =IF(D64=0,0,IF(F53="net",0,E64/D64)) -> 0
A66: The default values below represent the factor used for how each year's CDM program is factored into the manual CDM adjustment. Distributors can choose alternative weights of "0", "0.5" or "1" from the drop-down menu for each cell, but must support its alternatives.
A68: These factors do not mean that CDM programs are excluded, but the assumption that impacts of previous year CDM programs are already implicitly reflected in the actual data for historical years that are used to derive the load forecast prior to any manual CDM adjustment for the 2018 test year.
A70: Weight Factor for Inclusion in CDM Adjustment to 2018 Load Forecast
B71: 2015 | C71: 2016 | D71: 2017 | E71: 2018 | F71: 2019 | G71: 2020
A72: Weight Factor for each year's CDM program impact on 2018 load forecast | B72: 0 | C72: 0 | D72: 0 | E72: 1 | F72: 0.5 | G72: 0 | H72: Distributor can select "0", "0.5", or "1" from drop-down list
A73: Default Value selection rationale. | B73: Full year impact of 2015 CDM is assumed to be reflected in the base forecast, as the full year persistence of 2015 CDM programs is in the 2016 historical actual data. No further impact is necessary for the manual adjustment to the load forecast. | C73: Default is 0.5, but one option is for full year impact of persistence of 2016 CDM programs on 2018 load forecast, but 50% impact in base forecast (first year impact of 2016 CDM programs on 2016 actuals, which is part of the data underlying the base load forecast). | D73: Full year impact of persistence of 2017 programs on 2018 load forecast. 2017 CDM program impacts are not in the base forecast. | E73: Only 50% of 2017 CDM programs are assumed to impact the 2018 load forecast based on the "half-year" rule. | F73: 2019 and 2020 are future years beyond the 2018 test year. No impacts of CDM programs beyond the 2018 test year are factored into the test year load forecast.
A75: 2015-2020 LRAMVA and 2018 CDM adjustment to Load Forecast
A77: One manual adjustment for CDM impacts to the 2018 load forecast is made. There is a different but related threshold amount that is used for the 2018 LRAMVA amount for Account 1568.
A79: The amount used for the CDM threshold of the LRAMVA is the kWh that will be used to determine the base amount for the LRAMVA balance for 2018, for assessing performance against the six-year target.
A81: If used to determine the manual CDM adjustment for the system purchased kWh, the proposed loss factor should correspond with the proposed total loss factor calculated in Appendix 2-R .
A83: The Manual Adjustment for the 2018 Load Forecast is the amount manually subtracted from the system-wide load forecast (either based on a purchased or billed basis) derived from the base forecast from historical data. If the distributor has developed their load forecast on a system purchased basis, then the manual adjustment should be on a system purchased basis, including the adjustment for losses. If the load forecast has been developed on a billed basis, either on a system basis or on a class-specific basis, the manual adjustment should be on a billed basis, excluding losses.
A85: The distributor should determine the allocation of the savings to all customer classes in a reasonable manner (e.g. taking into account what programs and what IESO-measured impacts were directed at specific customer classes), for both the LRAMVA and for the load forecast adjustment.
B87: 2015 | C87: 2016 | D87: 2017 | E87: 2018 | F87: 2019 | G87: 2020 | H87: Total for 2018
A89: Amount used for CDM threshold for LRAMVA (2018) | B89: =E34 -> 279331 | C89: =E35 -> 211864 | D89: =E36 -> 208141 | E89: =E37 -> 199900 | H89: =SUM(B89:G89) -> 899236
A91: Manual Adjustment for 2018 Load Forecast (billed basis) | B91: =B89*(1+F64)*B72 -> 0 | C91: =C89*(1+F64)*C72 -> 0 | D91: =D89*(1+F64)*D72 -> 0 | E91: =E89*(1+G64)*E72 -> 199900 | H91: =SUM(B91:G91) -> 199900
A92: Manual Adjustment for 2018 LDC-only CDM programs (billed basis)
A93: Total Manual Forecast to Load Forecast | B93: =B91+B92 -> 0 | C93: =C91+C92 -> 0 | D93: =D91+D92 -> 0 | E93: =E91+E92 -> 199900 | H93: =SUM(B93:G93) -> 199900
A95: Proposed Loss Factor (TLF) | B95: 0.0325 | C95: Format: X.XX%
A96: Manual Adjustment for 2018 Load Forecast (system purchased basis) | B96: =B93*(1+$B95) -> 0 | C96: =C93*(1+$B95) -> 0 | D96: =D93*(1+$B95) -> 0 | E96: =E93*(1+$B95) -> 206396.75 | H96: =SUM(B96:G96) -> 206396.75
A98: Manual adjustment uses "gross" versus "net" (i.e. numbers multiplied by (1 + g). The Weight factor is also used to calculate the impact of each year's program on the CDM adjustment to the 2018 load forecast.

Sheet App.2-IA_Load_Forecast_Instrct
Q1: File Number: | R1: =EBNUMBER -> EB-2018-0087
Q2: Exhibit:
Q3: Tab:
Q4: Schedule:
Q5: Page:
Q7: Date:
B9: Appendix 2-IA
B10: Instructions on Customer, Connections, Load Forecast and Revenues Data and Analysis
B12: This sheet requires no inputs, but serves as a summary of the hiostorical and forecasted data to be provided with respect to:
B14: 1) | C14: Customers and connections
B15: 2) | C15: Consumption (kWh)
B16: 3) | C16: Demand (kW or kCA) for applicable demand-billed customer classes
B17: 4) | C17: Revenues
B19: The spreadsheet summarizes the data provided and the analyses (variance or year-over-year) that are required. Data are required to be provided on a customer class level. Consumption (kWh) must also be provided on a total distribution system level.
B21: Appendix 2-IB (formerly 2-IA) is the appendix spreadsheet that the distributor populates, and the spreadsheet is laid out for inputting the necessary data. The spreadsheet also calculates necessary statistics such as average consumption per customer/connection per year, and variances and % annual changes, as necessary.
B23: The distributor is required to provide suitable documentation in Exhibit 3 of its Application, in accordance with section 2.3.2 of Chaoter 2 of the Filing Requirements. This would include explanations for material variations or of trends in the data.
B25: The distributor is also required to input its test year customer/connection and load forecast in Sheet 10 - Load Forecast of the Revenue Requirement Work Form. This sheet should also be updated to reflect changes in the load forecast made through the stages of processing of the rates application.
B27: The applicant must demonstrate the historical accuracy of its load forecast approach for at least the past 5 years. Such analysis will cover both customer/connections and consumption (kWh) and demand (kW or kVA) by providing the following, as shown in the following table:
D29: Calendar Year | F29: Customers / Connections | I29: Consumption (kWh) (3) | M29: Demand (kW or kVA) | Q29: Revenues
D30: ="(for "&TestYear&" Cost of Service)" -> (for 2019 Cost of Service) | I30: Weather-actual | J30: Weather-normalized | M30: Weather-actual | N30: Weather-normalized | Q30: Weather-actual | R30: Weather-normalized
C31: Historical | D31: =D32-1 -> 2013 | F31: Actual | I31: Actual | J31: Actual (1) | M31: Actual | N31: Actual (1) | Q31: Actual
C32: Historical | D32: 2014 | F32: Actual | I32: Actual | J32: Actual (1) | M32: Actual | N32: Actual (1) | Q32: Actual
C33: Historical | D33: 2015 | F33: Actual | G33: Board-approved (2) | I33: Actual | J33: Actual (1) | K33: Board-approved (2) | M33: Actual | N33: Actual (1) | O33: Board-approved (2) | Q33: Actual
C34: Historical | D34: 2016 | F34: Actual | I34: Actual | J34: Actual (1) | M34: Actual | N34: Actual (1) | Q34: Actual
C35: Historical | D35: 2017 | F35: Actual | I35: Actual | J35: Actual (1) | M35: Actual | N35: Actual (1) | Q35: Actual
C36: Bridge Year (Forecast) | D36: 2018 | F36: Forecast | J36: Forecast | N36: Forecast | R36: Forecast
C37: Test Year (Forecast) | D37: =TestYear -> 2019 | F37: Forecast | J37: Forecast | N37: Forecast | R37: Forecast
B40: Notes:
B42: (1) | C42: “Weather-normalized actuals” are estimated by replacing the actual weather-related values (typically Heating Degree Days (HDD) and Cooling Degree Days (CDD)) by the “typical” or “weather-normalized” values. These “weather-normalized HDD and CDD values would be the same as used to estimate the Bridge Year and Test Year forecasts.
B43: (2) | C43: For 2017 Cost of Service rebasers, the typical situation is that 2013 would have been the most recent cost of service rebasing application. If the most recent rebasing application was for a rate year other than 2013, that year should be used. An applicant must provide historical information back to the greater of: a) at least five (5) historical actual years; or b) to its last cost of service application.
B44: (3) | C44: Consumption must be provided on a total distribution system basis as well as at a customer class level.
B45: (4) | C45: Revenues exclude commodity charges.

Sheet App.2-IB_Load_Forecast_Analysis
T1: File Number: | U1: =EBNUMBER -> EB-2018-0087
T2: Exhibit:
T3: Tab:
T4: Schedule:
T5: Page:
T7: Date:
B9: Appendix 2-IB
B10: Customer, Connections, Load Forecast and Revenues Data and Analysis
B12: This sheet requires no inputs, but serves as a summary of the hiostorical and forecasted data to be provided with respect to:
B14: 1) | C14: Customers and connections
B15: 2) | C15: Consumption (kWh)
B16: 3) | C16: Demand (kW or kCA) for applicable demand-billed customer classes
B17: 4) | C17: Revenues
B19: The spreadsheet summarizes the data provided and the analyses (variance or year-over-year) that are required. Data are required to be provided on a customer class level. Consumption (kWh) must also be provided on a total distribution system level.
B21: Appendix 2-IB (formerly 2-IA) is the appendix spreadsheet that the distributor populates, and the spreadsheet is laid out for inputting the necessary data. The spreadsheet also calculates necessary statistics such as average consumption per customer/connection per year, and variances and % annual changes, as necessary.
B23: The distributor is required to provide suitable documentation in Exhibit 3 of its Application, in accordance with section 2.3.2 of Chaoter 2 of the Filing Requirements. This would include explanations for material variations or of trends in the data.
B25: The distributor is also required to input its test year customer/connection and load forecast in Sheet 10 - Load Forecast of the Revenue Requirement Work Form. This sheet should also be updated to reflect changes in the load forecast made through the stages of processing of the rates application.
B27: The applicant must demonstrate the historical accuracy of its load forecast approach for at least the past 5 years. Such analysis will cover both customer/connections and consumption (kWh) and demand (kW or kVA) by providing the following, as shown in the following table:
B29: This sheet is to be filled in accordance with the instructions documented in section 2.3.2 of Chapter 2 of the Filing Requirements for Distribution Rate Applications, in terms of one set of tables per customer class.
B31: Color coding for Cells: | F31: Data input | K31: Drop-down List
F33: No data entry required | K33: Blank or calculated value
B35: Distribution System (Total)
D37: Calendar Year | K37: Consumption (kWh) (3)
D38: =CONCATENATE("(for ",TestYear," Cost of Service") -> (for 2019 Cost of Service | L38: Actual (Weather actual) | M38: Weather-normalized | O38: Weather-normalized
C39: Historical | D39: =D40-1 -> 2013 | K39: Actual | L39: 29749924 | M39: 28385911.93 | N39: =IF(D39=RebaseYear,"Board-approved","") -> 
C40: Historical | D40: 2014 | K40: Actual | L40: 29940176 | M40: 28742149.88
C41: Historical | D41: 2015 | K41: Actual | L41: 27625506 | M41: 27709304.84
C42: Historical | D42: 2016 | K42: Actual | L42: 26137724 | M42: 27325090.99
C43: Historical | D43: 2017 | K43: Actual | L43: 26216509 | M43: 27595220.57
C44: Bridge Year | D44: 2018 | K44: Forecast | M44: 28410135.78
C45: Test Year | D45: =TestYear -> 2019 | K45: Forecast | M45: 28232404.06
O46: =SUM(O39:O44) -> 0
C47: Variance Analysis | K47: Year | L47: Year-over-year | O47: Versus Board-approved
D48: =D39 -> 2013 | K48: =D48 -> 2013
D49: 2014 | K49: =D49 -> 2014 | L49: =IF(L39=0,"",L40/L39-1) -> 0.006395041547 | M49: 0.0125498151
D50: 2015 | K50: 2015 | L50: -0.07730983278 | M50: -0.03593485682
D51: 2016 | K51: 2016 | L51: -0.05385537554 | M51: -0.01386587839
D52: 2017 | K52: 2017 | L52: 0.003014225722 | M52: 0.009885770489
D53: 2018 | K53: 2018 | L53: =IF(K44="Forecast","",IF(L43=0,"",L44/L43-1)) ->  | M53: =IF(M43=0,"",M44/M43-1) -> 0.02953102735
D54: 2019 | K54: 2019 | L54: =IF(K45="Forecast","",IF(L44=0,"",L45/L44-1)) ->  | M54: =IF(M44=0,"",M45/M44-1) -> -0.006255926546 | O54: =IF(O46=0,"",M45/O46-1) -> 
D55: Geometric Mean | K55: Geometric Mean | L55: =IF(L39=0,"",(L43/L39)^(1/($D43-$D39-1))-1) -> -0.04126996468 | M55: =IF(M39=0,"",(M45/M39)^(1/($D45-$D39-1))-1) -> -0.001083925153 | O55: =IF(O46=0,"",(M45/O46)^(1/(TestYear-RebaseYear-1))-1) -> 
B57: Customer Class Analysis (one for each Customer Class, excluding MicroFIT and Standby)
B59: 1 | C59: Customer Class: | D59: Residential | H59: Is the customer class billed on consumption (kWh) or demand (kW or kVA)? | N59: kWh
D61: Calendar Year | F61: Customers | K61: Consumption (kWh) (3) | Q61: =CONCATENATE("Consumption (kWh) per ",LEFT(F61,LEN(F61)-1)) -> Consumption (kWh) per Customer
D62: =CONCATENATE("(for ",TestYear," Cost of Service") -> (for 2019 Cost of Service | L62: Actual (Weather actual) | M62: Weather-normalized | O62: Weather-normalized | R62: =L62 -> Actual (Weather actual) | S62: =M62 -> Weather-normalized | U62: =O62 -> Weather-normalized
C63: Historical | D63: =D64-1 -> 2013 | F63: =K39 -> Actual | G63: 1061.5 | H63: =IF(D63=RebaseYear,"Board-approved","") ->  | K63: =F63 -> Actual | L63: 15071570 | M63: 14380549.63 | N63: =H63 ->  | Q63: =K63 -> Actual | R63: =IF(G63=0,"",L63/G63) -> 14198.37023 | S63: =IF(G63=0,"",M63/G63) -> 13547.38543 | T63: =N63 ->  | U63: =IF(T63="","",IF(I63=0,"",O63/I63)) -> 
C64: Historical | D64: 2014 | F64: =K40 -> Actual | G64: 1062.5 | K64: =F64 -> Actual | L64: 15225943 | M64: 14616692.16 | N64: =H64 ->  | Q64: =K64 -> Actual | R64: =IF(G64=0,"",L64/G64) -> 14330.29929 | S64: =IF(G64=0,"",M64/G64) -> 13756.88674 | T64: =N64 ->  | U64: =IF(T64="","",IF(I64=0,"",O64/I64)) -> 
C65: Historical | D65: 2015 | F65: Actual | G65: 1058.5 | K65: Actual | L65: 13727288 | M65: 13768928.17 | Q65: Actual | R65: 12968.62352 | S65: 13007.96237
C66: Historical | D66: 2016 | F66: Actual | G66: 1058.5 | K66: Actual | L66: 12612066 | M66: 13184998.47 | Q66: Actual | R66: 11915.03637 | S66: 12456.30465
C67: Historical | D67: 2017 | F67: Actual | G67: 1054 | K67: Actual | L67: 12775802 | M67: 13674798.42 | Q67: Actual | R67: 12121.25427 | S67: 12974.19205
C68: Bridge Year | D68: 2018 | F68: Forecast | G68: 1043.488368 | K68: Forecast | M68: 14078629.26 | Q68: Forecast | R68: 0 | S68: 13491.88903
C69: Test Year | D69: =TestYear -> 2019 | F69: Forecast | G69: 1033.081569 | K69: Forecast | M69: 13990554.39 | Q69: Forecast | R69: 0 | S69: 13542.54573
I70: =SUM(I63:I68) -> 0 | O70: =SUM(O63:O68) -> 0 | U70: =SUM(U63:U68) -> 0
C71: Variance Analysis | D71: Year | G71: Year-over-year | I71: Test Year Versus Board-approved | K71: Year | L71: Year-over-year | O71: =I71 -> Test Year Versus Board-approved | Q71: Year | R71: Year-over-year | U71: =O71 -> Test Year Versus Board-approved
D72: =D63 -> 2013 | K72: =D72 -> 2013 | Q72: =K72 -> 2013
D73: 2014 | G73: =IF(G63=0,"",G64/G63-1) -> 0.0009420631182 | K73: =D73 -> 2014 | L73: =IF(L63=0,"",L64/L63-1) -> 0.01024266218 | M73: 0.01642096648 | Q73: =K73 -> 2014 | R73: =IF(R63="","",IF(R63=0,"",R64/R63-1)) -> 0.009291845555 | S73: =IF(S63="","",IF(S63=0,"",S64/S63-1)) -> 0.01546433498
D74: 2015 | G74: -0.003764705882 | K74: 2015 | L74: -0.09842772957 | M74: -0.05799971554 | Q74: 2015 | R74: =IF(R64="","",IF(R64=0,"",R65/R64-1)) -> -0.09502074886 | S74: -0.0544399601
D75: 2016 | G75: 0 | K75: 2016 | L75: -0.08124124736 | M75: -0.04240923419 | Q75: 2016 | R75: -0.08124124736 | S75: -0.04240923419
D76: 2017 | G76: -0.004251299008 | K76: 2017 | L76: 0.01298248836 | M76: 0.0371482746 | Q76: 2017 | R76: 0.01730736615 | S76: 0.04157632701
D77: 2018 | G77: -0.009973085476 | K77: 2018 | L77: =IF(K68="Forecast","",IF(L67=0,"",L68/L67-1)) ->  | M77: =IF(M67=0,"",M68/M67-1) -> 0.02953102735 | Q77: 2018 | R77: =IF(Q68="Forecast","",IF(R67=0,"",R68/R67-1)) ->  | S77: =IF(S67="","",IF(S67=0,"",S68/S67-1)) -> 0.03990205948
D78: 2019 | G78: -0.009973085476 | I78: =IF(I70=0,"",G69/I70-1) ->  | K78: 2019 | L78: =IF(K69="Forecast","",IF(L68=0,"",L69/L68-1)) ->  | M78: =IF(M68=0,"",M69/M68-1) -> -0.006255926546 | O78: =IF(O70=0,"",M69/O70-1) ->  | Q78: 2019 | R78: =IF(Q69="Forecast","",IF(R68=0,"",R69/R68-1)) ->  | S78: =IF(S68="","",IF(S68=0,"",S69/S68-1)) -> 0.003754603916 | U78: =IF(U70=0,"",S69/U70-1) -> 
D79: Geometric Mean | G79: =IF(G63=0,"",(G69/G63)^(1/($D69-$D63-1))-1) -> -0.005412668777 | I79: =IF(I70=0,"",(G69/I70)^(1/(TestYear-RebaseYear-1))-1) ->  | K79: Geometric Mean | L79: =IF(L63=0,"",(L67/L63)^(1/($D67-$D63-1))-1) -> -0.05359601747 | M79: =IF(M63=0,"",(M69/M63)^(1/($D69-$D63-1))-1) -> -0.005483740734 | O79: =IF(O70=0,"",(M69/O70)^(1/(TestYear-RebaseYear-1))-1) ->  | Q79: Geometric Mean | R79: =IF(R63="","",IF(R63=0,"",(R67/R63)^(1/($D67-$D63-1))-1)) -> -0.05135652974 | S79: =IF(S63="","",IF(S63=0,"",(S69/S63)^(1/($D69-$D63-1))-1)) -> -7.145873981e-05 | U79: =IF(U70=0,"",(S69/U70)^(1/(TestYear-RebaseYear-1))-1) -> 
D82: Calendar Year | F82: Revenues | K82: =IF(ISBLANK(N59),"",CONCATENATE("Demand (",N59,")")) -> Demand (kWh) | Q82: =CONCATENATE("Demand (",N59,") per ",LEFT(F61,LEN(F61)-1)) -> Demand (kWh) per Customer
D83: =CONCATENATE("(for ",TestYear," Cost of Service") -> (for 2019 Cost of Service | L83: Actual (Weather actual) | M83: Weather-normalized | O83: =M83 -> Weather-normalized | R83: =L83 -> Actual (Weather actual) | S83: =M83 -> Weather-normalized | U83: =O83 -> Weather-normalized
C84: Historical | D84: =D85-1 -> 2013 | F84: =F63 -> Actual | G84: 504061 | H84: =IF(D84=RebaseYear,"Board-approved","") ->  | K84: =K63 -> Actual | N84: =N63 ->  | Q84: =K84 -> Actual | R84: =IF(G84=0,"",L84/G84) -> 0 | S84: =IF(G84=0,"",M84/G84) -> 0 | T84: =N84 ->  | U84: =IF(T84="","",IF(I84=0,"",O84/I84)) -> 
C85: Historical | D85: 2014 | F85: Actual | G85: 513185 | K85: Actual | Q85: =K85 -> Actual | R85: =IF(G85=0,"",L85/G85) -> 0 | S85: =IF(G85=0,"",M85/G85) -> 0 | T85: =N85 ->  | U85: =IF(T85="","",IF(I85=0,"",O85/I85)) -> 
C86: Historical | D86: 2015 | F86: Actual | G86: 497538 | K86: Actual | Q86: Actual | R86: 0 | S86: 0
C87: Historical | D87: 2016 | F87: Actual | G87: 481925 | K87: Actual | Q87: Actual | R87: 0 | S87: 0
C88: Historical | D88: 2017 | F88: Actual | G88: 482919 | K88: Actual | Q88: Actual | R88: 0 | S88: 0
C89: Bridge Year (Forecast) | D89: 2018 | F89: Forecast | G89: 496893 | K89: Forecast | Q89: Forecast | R89: 0 | S89: 0
C90: Test Year (Forecast) | D90: =TestYear -> 2019 | F90: Forecast | G90: 630628 | K90: Forecast | Q90: Forecast | R90: 0 | S90: 0
I91: =SUM(I84:I89) -> 0 | O91: =SUM(O84:O89) -> 0 | U91: =SUM(U84:U89) -> 0
C92: Variance Analysis | D92: Year | G92: Year-over-year | I92: =I71 -> Test Year Versus Board-approved | K92: Year | L92: Year-over-year | O92: =I92 -> Test Year Versus Board-approved | Q92: Year | R92: Year-over-year | U92: =O92 -> Test Year Versus Board-approved
D93: =D84 -> 2013 | K93: =D93 -> 2013 | Q93: =K93 -> 2013
D94: 2014 | G94: =IF(G84=0,"",G85/G84-1) -> 0.01810098381 | K94: =D94 -> 2014 | L94: =IF(L84=0,"",L85/L84-1) ->  | Q94: =K94 -> 2014 | R94: =IF(R84="","",IF(R84=0,"",R85/R84-1)) ->  | S94: =IF(S84="","",IF(S84=0,"",S85/S84-1)) -> 
D95: 2015 | G95: -0.03048997925 | K95: 2015 | Q95: 2015 | R95: =IF(R85="","",IF(R85=0,"",R86/R85-1)) -> 
D96: 2016 | G96: -0.03138051767 | K96: 2016 | Q96: 2016
D97: 2017 | G97: 0.002062561602 | K97: 2017 | Q97: 2017
D98: 2018 | G98: 0.02893652973 | K98: 2018 | L98: =IF(K89="Forecast","",IF(L88=0,"",L89/L88-1)) ->  | M98: =IF(M88=0,"",M89/M88-1) ->  | Q98: 2018 | R98: =IF(Q89="Forecast","",IF(R88=0,"",R89/R88-1)) ->  | S98: =IF(S88="","",IF(S88=0,"",S89/S88-1)) -> 
D99: 2019 | G99: 0.2691424512 | I99: =IF(I91=0,"",G90/I91-1) ->  | K99: 2019 | L99: =IF(K90="Forecast","",IF(L89=0,"",L90/L89-1)) ->  | M99: =IF(M89=0,"",M90/M89-1) ->  | O99: =IF(O91=0,"",M90/O91-1) ->  | Q99: 2019 | R99: =IF(Q90="Forecast","",IF(R89=0,"",R90/R89-1)) ->  | S99: =IF(S89="","",IF(S89=0,"",S90/S89-1)) ->  | U99: =IF(U91=0,"",S90/U91-1) -> 
D100: Geometric Mean | G100: =IF(G84=0,"",(G90/G84)^(1/($D90-$D84-1))-1) -> 0.04582261921 | I100: =IF(I91=0,"",(G90/I91)^(1/(TestYear-RebaseYear-1))-1) ->  | K100: Geometric Mean | L100: =IF(L84=0,"",(L88/L84)^(1/($D88-$D84-1))-1) ->  | M100: =IF(M84=0,"",(M90/M84)^(1/($D90-$D84-1))-1) ->  | O100: =IF(O91=0,"",(M90/O91)^(1/(TestYear-RebaseYear-1))-1) ->  | Q100: Geometric Mean | R100: =IF(R84="","",IF(R84=0,"",(R88/R84)^(1/($D88-$D84-1))-1)) ->  | S100: =IF(S84="","",IF(S84=0,"",(S90/S84)^(1/($D90-$D84-1))-1)) ->  | U100: =IF(U91=0,"",(S90/U91)^(1/(TestYear-RebaseYear-1))-1) -> 
B102: 2 | C102: Customer Class: | D102: GS < 50 kW | H102: Is the customer class billed on consumption (kWh) or demand (kW or kVA)? | N102: kWh
D104: Calendar Year | F104: Customers | K104: Consumption (kWh) (3) | Q104: =CONCATENATE("Consumption (kWh) per ",LEFT(F104,LEN(F104)-1)) -> Consumption (kWh) per Customer
D105: =CONCATENATE("(for ",TestYear," Cost of Service") -> (for 2019 Cost of Service | L105: Actual (Weather actual) | M105: Weather-normalized | O105: Weather-normalized | R105: =L105 -> Actual (Weather actual) | S105: =M105 -> Weather-normalized | U105: =O105 -> Weather-normalized
C106: Historical | D106: =D107-1 -> 2013 | F106: =F63 -> Actual | G106: 153 | H106: =IF(D106=RebaseYear,"Board-approved","") ->  | K106: =F106 -> Actual | L106: 5337892 | M106: 5093153.59 | N106: =H106 ->  | Q106: =K106 -> Actual | R106: =IF(G106=0,"",L106/G106) -> 34888.18301 | S106: =IF(G106=0,"",M106/G106) -> 33288.58556 | T106: =N106 ->  | U106: =IF(T106="","",IF(I106=0,"",O106/I106)) -> 
C107: Historical | D107: 2014 | F107: =F64 -> Actual | G107: 151.5 | K107: =F107 -> Actual | L107: 5251375 | M107: 5041246.495 | N107: =H107 ->  | Q107: =K107 -> Actual | R107: =IF(G107=0,"",L107/G107) -> 34662.54125 | S107: =IF(G107=0,"",M107/G107) -> 33275.55442 | T107: =N107 ->  | U107: =IF(T107="","",IF(I107=0,"",O107/I107)) -> 
C108: Historical | D108: 2015 | F108: Actual | G108: 152 | K108: Actual | L108: 4907587 | M108: 4922473.608 | Q108: Actual | R108: 32286.75658 | S108: 32384.69479
C109: Historical | D109: 2016 | F109: Actual | G109: 156.5 | K109: Actual | L109: 4617295 | M109: 4827046.379 | Q109: Actual | R109: 29503.48243 | S109: 30843.74683
C110: Historical | D110: 2017 | F110: Actual | G110: 152 | K110: Actual | L110: 4702580 | M110: 4949886.056 | Q110: Actual | R110: 30938.02632 | S110: 32565.03984
C111: Bridge Year | D111: 2018 | F111: Forecast | G111: 150.2199753 | K111: Forecast | M111: 5010784.666 | Q111: Forecast | R111: 0 | S111: 33356.31401
C112: Test Year | D112: =TestYear -> 2019 | F112: Forecast | G112: 148.4607958 | K112: Forecast | M112: 4979437.565 | Q112: Forecast | R112: 0 | S112: 33540.42081
I113: =SUM(I106:I111) -> 0 | O113: =SUM(O106:O111) -> 0 | U113: =SUM(U106:U111) -> 0
C114: Variance Analysis | D114: Year | G114: Year-over-year | I114: Test Year Versus Board-approved | K114: Year | L114: Year-over-year | O114: =I114 -> Test Year Versus Board-approved | Q114: Year | R114: Year-over-year | U114: =O114 -> Test Year Versus Board-approved
D115: =D106 -> 2013 | K115: =D115 -> 2013 | Q115: =K115 -> 2013
D116: 2014 | G116: =IF(G106=0,"",G107/G106-1) -> -0.009803921569 | K116: =D116 -> 2014 | L116: =IF(L106=0,"",L107/L106-1) -> -0.01620808364 | M116: -0.0101915432 | Q116: =K116 -> 2014 | R116: =IF(R106="","",IF(R106=0,"",R107/R106-1)) -> -0.006467569617 | S116: -0.0003914594702
D117: 2015 | G117: 0.003300330033 | K117: 2015 | L117: -0.06546628264 | M117: -0.02356022201 | Q117: 2015 | R117: -0.06854040671 | S117: -0.02677219496
D118: 2016 | G118: 0.02960526316 | K118: 2016 | L118: -0.05915167678 | M118: -0.01938603169 | Q118: 2016 | R118: -0.08620482346 | S118: -0.04758259947
D119: 2017 | G119: -0.02875399361 | K119: 2017 | L119: 0.01847077131 | M119: 0.02544820724 | Q119: 2017 | R119: =IF(R109="","",IF(R109=0,"",R110/R109-1)) -> 0.04862286651 | S119: 0.05580687127
D120: 2018 | G120: -0.01171068914 | K120: 2018 | L120: =IF(K111="Forecast","",IF(L110=0,"",L111/L110-1)) ->  | M120: =IF(M110=0,"",M111/M110-1) -> 0.01230303271 | Q120: 2018 | R120: =IF(Q111="Forecast","",IF(R110=0,"",R111/R110-1)) ->  | S120: 0.02429827135
D121: 2019 | G121: -0.01171068914 | I121: =IF(I113=0,"",G112/I113-1) ->  | K121: 2019 | L121: =IF(K112="Forecast","",IF(L111=0,"",L112/L111-1)) ->  | M121: =IF(M111=0,"",M112/M111-1) -> -0.006255926546 | O121: =IF(O113=0,"",M112/O113-1) ->  | Q121: 2019 | R121: =IF(Q112="Forecast","",IF(R111=0,"",R112/R111-1)) ->  | S121: 0.005519398555 | U121: =IF(U113=0,"",S112/U113-1) -> 
D122: Geometric Mean | G122: =IF(G106=0,"",(G112/G106)^(1/($D112-$D106-1))-1) -> -0.006005295541 | I122: =IF(I113=0,"",(G112/I113)^(1/(TestYear-RebaseYear-1))-1) ->  | K122: Geometric Mean | L122: =IF(L106=0,"",(L110/L106)^(1/($D110-$D106-1))-1) -> -0.04136016852 | M122: =IF(M106=0,"",(M112/M106)^(1/($D112-$D106-1))-1) -> -0.004505869696 | O122: =IF(O113=0,"",(M112/O113)^(1/(TestYear-RebaseYear-1))-1) ->  | Q122: Geometric Mean | R122: =IF(R106="","",IF(R106=0,"",(R110/R106)^(1/($D110-$D106-1))-1)) -> -0.03926248168 | S122: =IF(S106="","",IF(S106=0,"",(S112/S106)^(1/($D112-$D106-1))-1)) -> 0.001508484742 | U122: =IF(U113=0,"",(S112/U113)^(1/(TestYear-RebaseYear-1))-1) -> 
D125: Calendar Year | F125: Revenues | K125: =IF(ISBLANK(N102),"",CONCATENATE("Demand (",N102,")")) -> Demand (kWh) | Q125: =CONCATENATE("Demand (",N102,") per ",LEFT(F104,LEN(F104)-1)) -> Demand (kWh) per Customer
D126: =CONCATENATE("(for ",TestYear," Cost of Service") -> (for 2019 Cost of Service | L126: Actual (Weather actual) | M126: Weather-normalized | O126: =M126 -> Weather-normalized | R126: =L126 -> Actual (Weather actual) | S126: =M126 -> Weather-normalized | U126: =O126 -> Weather-normalized
C127: Historical | D127: =D128-1 -> 2013 | F127: =F106 -> Actual | G127: 156479 | H127: =IF(D127=RebaseYear,"Board-approved","") ->  | K127: =K106 -> Actual | N127: =N106 ->  | Q127: =K127 -> Actual | R127: =IF(G127=0,"",L127/G127) -> 0 | S127: =IF(G127=0,"",M127/G127) -> 0 | T127: =N127 ->  | U127: =IF(T127="","",IF(I127=0,"",O127/I127)) -> 
C128: Historical | D128: 2014 | F128: Actual | G128: 156179 | K128: Actual | Q128: =K128 -> Actual | R128: =IF(G128=0,"",L128/G128) -> 0 | S128: =IF(G128=0,"",M128/G128) -> 0 | T128: =N128 ->  | U128: =IF(T128="","",IF(I128=0,"",O128/I128)) -> 
C129: Historical | D129: 2015 | F129: Actual | G129: 152014 | K129: Actual | Q129: Actual | R129: 0 | S129: 0
C130: Historical | D130: 2016 | F130: Actual | G130: 148717 | K130: Actual | Q130: Actual | R130: 0 | S130: 0
C131: Historical | D131: 2017 | F131: Actual | G131: 148344 | K131: Actual | Q131: Actual | R131: 0 | S131: 0
C132: Bridge Year (Forecast) | D132: 2018 | F132: Forecast | G132: 152548 | K132: Forecast | Q132: Forecast | R132: 0 | S132: 0
C133: Test Year (Forecast) | D133: =TestYear -> 2019 | F133: Forecast | G133: 192398 | K133: Forecast | Q133: Forecast | R133: 0 | S133: 0
I134: =SUM(I127:I132) -> 0 | O134: =SUM(O127:O132) -> 0 | U134: =SUM(U127:U132) -> 0
C135: Variance Analysis | D135: Year | G135: Year-over-year | I135: =I114 -> Test Year Versus Board-approved | K135: Year | L135: Year-over-year | O135: =I135 -> Test Year Versus Board-approved | Q135: Year | R135: Year-over-year | U135: =O135 -> Test Year Versus Board-approved
D136: =D127 -> 2013 | K136: =D136 -> 2013 | Q136: =K136 -> 2013
D137: 2014 | G137: =IF(G127=0,"",G128/G127-1) -> -0.001917190166 | K137: =D137 -> 2014 | L137: =IF(L127=0,"",L128/L127-1) ->  | Q137: =K137 -> 2014 | R137: =IF(R127="","",IF(R127=0,"",R128/R127-1)) -> 
D138: 2015 | G138: -0.02666811799 | K138: 2015 | Q138: 2015
D139: 2016 | G139: -0.02168879182 | K139: 2016 | Q139: 2016
D140: 2017 | G140: -0.002508119448 | K140: 2017 | L140: =IF(L130=0,"",L131/L130-1) ->  | Q140: 2017 | R140: =IF(R130="","",IF(R130=0,"",R131/R130-1)) -> 
D141: 2018 | G141: 0.02833953513 | K141: 2018 | L141: =IF(K132="Forecast","",IF(L131=0,"",L132/L131-1)) ->  | Q141: 2018 | R141: =IF(Q132="Forecast","",IF(R131=0,"",R132/R131-1)) -> 
D142: 2019 | G142: 0.2612292524 | I142: =IF(I134=0,"",G133/I134-1) ->  | K142: 2019 | L142: =IF(K133="Forecast","",IF(L132=0,"",L133/L132-1)) ->  | O142: =IF(O134=0,"",M133/O134-1) ->  | Q142: 2019 | R142: =IF(Q133="Forecast","",IF(R132=0,"",R133/R132-1)) ->  | U142: =IF(U134=0,"",S133/U134-1) -> 
D143: Geometric Mean | G143: =IF(G127=0,"",(G133/G127)^(1/($D133-$D127-1))-1) -> 0.0421947911 | I143: =IF(I134=0,"",(G133/I134)^(1/(TestYear-RebaseYear-1))-1) ->  | K143: Geometric Mean | L143: =IF(L127=0,"",(L131/L127)^(1/($D131-$D127-1))-1) ->  | M143: =IF(M127=0,"",(M133/M127)^(1/($D133-$D127-1))-1) ->  | O143: =IF(O134=0,"",(M133/O134)^(1/(TestYear-RebaseYear-1))-1) ->  | Q143: Geometric Mean | R143: =IF(R127="","",IF(R127=0,"",(R131/R127)^(1/($D131-$D127-1))-1)) ->  | S143: =IF(S127="","",IF(S127=0,"",(S133/S127)^(1/($D133-$D127-1))-1)) ->  | U143: =IF(U134=0,"",(S133/U134)^(1/(TestYear-RebaseYear-1))-1) -> 
B145: 3 | C145: Customer Class: | D145: GS > 50 kW | H145: Is the customer class billed on consumption (kWh) or demand (kW or kVA)? | N145: kW
D147: Calendar Year | F147: Customers | K147: Consumption (kWh) (3) | Q147: =CONCATENATE("Consumption (kWh) per ",LEFT(F147,LEN(F147)-1)) -> Consumption (kWh) per Customer
D148: =CONCATENATE("(for ",TestYear," Cost of Service") -> (for 2019 Cost of Service | L148: Actual (Weather actual) | M148: Weather-normalized | O148: Weather-normalized | R148: =L148 -> Actual (Weather actual) | S148: =M148 -> Weather-normalized | U148: =O148 -> Weather-normalized
C149: Historical | D149: =D150-1 -> 2013 | F149: =F106 -> Actual | G149: 14 | H149: =IF(D149=RebaseYear,"Board-approved","") ->  | K149: =F149 -> Actual | L149: 7164613 | M149: 6836120.78 | N149: =H149 ->  | Q149: =K149 -> Actual | R149: =IF(G149=0,"",L149/G149) -> 511758.0714 | S149: =IF(G149=0,"",M149/G149) -> 488294.3414 | T149: =N149 ->  | U149: =IF(T149="","",IF(I149=0,"",O149/I149)) -> 
C150: Historical | D150: 2014 | F150: =F107 -> Actual | G150: 9.5 | K150: =F150 -> Actual | L150: 7157299 | M150: 6870906.857 | N150: =H150 ->  | Q150: =K150 -> Actual | R150: =IF(G150=0,"",L150/G150) -> 753399.8947 | S150: =IF(G150=0,"",M150/G150) -> 723253.3534 | T150: =N150 ->  | U150: =IF(T150="","",IF(I150=0,"",O150/I150)) -> 
C151: Historical | D151: 2015 | F151: Actual | G151: 11 | K151: Actual | L151: 6867603 | M151: 6888435.095 | Q151: Actual | R151: 624327.5455 | S151: 626221.3722
C152: Historical | D152: 2016 | F152: Actual | G152: 12 | K152: Actual | L152: 7048334 | M152: 7368520.988 | Q152: Actual | R152: 587361.1667 | S152: 614043.4156
C153: Historical | D153: 2017 | F153: Actual | G153: 15 | K153: Actual | L153: 6797046 | M153: 7154498.853 | Q153: Actual | R153: 453136.4 | S153: 476966.5902
C154: Bridge Year | D154: 2018 | F154: Forecast | G154: 15 | K154: Forecast | M154: 7234472.665 | Q154: Forecast | R154: 0 | S154: 482298.1777
C155: Test Year | D155: =TestYear -> 2019 | F155: Forecast | G155: 15 | K155: Forecast | M155: 7189214.336 | Q155: Forecast | R155: 0 | S155: 479280.9557
I156: =SUM(I149:I154) -> 0 | O156: =SUM(O149:O154) -> 0 | U156: =SUM(U149:U154) -> 0
C157: Variance Analysis | D157: Year | G157: Year-over-year | I157: Test Year Versus Board-approved | K157: Year | L157: Year-over-year | O157: =I157 -> Test Year Versus Board-approved | Q157: Year | R157: Year-over-year | U157: =O157 -> Test Year Versus Board-approved
D158: =D149 -> 2013 | K158: =D158 -> 2013 | Q158: =K158 -> 2013
D159: 2014 | G159: =IF(G149=0,"",G150/G149-1) -> -0.3214285714 | K159: =D159 -> 2014 | L159: =IF(L149=0,"",L150/L149-1) -> -0.001020850673 | M159: 0.005088569775 | Q159: =K159 -> 2014 | R159: =IF(R149="","",IF(R149=0,"",R150/R149-1)) -> 0.472179799 | S159: 0.4811831555
D160: 2015 | G160: 0.1578947368 | K160: 2015 | L160: -0.040475604 | M160: 0.002551080618 | Q160: 2015 | R160: -0.1713198398 | S160: -0.1341604304
D161: 2016 | G161: 0.09090909091 | K161: 2016 | L161: 0.02631646005 | M161: 0.06969447869 | Q161: 2016 | R161: -0.05920991162 | S161: -0.01944672787
D162: 2017 | G162: 0.25 | K162: 2017 | L162: -0.03565211297 | M162: -0.02904546721 | Q162: 2017 | R162: -0.2285216904 | S162: -0.2232363738
D163: 2018 | G163: 0 | K163: 2018 | L163: =IF(K154="Forecast","",IF(L153=0,"",L154/L153-1)) ->  | M163: =IF(M153=0,"",M154/M153-1) -> 0.01117811519 | Q163: 2018 | R163: =IF(Q154="Forecast","",IF(R153=0,"",R154/R153-1)) ->  | S163: =IF(S153="","",IF(S153=0,"",S154/S153-1)) -> 0.01117811519
D164: 2019 | G164: 0 | I164: =IF(I156=0,"",G155/I156-1) ->  | K164: 2019 | L164: =IF(K155="Forecast","",IF(L154=0,"",L155/L154-1)) ->  | M164: =IF(M154=0,"",M155/M154-1) -> -0.006255926546 | O164: =IF(O156=0,"",M155/O156-1) ->  | Q164: 2019 | R164: =IF(Q155="Forecast","",IF(R154=0,"",R155/R154-1)) ->  | S164: =IF(S154="","",IF(S154=0,"",S155/S154-1)) -> -0.006255926546 | U164: =IF(U156=0,"",S155/U156-1) -> 
D165: Geometric Mean | G165: =IF(G149=0,"",(G155/G149)^(1/($D155-$D149-1))-1) -> 0.01389421401 | I165: =IF(I156=0,"",(G155/I156)^(1/(TestYear-RebaseYear-1))-1) ->  | K165: Geometric Mean | L165: =IF(L149=0,"",(L153/L149)^(1/($D153-$D149-1))-1) -> -0.017402117 | M165: =IF(M149=0,"",(M155/M149)^(1/($D155-$D149-1))-1) -> 0.0101231884 | O165: =IF(O156=0,"",(M155/O156)^(1/(TestYear-RebaseYear-1))-1) ->  | Q165: Geometric Mean | R165: =IF(R149="","",IF(R149=0,"",(R153/R149)^(1/($D153-$D149-1))-1)) -> -0.03974167058 | S165: =IF(S149="","",IF(S149=0,"",(S155/S149)^(1/($D155-$D149-1))-1)) -> -0.003719348195 | U165: =IF(U156=0,"",(S155/U156)^(1/(TestYear-RebaseYear-1))-1) -> 
D168: Calendar Year | F168: Revenues | K168: =IF(ISBLANK(N145),"",CONCATENATE("Demand (",N145,")")) -> Demand (kW) | Q168: =CONCATENATE("Demand (",N145,") per ",LEFT(F147,LEN(F147)-1)) -> Demand (kW) per Customer
D169: =CONCATENATE("(for ",TestYear," Cost of Service") -> (for 2019 Cost of Service | L169: Actual (Weather actual) | M169: Weather-normalized | O169: =M169 -> Weather-normalized | R169: =L169 -> Actual (Weather actual) | S169: =M169 -> Weather-normalized | U169: =O169 -> Weather-normalized
C170: Historical | D170: =D171-1 -> 2013 | F170: =F149 -> Actual | G170: 66967 | H170: =IF(D170=RebaseYear,"Board-approved","") ->  | K170: =K149 -> Actual | L170: 18431 | M170: 18431 | N170: =N149 ->  | Q170: =K170 -> Actual | R170: =IF(G170=0,"",L170/G170) -> 0.2752251109 | S170: =IF(G170=0,"",M170/G170) -> 0.2752251109 | T170: =N170 ->  | U170: =IF(T170="","",IF(I170=0,"",O170/I170)) -> 
C171: Historical | D171: 2014 | F171: Actual | G171: 72693 | K171: Actual | L171: 20149 | M171: 20149 | Q171: =K171 -> Actual | R171: =IF(G171=0,"",L171/G171) -> 0.2771793708 | S171: =IF(G171=0,"",M171/G171) -> 0.2771793708 | T171: =N171 ->  | U171: =IF(T171="","",IF(I171=0,"",O171/I171)) -> 
C172: Historical | D172: 2015 | F172: Actual | G172: 65834 | K172: Actual | L172: 18062 | M172: 18062 | Q172: Actual | R172: 0.2743567154 | S172: 0.2743567154
C173: Historical | D173: 2016 | F173: Actual | G173: 68331 | K173: Actual | L173: 18740 | M173: 18740 | Q173: Actual | R173: 0.2742532672 | S173: 0.2742532672
C174: Historical | D174: 2017 | F174: Actual | G174: 64054 | K174: Actual | L174: 17522 | M174: 17522 | Q174: Actual | R174: 0.2735504418 | S174: 0.2735504418
C175: Bridge Year (Forecast) | D175: 2018 | F175: Forecast | G175: 68985 | K175: Forecast | M175: 19002.18965 | Q175: Forecast | R175: 0 | S175: 0.2754539342
C176: Test Year (Forecast) | D176: =TestYear -> 2019 | F176: Forecast | G176: 133012 | K176: Forecast | M176: 18883.31335 | Q176: Forecast | R176: 0 | S176: 0.1419669905
I177: =SUM(I170:I175) -> 0 | O177: =SUM(O170:O175) -> 0 | U177: =SUM(U170:U175) -> 0
C178: Variance Analysis | D178: Year | G178: Year-over-year | I178: =I157 -> Test Year Versus Board-approved | K178: Year | L178: Year-over-year | O178: =I178 -> Test Year Versus Board-approved | Q178: Year | R178: Year-over-year | U178: =O178 -> Test Year Versus Board-approved
D179: =D170 -> 2013 | K179: =D179 -> 2013 | Q179: =K179 -> 2013
D180: 2014 | G180: =IF(G170=0,"",G171/G170-1) -> 0.08550480087 | K180: =D180 -> 2014 | L180: =IF(L170=0,"",L171/L170-1) -> 0.09321252238 | M180: 0.09321252238 | Q180: =K180 -> 2014 | R180: =IF(R170="","",IF(R170=0,"",R171/R170-1)) -> 0.007100587213 | S180: 0.007100587213
D181: 2015 | G181: -0.09435571513 | K181: 2015 | L181: -0.1035783414 | M181: -0.1035783414 | Q181: 2015 | R181: -0.01018349741 | S181: -0.01018349741
D182: 2016 | G182: 0.03792872984 | K182: 2016 | L182: 0.03753737128 | M182: 0.03753737128 | Q182: 2016 | R182: -0.0003770572561 | S182: -0.0003770572561
D183: 2017 | G183: -0.0625923812 | K183: 2017 | L183: -0.06499466382 | M183: -0.06499466382 | Q183: 2017 | R183: -0.002562687319 | S183: -0.002562687319
D184: 2018 | G184: 0.0769819215 | K184: 2018 | L184: =IF(K175="Forecast","",IF(L174=0,"",L175/L174-1)) ->  | M184: =IF(M174=0,"",M175/M174-1) -> 0.08447606711 | Q184: 2018 | R184: =IF(Q175="Forecast","",IF(R174=0,"",R175/R174-1)) ->  | S184: =IF(S174="","",IF(S174=0,"",S175/S174-1)) -> 0.006958469268
D185: 2019 | G185: 0.9281293035 | I185: =IF(I177=0,"",G176/I177-1) ->  | K185: 2019 | L185: =IF(K176="Forecast","",IF(L175=0,"",L176/L175-1)) ->  | M185: =IF(M175=0,"",M176/M175-1) -> -0.006255926546 | O185: =IF(O177=0,"",M176/O177-1) ->  | Q185: 2019 | R185: =IF(Q176="Forecast","",IF(R175=0,"",R176/R175-1)) ->  | S185: =IF(S175="","",IF(S175=0,"",S176/S175-1)) -> -0.4846071414 | U185: =IF(U177=0,"",S176/U177-1) -> 
D186: Geometric Mean | G186: =IF(G170=0,"",(G176/G170)^(1/($D176-$D170-1))-1) -> 0.147112457 | I186: =IF(I177=0,"",(G176/I177)^(1/(TestYear-RebaseYear-1))-1) ->  | K186: Geometric Mean | L186: =IF(L170=0,"",(L174/L170)^(1/($D174-$D170-1))-1) -> -0.01671761525 | M186: =IF(M170=0,"",(M176/M170)^(1/($D176-$D170-1))-1) -> 0.004860697193 | O186: =IF(O177=0,"",(M176/O177)^(1/(TestYear-RebaseYear-1))-1) ->  | Q186: Geometric Mean | R186: =IF(R170="","",IF(R170=0,"",(R174/R170)^(1/($D174-$D170-1))-1)) -> -0.002032369331 | S186: =IF(S170="","",IF(S170=0,"",(S176/S170)^(1/($D176-$D170-1))-1)) -> -0.1240085564 | U186: =IF(U177=0,"",(S176/U177)^(1/(TestYear-RebaseYear-1))-1) -> 
B188: 4 | C188: Customer Class: | D188: Streetlighting | H188: Is the customer class billed on consumption (kWh) or demand (kW or kVA)? | N188: kW
D190: Calendar Year | F190: Customers | K190: Consumption (kWh) (3) | Q190: =CONCATENATE("Consumption (kWh) per ",LEFT(F190,LEN(F190)-1)) -> Consumption (kWh) per Customer
D191: =CONCATENATE("(for ",TestYear," Cost of Service") -> (for 2019 Cost of Service | L191: Actual (Weather actual) | M191: Weather-normalized | O191: Weather-normalized | R191: =L191 -> Actual (Weather actual) | S191: =M191 -> Weather-normalized | U191: =O191 -> Weather-normalized
C192: Historical | D192: =D193-1 -> 2013 | F192: =F149 -> Actual | G192: 328 | H192: =IF(D192=RebaseYear,"Board-approved","") ->  | K192: =F192 -> Actual | L192: 274269 | M192: 274269 | N192: =H192 ->  | Q192: =K192 -> Actual | R192: =IF(G192=0,"",L192/G192) -> 836.1859756 | S192: =IF(G192=0,"",M192/G192) -> 836.1859756 | T192: =N192 ->  | U192: =IF(T192="","",IF(I192=0,"",O192/I192)) -> 
C193: Historical | D193: 2014 | F193: =F150 -> Actual | G193: 328 | K193: =F193 -> Actual | L193: 274528 | M193: 274528 | N193: =H193 ->  | Q193: =K193 -> Actual | R193: =IF(G193=0,"",L193/G193) -> 836.9756098 | S193: =IF(G193=0,"",M193/G193) -> 836.9756098 | T193: =N193 ->  | U193: =IF(T193="","",IF(I193=0,"",O193/I193)) -> 
C194: Historical | D194: 2015 | F194: Actual | G194: 328 | K194: Actual | L194: 274259 | M194: 274259 | Q194: Actual | R194: 836.1554878 | S194: 836.1554878
C195: Historical | D195: 2016 | F195: Actual | G195: 328 | K195: Actual | L195: 274259 | M195: 274259 | Q195: Actual | R195: 836.1554878 | S195: 836.1554878
C196: Historical | D196: 2017 | F196: Actual | G196: 328 | K196: Actual | L196: 274259 | M196: 274259 | Q196: Actual | R196: 836.1554878 | S196: 836.1554878
C197: Bridge Year | D197: 2018 | F197: Forecast | G197: 328 | K197: Forecast | M197: 283967.2 | Q197: Forecast | R197: 0 | S197: 865.7536585
C198: Test Year | D198: =TestYear -> 2019 | F198: Forecast | G198: 328 | K198: Forecast | M198: 283967.2 | Q198: Forecast | R198: 0 | S198: 865.7536585
I199: =SUM(I192:I197) -> 0 | O199: =SUM(O192:O197) -> 0 | U199: =SUM(U192:U197) -> 0
C200: Variance Analysis | D200: Year | G200: Year-over-year | I200: Test Year Versus Board-approved | K200: Year | L200: Year-over-year | O200: =I200 -> Test Year Versus Board-approved | Q200: Year | R200: Year-over-year | U200: =O200 -> Test Year Versus Board-approved
D201: =D192 -> 2013 | K201: =D201 -> 2013 | Q201: =K201 -> 2013
D202: 2014 | G202: =IF(G192=0,"",G193/G192-1) -> 0 | K202: =D202 -> 2014 | L202: =IF(L192=0,"",L193/L192-1) -> 0.0009443283783 | M202: 0.0009443283783 | Q202: =K202 -> 2014 | R202: =IF(R192="","",IF(R192=0,"",R193/R192-1)) -> 0.0009443283783 | S202: 0.0009443283783
D203: 2015 | G203: 0 | K203: 2015 | L203: -0.0009798636205 | M203: -0.0009798636205 | Q203: 2015 | R203: -0.0009798636205 | S203: -0.0009798636205
D204: 2016 | G204: 0 | K204: 2016 | L204: 0 | M204: 0 | Q204: 2016 | R204: 0 | S204: 0
D205: 2017 | G205: 0 | K205: 2017 | L205: 0 | M205: 0 | Q205: 2017 | R205: 0 | S205: 0
D206: 2018 | G206: 0 | K206: 2018 | L206: =IF(K197="Forecast","",IF(L196=0,"",L197/L196-1)) ->  | M206: =IF(M196=0,"",M197/M196-1) -> 0.03539792678 | Q206: 2018 | R206: =IF(Q197="Forecast","",IF(R196=0,"",R197/R196-1)) ->  | S206: =IF(S196="","",IF(S196=0,"",S197/S196-1)) -> 0.03539792678
D207: 2019 | G207: 0 | I207: =IF(I199=0,"",G198/I199-1) ->  | K207: 2019 | L207: =IF(K198="Forecast","",IF(L197=0,"",L198/L197-1)) ->  | M207: =IF(M197=0,"",M198/M197-1) -> 0 | O207: =IF(O199=0,"",M198/O199-1) ->  | Q207: 2019 | R207: =IF(Q198="Forecast","",IF(R197=0,"",R198/R197-1)) ->  | S207: =IF(S197="","",IF(S197=0,"",S198/S197-1)) -> 0 | U207: =IF(U199=0,"",S198/U199-1) -> 
D208: Geometric Mean | G208: =IF(G192=0,"",(G198/G192)^(1/($D198-$D192-1))-1) -> 0 | I208: =IF(I199=0,"",(G198/I199)^(1/(TestYear-RebaseYear-1))-1) ->  | K208: Geometric Mean | L208: =IF(L192=0,"",(L196/L192)^(1/($D196-$D192-1))-1) -> -1.215366609e-05 | M208: =IF(M192=0,"",(M198/M192)^(1/($D198-$D192-1))-1) -> 0.006974078793 | O208: =IF(O199=0,"",(M198/O199)^(1/(TestYear-RebaseYear-1))-1) ->  | Q208: Geometric Mean | R208: =IF(R192="","",IF(R192=0,"",(R196/R192)^(1/($D196-$D192-1))-1)) -> -1.215366609e-05 | S208: =IF(S192="","",IF(S192=0,"",(S198/S192)^(1/($D198-$D192-1))-1)) -> 0.006974078793 | U208: =IF(U199=0,"",(S198/U199)^(1/(TestYear-RebaseYear-1))-1) -> 
D211: Calendar Year | F211: Revenues | K211: =IF(ISBLANK(N188),"",CONCATENATE("Demand (",N188,")")) -> Demand (kW) | Q211: =CONCATENATE("Demand (",N188,") per ",LEFT(F190,LEN(F190)-1)) -> Demand (kW) per Customer
D212: =CONCATENATE("(for ",TestYear," Cost of Service") -> (for 2019 Cost of Service | L212: Actual (Weather actual) | M212: Weather-normalized | O212: =M212 -> Weather-normalized | R212: =L212 -> Actual (Weather actual) | S212: =M212 -> Weather-normalized | U212: =O212 -> Weather-normalized
C213: Historical | D213: =D214-1 -> 2013 | F213: =F192 -> Actual | G213: 86134 | H213: =IF(D213=RebaseYear,"Board-approved","") ->  | K213: =K192 -> Actual | L213: 768 | M213: 768 | N213: =N192 ->  | Q213: =K213 -> Actual | R213: =IF(G213=0,"",L213/G213) -> 0.008916339657 | S213: =IF(G213=0,"",M213/G213) -> 0.008916339657 | T213: =N213 ->  | U213: =IF(T213="","",IF(I213=0,"",O213/I213)) -> 
C214: Historical | D214: 2014 | F214: Actual | G214: 95901 | K214: Actual | L214: 768 | M214: 768 | Q214: =K214 -> Actual | R214: =IF(G214=0,"",L214/G214) -> 0.008008258517 | S214: =IF(G214=0,"",M214/G214) -> 0.008008258517 | T214: =N214 ->  | U214: =IF(T214="","",IF(I214=0,"",O214/I214)) -> 
C215: Historical | D215: 2015 | F215: Actual | G215: 97004 | K215: Actual | L215: 768 | M215: 768 | Q215: Actual | R215: 0.007917199291 | S215: 0.007917199291
C216: Historical | D216: 2016 | F216: Actual | G216: 97004 | K216: Actual | L216: 768 | M216: 768 | Q216: Actual | R216: 0.007917199291 | S216: 0.007917199291
C217: Historical | D217: 2017 | F217: Actual | G217: 97004 | K217: Actual | L217: 768 | M217: 768 | Q217: Actual | R217: 0.007917199291 | S217: 0.007917199291
C218: Bridge Year (Forecast) | D218: 2018 | F218: Forecast | G218: 97128 | K218: Forecast | M218: 774 | Q218: Forecast | R218: 0 | S218: 0.007968865827
C219: Test Year (Forecast) | D219: =TestYear -> 2019 | F219: Forecast | G219: 42820 | K219: Forecast | M219: 774 | Q219: Forecast | R219: 0 | S219: 0.01807566558
I220: =SUM(I213:I218) -> 0 | O220: =SUM(O213:O218) -> 0 | U220: =SUM(U213:U218) -> 0
C221: Variance Analysis | D221: Year | G221: Year-over-year | I221: =I200 -> Test Year Versus Board-approved | K221: Year | L221: Year-over-year | O221: =I221 -> Test Year Versus Board-approved | Q221: Year | R221: Year-over-year | U221: =O221 -> Test Year Versus Board-approved
D222: =D213 -> 2013 | K222: =D222 -> 2013 | Q222: =K222 -> 2013
D223: 2014 | G223: =IF(G213=0,"",G214/G213-1) -> 0.1133930852 | K223: =D223 -> 2014 | L223: =IF(L213=0,"",L214/L213-1) -> 0 | M223: 0 | Q223: =K223 -> 2014 | R223: =IF(R213="","",IF(R213=0,"",R214/R213-1)) -> -0.1018446106 | S223: -0.1018446106
D224: 2015 | G224: 0.0115014442 | K224: 2015 | L224: 0 | M224: 0 | Q224: 2015 | R224: -0.01137066513 | S224: -0.01137066513
D225: 2016 | G225: 0 | K225: 2016 | L225: 0 | M225: 0 | Q225: 2016 | R225: 0 | S225: 0
D226: 2017 | G226: 0 | K226: 2017 | L226: 0 | M226: 0 | Q226: 2017 | R226: 0 | S226: 0
D227: 2018 | G227: 0.001278297802 | K227: 2018 | L227: =IF(K218="Forecast","",IF(L217=0,"",L218/L217-1)) ->  | M227: =IF(M217=0,"",M218/M217-1) -> 0.0078125 | Q227: 2018 | R227: =IF(Q218="Forecast","",IF(R217=0,"",R218/R217-1)) ->  | S227: =IF(S217="","",IF(S217=0,"",S218/S217-1)) -> 0.006525860205
D228: 2019 | G228: -0.5591384565 | I228: =IF(I220=0,"",G219/I220-1) ->  | K228: 2019 | L228: =IF(K219="Forecast","",IF(L218=0,"",L219/L218-1)) ->  | M228: =IF(M218=0,"",M219/M218-1) -> 0 | O228: =IF(O220=0,"",M219/O220-1) ->  | Q228: 2019 | R228: =IF(Q219="Forecast","",IF(R218=0,"",R219/R218-1)) ->  | S228: =IF(S218="","",IF(S218=0,"",S219/S218-1)) -> 1.268285848 | U228: =IF(U220=0,"",S219/U220-1) -> 
D229: Geometric Mean | G229: =IF(G213=0,"",(G219/G213)^(1/($D219-$D213-1))-1) -> -0.1304503004 | I229: =IF(I220=0,"",(G219/I220)^(1/(TestYear-RebaseYear-1))-1) ->  | K229: Geometric Mean | L229: =IF(L213=0,"",(L217/L213)^(1/($D217-$D213-1))-1) -> 0 | M229: =IF(M213=0,"",(M219/M213)^(1/($D219-$D213-1))-1) -> 0.001557639951 | O229: =IF(O220=0,"",(M219/O220)^(1/(TestYear-RebaseYear-1))-1) ->  | Q229: Geometric Mean | R229: =IF(R213="","",IF(R213=0,"",(R217/R213)^(1/($D217-$D213-1))-1)) -> -0.03884154417 | S229: =IF(S213="","",IF(S213=0,"",(S219/S213)^(1/($D219-$D213-1))-1)) -> 0.1518118406 | U229: =IF(U220=0,"",(S219/U220)^(1/(TestYear-RebaseYear-1))-1) -> 
B231: 5 | C231: Customer Class: | D231: Unmetered Scattered Load | H231: Is the customer class billed on consumption (kWh) or demand (kW or kVA)? | N231: kWh
D233: Calendar Year | F233: Customers | K233: Consumption (kWh) (3) | Q233: =CONCATENATE("Consumption (kWh) per ",LEFT(F233,LEN(F233)-1)) -> Consumption (kWh) per Customer
... 233 more rows

Sheet App.2-JA_OM&A_Summary_Analys
R1: File Number: | S1: =EBNUMBER -> EB-2018-0087 | T1: ='LDC Info'!$E$28 -> 2012 | U1: Last Rebasing Year | V1: Column
R2: Exhibit: | T2: =TestYear -> 2019 | U2: 2010 | V2: B | W2: ae
R3: Tab: | T3: ='LDC Info'!$E$28 -> 2012 | U3: 2011 | V3: D | W3: ah
A4: TO BE UPDATED AT THE DRAFT RATE ORDER STAGE | R4: Schedule: | U4: 2012 | V4: G | W4: ak
R5: Page: | U5: 2013 | V5: J | W5: an
U6: 2014 | V6: M | W6: aq
R7: Date: | U7: 2015 | V7: P | W7: at
U8: 2016 | V8: S | W8: aw
A9: Appendix 2-JA | U9: 2017 | V9: V | W9: az
A10: Summary of Recoverable OM&A Expenses
B11: 2010 | D11: 2011 | F11: 2012 | H11: 2013 | J11: 2014 | L11: 2015 | N11: 2016 | P11: 2017 | R11: 2018 | S11: 2019 | W11: 2010 | Z11: 2011 | AC11: 2012 | AF11: 2013 | AI11: 2014 | AL11: 2015 | AO11: 2016 | AR11: 2017 | AU11: 2018 | AW11: 2019
B12: =CONCATENATE(B11," ",IF($T1=B11,"Last Rebasing Year ","")," Board Approved") -> 2010 Board Approved | C12: =CONCATENATE(B11," ",IF($T1=B11,"Last Rebasing Year ","")," Actuals") -> 2010 Actuals | D12: =CONCATENATE(D11," ",IF($T1=D11,"Last Rebasing Year ","")," Board Approved") -> 2011 Board Approved | E12: =CONCATENATE(D11," ",IF($T1=D11,"Last Rebasing Year ","")," Actuals") -> 2011 Actuals | F12: =CONCATENATE(F11," ",IF($T1=F11,"Last Rebasing Year ","")," Board Approved") -> 2012 Last Rebasing Year Board Approved | G12: =CONCATENATE(F11," ",IF($T1=F11,"Last Rebasing Year ","")," Actuals") -> 2012 Last Rebasing Year Actuals | H12: =CONCATENATE(H11," ",IF($T1=H11,"Last Rebasing Year ","")," Board Approved") -> 2013 Board Approved | I12: =CONCATENATE(H11," ",IF($T1=H11,"Last Rebasing Year ","")," Actuals") -> 2013 Actuals | J12: =CONCATENATE(J11," ",IF($T1=J11,"Last Rebasing Year ","")," Board Approved") -> 2014 Board Approved | K12: =CONCATENATE(J11," ",IF($T1=J11,"Last Rebasing Year ","")," Actuals") -> 2014 Actuals | L12: =CONCATENATE(L11," ",IF($T1=L11,"Last Rebasing Year ","")," Board Approved") -> 2015 Board Approved | M12: =CONCATENATE(L11," ",IF($T1=L11,"Last Rebasing Year ","")," Actuals") -> 2015 Actuals | N12: =CONCATENATE(N11," ",IF($T1=N11,"Last Rebasing Year ","")," Board Approved") -> 2016 Board Approved | O12: =CONCATENATE(N11," ",IF($T1=N11,"Last Rebasing Year ","")," Actuals") -> 2016 Actuals | P12: =CONCATENATE(P11," ",IF($T1=P11,"Last Rebasing Year ","")," Board Approved") -> 2017 Board Approved | Q12: =CONCATENATE(P11," ",IF($T1=P11,"Last Rebasing Year ","")," Actuals") -> 2017 Actuals | R12: =BridgeYear & " Bridge Year" -> 2018 Bridge Year | S12: =TestYear & " Test Year" -> 2019 Test Year | W12: =CONCATENATE(IF($T1=W11,"Last Rebasing Year ",""),,W11," Board Approved") -> 2010 Board Approved | X12: =CONCATENATE(IF($T1=W11,"Last Rebasing Year ",""),W11," Actuals") -> 2010 Actuals | Y12: =CONCATENATE("Variance ",W11," Board Approved - ",W11," Actuals") -> Variance 2010 Board Approved - 2010 Actuals | Z12: =CONCATENATE(IF($T1=Z11,"Last Rebasing Year ",""),,Z11," Board Approved") -> 2011 Board Approved | AA12: =CONCATENATE(IF($T1=Z11,"Last Rebasing Year ",""),Z11," Actuals") -> 2011 Actuals | AB12: =CONCATENATE("Variance ",Z11," Board Approved - ",Z11," Actuals") -> Variance 2011 Board Approved - 2011 Actuals | AC12: =CONCATENATE(IF($T1=AC11,"Last Rebasing Year",""),,AC11," Board Approved") -> Last Rebasing Year2012 Board Approved | AD12: =CONCATENATE(IF($T1=AC11,"Last Rebasing Year ",""),AC11," Actuals") -> Last Rebasing Year 2012 Actuals | AE12: =CONCATENATE("Variance ",AC11," Board Approved - ",AC11," Actuals") -> Variance 2012 Board Approved - 2012 Actuals | AF12: =CONCATENATE(IF($T1=AF11,"Last Rebasing Year ",""),,AF11," Board Approved") -> 2013 Board Approved | AG12: =CONCATENATE(IF($T1=AF11,"Last Rebasing Year ",""),AF11," Actuals") -> 2013 Actuals | AH12: =CONCATENATE("Variance ",AF11," Board Approved - ",AF11," Actuals") -> Variance 2013 Board Approved - 2013 Actuals | AI12: =CONCATENATE(IF($T1=AI11,"Last Rebasing Year ",""),,AI11," Board Approved") -> 2014 Board Approved | AJ12: =CONCATENATE(IF($T1=AI11,"Last Rebasing Year ",""),AI11," Actuals") -> 2014 Actuals | AK12: =CONCATENATE("Variance ",AI11," Board Approved - ",AI11," Actuals") -> Variance 2014 Board Approved - 2014 Actuals | AL12: =CONCATENATE(IF($T1=AL11,"Last Rebasing Year ",""),,AL11," Board Approved") -> 2015 Board Approved | AM12: =CONCATENATE(IF($T1=AL11,"Last Rebasing Year ",""),AL11," Actuals") -> 2015 Actuals | AN12: =CONCATENATE("Variance ",AL11," Board Approved - ",AL11," Actuals") -> Variance 2015 Board Approved - 2015 Actuals | AO12: =CONCATENATE(IF($T1=AO11,"Last Rebasing Year ",""),,AO11," Board Approved") -> 2016 Board Approved | AP12: =CONCATENATE(IF($T1=AO11,"Last Rebasing Year ",""),AO11," Actuals") -> 2016 Actuals | AQ12: =CONCATENATE("Variance ",AO11," Board Approved - ",AO11," Actuals") -> Variance 2016 Board Approved - 2016 Actuals | AR12: =CONCATENATE(IF($T1=AR11,"Last Rebasing Year ",""),,AR11," Board Approved") -> 2017 Board Approved | AS12: =CONCATENATE(IF($T1=AR11,"Last Rebasing Year ",""),AR11," Actuals") -> 2017 Actuals | AT12: =CONCATENATE("Variance ",AR11," Board Approved - ",AR11," Actuals") -> Variance 2017 Board Approved - 2017 Actuals | AU12: =CONCATENATE(AU11," Bridge Year") -> 2018 Bridge Year | AV12: =CONCATENATE("Variance ",AU11," Bridge vs. ",AU11-1," Actuals") -> Variance 2018 Bridge vs. 2017 Actuals | AW12: =CONCATENATE(AW11," Test Year") -> 2019 Test Year | AX12: =CONCATENATE("Variance ",AW11," Test vs. ",AW11-1," Bridge") -> Variance 2019 Test vs. 2018 Bridge
A13: Reporting Basis | V13: Operations | W13: =B14 -> 0 | X13: =C14 -> 0 | Y13: =W13-X13 -> 0 | Z13: =D14 -> 0 | AA13: =E14 -> 0 | AB13: =Z13-AA13 -> 0 | AC13: =F14 -> 205440 | AD13: =G14 -> 289711.1 | AE13: =AC13-AD13 -> -84271.1 | AF13: =H14 -> 0 | AG13: =I14 -> 220412.01 | AH13: =AF13-AG13 -> -220412.01 | AI13: =J14 -> 0 | AJ13: =K14 -> 223210.54 | AK13: =AI13-AJ13 -> -223210.54 | AL13: =L14 -> 0 | AM13: =M14 -> 208239.31 | AN13: =AL13-AM13 -> -208239.31 | AO13: =N14 -> 0 | AP13: =O14 -> 236332.09 | AQ13: =AO13-AP13 -> -236332.09 | AR13: =P14 -> 0 | AS13: =Q14 -> 237909.06 | AT13: =AR13-AS13 -> -237909.06 | AU13: =R14 -> 247400 | AV13: =AU13-AS13 -> 9490.94 | AW13: =S14 -> 242760 | AX13: =AV13-AW13 -> -233269.06
A14: Operations | F14: 205440 | G14: 289711.1 | I14: 220412.01 | K14: 223210.54 | M14: 208239.31 | O14: 236332.09 | Q14: 237909.06 | R14: 247400 | S14: 242760 | V14: Maintenance | W14: =B15 -> 0 | X14: =C15 -> 0 | Y14: 0 | Z14: =D15 -> 0 | AA14: =E15 -> 0 | AB14: 0 | AC14: =F15 -> 0 | AD14: =G15 -> 0 | AE14: 0 | AF14: =H15 -> 0 | AG14: =I15 -> 0 | AH14: 0 | AI14: =J15 -> 0 | AJ14: =K15 -> 0 | AK14: 0 | AL14: =L15 -> 0 | AM14: =M15 -> 0 | AN14: 0 | AO14: =N15 -> 0 | AP14: =O15 -> 0 | AQ14: 0 | AR14: =P15 -> 0 | AS14: =Q15 -> 0 | AT14: 0 | AU14: =R15 -> 0 | AV14: =AU14-AS14 -> 0 | AW14: =S15 -> 1610 | AX14: -1610
A15: Maintenance | F15: 0 | S15: 1610 | V15: Billing and Collecting | W15: =B19 -> 0 | X15: 0 | Y15: 0 | Z15: =D19 -> 0 | AA15: 0 | AB15: 0 | AC15: =F19 -> 84200 | AD15: 95585.42 | AE15: -11385.42 | AF15: =H19 -> 0 | AG15: 115085.5 | AH15: -115085.5 | AI15: =J19 -> 0 | AJ15: 135609.24 | AK15: -135609.24 | AL15: =L19 -> 0 | AM15: 129894.92 | AN15: -129894.92 | AO15: =N19 -> 0 | AP15: 121156.86 | AQ15: -121156.86 | AR15: =P19 -> 0 | AS15: 121219.91 | AT15: -121219.91 | AU15: =R19 -> 135000 | AV15: 13780.09 | AW15: =S19 -> 133730 | AX15: -119949.91
A16: SubTotal | B16: =SUM(B14:B15) -> 0 | C16: =SUM(C14:C15) -> 0 | D16: 0 | E16: 0 | F16: 205440 | G16: 289711.1 | H16: 0 | I16: 220412.01 | J16: 0 | K16: 223210.54 | L16: 0 | M16: 208239.31 | N16: 0 | O16: 236332.09 | P16: 0 | Q16: 237909.06 | R16: 247400 | S16: 244370 | V16: Community Relations | W16: 0 | X16: 0 | Y16: 0 | Z16: 0 | AA16: 0 | AB16: 0 | AC16: 600 | AD16: 115 | AE16: 485 | AF16: 0 | AG16: 415 | AH16: -415 | AI16: 0 | AJ16: 415 | AK16: -415 | AL16: 0 | AM16: 115 | AN16: -115 | AO16: 0 | AP16: 415 | AQ16: -415 | AR16: 0 | AS16: 415 | AT16: -415 | AU16: =R20 -> 0 | AV16: -415 | AW16: =S20 -> 0 | AX16: -415
A17: %Change (year over year) | C17: =IF(ISERROR((C16-B16)/B16), "", (C16-B16)/B16) ->  | E17: =IF(ISERROR((E16-D16)/D16), "", (E16-D16)/D16) ->  | G17: =IF(ISERROR((G16-F16)/F16), "", (G16-F16)/F16) -> 0.4101981114 | I17: =IF(ISERROR((I16-H16)/H16), "", (I16-H16)/H16) ->  | K17: =IF(ISERROR((K16-J16)/J16), "", (K16-J16)/J16) ->  | M17: =IF(ISERROR((M16-L16)/L16), "", (M16-L16)/L16) ->  | O17: =IF(ISERROR((O16-N16)/N16), "", (O16-N16)/N16) ->  | Q17: =IF(ISERROR((Q16-P16)/P16), "", (Q16-P16)/P16) ->  | R17: =IF(ISERROR((R16-#REF!)/#REF!), "", (R16-#REF!)/#REF!) ->  | S17: =IF(ISERROR((S16-R16)/R16), "", (S16-R16)/R16) -> -0.01224737268 | V17: Administrative and General | W17: 0 | X17: 0 | Y17: 0 | Z17: 0 | AA17: 0 | AB17: 0 | AC17: 354100 | AD17: 285195.4 | AE17: 68904.6 | AF17: 0 | AG17: 302558.35 | AH17: -302558.35 | AI17: 0 | AJ17: 385438.49 | AK17: -385438.49 | AL17: 0 | AM17: 392315.57 | AN17: -392315.57 | AO17: 0 | AP17: 386132.64 | AQ17: -386132.64 | AR17: 0 | AS17: 357041.86 | AT17: -357041.86 | AU17: =R21 -> 427004 | AV17: 69962.14 | AW17: =S21 -> 443063 | AX17: -373100.86
A18: %Change (Test Year vs Last Rebasing Year - Actual) | S18: =IF(ISERROR((S16-C16)/C16), "", (S16-C16)/C16) ->  | V18: Total OM&A Expenses | W18: 0 | X18: 0 | Y18: 0 | Z18: 0 | AA18: 0 | AB18: 0 | AC18: 438900 | AD18: 380895.82 | AE18: 58004.18 | AF18: 0 | AG18: 418058.85 | AH18: -418058.85 | AI18: 0 | AJ18: 521462.73 | AK18: -521462.73 | AL18: 0 | AM18: 522325.49 | AN18: -522325.49 | AO18: 0 | AP18: 507704.5 | AQ18: -507704.5 | AR18: 0 | AS18: 478676.77 | AT18: -478676.77 | AU18: =R22 -> 562004 | AV18: 83327.23 | AW18: =S22 -> 576793 | AX18: -493465.77
A19: Billing and Collecting | F19: 84200 | G19: 95585.42 | I19: 115085.5 | K19: 135609.24 | M19: 129894.92 | O19: 121156.86 | Q19: 121219.91 | R19: 135000 | S19: 133730 | V19: Adjustments for Total non-recoverable items (from Appendices 2-JA and 2-JB)
A20: Community Relations | F20: 600 | G20: 115 | I20: 415 | K20: 415 | M20: 115 | O20: 415 | Q20: 415 | R20: 0 | S20: 0 | V20: Total Recoverable OM&A Expenses | W20: =W18-W19 -> 0 | X20: 0 | Y20: 0 | Z20: 0 | AA20: 0 | AB20: 0 | AC20: 438900 | AD20: 380895.82 | AE20: 58004.18 | AF20: =AF18-AF19 -> 0 | AG20: 418058.85 | AH20: -418058.85 | AI20: 0 | AJ20: 521462.73 | AK20: -521462.73 | AL20: 0 | AM20: 522325.49 | AN20: -522325.49 | AO20: 0 | AP20: 507704.5 | AQ20: =AQ18-AQ19 -> -507704.5 | AR20: =AR18-AR19 -> 0 | AS20: 478676.77 | AT20: =AT18-AT19 -> -478676.77 | AU20: 562004 | AV20: 83327.23 | AW20: 576793 | AX20: -493465.77
A21: Administrative and General | F21: 354100 | G21: 285195.4 | I21: 302558.35 | K21: 385438.49 | M21: 392315.57 | O21: 386132.64 | Q21: 357041.86 | R21: 427004 | S21: 443063 | V21: Variance from previous year | AA21: =AA20-X20 -> 0 | AD21: =AD20-AA20 -> 380895.82 | AG21: =AG20-AD20 -> 37163.03 | AJ21: =AJ20-AG20 -> 103403.88 | AM21: =AM20-AJ20 -> 862.76 | AP21: =AP20-AM20 -> -14620.99 | AS21: =AS20-AP20 -> -29027.73 | AU21: =AU20-AS20 -> 83327.23 | AW21: =AW20-AU20 -> 14789
A22: SubTotal | B22: =SUM(B19:B21) -> 0 | C22: =SUM(C19:C21) -> 0 | D22: 0 | E22: 0 | F22: 438900 | G22: 380895.82 | H22: 0 | I22: 418058.85 | J22: 0 | K22: 521462.73 | L22: 0 | M22: 522325.49 | N22: 0 | O22: 507704.5 | P22: 0 | Q22: =SUM(Q19:Q21) -> 478676.77 | R22: =SUM(R19:R21) -> 562004 | S22: =SUM(S19:S21) -> 576793 | V22: Percent change (year over year) | AA22: =IF(ISERROR(AA21/X20), "", AA21/X20) ->  | AD22: =IF(ISERROR(AD21/AA20), "", AD21/AA20) ->  | AG22: =IF(ISERROR(AG21/AD20), "", AG21/AD20) -> 0.09756743983 | AJ22: =IF(ISERROR(AJ21/AG20), "", AJ21/AG20) -> 0.2473428801 | AM22: =IF(ISERROR(AM21/AJ20), "", AM21/AJ20) -> 0.001654499834 | AP22: =IF(ISERROR(AP21/AM20), "", AP21/AM20) -> -0.02799210508 | AS22: =IF(ISERROR(AS21/AP20), "", AS21/AP20) -> -0.05717445876 | AU22: =IF(ISERROR(AU21/AS20), "", AU21/AS20) -> 0.1740782825 | AW22: =IF(ISERROR(AW21/AU20), "", AW21/AU20) -> 0.02631475933
A23: %Change (year over year) | C23: =IF(ISERROR((C22-B22)/B22), "", (C22-B22)/B22) ->  | E23: =IF(ISERROR((E22-D22)/D22), "", (E22-D22)/D22) ->  | G23: =IF(ISERROR((G22-F22)/F22), "", (G22-F22)/F22) -> -0.132158077 | I23: =IF(ISERROR((I22-H22)/H22), "", (I22-H22)/H22) ->  | K23: =IF(ISERROR((K22-J22)/J22), "", (K22-J22)/J22) ->  | M23: =IF(ISERROR((M22-L22)/L22), "", (M22-L22)/L22) ->  | O23: =IF(ISERROR((O22-N22)/N22), "", (O22-N22)/N22) ->  | Q23: =IF(ISERROR((Q22-P22)/P22), "", (Q22-P22)/P22) ->  | R23: =IF(ISERROR((R22-#REF!)/#REF!), "", (R22-#REF!)/#REF!) ->  | S23: =IF(ISERROR((S22-R22)/R22), "", (S22-R22)/R22) -> 0.02631475933 | V23: Percent Change: Test year vs. Most Current Actual | AS23: =IF(ISERROR((AW20-AS20)/AS20), "", (AW20-AS20)/AS20) -> 0.2049738699
A24: %Change (Test Year vs Last Rebasing Year - Actual) | S24: =IF(ISERROR((S22-C22)/C22), "", (S22-C22)/C22) ->  | V24: Simple average of % variance for all years | AS24: =AVERAGE(AA22:AW22) -> 0.06597018539
A25: Total | B25: =SUM(B22,B16) -> 0 | C25: =SUM(C22,C16) -> 0 | D25: 0 | E25: 0 | F25: 644340 | G25: 670606.92 | H25: 0 | I25: 638470.86 | J25: 0 | K25: 744673.27 | L25: 0 | M25: =SUM(M22,M16) -> 730564.8 | N25: 0 | O25: 744036.59 | P25: 0 | Q25: =SUM(Q22,Q16) -> 716585.83 | R25: =SUM(R22,R16) -> 809404 | S25: =SUM(S22,S16) -> 821163 | V25: Compound Annual Growth Rate for all years | AX25: =IF((AW20-AO20)=0, "", (AW20/AO20)^(1/(L2-L1-1))-1) -> 
A26: %Change (year over year) | C26: =IF(ISERROR((C25-B25)/B25), "", (C25-B25)/B25) ->  | E26: =IF(ISERROR((E25-D25)/D25), "", (E25-D25)/D25) ->  | G26: =IF(ISERROR((G25-F25)/F25), "", (G25-F25)/F25) -> 0.04076562064 | I26: =IF(ISERROR((I25-H25)/H25), "", (I25-H25)/H25) ->  | K26: =IF(ISERROR((K25-J25)/J25), "", (K25-J25)/J25) ->  | M26: =IF(ISERROR((M25-L25)/L25), "", (M25-L25)/L25) ->  | O26: =IF(ISERROR((O25-N25)/N25), "", (O25-N25)/N25) ->  | Q26: =IF(ISERROR((Q25-P25)/P25), "", (Q25-P25)/P25) ->  | R26: =IF(ISERROR((R25-#REF!)/#REF!), "", (R25-#REF!)/#REF!) ->  | S26: =IF(ISERROR((S25-R25)/R25), "", (S25-R25)/R25) -> 0.01452797367 | V26: ="Compound Growth Rate (" &#REF! & " vs. " & 'LDC Info'!E28 & " Actuals)" ->  | AS26: =IF(ISERROR((AS20/AO20)^(1/(L2-L1-3)) - 1), "", (AS20/AO20)^(1/(L2-L1-3)) - 1) -> 
W29: =B12 -> 2010 Board Approved | X29: =C12 -> 2010 Actuals | Y29: Last Rebasing Year (2011 Board Approved) | Z29: Last Rebasing Year (2011 Actuals) | AA29: 2011 Actuals | AB29: Last Rebasing Year (2012 Board Approved) | AC29: Last Rebasing Year (2012 Actuals) | AD29: 2012 Actuals | AE29: Last Rebasing Year (2013 Board Approved) | AF29: Last Rebasing Year (2013 Actuals) | AG29: 2013 Actuals | AH29: Last Rebasing Year (2014 Board Approved) | AI29: Last Rebasing Year (2014 Actuals) | AJ29: 2014 Actuals | AK29: Last Rebasing Year (2015 Board Approved) | AL29: Last Rebasing Year (2015 Actuals) | AM29: 2015 Actuals | AN29: Last Rebasing Year (2016 Board Approved) | AO29: Last Rebasing Year (2016 Actuals) | AP29: =BridgeYear -2 & " Actuals" -> 2016 Actuals | AQ29: Last Rebasing Year (2017 Board Approved) | AR29: Last Rebasing Year (2017 Actuals) | AS29: =BridgeYear -1 & " Actuals" -> 2017 Actuals | AT29: =BridgeYear & " Bridge Year" -> 2018 Bridge Year | AU29: =TestYear & " Test Year" -> 2019 Test Year
V30: Operations | W30: =B14 -> 0 | X30: 0 | Y30: 0 | Z30: 0 | AA30: =E14 -> 0 | AB30: 205440 | AC30: 289711.1 | AD30: =G14 -> 289711.1 | AE30: 0 | AF30: 220412.01 | AG30: =I14 -> 220412.01 | AH30: 0 | AI30: 223210.54 | AJ30: =K14 -> 223210.54 | AK30: 0 | AL30: 208239.31 | AM30: =M14 -> 208239.31 | AN30: 0 | AO30: 236332.09 | AP30: =O14 -> 236332.09 | AQ30: 0 | AR30: 237909.06 | AS30: =Q14 -> 237909.06 | AT30: 247400 | AU30: 242760
V31: Maintenance | W31: 0 | X31: 0 | Y31: 0 | Z31: 0 | AA31: 0 | AB31: 0 | AC31: 0 | AD31: 0 | AE31: 0 | AF31: 0 | AG31: 0 | AH31: 0 | AI31: 0 | AJ31: 0 | AK31: 0 | AL31: 0 | AM31: 0 | AN31: 0 | AO31: 0 | AP31: 0 | AQ31: 0 | AR31: 0 | AS31: 0 | AT31: 0 | AU31: 1610
V32: Billing and Collecting | W32: =B19 -> 0 | X32: 0 | Y32: 0 | Z32: 0 | AA32: =E19 -> 0 | AB32: =F19 -> 84200 | AC32: 95585.42 | AD32: =G19 -> 95585.42 | AE32: =H19 -> 0 | AF32: 115085.5 | AG32: =I19 -> 115085.5 | AH32: =J19 -> 0 | AI32: 135609.24 | AJ32: =K19 -> 135609.24 | AK32: =L19 -> 0 | AL32: 129894.92 | AM32: =M19 -> 129894.92 | AN32: =N19 -> 0 | AO32: 121156.86 | AP32: =O19 -> 121156.86 | AQ32: =P19 -> 0 | AR32: 121219.91 | AS32: =Q19 -> 121219.91 | AT32: =R19 -> 135000 | AU32: 133730
V33: Community Relations | W33: 0 | X33: 0 | Y33: 0 | Z33: 0 | AA33: =E20 -> 0 | AB33: 600 | AC33: 115 | AD33: =G20 -> 115 | AE33: 0 | AF33: 415 | AG33: =I20 -> 415 | AH33: 0 | AI33: 415 | AJ33: =K19 -> 135609.24 | AK33: 0 | AL33: 115 | AM33: =M19 -> 129894.92 | AN33: 0 | AO33: 415 | AP33: =O20 -> 415 | AQ33: 0 | AR33: 415 | AS33: =Q20 -> 415 | AT33: 0 | AU33: 0
V34: Administrative and General | W34: 0 | X34: 0 | Y34: 0 | Z34: 0 | AA34: =E21 -> 0 | AB34: 354100 | AC34: 285195.4 | AD34: =G21 -> 285195.4 | AE34: 0 | AF34: 302558.35 | AG34: =I21 -> 302558.35 | AH34: 0 | AI34: 385438.49 | AJ34: =K21 -> 385438.49 | AK34: 0 | AL34: 392315.57 | AM34: =M21 -> 392315.57 | AN34: 0 | AO34: 386132.64 | AP34: =O21 -> 386132.64 | AQ34: 0 | AR34: 357041.86 | AS34: =Q21 -> 357041.86 | AT34: 427004 | AU34: 443063
V35: Total | W35: =SUM(W30:W34) -> 0 | X35: =SUM(X30:X34) -> 0 | Y35: 0 | Z35: 0 | AA35: 0 | AB35: 644340 | AC35: 670606.92 | AD35: 670606.92 | AE35: 0 | AF35: 638470.86 | AG35: 638470.86 | AH35: 0 | AI35: 744673.27 | AJ35: 879867.51 | AK35: 0 | AL35: 730564.8 | AM35: 860344.72 | AN35: 0 | AO35: 744036.59 | AP35: 744036.59 | AQ35: 0 | AR35: 716585.83 | AS35: 716585.83 | AT35: 809404 | AU35: 821163
